Workbook

Sheet Control
A1: Sheets | B1: Text File Names | C1: Description | E1: Notes: 50 sheets maximum
A2: Total | B2: Pits\Culpability\WP_Culp_Total.txt | C2: All load added to West Pit, statistics by constituent | E2: Referenced text files must be in same root folder as this spreadsheet
A3: RO | B3: Pits\Culpability\WP_Culp_RO.txt | C3: Runoff load to West Pit, statistics by constituent
A4: GW | B4: Pits\Culpability\WP_Culp_GW.txt | C4: GW load to West Pit, statistics by constituent
A5: Wetland | B5: Pits\Culpability\WP_Culp_Wetland.txt | C5: Load from EP wetland to West Pit, statistics by constituent
A6: Pore | B6: Pits\Culpability\WP_Culp_Pore.txt | C6: Load from EP backfill to West Pit, statistics by constituent
A7: CPS | B7: Pits\Culpability\WP_Culp_CPS.txt | C7: WWTF effluent load added to West Pit, statistics by constituent
A8: Blast | B8: Pits\Culpability\WP_Culp_Blast.txt | C8: Load from temp. ore storage to West Pit, statistics by constituent | F8: Run Time Min: | G8: =MIN(Total!B5,RO!B5,GW!B5,Wetland!B5,Pore!B5,CPS!B5,Blast!B5,Cat1SP!B5,Cat1wall!B5,Cat23wall!B5,Cat4wall!B5,Orewall!B5,TBPump!B5,Cat1SP_WWTF!B5) -> 2014-12-15T22:56:18
A9: Cat1SP | B9: Pits\Culpability\WP_Culp_Cat1SP.txt | C9: Total load from Cat1 stockpile to West Pit, statistics by constituent | F9: Run Time Max: | G9: =MAX(Total!B5,RO!B5,GW!B5,Wetland!B5,Pore!B5,CPS!B5,Blast!B5,Cat1SP!B5,Cat1wall!B5,Cat23wall!B5,Cat4wall!B5,Orewall!B5,TBPump!B5,Cat1SP_WWTF!B5) -> 2014-12-15T22:56:18
A10: Cat1wall | B10: Pits\Culpability\WP_Culp_Cat1wall.txt | C10: Total load from Cat 1 walls to West Pit, statistics by constituent
A11: Cat23wall | B11: Pits\Culpability\WP_Culp_Cat23wall.txt | C11: Total load from Cat 2/3 walls to West Pit, statistics by constituent
A12: Cat4wall | B12: Pits\Culpability\WP_Culp_Cat4wall.txt | C12: Total load from Cat 4 (DC) walls to West Pit, statistics by constituent
A13: Orewall | B13: Pits\Culpability\WP_Culp_Orewall.txt | C13: Total load from ore walls to West Pit, statistics by constituent
A14: TBPump | B14: Pits\Culpability\WP_Culp_fromTB.txt | C14: Total load from Tailing Basin pumping to West Pit, statistics by const.
A16: Cat1SP_WWTF | B16: Pits\Culpability\WWTF_Culp_Cat1SP.txt | C16: Total load from Cat1 stockpile to reclamation and long-term WWTF, statistics by constituent

Sheet PlotControl
A2: Model Name: | B2: Mine Site Version 6.0 | C2: =B2 & " Model " & IF(B4="P50", "Median", IF(B4="P10", "10th Percentile", "90th Percentile")) & " Loading Rates - Operations and Reclamation " & B6 & " to the West Pit" -> Mine Site Version 6.0 Model Median Loading Rates - Operations and Reclamation SO4 to the West Pit
C3: =B2 & " Model " & IF(B4="P50", "Median", IF(B4="P10", "10th Percentile", "90th Percentile")) & " Loading Rates - Long-term Closure " & B6 & " to the West Pit" -> Mine Site Version 6.0 Model Median Loading Rates - Long-term Closure SO4 to the West Pit
A4: Plot: | B4: P50 | C4: =MATCH(B4,$B$25:$B$27,0) -> 2 | V4: Directory to save PDFs to: | W4: P:\Mpls\23 MN\69\2369862\WorkFiles\APA\Support Docs\Water Modeling Package Doc\MODEL_RESULTS\MineSite_Results_01Feb2013\Attachment I
V5: Starting figure caption | W5: Figure I-02-27.2
A6: Constituent to Plot (dropdown): | B6: SO4 | C6: =MATCH(B6,$A$25:$A$51,0) -> 24
V7: Note: This loops through the plots and constituent drop down menus.
A8: Year for Post-Closure Plot: | B8: 50
A10: Sources
A11: Total
A12: Runoff
A13: Groundwater
A14: East Pit Wetland
A15: East Pit Porewater
A16: WWTF Return Water | J16: SAVE BOTH OF THESE PLOTS
A17: In-pit Blast Ore
A18: Cat 1 Stockpile | D18: Note: Results shown are based on P10/P50/P90 monthly loading to the pit and cannot be used to determine cumulative mass loading during pit flooding due to differences in timing between realizations. Results are for relative magnitude comparison only.
A19: Cat 1 Wallrock
A20: Cat 2/3 Wallrock
A21: Cat 4 Wallrock
A22: Ore Wallrock
A23: Tailings Basin Water | E23: Annual Project Results (tonne/yr loading) | U23: Annual Project Results (tonne/yr loading)
A24: Constituent | B24: Percentile | D24: Time | E24: Total (not plotted) | F24: Runoff | G24: Groundwater | H24: East Pit Wetland | I24: East Pit Porewater | J24: WWTF Return Water | K24: In-pit Blast Ore | L24: Cat 1 Stockpile | M24: Cat 1 Stockpile (to WWTF) | N24: Cat 1 Wallrock | O24: Cat 2/3 Wallrock | P24: Cat 4 Wallrock | Q24: Ore Wallrock | R24: Tailings Basin Water | T24: Time | U24: Total (not plotted) | V24: Runoff | W24: Groundwater | X24: East Pit Wetland | Y24: East Pit Porewater | Z24: WWTF Return Water | AA24: In-pit Blast Ore | AB24: Cat 1 Stockpile | AC24: Cat 1 Stockpile (to WWTF) | AD24: Cat 1 Wallrock | AE24: Cat 2/3 Wallrock | AF24: Cat 4 Wallrock | AG24: Ore Wallrock | AH24: Tailings Basin Water
A25: Ag | B25: P10 | D25: 0 | T25: =$B$8 -> 50 | U25: =VLOOKUP($T25,Point_Sources_All!$A$5:$AQ$204,$C$4+1)/1000 -> 40.60183333 | V25: =VLOOKUP($T25,Point_Sources_All!$A$5:$AQ$204,$C$4+4)/1000 -> 2.1075625 | W25: =VLOOKUP($T25,Point_Sources_All!$A$5:$AQ$204,$C$4+7)/1000 -> 0.60609 | X25: =VLOOKUP($T25,Point_Sources_All!$A$5:$AQ$204,$C$4+10)/1000 -> 2.786965333 | Y25: =VLOOKUP($T25,Point_Sources_All!$A$5:$AQ$204,$C$4+13)/1000 -> 0.04364133333 | Z25: =VLOOKUP($T25,Point_Sources_All!$A$5:$AQ$204,$C$4+16)/1000 -> 0 | AA25: =VLOOKUP($T25,Point_Sources_All!$A$5:$AQ$204,$C$4+19)/1000 -> 0 | AB25: =VLOOKUP($T25,Point_Sources_All!$A$5:$AQ$204,$C$4+22)/1000 -> 10.8829 | AC25: =VLOOKUP($T25,Point_Sources_All!$A$5:$AQ$204,$C$4+25)/1000 -> 0 | AD25: =VLOOKUP($T25,Point_Sources_All!$A$5:$AQ$204,$C$4+28)/1000 -> 0.386775 | AE25: =VLOOKUP($T25,Point_Sources_All!$A$5:$AQ$204,$C$4+31)/1000 -> 3.191541667 | AF25: =VLOOKUP($T25,Point_Sources_All!$A$5:$AQ$204,$C$4+34)/1000 -> 0.1336823333 | AG25: =VLOOKUP($T25,Point_Sources_All!$A$5:$AQ$204,$C$4+37)/1000 -> 5.536083333 | AH25: =VLOOKUP($T25,Point_Sources_All!$A$5:$AQ$204,$C$4+40)/1000 -> 6.93695
A26: Al | B26: P50 | D26: 1 | E26: =VLOOKUP($D26,Point_Sources_All!$A$5:$AQ$204,$C$4+1)/1000 -> 20.4172 | F26: =VLOOKUP($D26,Point_Sources_All!$A$5:$AQ$204,$C$4+4)/1000 -> 0 | G26: =VLOOKUP($D26,Point_Sources_All!$A$5:$AQ$204,$C$4+7)/1000 -> 0 | H26: =VLOOKUP($D26,Point_Sources_All!$A$5:$AQ$204,$C$4+10)/1000 -> 0 | I26: =VLOOKUP($D26,Point_Sources_All!$A$5:$AQ$204,$C$4+13)/1000 -> 0 | J26: =VLOOKUP($D26,Point_Sources_All!$A$5:$AQ$204,$C$4+16)/1000 -> 0 | K26: =VLOOKUP($D26,Point_Sources_All!$A$5:$AQ$204,$C$4+19)/1000 -> 17.72323333 | L26: =VLOOKUP($D26,Point_Sources_All!$A$5:$AQ$204,$C$4+22)/1000 -> 2.143910833 | M26: =VLOOKUP($D26,Point_Sources_All!$A$5:$AQ$204,$C$4+25)/1000 -> 0 | N26: =VLOOKUP($D26,Point_Sources_All!$A$5:$AQ$204,$C$4+28)/1000 -> 0 | O26: =VLOOKUP($D26,Point_Sources_All!$A$5:$AQ$204,$C$4+31)/1000 -> 0 | P26: =VLOOKUP($D26,Point_Sources_All!$A$5:$AQ$204,$C$4+34)/1000 -> 0 | Q26: =VLOOKUP($D26,Point_Sources_All!$A$5:$AQ$204,$C$4+37)/1000 -> 0 | R26: =VLOOKUP($D26,Point_Sources_All!$A$5:$AQ$204,$C$4+40)/1000 -> 0 | T26: =T25+1 -> 51 | U26: =VLOOKUP($T26,Point_Sources_All!$A$5:$AQ$204,$C$4+1)/1000 -> 34.31191667 | V26: =VLOOKUP($T26,Point_Sources_All!$A$5:$AQ$204,$C$4+4)/1000 -> 1.50377 | W26: =VLOOKUP($T26,Point_Sources_All!$A$5:$AQ$204,$C$4+7)/1000 -> 0.590595 | X26: =VLOOKUP($T26,Point_Sources_All!$A$5:$AQ$204,$C$4+10)/1000 -> 2.716638333 | Y26: =VLOOKUP($T26,Point_Sources_All!$A$5:$AQ$204,$C$4+13)/1000 -> 0.04130833333 | Z26: =VLOOKUP($T26,Point_Sources_All!$A$5:$AQ$204,$C$4+16)/1000 -> 0 | AA26: =VLOOKUP($T26,Point_Sources_All!$A$5:$AQ$204,$C$4+19)/1000 -> 0 | AB26: =VLOOKUP($T26,Point_Sources_All!$A$5:$AQ$204,$C$4+22)/1000 -> 7.653558333 | AC26: =VLOOKUP($T26,Point_Sources_All!$A$5:$AQ$204,$C$4+25)/1000 -> 0 | AD26: =VLOOKUP($T26,Point_Sources_All!$A$5:$AQ$204,$C$4+28)/1000 -> 0.3141366667 | AE26: =VLOOKUP($T26,Point_Sources_All!$A$5:$AQ$204,$C$4+31)/1000 -> 2.48308 | AF26: =VLOOKUP($T26,Point_Sources_All!$A$5:$AQ$204,$C$4+34)/1000 -> 0.1164365833 | AG26: =VLOOKUP($T26,Point_Sources_All!$A$5:$AQ$204,$C$4+37)/1000 -> 4.423041667 | AH26: =VLOOKUP($T26,Point_Sources_All!$A$5:$AQ$204,$C$4+40)/1000 -> 5.062725
A27: Alkalinity | B27: P90 | D27: 2 | E27: =VLOOKUP($D27,Point_Sources_All!$A$5:$AQ$204,$C$4+1)/1000 -> 92.50733333 | F27: =VLOOKUP($D27,Point_Sources_All!$A$5:$AQ$204,$C$4+4)/1000 -> 0 | G27: =VLOOKUP($D27,Point_Sources_All!$A$5:$AQ$204,$C$4+7)/1000 -> 0.4850563333 | H27: =VLOOKUP($D27,Point_Sources_All!$A$5:$AQ$204,$C$4+10)/1000 -> 0 | I27: =VLOOKUP($D27,Point_Sources_All!$A$5:$AQ$204,$C$4+13)/1000 -> 0 | J27: =VLOOKUP($D27,Point_Sources_All!$A$5:$AQ$204,$C$4+16)/1000 -> 0 | K27: =VLOOKUP($D27,Point_Sources_All!$A$5:$AQ$204,$C$4+19)/1000 -> 42.56008333 | L27: =VLOOKUP($D27,Point_Sources_All!$A$5:$AQ$204,$C$4+22)/1000 -> 6.5196 | M27: =VLOOKUP($D27,Point_Sources_All!$A$5:$AQ$204,$C$4+25)/1000 -> 0 | N27: =VLOOKUP($D27,Point_Sources_All!$A$5:$AQ$204,$C$4+28)/1000 -> 2.09525 | O27: =VLOOKUP($D27,Point_Sources_All!$A$5:$AQ$204,$C$4+31)/1000 -> 4.972608333 | P27: =VLOOKUP($D27,Point_Sources_All!$A$5:$AQ$204,$C$4+34)/1000 -> 1.9222 | Q27: =VLOOKUP($D27,Point_Sources_All!$A$5:$AQ$204,$C$4+37)/1000 -> 27.72075 | R27: =VLOOKUP($D27,Point_Sources_All!$A$5:$AQ$204,$C$4+40)/1000 -> 0 | T27: =T26+1 -> 52 | U27: =VLOOKUP($T27,Point_Sources_All!$A$5:$AQ$204,$C$4+1)/1000 -> 19.24109167 | V27: =VLOOKUP($T27,Point_Sources_All!$A$5:$AQ$204,$C$4+4)/1000 -> 0.2245041667 | W27: =VLOOKUP($T27,Point_Sources_All!$A$5:$AQ$204,$C$4+7)/1000 -> 0.57812 | X27: =VLOOKUP($T27,Point_Sources_All!$A$5:$AQ$204,$C$4+10)/1000 -> 2.830305 | Y27: =VLOOKUP($T27,Point_Sources_All!$A$5:$AQ$204,$C$4+13)/1000 -> 0.019331 | Z27: =VLOOKUP($T27,Point_Sources_All!$A$5:$AQ$204,$C$4+16)/1000 -> 0 | AA27: =VLOOKUP($T27,Point_Sources_All!$A$5:$AQ$204,$C$4+19)/1000 -> 0 | AB27: =VLOOKUP($T27,Point_Sources_All!$A$5:$AQ$204,$C$4+22)/1000 -> 3.408708333 | AC27: =VLOOKUP($T27,Point_Sources_All!$A$5:$AQ$204,$C$4+25)/1000 -> 2.159125 | AD27: =VLOOKUP($T27,Point_Sources_All!$A$5:$AQ$204,$C$4+28)/1000 -> 0.1947919167 | AE27: =VLOOKUP($T27,Point_Sources_All!$A$5:$AQ$204,$C$4+31)/1000 -> 1.5367125 | AF27: =VLOOKUP($T27,Point_Sources_All!$A$5:$AQ$204,$C$4+34)/1000 -> 0.08528375 | AG27: =VLOOKUP($T27,Point_Sources_All!$A$5:$AQ$204,$C$4+37)/1000 -> 2.765310833 | AH27: =VLOOKUP($T27,Point_Sources_All!$A$5:$AQ$204,$C$4+40)/1000 -> 1.237175
A28: As | D28: 3 | E28: =VLOOKUP($D28,Point_Sources_All!$A$5:$AQ$204,$C$4+1)/1000 -> 80.98466667 | F28: =VLOOKUP($D28,Point_Sources_All!$A$5:$AQ$204,$C$4+4)/1000 -> 0 | G28: =VLOOKUP($D28,Point_Sources_All!$A$5:$AQ$204,$C$4+7)/1000 -> 0.9185708333 | H28: =VLOOKUP($D28,Point_Sources_All!$A$5:$AQ$204,$C$4+10)/1000 -> 0 | I28: =VLOOKUP($D28,Point_Sources_All!$A$5:$AQ$204,$C$4+13)/1000 -> 0 | J28: =VLOOKUP($D28,Point_Sources_All!$A$5:$AQ$204,$C$4+16)/1000 -> 0 | K28: =VLOOKUP($D28,Point_Sources_All!$A$5:$AQ$204,$C$4+19)/1000 -> 42.75433333 | L28: =VLOOKUP($D28,Point_Sources_All!$A$5:$AQ$204,$C$4+22)/1000 -> 11.47566667 | M28: =VLOOKUP($D28,Point_Sources_All!$A$5:$AQ$204,$C$4+25)/1000 -> 0 | N28: =VLOOKUP($D28,Point_Sources_All!$A$5:$AQ$204,$C$4+28)/1000 -> 1.125133333 | O28: =VLOOKUP($D28,Point_Sources_All!$A$5:$AQ$204,$C$4+31)/1000 -> 2.778441667 | P28: =VLOOKUP($D28,Point_Sources_All!$A$5:$AQ$204,$C$4+34)/1000 -> 1.132808333 | Q28: =VLOOKUP($D28,Point_Sources_All!$A$5:$AQ$204,$C$4+37)/1000 -> 16.05325 | R28: =VLOOKUP($D28,Point_Sources_All!$A$5:$AQ$204,$C$4+40)/1000 -> 0 | T28: 53 | U28: =VLOOKUP($T28,Point_Sources_All!$A$5:$AQ$204,$C$4+1)/1000 -> 9.207575 | V28: =VLOOKUP($T28,Point_Sources_All!$A$5:$AQ$204,$C$4+4)/1000 -> 0 | W28: =VLOOKUP($T28,Point_Sources_All!$A$5:$AQ$204,$C$4+7)/1000 -> 0.5702175 | X28: =VLOOKUP($T28,Point_Sources_All!$A$5:$AQ$204,$C$4+10)/1000 -> 2.6229985 | Y28: =VLOOKUP($T28,Point_Sources_All!$A$5:$AQ$204,$C$4+13)/1000 -> 0 | Z28: =VLOOKUP($T28,Point_Sources_All!$A$5:$AQ$204,$C$4+16)/1000 -> 0 | AA28: =VLOOKUP($T28,Point_Sources_All!$A$5:$AQ$204,$C$4+19)/1000 -> 0 | AB28: =VLOOKUP($T28,Point_Sources_All!$A$5:$AQ$204,$C$4+22)/1000 -> 1.8183375 | AC28: =VLOOKUP($T28,Point_Sources_All!$A$5:$AQ$204,$C$4+25)/1000 -> 6.997525 | AD28: =VLOOKUP($T28,Point_Sources_All!$A$5:$AQ$204,$C$4+28)/1000 -> 0.1185518333 | AE28: =VLOOKUP($T28,Point_Sources_All!$A$5:$AQ$204,$C$4+31)/1000 -> 0.8830816667 | AF28: =VLOOKUP($T28,Point_Sources_All!$A$5:$AQ$204,$C$4+34)/1000 -> 0.05434945833 | AG28: =VLOOKUP($T28,Point_Sources_All!$A$5:$AQ$204,$C$4+37)/1000 -> 1.553671667 | AH28: =VLOOKUP($T28,Point_Sources_All!$A$5:$AQ$204,$C$4+40)/1000 -> 0
A29: B | D29: 4 | E29: =VLOOKUP($D29,Point_Sources_All!$A$5:$AQ$204,$C$4+1)/1000 -> 84.94591667 | F29: =VLOOKUP($D29,Point_Sources_All!$A$5:$AQ$204,$C$4+4)/1000 -> 0 | G29: =VLOOKUP($D29,Point_Sources_All!$A$5:$AQ$204,$C$4+7)/1000 -> 0.6608375 | H29: =VLOOKUP($D29,Point_Sources_All!$A$5:$AQ$204,$C$4+10)/1000 -> 0 | I29: =VLOOKUP($D29,Point_Sources_All!$A$5:$AQ$204,$C$4+13)/1000 -> 0 | J29: =VLOOKUP($D29,Point_Sources_All!$A$5:$AQ$204,$C$4+16)/1000 -> 0 | K29: =VLOOKUP($D29,Point_Sources_All!$A$5:$AQ$204,$C$4+19)/1000 -> 43.37908333 | L29: =VLOOKUP($D29,Point_Sources_All!$A$5:$AQ$204,$C$4+22)/1000 -> 13.96166667 | M29: =VLOOKUP($D29,Point_Sources_All!$A$5:$AQ$204,$C$4+25)/1000 -> 0 | N29: =VLOOKUP($D29,Point_Sources_All!$A$5:$AQ$204,$C$4+28)/1000 -> 1.111775 | O29: =VLOOKUP($D29,Point_Sources_All!$A$5:$AQ$204,$C$4+31)/1000 -> 2.745458333 | P29: =VLOOKUP($D29,Point_Sources_All!$A$5:$AQ$204,$C$4+34)/1000 -> 1.145658333 | Q29: =VLOOKUP($D29,Point_Sources_All!$A$5:$AQ$204,$C$4+37)/1000 -> 15.86316667 | R29: =VLOOKUP($D29,Point_Sources_All!$A$5:$AQ$204,$C$4+40)/1000 -> 0 | T29: 54 | U29: =VLOOKUP($T29,Point_Sources_All!$A$5:$AQ$204,$C$4+1)/1000 -> 7.302733333 | V29: =VLOOKUP($T29,Point_Sources_All!$A$5:$AQ$204,$C$4+4)/1000 -> 0 | W29: =VLOOKUP($T29,Point_Sources_All!$A$5:$AQ$204,$C$4+7)/1000 -> 0.5626025 | X29: =VLOOKUP($T29,Point_Sources_All!$A$5:$AQ$204,$C$4+10)/1000 -> 2.5740975 | Y29: =VLOOKUP($T29,Point_Sources_All!$A$5:$AQ$204,$C$4+13)/1000 -> 0 | Z29: =VLOOKUP($T29,Point_Sources_All!$A$5:$AQ$204,$C$4+16)/1000 -> 0 | AA29: =VLOOKUP($T29,Point_Sources_All!$A$5:$AQ$204,$C$4+19)/1000 -> 0 | AB29: =VLOOKUP($T29,Point_Sources_All!$A$5:$AQ$204,$C$4+22)/1000 -> 1.2348775 | AC29: =VLOOKUP($T29,Point_Sources_All!$A$5:$AQ$204,$C$4+25)/1000 -> 10.61115833 | AD29: =VLOOKUP($T29,Point_Sources_All!$A$5:$AQ$204,$C$4+28)/1000 -> 0.09179175 | AE29: =VLOOKUP($T29,Point_Sources_All!$A$5:$AQ$204,$C$4+31)/1000 -> 0.6449025 | AF29: =VLOOKUP($T29,Point_Sources_All!$A$5:$AQ$204,$C$4+34)/1000 -> 0.03979429167 | AG29: =VLOOKUP($T29,Point_Sources_All!$A$5:$AQ$204,$C$4+37)/1000 -> 1.138060833 | AH29: =VLOOKUP($T29,Point_Sources_All!$A$5:$AQ$204,$C$4+40)/1000 -> 0
A30: Ba | D30: 5 | E30: =VLOOKUP($D30,Point_Sources_All!$A$5:$AQ$204,$C$4+1)/1000 -> 89.27808333 | F30: =VLOOKUP($D30,Point_Sources_All!$A$5:$AQ$204,$C$4+4)/1000 -> 0 | G30: =VLOOKUP($D30,Point_Sources_All!$A$5:$AQ$204,$C$4+7)/1000 -> 0.5790183333 | H30: =VLOOKUP($D30,Point_Sources_All!$A$5:$AQ$204,$C$4+10)/1000 -> 0 | I30: =VLOOKUP($D30,Point_Sources_All!$A$5:$AQ$204,$C$4+13)/1000 -> 0 | J30: =VLOOKUP($D30,Point_Sources_All!$A$5:$AQ$204,$C$4+16)/1000 -> 0 | K30: =VLOOKUP($D30,Point_Sources_All!$A$5:$AQ$204,$C$4+19)/1000 -> 43.39183333 | L30: =VLOOKUP($D30,Point_Sources_All!$A$5:$AQ$204,$C$4+22)/1000 -> 19.55908333 | M30: =VLOOKUP($D30,Point_Sources_All!$A$5:$AQ$204,$C$4+25)/1000 -> 0 | N30: =VLOOKUP($D30,Point_Sources_All!$A$5:$AQ$204,$C$4+28)/1000 -> 1.103308333 | O30: =VLOOKUP($D30,Point_Sources_All!$A$5:$AQ$204,$C$4+31)/1000 -> 2.7245 | P30: =VLOOKUP($D30,Point_Sources_All!$A$5:$AQ$204,$C$4+34)/1000 -> 1.116991667 | Q30: =VLOOKUP($D30,Point_Sources_All!$A$5:$AQ$204,$C$4+37)/1000 -> 15.74258333 | R30: =VLOOKUP($D30,Point_Sources_All!$A$5:$AQ$204,$C$4+40)/1000 -> 0 | T30: 55 | U30: =VLOOKUP($T30,Point_Sources_All!$A$5:$AQ$204,$C$4+1)/1000 -> 6.4618 | V30: =VLOOKUP($T30,Point_Sources_All!$A$5:$AQ$204,$C$4+4)/1000 -> 0 | W30: =VLOOKUP($T30,Point_Sources_All!$A$5:$AQ$204,$C$4+7)/1000 -> 0.5552283333 | X30: =VLOOKUP($T30,Point_Sources_All!$A$5:$AQ$204,$C$4+10)/1000 -> 2.534838333 | Y30: =VLOOKUP($T30,Point_Sources_All!$A$5:$AQ$204,$C$4+13)/1000 -> 0 | Z30: =VLOOKUP($T30,Point_Sources_All!$A$5:$AQ$204,$C$4+16)/1000 -> 0 | AA30: =VLOOKUP($T30,Point_Sources_All!$A$5:$AQ$204,$C$4+19)/1000 -> 0 | AB30: =VLOOKUP($T30,Point_Sources_All!$A$5:$AQ$204,$C$4+22)/1000 -> 1.034605 | AC30: =VLOOKUP($T30,Point_Sources_All!$A$5:$AQ$204,$C$4+25)/1000 -> 12.37125 | AD30: =VLOOKUP($T30,Point_Sources_All!$A$5:$AQ$204,$C$4+28)/1000 -> 0.07435216667 | AE30: =VLOOKUP($T30,Point_Sources_All!$A$5:$AQ$204,$C$4+31)/1000 -> 0.50344725 | AF30: =VLOOKUP($T30,Point_Sources_All!$A$5:$AQ$204,$C$4+34)/1000 -> 0.031009175 | AG30: =VLOOKUP($T30,Point_Sources_All!$A$5:$AQ$204,$C$4+37)/1000 -> 0.8696108333 | AH30: =VLOOKUP($T30,Point_Sources_All!$A$5:$AQ$204,$C$4+40)/1000 -> 0
A31: Be | D31: 6 | E31: =VLOOKUP($D31,Point_Sources_All!$A$5:$AQ$204,$C$4+1)/1000 -> 94.17516667 | F31: =VLOOKUP($D31,Point_Sources_All!$A$5:$AQ$204,$C$4+4)/1000 -> 0 | G31: =VLOOKUP($D31,Point_Sources_All!$A$5:$AQ$204,$C$4+7)/1000 -> 0.7483916667 | H31: =VLOOKUP($D31,Point_Sources_All!$A$5:$AQ$204,$C$4+10)/1000 -> 0 | I31: =VLOOKUP($D31,Point_Sources_All!$A$5:$AQ$204,$C$4+13)/1000 -> 0 | J31: =VLOOKUP($D31,Point_Sources_All!$A$5:$AQ$204,$C$4+16)/1000 -> 0 | K31: =VLOOKUP($D31,Point_Sources_All!$A$5:$AQ$204,$C$4+19)/1000 -> 42.90383333 | L31: =VLOOKUP($D31,Point_Sources_All!$A$5:$AQ$204,$C$4+22)/1000 -> 22.77566667 | M31: =VLOOKUP($D31,Point_Sources_All!$A$5:$AQ$204,$C$4+25)/1000 -> 0 | N31: =VLOOKUP($D31,Point_Sources_All!$A$5:$AQ$204,$C$4+28)/1000 -> 1.153558333 | O31: =VLOOKUP($D31,Point_Sources_All!$A$5:$AQ$204,$C$4+31)/1000 -> 2.848591667 | P31: =VLOOKUP($D31,Point_Sources_All!$A$5:$AQ$204,$C$4+34)/1000 -> 1.133491667 | Q31: =VLOOKUP($D31,Point_Sources_All!$A$5:$AQ$204,$C$4+37)/1000 -> 16.45916667 | R31: =VLOOKUP($D31,Point_Sources_All!$A$5:$AQ$204,$C$4+40)/1000 -> 0 | T31: 56 | U31: =VLOOKUP($T31,Point_Sources_All!$A$5:$AQ$204,$C$4+1)/1000 -> 6.008991667 | V31: =VLOOKUP($T31,Point_Sources_All!$A$5:$AQ$204,$C$4+4)/1000 -> 0 | W31: =VLOOKUP($T31,Point_Sources_All!$A$5:$AQ$204,$C$4+7)/1000 -> 0.55244 | X31: =VLOOKUP($T31,Point_Sources_All!$A$5:$AQ$204,$C$4+10)/1000 -> 2.507175417 | Y31: =VLOOKUP($T31,Point_Sources_All!$A$5:$AQ$204,$C$4+13)/1000 -> 0 | Z31: =VLOOKUP($T31,Point_Sources_All!$A$5:$AQ$204,$C$4+16)/1000 -> 0 | AA31: =VLOOKUP($T31,Point_Sources_All!$A$5:$AQ$204,$C$4+19)/1000 -> 0 | AB31: =VLOOKUP($T31,Point_Sources_All!$A$5:$AQ$204,$C$4+22)/1000 -> 0.9907983333 | AC31: =VLOOKUP($T31,Point_Sources_All!$A$5:$AQ$204,$C$4+25)/1000 -> 13.26261667 | AD31: =VLOOKUP($T31,Point_Sources_All!$A$5:$AQ$204,$C$4+28)/1000 -> 0.06261158333 | AE31: =VLOOKUP($T31,Point_Sources_All!$A$5:$AQ$204,$C$4+31)/1000 -> 0.401737 | AF31: =VLOOKUP($T31,Point_Sources_All!$A$5:$AQ$204,$C$4+34)/1000 -> 0.02497798333 | AG31: =VLOOKUP($T31,Point_Sources_All!$A$5:$AQ$204,$C$4+37)/1000 -> 0.6965675 | AH31: =VLOOKUP($T31,Point_Sources_All!$A$5:$AQ$204,$C$4+40)/1000 -> 0
A32: Ca | D32: 7 | E32: =VLOOKUP($D32,Point_Sources_All!$A$5:$AQ$204,$C$4+1)/1000 -> 97.93875 | F32: =VLOOKUP($D32,Point_Sources_All!$A$5:$AQ$204,$C$4+4)/1000 -> 0 | G32: =VLOOKUP($D32,Point_Sources_All!$A$5:$AQ$204,$C$4+7)/1000 -> 0.8675575 | H32: =VLOOKUP($D32,Point_Sources_All!$A$5:$AQ$204,$C$4+10)/1000 -> 0 | I32: =VLOOKUP($D32,Point_Sources_All!$A$5:$AQ$204,$C$4+13)/1000 -> 0 | J32: =VLOOKUP($D32,Point_Sources_All!$A$5:$AQ$204,$C$4+16)/1000 -> 0 | K32: =VLOOKUP($D32,Point_Sources_All!$A$5:$AQ$204,$C$4+19)/1000 -> 43.36225 | L32: =VLOOKUP($D32,Point_Sources_All!$A$5:$AQ$204,$C$4+22)/1000 -> 26.27091667 | M32: =VLOOKUP($D32,Point_Sources_All!$A$5:$AQ$204,$C$4+25)/1000 -> 0 | N32: =VLOOKUP($D32,Point_Sources_All!$A$5:$AQ$204,$C$4+28)/1000 -> 1.11925 | O32: =VLOOKUP($D32,Point_Sources_All!$A$5:$AQ$204,$C$4+31)/1000 -> 2.763875 | P32: =VLOOKUP($D32,Point_Sources_All!$A$5:$AQ$204,$C$4+34)/1000 -> 1.12065 | Q32: =VLOOKUP($D32,Point_Sources_All!$A$5:$AQ$204,$C$4+37)/1000 -> 15.96958333 | R32: =VLOOKUP($D32,Point_Sources_All!$A$5:$AQ$204,$C$4+40)/1000 -> 0 | T32: 57 | U32: =VLOOKUP($T32,Point_Sources_All!$A$5:$AQ$204,$C$4+1)/1000 -> 5.756166667 | V32: =VLOOKUP($T32,Point_Sources_All!$A$5:$AQ$204,$C$4+4)/1000 -> 0 | W32: =VLOOKUP($T32,Point_Sources_All!$A$5:$AQ$204,$C$4+7)/1000 -> 0.550955 | X32: =VLOOKUP($T32,Point_Sources_All!$A$5:$AQ$204,$C$4+10)/1000 -> 2.515473333 | Y32: =VLOOKUP($T32,Point_Sources_All!$A$5:$AQ$204,$C$4+13)/1000 -> 0 | Z32: =VLOOKUP($T32,Point_Sources_All!$A$5:$AQ$204,$C$4+16)/1000 -> 0 | AA32: =VLOOKUP($T32,Point_Sources_All!$A$5:$AQ$204,$C$4+19)/1000 -> 0 | AB32: =VLOOKUP($T32,Point_Sources_All!$A$5:$AQ$204,$C$4+22)/1000 -> 0.9365416667 | AC32: =VLOOKUP($T32,Point_Sources_All!$A$5:$AQ$204,$C$4+25)/1000 -> 13.41150833 | AD32: =VLOOKUP($T32,Point_Sources_All!$A$5:$AQ$204,$C$4+28)/1000 -> 0.05584933333 | AE32: =VLOOKUP($T32,Point_Sources_All!$A$5:$AQ$204,$C$4+31)/1000 -> 0.3383500833 | AF32: =VLOOKUP($T32,Point_Sources_All!$A$5:$AQ$204,$C$4+34)/1000 -> 0.0213014 | AG32: =VLOOKUP($T32,Point_Sources_All!$A$5:$AQ$204,$C$4+37)/1000 -> 0.5748758333 | AH32: =VLOOKUP($T32,Point_Sources_All!$A$5:$AQ$204,$C$4+40)/1000 -> 0
A33: Cd | D33: 8 | E33: =VLOOKUP($D33,Point_Sources_All!$A$5:$AQ$204,$C$4+1)/1000 -> 99.51425 | F33: =VLOOKUP($D33,Point_Sources_All!$A$5:$AQ$204,$C$4+4)/1000 -> 0 | G33: =VLOOKUP($D33,Point_Sources_All!$A$5:$AQ$204,$C$4+7)/1000 -> 0.8166658333 | H33: =VLOOKUP($D33,Point_Sources_All!$A$5:$AQ$204,$C$4+10)/1000 -> 0 | I33: =VLOOKUP($D33,Point_Sources_All!$A$5:$AQ$204,$C$4+13)/1000 -> 0 | J33: =VLOOKUP($D33,Point_Sources_All!$A$5:$AQ$204,$C$4+16)/1000 -> 0 | K33: =VLOOKUP($D33,Point_Sources_All!$A$5:$AQ$204,$C$4+19)/1000 -> 43.11575 | L33: =VLOOKUP($D33,Point_Sources_All!$A$5:$AQ$204,$C$4+22)/1000 -> 29.31341667 | M33: =VLOOKUP($D33,Point_Sources_All!$A$5:$AQ$204,$C$4+25)/1000 -> 0 | N33: =VLOOKUP($D33,Point_Sources_All!$A$5:$AQ$204,$C$4+28)/1000 -> 1.132833333 | O33: =VLOOKUP($D33,Point_Sources_All!$A$5:$AQ$204,$C$4+31)/1000 -> 2.79745 | P33: =VLOOKUP($D33,Point_Sources_All!$A$5:$AQ$204,$C$4+34)/1000 -> 1.145833333 | Q33: =VLOOKUP($D33,Point_Sources_All!$A$5:$AQ$204,$C$4+37)/1000 -> 16.16341667 | R33: =VLOOKUP($D33,Point_Sources_All!$A$5:$AQ$204,$C$4+40)/1000 -> 0 | T33: 58 | U33: =VLOOKUP($T33,Point_Sources_All!$A$5:$AQ$204,$C$4+1)/1000 -> 5.362925 | V33: =VLOOKUP($T33,Point_Sources_All!$A$5:$AQ$204,$C$4+4)/1000 -> 0 | W33: =VLOOKUP($T33,Point_Sources_All!$A$5:$AQ$204,$C$4+7)/1000 -> 0.5503858333 | X33: =VLOOKUP($T33,Point_Sources_All!$A$5:$AQ$204,$C$4+10)/1000 -> 2.37998775 | Y33: =VLOOKUP($T33,Point_Sources_All!$A$5:$AQ$204,$C$4+13)/1000 -> 0 | Z33: =VLOOKUP($T33,Point_Sources_All!$A$5:$AQ$204,$C$4+16)/1000 -> 0 | AA33: =VLOOKUP($T33,Point_Sources_All!$A$5:$AQ$204,$C$4+19)/1000 -> 0 | AB33: =VLOOKUP($T33,Point_Sources_All!$A$5:$AQ$204,$C$4+22)/1000 -> 0.903035 | AC33: =VLOOKUP($T33,Point_Sources_All!$A$5:$AQ$204,$C$4+25)/1000 -> 13.69795 | AD33: =VLOOKUP($T33,Point_Sources_All!$A$5:$AQ$204,$C$4+28)/1000 -> 0.04869025 | AE33: =VLOOKUP($T33,Point_Sources_All!$A$5:$AQ$204,$C$4+31)/1000 -> 0.279635 | AF33: =VLOOKUP($T33,Point_Sources_All!$A$5:$AQ$204,$C$4+34)/1000 -> 0.017362725 | AG33: =VLOOKUP($T33,Point_Sources_All!$A$5:$AQ$204,$C$4+37)/1000 -> 0.4659 | AH33: =VLOOKUP($T33,Point_Sources_All!$A$5:$AQ$204,$C$4+40)/1000 -> 0
A34: Cl | D34: 9 | E34: =VLOOKUP($D34,Point_Sources_All!$A$5:$AQ$204,$C$4+1)/1000 -> 105.4485 | F34: =VLOOKUP($D34,Point_Sources_All!$A$5:$AQ$204,$C$4+4)/1000 -> 0 | G34: =VLOOKUP($D34,Point_Sources_All!$A$5:$AQ$204,$C$4+7)/1000 -> 0.7714708333 | H34: =VLOOKUP($D34,Point_Sources_All!$A$5:$AQ$204,$C$4+10)/1000 -> 0 | I34: =VLOOKUP($D34,Point_Sources_All!$A$5:$AQ$204,$C$4+13)/1000 -> 0 | J34: =VLOOKUP($D34,Point_Sources_All!$A$5:$AQ$204,$C$4+16)/1000 -> 0 | K34: =VLOOKUP($D34,Point_Sources_All!$A$5:$AQ$204,$C$4+19)/1000 -> 43.01575 | L34: =VLOOKUP($D34,Point_Sources_All!$A$5:$AQ$204,$C$4+22)/1000 -> 33.27183333 | M34: =VLOOKUP($D34,Point_Sources_All!$A$5:$AQ$204,$C$4+25)/1000 -> 0 | N34: =VLOOKUP($D34,Point_Sources_All!$A$5:$AQ$204,$C$4+28)/1000 -> 1.111516667 | O34: =VLOOKUP($D34,Point_Sources_All!$A$5:$AQ$204,$C$4+31)/1000 -> 2.744758333 | P34: =VLOOKUP($D34,Point_Sources_All!$A$5:$AQ$204,$C$4+34)/1000 -> 1.111783333 | Q34: =VLOOKUP($D34,Point_Sources_All!$A$5:$AQ$204,$C$4+37)/1000 -> 15.859 | R34: =VLOOKUP($D34,Point_Sources_All!$A$5:$AQ$204,$C$4+40)/1000 -> 0 | T34: 59 | U34: =VLOOKUP($T34,Point_Sources_All!$A$5:$AQ$204,$C$4+1)/1000 -> 5.273825 | V34: =VLOOKUP($T34,Point_Sources_All!$A$5:$AQ$204,$C$4+4)/1000 -> 0 | W34: =VLOOKUP($T34,Point_Sources_All!$A$5:$AQ$204,$C$4+7)/1000 -> 0.5508116667 | X34: =VLOOKUP($T34,Point_Sources_All!$A$5:$AQ$204,$C$4+10)/1000 -> 2.413511333 | Y34: =VLOOKUP($T34,Point_Sources_All!$A$5:$AQ$204,$C$4+13)/1000 -> 0 | Z34: =VLOOKUP($T34,Point_Sources_All!$A$5:$AQ$204,$C$4+16)/1000 -> 0 | AA34: =VLOOKUP($T34,Point_Sources_All!$A$5:$AQ$204,$C$4+19)/1000 -> 0 | AB34: =VLOOKUP($T34,Point_Sources_All!$A$5:$AQ$204,$C$4+22)/1000 -> 0.8869658333 | AC34: =VLOOKUP($T34,Point_Sources_All!$A$5:$AQ$204,$C$4+25)/1000 -> 13.76385833 | AD34: =VLOOKUP($T34,Point_Sources_All!$A$5:$AQ$204,$C$4+28)/1000 -> 0.04446866667 | AE34: =VLOOKUP($T34,Point_Sources_All!$A$5:$AQ$204,$C$4+31)/1000 -> 0.24218375 | AF34: =VLOOKUP($T34,Point_Sources_All!$A$5:$AQ$204,$C$4+34)/1000 -> 0.01494741667 | AG34: =VLOOKUP($T34,Point_Sources_All!$A$5:$AQ$204,$C$4+37)/1000 -> 0.397085 | AH34: =VLOOKUP($T34,Point_Sources_All!$A$5:$AQ$204,$C$4+40)/1000 -> 0
A35: Co | D35: 10 | E35: =VLOOKUP($D35,Point_Sources_All!$A$5:$AQ$204,$C$4+1)/1000 -> 105.1785833 | F35: =VLOOKUP($D35,Point_Sources_All!$A$5:$AQ$204,$C$4+4)/1000 -> 0 | G35: =VLOOKUP($D35,Point_Sources_All!$A$5:$AQ$204,$C$4+7)/1000 -> 0.7026325 | H35: =VLOOKUP($D35,Point_Sources_All!$A$5:$AQ$204,$C$4+10)/1000 -> 0 | I35: =VLOOKUP($D35,Point_Sources_All!$A$5:$AQ$204,$C$4+13)/1000 -> 0 | J35: =VLOOKUP($D35,Point_Sources_All!$A$5:$AQ$204,$C$4+16)/1000 -> 0 | K35: =VLOOKUP($D35,Point_Sources_All!$A$5:$AQ$204,$C$4+19)/1000 -> 43.15841667 | L35: =VLOOKUP($D35,Point_Sources_All!$A$5:$AQ$204,$C$4+22)/1000 -> 35.23425 | M35: =VLOOKUP($D35,Point_Sources_All!$A$5:$AQ$204,$C$4+25)/1000 -> 0 | N35: =VLOOKUP($D35,Point_Sources_All!$A$5:$AQ$204,$C$4+28)/1000 -> 1.115966667 | O35: =VLOOKUP($D35,Point_Sources_All!$A$5:$AQ$204,$C$4+31)/1000 -> 2.755783333 | P35: =VLOOKUP($D35,Point_Sources_All!$A$5:$AQ$204,$C$4+34)/1000 -> 1.1487 | Q35: =VLOOKUP($D35,Point_Sources_All!$A$5:$AQ$204,$C$4+37)/1000 -> 15.92241667 | R35: =VLOOKUP($D35,Point_Sources_All!$A$5:$AQ$204,$C$4+40)/1000 -> 0 | T35: 60 | U35: =VLOOKUP($T35,Point_Sources_All!$A$5:$AQ$204,$C$4+1)/1000 -> 5.159966667 | V35: =VLOOKUP($T35,Point_Sources_All!$A$5:$AQ$204,$C$4+4)/1000 -> 0 | W35: =VLOOKUP($T35,Point_Sources_All!$A$5:$AQ$204,$C$4+7)/1000 -> 0.5510183333 | X35: =VLOOKUP($T35,Point_Sources_All!$A$5:$AQ$204,$C$4+10)/1000 -> 2.425106667 | Y35: =VLOOKUP($T35,Point_Sources_All!$A$5:$AQ$204,$C$4+13)/1000 -> 0 | Z35: =VLOOKUP($T35,Point_Sources_All!$A$5:$AQ$204,$C$4+16)/1000 -> 0 | AA35: =VLOOKUP($T35,Point_Sources_All!$A$5:$AQ$204,$C$4+19)/1000 -> 0 | AB35: =VLOOKUP($T35,Point_Sources_All!$A$5:$AQ$204,$C$4+22)/1000 -> 0.9070275 | AC35: =VLOOKUP($T35,Point_Sources_All!$A$5:$AQ$204,$C$4+25)/1000 -> 14.17233333 | AD35: =VLOOKUP($T35,Point_Sources_All!$A$5:$AQ$204,$C$4+28)/1000 -> 0.04006766667 | AE35: =VLOOKUP($T35,Point_Sources_All!$A$5:$AQ$204,$C$4+31)/1000 -> 0.2098416667 | AF35: =VLOOKUP($T35,Point_Sources_All!$A$5:$AQ$204,$C$4+34)/1000 -> 0.01259285 | AG35: =VLOOKUP($T35,Point_Sources_All!$A$5:$AQ$204,$C$4+37)/1000 -> 0.339275 | AH35: =VLOOKUP($T35,Point_Sources_All!$A$5:$AQ$204,$C$4+40)/1000 -> 0
A36: Cr | D36: 11 | E36: =VLOOKUP($D36,Point_Sources_All!$A$5:$AQ$204,$C$4+1)/1000 -> 117.41975 | F36: =VLOOKUP($D36,Point_Sources_All!$A$5:$AQ$204,$C$4+4)/1000 -> 0 | G36: =VLOOKUP($D36,Point_Sources_All!$A$5:$AQ$204,$C$4+7)/1000 -> 1.577419167 | H36: =VLOOKUP($D36,Point_Sources_All!$A$5:$AQ$204,$C$4+10)/1000 -> 0 | I36: =VLOOKUP($D36,Point_Sources_All!$A$5:$AQ$204,$C$4+13)/1000 -> 0 | J36: =VLOOKUP($D36,Point_Sources_All!$A$5:$AQ$204,$C$4+16)/1000 -> 0 | K36: =VLOOKUP($D36,Point_Sources_All!$A$5:$AQ$204,$C$4+19)/1000 -> 48.83925 | L36: =VLOOKUP($D36,Point_Sources_All!$A$5:$AQ$204,$C$4+22)/1000 -> 37.5625 | M36: =VLOOKUP($D36,Point_Sources_All!$A$5:$AQ$204,$C$4+25)/1000 -> 0 | N36: =VLOOKUP($D36,Point_Sources_All!$A$5:$AQ$204,$C$4+28)/1000 -> 1.140225 | O36: =VLOOKUP($D36,Point_Sources_All!$A$5:$AQ$204,$C$4+31)/1000 -> 2.815641667 | P36: =VLOOKUP($D36,Point_Sources_All!$A$5:$AQ$204,$C$4+34)/1000 -> 1.121266667 | Q36: =VLOOKUP($D36,Point_Sources_All!$A$5:$AQ$204,$C$4+37)/1000 -> 16.269 | R36: =VLOOKUP($D36,Point_Sources_All!$A$5:$AQ$204,$C$4+40)/1000 -> 0 | T36: 61 | U36: =VLOOKUP($T36,Point_Sources_All!$A$5:$AQ$204,$C$4+1)/1000 -> 4.99185 | V36: =VLOOKUP($T36,Point_Sources_All!$A$5:$AQ$204,$C$4+4)/1000 -> 0 | W36: =VLOOKUP($T36,Point_Sources_All!$A$5:$AQ$204,$C$4+7)/1000 -> 0.5503375 | X36: =VLOOKUP($T36,Point_Sources_All!$A$5:$AQ$204,$C$4+10)/1000 -> 2.406765 | Y36: =VLOOKUP($T36,Point_Sources_All!$A$5:$AQ$204,$C$4+13)/1000 -> 0 | Z36: =VLOOKUP($T36,Point_Sources_All!$A$5:$AQ$204,$C$4+16)/1000 -> 0 | AA36: =VLOOKUP($T36,Point_Sources_All!$A$5:$AQ$204,$C$4+19)/1000 -> 0 | AB36: =VLOOKUP($T36,Point_Sources_All!$A$5:$AQ$204,$C$4+22)/1000 -> 0.9429016667 | AC36: =VLOOKUP($T36,Point_Sources_All!$A$5:$AQ$204,$C$4+25)/1000 -> 14.757475 | AD36: =VLOOKUP($T36,Point_Sources_All!$A$5:$AQ$204,$C$4+28)/1000 -> 0.0367605 | AE36: =VLOOKUP($T36,Point_Sources_All!$A$5:$AQ$204,$C$4+31)/1000 -> 0.1821815 | AF36: =VLOOKUP($T36,Point_Sources_All!$A$5:$AQ$204,$C$4+34)/1000 -> 0.01058390833 | AG36: =VLOOKUP($T36,Point_Sources_All!$A$5:$AQ$204,$C$4+37)/1000 -> 0.2892889167 | AH36: =VLOOKUP($T36,Point_Sources_All!$A$5:$AQ$204,$C$4+40)/1000 -> 0
A37: Cu | D37: 12 | E37: =VLOOKUP($D37,Point_Sources_All!$A$5:$AQ$204,$C$4+1)/1000 -> 120.79525 | F37: =VLOOKUP($D37,Point_Sources_All!$A$5:$AQ$204,$C$4+4)/1000 -> 0 | G37: =VLOOKUP($D37,Point_Sources_All!$A$5:$AQ$204,$C$4+7)/1000 -> 1.632758333 | H37: =VLOOKUP($D37,Point_Sources_All!$A$5:$AQ$204,$C$4+10)/1000 -> 0 | I37: =VLOOKUP($D37,Point_Sources_All!$A$5:$AQ$204,$C$4+13)/1000 -> 0 | J37: =VLOOKUP($D37,Point_Sources_All!$A$5:$AQ$204,$C$4+16)/1000 -> 0 | K37: =VLOOKUP($D37,Point_Sources_All!$A$5:$AQ$204,$C$4+19)/1000 -> 50.63 | L37: =VLOOKUP($D37,Point_Sources_All!$A$5:$AQ$204,$C$4+22)/1000 -> 40.44875 | M37: =VLOOKUP($D37,Point_Sources_All!$A$5:$AQ$204,$C$4+25)/1000 -> 0 | N37: =VLOOKUP($D37,Point_Sources_All!$A$5:$AQ$204,$C$4+28)/1000 -> 1.135091667 | O37: =VLOOKUP($D37,Point_Sources_All!$A$5:$AQ$204,$C$4+31)/1000 -> 2.803033333 | P37: =VLOOKUP($D37,Point_Sources_All!$A$5:$AQ$204,$C$4+34)/1000 -> 1.151841667 | Q37: =VLOOKUP($D37,Point_Sources_All!$A$5:$AQ$204,$C$4+37)/1000 -> 16.19558333 | R37: =VLOOKUP($D37,Point_Sources_All!$A$5:$AQ$204,$C$4+40)/1000 -> 0 | T37: 62 | U37: =VLOOKUP($T37,Point_Sources_All!$A$5:$AQ$204,$C$4+1)/1000 -> 4.966891667 | V37: =VLOOKUP($T37,Point_Sources_All!$A$5:$AQ$204,$C$4+4)/1000 -> 0 | W37: =VLOOKUP($T37,Point_Sources_All!$A$5:$AQ$204,$C$4+7)/1000 -> 0.5492333333 | X37: =VLOOKUP($T37,Point_Sources_All!$A$5:$AQ$204,$C$4+10)/1000 -> 2.561135 | Y37: =VLOOKUP($T37,Point_Sources_All!$A$5:$AQ$204,$C$4+13)/1000 -> 0 | Z37: =VLOOKUP($T37,Point_Sources_All!$A$5:$AQ$204,$C$4+16)/1000 -> 0 | AA37: =VLOOKUP($T37,Point_Sources_All!$A$5:$AQ$204,$C$4+19)/1000 -> 0 | AB37: =VLOOKUP($T37,Point_Sources_All!$A$5:$AQ$204,$C$4+22)/1000 -> 0.9142558333 | AC37: =VLOOKUP($T37,Point_Sources_All!$A$5:$AQ$204,$C$4+25)/1000 -> 14.32315833 | AD37: =VLOOKUP($T37,Point_Sources_All!$A$5:$AQ$204,$C$4+28)/1000 -> 0.0338965 | AE37: =VLOOKUP($T37,Point_Sources_All!$A$5:$AQ$204,$C$4+31)/1000 -> 0.1615139167 | AF37: =VLOOKUP($T37,Point_Sources_All!$A$5:$AQ$204,$C$4+34)/1000 -> 0.00923745 | AG37: =VLOOKUP($T37,Point_Sources_All!$A$5:$AQ$204,$C$4+37)/1000 -> 0.25579 | AH37: =VLOOKUP($T37,Point_Sources_All!$A$5:$AQ$204,$C$4+40)/1000 -> 0
A38: F | D38: 13 | E38: =VLOOKUP($D38,Point_Sources_All!$A$5:$AQ$204,$C$4+1)/1000 -> 123.9800833 | F38: =VLOOKUP($D38,Point_Sources_All!$A$5:$AQ$204,$C$4+4)/1000 -> 0 | G38: =VLOOKUP($D38,Point_Sources_All!$A$5:$AQ$204,$C$4+7)/1000 -> 1.269383333 | H38: =VLOOKUP($D38,Point_Sources_All!$A$5:$AQ$204,$C$4+10)/1000 -> 0 | I38: =VLOOKUP($D38,Point_Sources_All!$A$5:$AQ$204,$C$4+13)/1000 -> 0 | J38: =VLOOKUP($D38,Point_Sources_All!$A$5:$AQ$204,$C$4+16)/1000 -> 0 | K38: =VLOOKUP($D38,Point_Sources_All!$A$5:$AQ$204,$C$4+19)/1000 -> 50.62533333 | L38: =VLOOKUP($D38,Point_Sources_All!$A$5:$AQ$204,$C$4+22)/1000 -> 43.25241667 | M38: =VLOOKUP($D38,Point_Sources_All!$A$5:$AQ$204,$C$4+25)/1000 -> 0 | N38: =VLOOKUP($D38,Point_Sources_All!$A$5:$AQ$204,$C$4+28)/1000 -> 1.116625 | O38: =VLOOKUP($D38,Point_Sources_All!$A$5:$AQ$204,$C$4+31)/1000 -> 2.757391667 | P38: =VLOOKUP($D38,Point_Sources_All!$A$5:$AQ$204,$C$4+34)/1000 -> 1.114791667 | Q38: =VLOOKUP($D38,Point_Sources_All!$A$5:$AQ$204,$C$4+37)/1000 -> 15.932 | R38: =VLOOKUP($D38,Point_Sources_All!$A$5:$AQ$204,$C$4+40)/1000 -> 0 | T38: 63 | U38: =VLOOKUP($T38,Point_Sources_All!$A$5:$AQ$204,$C$4+1)/1000 -> 4.848083333 | V38: =VLOOKUP($T38,Point_Sources_All!$A$5:$AQ$204,$C$4+4)/1000 -> 0 | W38: =VLOOKUP($T38,Point_Sources_All!$A$5:$AQ$204,$C$4+7)/1000 -> 0.5491291667 | X38: =VLOOKUP($T38,Point_Sources_All!$A$5:$AQ$204,$C$4+10)/1000 -> 2.377269167 | Y38: =VLOOKUP($T38,Point_Sources_All!$A$5:$AQ$204,$C$4+13)/1000 -> 0 | Z38: =VLOOKUP($T38,Point_Sources_All!$A$5:$AQ$204,$C$4+16)/1000 -> 0 | AA38: =VLOOKUP($T38,Point_Sources_All!$A$5:$AQ$204,$C$4+19)/1000 -> 0 | AB38: =VLOOKUP($T38,Point_Sources_All!$A$5:$AQ$204,$C$4+22)/1000 -> 0.8783891667 | AC38: =VLOOKUP($T38,Point_Sources_All!$A$5:$AQ$204,$C$4+25)/1000 -> 13.76131667 | AD38: =VLOOKUP($T38,Point_Sources_All!$A$5:$AQ$204,$C$4+28)/1000 -> 0.03215325 | AE38: =VLOOKUP($T38,Point_Sources_All!$A$5:$AQ$204,$C$4+31)/1000 -> 0.143146 | AF38: =VLOOKUP($T38,Point_Sources_All!$A$5:$AQ$204,$C$4+34)/1000 -> 0.008268791667 | AG38: =VLOOKUP($T38,Point_Sources_All!$A$5:$AQ$204,$C$4+37)/1000 -> 0.2244855 | AH38: =VLOOKUP($T38,Point_Sources_All!$A$5:$AQ$204,$C$4+40)/1000 -> 0
A39: Fe | D39: 14 | E39: =VLOOKUP($D39,Point_Sources_All!$A$5:$AQ$204,$C$4+1)/1000 -> 121.7980833 | F39: =VLOOKUP($D39,Point_Sources_All!$A$5:$AQ$204,$C$4+4)/1000 -> 0 | G39: =VLOOKUP($D39,Point_Sources_All!$A$5:$AQ$204,$C$4+7)/1000 -> 1.082858333 | H39: =VLOOKUP($D39,Point_Sources_All!$A$5:$AQ$204,$C$4+10)/1000 -> 0 | I39: =VLOOKUP($D39,Point_Sources_All!$A$5:$AQ$204,$C$4+13)/1000 -> 0 | J39: =VLOOKUP($D39,Point_Sources_All!$A$5:$AQ$204,$C$4+16)/1000 -> 0 | K39: =VLOOKUP($D39,Point_Sources_All!$A$5:$AQ$204,$C$4+19)/1000 -> 49.55683333 | L39: =VLOOKUP($D39,Point_Sources_All!$A$5:$AQ$204,$C$4+22)/1000 -> 40.60966667 | M39: =VLOOKUP($D39,Point_Sources_All!$A$5:$AQ$204,$C$4+25)/1000 -> 0 | N39: =VLOOKUP($D39,Point_Sources_All!$A$5:$AQ$204,$C$4+28)/1000 -> 1.119716667 | O39: =VLOOKUP($D39,Point_Sources_All!$A$5:$AQ$204,$C$4+31)/1000 -> 2.7651 | P39: =VLOOKUP($D39,Point_Sources_All!$A$5:$AQ$204,$C$4+34)/1000 -> 1.129775 | Q39: =VLOOKUP($D39,Point_Sources_All!$A$5:$AQ$204,$C$4+37)/1000 -> 15.9755 | R39: =VLOOKUP($D39,Point_Sources_All!$A$5:$AQ$204,$C$4+40)/1000 -> 0 | T39: 64 | U39: =VLOOKUP($T39,Point_Sources_All!$A$5:$AQ$204,$C$4+1)/1000 -> 4.709866667 | V39: =VLOOKUP($T39,Point_Sources_All!$A$5:$AQ$204,$C$4+4)/1000 -> 0 | W39: =VLOOKUP($T39,Point_Sources_All!$A$5:$AQ$204,$C$4+7)/1000 -> 0.5489116667 | X39: =VLOOKUP($T39,Point_Sources_All!$A$5:$AQ$204,$C$4+10)/1000 -> 2.336296 | Y39: =VLOOKUP($T39,Point_Sources_All!$A$5:$AQ$204,$C$4+13)/1000 -> 0 | Z39: =VLOOKUP($T39,Point_Sources_All!$A$5:$AQ$204,$C$4+16)/1000 -> 0 | AA39: =VLOOKUP($T39,Point_Sources_All!$A$5:$AQ$204,$C$4+19)/1000 -> 0 | AB39: =VLOOKUP($T39,Point_Sources_All!$A$5:$AQ$204,$C$4+22)/1000 -> 0.9217066667 | AC39: =VLOOKUP($T39,Point_Sources_All!$A$5:$AQ$204,$C$4+25)/1000 -> 14.440125 | AD39: =VLOOKUP($T39,Point_Sources_All!$A$5:$AQ$204,$C$4+28)/1000 -> 0.030029 | AE39: =VLOOKUP($T39,Point_Sources_All!$A$5:$AQ$204,$C$4+31)/1000 -> 0.1313713333 | AF39: =VLOOKUP($T39,Point_Sources_All!$A$5:$AQ$204,$C$4+34)/1000 -> 0.007385191667 | AG39: =VLOOKUP($T39,Point_Sources_All!$A$5:$AQ$204,$C$4+37)/1000 -> 0.1990661667 | AH39: =VLOOKUP($T39,Point_Sources_All!$A$5:$AQ$204,$C$4+40)/1000 -> 0
A40: K | D40: 15 | E40: =VLOOKUP($D40,Point_Sources_All!$A$5:$AQ$204,$C$4+1)/1000 -> 116.5045 | F40: =VLOOKUP($D40,Point_Sources_All!$A$5:$AQ$204,$C$4+4)/1000 -> 0 | G40: =VLOOKUP($D40,Point_Sources_All!$A$5:$AQ$204,$C$4+7)/1000 -> 1.025735 | H40: =VLOOKUP($D40,Point_Sources_All!$A$5:$AQ$204,$C$4+10)/1000 -> 0 | I40: =VLOOKUP($D40,Point_Sources_All!$A$5:$AQ$204,$C$4+13)/1000 -> 0 | J40: =VLOOKUP($D40,Point_Sources_All!$A$5:$AQ$204,$C$4+16)/1000 -> 0 | K40: =VLOOKUP($D40,Point_Sources_All!$A$5:$AQ$204,$C$4+19)/1000 -> 50.86691667 | L40: =VLOOKUP($D40,Point_Sources_All!$A$5:$AQ$204,$C$4+22)/1000 -> 35.96983333 | M40: =VLOOKUP($D40,Point_Sources_All!$A$5:$AQ$204,$C$4+25)/1000 -> 0 | N40: =VLOOKUP($D40,Point_Sources_All!$A$5:$AQ$204,$C$4+28)/1000 -> 1.115408333 | O40: =VLOOKUP($D40,Point_Sources_All!$A$5:$AQ$204,$C$4+31)/1000 -> 2.754433333 | P40: =VLOOKUP($D40,Point_Sources_All!$A$5:$AQ$204,$C$4+34)/1000 -> 1.1187 | Q40: =VLOOKUP($D40,Point_Sources_All!$A$5:$AQ$204,$C$4+37)/1000 -> 15.91425 | R40: =VLOOKUP($D40,Point_Sources_All!$A$5:$AQ$204,$C$4+40)/1000 -> 0 | T40: 65 | U40: =VLOOKUP($T40,Point_Sources_All!$A$5:$AQ$204,$C$4+1)/1000 -> 4.8243 | V40: =VLOOKUP($T40,Point_Sources_All!$A$5:$AQ$204,$C$4+4)/1000 -> 0 | W40: =VLOOKUP($T40,Point_Sources_All!$A$5:$AQ$204,$C$4+7)/1000 -> 0.5491891667 | X40: =VLOOKUP($T40,Point_Sources_All!$A$5:$AQ$204,$C$4+10)/1000 -> 2.39965 | Y40: =VLOOKUP($T40,Point_Sources_All!$A$5:$AQ$204,$C$4+13)/1000 -> 0 | Z40: =VLOOKUP($T40,Point_Sources_All!$A$5:$AQ$204,$C$4+16)/1000 -> 0 | AA40: =VLOOKUP($T40,Point_Sources_All!$A$5:$AQ$204,$C$4+19)/1000 -> 0 | AB40: =VLOOKUP($T40,Point_Sources_All!$A$5:$AQ$204,$C$4+22)/1000 -> 0.9550458333 | AC40: =VLOOKUP($T40,Point_Sources_All!$A$5:$AQ$204,$C$4+25)/1000 -> 14.96218333 | AD40: =VLOOKUP($T40,Point_Sources_All!$A$5:$AQ$204,$C$4+28)/1000 -> 0.02944333333 | AE40: =VLOOKUP($T40,Point_Sources_All!$A$5:$AQ$204,$C$4+31)/1000 -> 0.11974475 | AF40: =VLOOKUP($T40,Point_Sources_All!$A$5:$AQ$204,$C$4+34)/1000 -> 0.006633391667 | AG40: =VLOOKUP($T40,Point_Sources_All!$A$5:$AQ$204,$C$4+37)/1000 -> 0.18144825 | AH40: =VLOOKUP($T40,Point_Sources_All!$A$5:$AQ$204,$C$4+40)/1000 -> 0
A41: Mg | D41: 16 | E41: =VLOOKUP($D41,Point_Sources_All!$A$5:$AQ$204,$C$4+1)/1000 -> 108.9144167 | F41: =VLOOKUP($D41,Point_Sources_All!$A$5:$AQ$204,$C$4+4)/1000 -> 0 | G41: =VLOOKUP($D41,Point_Sources_All!$A$5:$AQ$204,$C$4+7)/1000 -> 0.9406866667 | H41: =VLOOKUP($D41,Point_Sources_All!$A$5:$AQ$204,$C$4+10)/1000 -> 0 | I41: =VLOOKUP($D41,Point_Sources_All!$A$5:$AQ$204,$C$4+13)/1000 -> 0 | J41: =VLOOKUP($D41,Point_Sources_All!$A$5:$AQ$204,$C$4+16)/1000 -> 0 | K41: =VLOOKUP($D41,Point_Sources_All!$A$5:$AQ$204,$C$4+19)/1000 -> 50.59 | L41: =VLOOKUP($D41,Point_Sources_All!$A$5:$AQ$204,$C$4+22)/1000 -> 29.551 | M41: =VLOOKUP($D41,Point_Sources_All!$A$5:$AQ$204,$C$4+25)/1000 -> 0 | N41: =VLOOKUP($D41,Point_Sources_All!$A$5:$AQ$204,$C$4+28)/1000 -> 1.134091667 | O41: =VLOOKUP($D41,Point_Sources_All!$A$5:$AQ$204,$C$4+31)/1000 -> 2.800583333 | P41: =VLOOKUP($D41,Point_Sources_All!$A$5:$AQ$204,$C$4+34)/1000 -> 1.13 | Q41: =VLOOKUP($D41,Point_Sources_All!$A$5:$AQ$204,$C$4+37)/1000 -> 16.18066667 | R41: =VLOOKUP($D41,Point_Sources_All!$A$5:$AQ$204,$C$4+40)/1000 -> 0 | T41: 66 | U41: =VLOOKUP($T41,Point_Sources_All!$A$5:$AQ$204,$C$4+1)/1000 -> 4.591941667 | V41: =VLOOKUP($T41,Point_Sources_All!$A$5:$AQ$204,$C$4+4)/1000 -> 0 | W41: =VLOOKUP($T41,Point_Sources_All!$A$5:$AQ$204,$C$4+7)/1000 -> 0.5488816667 | X41: =VLOOKUP($T41,Point_Sources_All!$A$5:$AQ$204,$C$4+10)/1000 -> 2.286314167 | Y41: =VLOOKUP($T41,Point_Sources_All!$A$5:$AQ$204,$C$4+13)/1000 -> 0 | Z41: =VLOOKUP($T41,Point_Sources_All!$A$5:$AQ$204,$C$4+16)/1000 -> 0 | AA41: =VLOOKUP($T41,Point_Sources_All!$A$5:$AQ$204,$C$4+19)/1000 -> 0 | AB41: =VLOOKUP($T41,Point_Sources_All!$A$5:$AQ$204,$C$4+22)/1000 -> 0.9032433333 | AC41: =VLOOKUP($T41,Point_Sources_All!$A$5:$AQ$204,$C$4+25)/1000 -> 14.15084167 | AD41: =VLOOKUP($T41,Point_Sources_All!$A$5:$AQ$204,$C$4+28)/1000 -> 0.02857866667 | AE41: =VLOOKUP($T41,Point_Sources_All!$A$5:$AQ$204,$C$4+31)/1000 -> 0.10870625 | AF41: =VLOOKUP($T41,Point_Sources_All!$A$5:$AQ$204,$C$4+34)/1000 -> 0.005935216667 | AG41: =VLOOKUP($T41,Point_Sources_All!$A$5:$AQ$204,$C$4+37)/1000 -> 0.1623388333 | AH41: =VLOOKUP($T41,Point_Sources_All!$A$5:$AQ$204,$C$4+40)/1000 -> 0
A42: Mn | D42: 17 | E42: =VLOOKUP($D42,Point_Sources_All!$A$5:$AQ$204,$C$4+1)/1000 -> 103.28325 | F42: =VLOOKUP($D42,Point_Sources_All!$A$5:$AQ$204,$C$4+4)/1000 -> 0 | G42: =VLOOKUP($D42,Point_Sources_All!$A$5:$AQ$204,$C$4+7)/1000 -> 0.9725008333 | H42: =VLOOKUP($D42,Point_Sources_All!$A$5:$AQ$204,$C$4+10)/1000 -> 0 | I42: =VLOOKUP($D42,Point_Sources_All!$A$5:$AQ$204,$C$4+13)/1000 -> 0 | J42: =VLOOKUP($D42,Point_Sources_All!$A$5:$AQ$204,$C$4+16)/1000 -> 0 | K42: =VLOOKUP($D42,Point_Sources_All!$A$5:$AQ$204,$C$4+19)/1000 -> 51.04108333 | L42: =VLOOKUP($D42,Point_Sources_All!$A$5:$AQ$204,$C$4+22)/1000 -> 24.21483333 | M42: =VLOOKUP($D42,Point_Sources_All!$A$5:$AQ$204,$C$4+25)/1000 -> 0 | N42: =VLOOKUP($D42,Point_Sources_All!$A$5:$AQ$204,$C$4+28)/1000 -> 1.120275 | O42: =VLOOKUP($D42,Point_Sources_All!$A$5:$AQ$204,$C$4+31)/1000 -> 2.766416667 | P42: =VLOOKUP($D42,Point_Sources_All!$A$5:$AQ$204,$C$4+34)/1000 -> 1.127508333 | Q42: =VLOOKUP($D42,Point_Sources_All!$A$5:$AQ$204,$C$4+37)/1000 -> 15.98383333 | R42: =VLOOKUP($D42,Point_Sources_All!$A$5:$AQ$204,$C$4+40)/1000 -> 0 | T42: 67 | U42: =VLOOKUP($T42,Point_Sources_All!$A$5:$AQ$204,$C$4+1)/1000 -> 4.70365 | V42: =VLOOKUP($T42,Point_Sources_All!$A$5:$AQ$204,$C$4+4)/1000 -> 0 | W42: =VLOOKUP($T42,Point_Sources_All!$A$5:$AQ$204,$C$4+7)/1000 -> 0.5485433333 | X42: =VLOOKUP($T42,Point_Sources_All!$A$5:$AQ$204,$C$4+10)/1000 -> 2.37354 | Y42: =VLOOKUP($T42,Point_Sources_All!$A$5:$AQ$204,$C$4+13)/1000 -> 0 | Z42: =VLOOKUP($T42,Point_Sources_All!$A$5:$AQ$204,$C$4+16)/1000 -> 0 | AA42: =VLOOKUP($T42,Point_Sources_All!$A$5:$AQ$204,$C$4+19)/1000 -> 0 | AB42: =VLOOKUP($T42,Point_Sources_All!$A$5:$AQ$204,$C$4+22)/1000 -> 0.87639 | AC42: =VLOOKUP($T42,Point_Sources_All!$A$5:$AQ$204,$C$4+25)/1000 -> 13.73001667 | AD42: =VLOOKUP($T42,Point_Sources_All!$A$5:$AQ$204,$C$4+28)/1000 -> 0.02792266667 | AE42: =VLOOKUP($T42,Point_Sources_All!$A$5:$AQ$204,$C$4+31)/1000 -> 0.1016279167 | AF42: =VLOOKUP($T42,Point_Sources_All!$A$5:$AQ$204,$C$4+34)/1000 -> 0.005568975 | AG42: =VLOOKUP($T42,Point_Sources_All!$A$5:$AQ$204,$C$4+37)/1000 -> 0.1499415 | AH42: =VLOOKUP($T42,Point_Sources_All!$A$5:$AQ$204,$C$4+40)/1000 -> 0
A43: Na | D43: 18 | E43: =VLOOKUP($D43,Point_Sources_All!$A$5:$AQ$204,$C$4+1)/1000 -> 99.94541667 | F43: =VLOOKUP($D43,Point_Sources_All!$A$5:$AQ$204,$C$4+4)/1000 -> 0 | G43: =VLOOKUP($D43,Point_Sources_All!$A$5:$AQ$204,$C$4+7)/1000 -> 0.9990941667 | H43: =VLOOKUP($D43,Point_Sources_All!$A$5:$AQ$204,$C$4+10)/1000 -> 0 | I43: =VLOOKUP($D43,Point_Sources_All!$A$5:$AQ$204,$C$4+13)/1000 -> 0 | J43: =VLOOKUP($D43,Point_Sources_All!$A$5:$AQ$204,$C$4+16)/1000 -> 0 | K43: =VLOOKUP($D43,Point_Sources_All!$A$5:$AQ$204,$C$4+19)/1000 -> 49.83825 | L43: =VLOOKUP($D43,Point_Sources_All!$A$5:$AQ$204,$C$4+22)/1000 -> 20.44475 | M43: =VLOOKUP($D43,Point_Sources_All!$A$5:$AQ$204,$C$4+25)/1000 -> 0 | N43: =VLOOKUP($D43,Point_Sources_All!$A$5:$AQ$204,$C$4+28)/1000 -> 1.112516667 | O43: =VLOOKUP($D43,Point_Sources_All!$A$5:$AQ$204,$C$4+31)/1000 -> 2.747283333 | P43: =VLOOKUP($D43,Point_Sources_All!$A$5:$AQ$204,$C$4+34)/1000 -> 1.086116667 | Q43: =VLOOKUP($D43,Point_Sources_All!$A$5:$AQ$204,$C$4+37)/1000 -> 15.873 | R43: =VLOOKUP($D43,Point_Sources_All!$A$5:$AQ$204,$C$4+40)/1000 -> 0 | T43: 68 | U43: =VLOOKUP($T43,Point_Sources_All!$A$5:$AQ$204,$C$4+1)/1000 -> 4.704475 | V43: =VLOOKUP($T43,Point_Sources_All!$A$5:$AQ$204,$C$4+4)/1000 -> 0 | W43: =VLOOKUP($T43,Point_Sources_All!$A$5:$AQ$204,$C$4+7)/1000 -> 0.5479516667 | X43: =VLOOKUP($T43,Point_Sources_All!$A$5:$AQ$204,$C$4+10)/1000 -> 2.614226667 | Y43: =VLOOKUP($T43,Point_Sources_All!$A$5:$AQ$204,$C$4+13)/1000 -> 0 | Z43: =VLOOKUP($T43,Point_Sources_All!$A$5:$AQ$204,$C$4+16)/1000 -> 0 | AA43: =VLOOKUP($T43,Point_Sources_All!$A$5:$AQ$204,$C$4+19)/1000 -> 0 | AB43: =VLOOKUP($T43,Point_Sources_All!$A$5:$AQ$204,$C$4+22)/1000 -> 0.9204558333 | AC43: =VLOOKUP($T43,Point_Sources_All!$A$5:$AQ$204,$C$4+25)/1000 -> 14.42058333 | AD43: =VLOOKUP($T43,Point_Sources_All!$A$5:$AQ$204,$C$4+28)/1000 -> 0.02696583333 | AE43: =VLOOKUP($T43,Point_Sources_All!$A$5:$AQ$204,$C$4+31)/1000 -> 0.09619541667 | AF43: =VLOOKUP($T43,Point_Sources_All!$A$5:$AQ$204,$C$4+34)/1000 -> 0.005157791667 | AG43: =VLOOKUP($T43,Point_Sources_All!$A$5:$AQ$204,$C$4+37)/1000 -> 0.1412485833 | AH43: =VLOOKUP($T43,Point_Sources_All!$A$5:$AQ$204,$C$4+40)/1000 -> 0
A44: Ni | D44: 19 | E44: =VLOOKUP($D44,Point_Sources_All!$A$5:$AQ$204,$C$4+1)/1000 -> 93.92683333 | F44: =VLOOKUP($D44,Point_Sources_All!$A$5:$AQ$204,$C$4+4)/1000 -> 0 | G44: =VLOOKUP($D44,Point_Sources_All!$A$5:$AQ$204,$C$4+7)/1000 -> 1.029275 | H44: =VLOOKUP($D44,Point_Sources_All!$A$5:$AQ$204,$C$4+10)/1000 -> 0 | I44: =VLOOKUP($D44,Point_Sources_All!$A$5:$AQ$204,$C$4+13)/1000 -> 0 | J44: =VLOOKUP($D44,Point_Sources_All!$A$5:$AQ$204,$C$4+16)/1000 -> 0 | K44: =VLOOKUP($D44,Point_Sources_All!$A$5:$AQ$204,$C$4+19)/1000 -> 51.06075 | L44: =VLOOKUP($D44,Point_Sources_All!$A$5:$AQ$204,$C$4+22)/1000 -> 14.95200833 | M44: =VLOOKUP($D44,Point_Sources_All!$A$5:$AQ$204,$C$4+25)/1000 -> 0 | N44: =VLOOKUP($D44,Point_Sources_All!$A$5:$AQ$204,$C$4+28)/1000 -> 1.112575 | O44: =VLOOKUP($D44,Point_Sources_All!$A$5:$AQ$204,$C$4+31)/1000 -> 2.747408333 | P44: =VLOOKUP($D44,Point_Sources_All!$A$5:$AQ$204,$C$4+34)/1000 -> 1.151483333 | Q44: =VLOOKUP($D44,Point_Sources_All!$A$5:$AQ$204,$C$4+37)/1000 -> 16.08975 | R44: =VLOOKUP($D44,Point_Sources_All!$A$5:$AQ$204,$C$4+40)/1000 -> 0 | T44: 69 | U44: =VLOOKUP($T44,Point_Sources_All!$A$5:$AQ$204,$C$4+1)/1000 -> 4.552091667 | V44: =VLOOKUP($T44,Point_Sources_All!$A$5:$AQ$204,$C$4+4)/1000 -> 0 | W44: =VLOOKUP($T44,Point_Sources_All!$A$5:$AQ$204,$C$4+7)/1000 -> 0.5469433333 | X44: =VLOOKUP($T44,Point_Sources_All!$A$5:$AQ$204,$C$4+10)/1000 -> 2.30652675 | Y44: =VLOOKUP($T44,Point_Sources_All!$A$5:$AQ$204,$C$4+13)/1000 -> 0 | Z44: =VLOOKUP($T44,Point_Sources_All!$A$5:$AQ$204,$C$4+16)/1000 -> 0 | AA44: =VLOOKUP($T44,Point_Sources_All!$A$5:$AQ$204,$C$4+19)/1000 -> 0 | AB44: =VLOOKUP($T44,Point_Sources_All!$A$5:$AQ$204,$C$4+22)/1000 -> 0.8992925 | AC44: =VLOOKUP($T44,Point_Sources_All!$A$5:$AQ$204,$C$4+25)/1000 -> 14.08910833 | AD44: =VLOOKUP($T44,Point_Sources_All!$A$5:$AQ$204,$C$4+28)/1000 -> 0.02631083333 | AE44: =VLOOKUP($T44,Point_Sources_All!$A$5:$AQ$204,$C$4+31)/1000 -> 0.08954666667 | AF44: =VLOOKUP($T44,Point_Sources_All!$A$5:$AQ$204,$C$4+34)/1000 -> 0.004788683333 | AG44: =VLOOKUP($T44,Point_Sources_All!$A$5:$AQ$204,$C$4+37)/1000 -> 0.1312925 | AH44: =VLOOKUP($T44,Point_Sources_All!$A$5:$AQ$204,$C$4+40)/1000 -> 0
A45: Pb | D45: 20 | E45: =VLOOKUP($D45,Point_Sources_All!$A$5:$AQ$204,$C$4+1)/1000 -> 86.48366667 | F45: =VLOOKUP($D45,Point_Sources_All!$A$5:$AQ$204,$C$4+4)/1000 -> 0 | G45: =VLOOKUP($D45,Point_Sources_All!$A$5:$AQ$204,$C$4+7)/1000 -> 1.0676 | H45: =VLOOKUP($D45,Point_Sources_All!$A$5:$AQ$204,$C$4+10)/1000 -> 0 | I45: =VLOOKUP($D45,Point_Sources_All!$A$5:$AQ$204,$C$4+13)/1000 -> 0.0307925 | J45: =VLOOKUP($D45,Point_Sources_All!$A$5:$AQ$204,$C$4+16)/1000 -> 0 | K45: =VLOOKUP($D45,Point_Sources_All!$A$5:$AQ$204,$C$4+19)/1000 -> 49.337 | L45: =VLOOKUP($D45,Point_Sources_All!$A$5:$AQ$204,$C$4+22)/1000 -> 9.374508333 | M45: =VLOOKUP($D45,Point_Sources_All!$A$5:$AQ$204,$C$4+25)/1000 -> 0 | N45: =VLOOKUP($D45,Point_Sources_All!$A$5:$AQ$204,$C$4+28)/1000 -> 1.135233333 | O45: =VLOOKUP($D45,Point_Sources_All!$A$5:$AQ$204,$C$4+31)/1000 -> 2.807041667 | P45: =VLOOKUP($D45,Point_Sources_All!$A$5:$AQ$204,$C$4+34)/1000 -> 1.159508333 | Q45: =VLOOKUP($D45,Point_Sources_All!$A$5:$AQ$204,$C$4+37)/1000 -> 16.42441667 | R45: =VLOOKUP($D45,Point_Sources_All!$A$5:$AQ$204,$C$4+40)/1000 -> 0 | T45: 70 | U45: =VLOOKUP($T45,Point_Sources_All!$A$5:$AQ$204,$C$4+1)/1000 -> 4.572341667 | V45: =VLOOKUP($T45,Point_Sources_All!$A$5:$AQ$204,$C$4+4)/1000 -> 0 | W45: =VLOOKUP($T45,Point_Sources_All!$A$5:$AQ$204,$C$4+7)/1000 -> 0.5461116667 | X45: =VLOOKUP($T45,Point_Sources_All!$A$5:$AQ$204,$C$4+10)/1000 -> 2.368800083 | Y45: =VLOOKUP($T45,Point_Sources_All!$A$5:$AQ$204,$C$4+13)/1000 -> 0 | Z45: =VLOOKUP($T45,Point_Sources_All!$A$5:$AQ$204,$C$4+16)/1000 -> 0 | AA45: =VLOOKUP($T45,Point_Sources_All!$A$5:$AQ$204,$C$4+19)/1000 -> 0 | AB45: =VLOOKUP($T45,Point_Sources_All!$A$5:$AQ$204,$C$4+22)/1000 -> 0.9340575 | AC45: =VLOOKUP($T45,Point_Sources_All!$A$5:$AQ$204,$C$4+25)/1000 -> 14.633675 | AD45: =VLOOKUP($T45,Point_Sources_All!$A$5:$AQ$204,$C$4+28)/1000 -> 0.02644566667 | AE45: =VLOOKUP($T45,Point_Sources_All!$A$5:$AQ$204,$C$4+31)/1000 -> 0.0868515 | AF45: =VLOOKUP($T45,Point_Sources_All!$A$5:$AQ$204,$C$4+34)/1000 -> 0.0046733 | AG45: =VLOOKUP($T45,Point_Sources_All!$A$5:$AQ$204,$C$4+37)/1000 -> 0.12717275 | AH45: =VLOOKUP($T45,Point_Sources_All!$A$5:$AQ$204,$C$4+40)/1000 -> 0
A46: Sb | D46: 21 | E46: =VLOOKUP($D46,Point_Sources_All!$A$5:$AQ$204,$C$4+1)/1000 -> 557.7710833 | F46: =VLOOKUP($D46,Point_Sources_All!$A$5:$AQ$204,$C$4+4)/1000 -> 2.7659 | G46: =VLOOKUP($D46,Point_Sources_All!$A$5:$AQ$204,$C$4+7)/1000 -> 1.1386 | H46: =VLOOKUP($D46,Point_Sources_All!$A$5:$AQ$204,$C$4+10)/1000 -> 33.71083333 | I46: =VLOOKUP($D46,Point_Sources_All!$A$5:$AQ$204,$C$4+13)/1000 -> 0.3045191667 | J46: =VLOOKUP($D46,Point_Sources_All!$A$5:$AQ$204,$C$4+16)/1000 -> 22.62366667 | K46: =VLOOKUP($D46,Point_Sources_All!$A$5:$AQ$204,$C$4+19)/1000 -> 2.43560328 | L46: =VLOOKUP($D46,Point_Sources_All!$A$5:$AQ$204,$C$4+22)/1000 -> 4.273009167 | M46: =VLOOKUP($D46,Point_Sources_All!$A$5:$AQ$204,$C$4+25)/1000 -> 6.491083333 | N46: =VLOOKUP($D46,Point_Sources_All!$A$5:$AQ$204,$C$4+28)/1000 -> 2.540383333 | O46: =VLOOKUP($D46,Point_Sources_All!$A$5:$AQ$204,$C$4+31)/1000 -> 9.134866667 | P46: =VLOOKUP($D46,Point_Sources_All!$A$5:$AQ$204,$C$4+34)/1000 -> 10.8488 | Q46: =VLOOKUP($D46,Point_Sources_All!$A$5:$AQ$204,$C$4+37)/1000 -> 51.63858333 | R46: =VLOOKUP($D46,Point_Sources_All!$A$5:$AQ$204,$C$4+40)/1000 -> 315.355 | T46: 71 | U46: =VLOOKUP($T46,Point_Sources_All!$A$5:$AQ$204,$C$4+1)/1000 -> 4.666191667 | V46: =VLOOKUP($T46,Point_Sources_All!$A$5:$AQ$204,$C$4+4)/1000 -> 0 | W46: =VLOOKUP($T46,Point_Sources_All!$A$5:$AQ$204,$C$4+7)/1000 -> 0.54646 | X46: =VLOOKUP($T46,Point_Sources_All!$A$5:$AQ$204,$C$4+10)/1000 -> 2.374506667 | Y46: =VLOOKUP($T46,Point_Sources_All!$A$5:$AQ$204,$C$4+13)/1000 -> 0 | Z46: =VLOOKUP($T46,Point_Sources_All!$A$5:$AQ$204,$C$4+16)/1000 -> 0 | AA46: =VLOOKUP($T46,Point_Sources_All!$A$5:$AQ$204,$C$4+19)/1000 -> 0 | AB46: =VLOOKUP($T46,Point_Sources_All!$A$5:$AQ$204,$C$4+22)/1000 -> 0.90553 | AC46: =VLOOKUP($T46,Point_Sources_All!$A$5:$AQ$204,$C$4+25)/1000 -> 14.18683333 | AD46: =VLOOKUP($T46,Point_Sources_All!$A$5:$AQ$204,$C$4+28)/1000 -> 0.02605766667 | AE46: =VLOOKUP($T46,Point_Sources_All!$A$5:$AQ$204,$C$4+31)/1000 -> 0.08380766667 | AF46: =VLOOKUP($T46,Point_Sources_All!$A$5:$AQ$204,$C$4+34)/1000 -> 0.004470391667 | AG46: =VLOOKUP($T46,Point_Sources_All!$A$5:$AQ$204,$C$4+37)/1000 -> 0.1217615 | AH46: =VLOOKUP($T46,Point_Sources_All!$A$5:$AQ$204,$C$4+40)/1000 -> 0
A47: Se | D47: 22 | E47: =VLOOKUP($D47,Point_Sources_All!$A$5:$AQ$204,$C$4+1)/1000 -> 578.6266667 | F47: =VLOOKUP($D47,Point_Sources_All!$A$5:$AQ$204,$C$4+4)/1000 -> 2.693133333 | G47: =VLOOKUP($D47,Point_Sources_All!$A$5:$AQ$204,$C$4+7)/1000 -> 1.126816667 | H47: =VLOOKUP($D47,Point_Sources_All!$A$5:$AQ$204,$C$4+10)/1000 -> 0 | I47: =VLOOKUP($D47,Point_Sources_All!$A$5:$AQ$204,$C$4+13)/1000 -> 0 | J47: =VLOOKUP($D47,Point_Sources_All!$A$5:$AQ$204,$C$4+16)/1000 -> 81.37466667 | K47: =VLOOKUP($D47,Point_Sources_All!$A$5:$AQ$204,$C$4+19)/1000 -> 1.090833333e-15 | L47: =VLOOKUP($D47,Point_Sources_All!$A$5:$AQ$204,$C$4+22)/1000 -> 0.5567833333 | M47: =VLOOKUP($D47,Point_Sources_All!$A$5:$AQ$204,$C$4+25)/1000 -> 8.585633333 | N47: =VLOOKUP($D47,Point_Sources_All!$A$5:$AQ$204,$C$4+28)/1000 -> 2.183658333 | O47: =VLOOKUP($D47,Point_Sources_All!$A$5:$AQ$204,$C$4+31)/1000 -> 3.461516667 | P47: =VLOOKUP($D47,Point_Sources_All!$A$5:$AQ$204,$C$4+34)/1000 -> 1.176460833 | Q47: =VLOOKUP($D47,Point_Sources_All!$A$5:$AQ$204,$C$4+37)/1000 -> 28.01458333 | R47: =VLOOKUP($D47,Point_Sources_All!$A$5:$AQ$204,$C$4+40)/1000 -> 439.0983333 | T47: 72 | U47: =VLOOKUP($T47,Point_Sources_All!$A$5:$AQ$204,$C$4+1)/1000 -> 4.537316667 | V47: =VLOOKUP($T47,Point_Sources_All!$A$5:$AQ$204,$C$4+4)/1000 -> 0 | W47: =VLOOKUP($T47,Point_Sources_All!$A$5:$AQ$204,$C$4+7)/1000 -> 0.5469 | X47: =VLOOKUP($T47,Point_Sources_All!$A$5:$AQ$204,$C$4+10)/1000 -> 2.27251575 | Y47: =VLOOKUP($T47,Point_Sources_All!$A$5:$AQ$204,$C$4+13)/1000 -> 0 | Z47: =VLOOKUP($T47,Point_Sources_All!$A$5:$AQ$204,$C$4+16)/1000 -> 0 | AA47: =VLOOKUP($T47,Point_Sources_All!$A$5:$AQ$204,$C$4+19)/1000 -> 0 | AB47: =VLOOKUP($T47,Point_Sources_All!$A$5:$AQ$204,$C$4+22)/1000 -> 0.9031675 | AC47: =VLOOKUP($T47,Point_Sources_All!$A$5:$AQ$204,$C$4+25)/1000 -> 14.14963333 | AD47: =VLOOKUP($T47,Point_Sources_All!$A$5:$AQ$204,$C$4+28)/1000 -> 0.02569925 | AE47: =VLOOKUP($T47,Point_Sources_All!$A$5:$AQ$204,$C$4+31)/1000 -> 0.07851558333 | AF47: =VLOOKUP($T47,Point_Sources_All!$A$5:$AQ$204,$C$4+34)/1000 -> 0.004149958333 | AG47: =VLOOKUP($T47,Point_Sources_All!$A$5:$AQ$204,$C$4+37)/1000 -> 0.1129048333 | AH47: =VLOOKUP($T47,Point_Sources_All!$A$5:$AQ$204,$C$4+40)/1000 -> 0
A48: SO4 | D48: 23 | E48: =VLOOKUP($D48,Point_Sources_All!$A$5:$AQ$204,$C$4+1)/1000 -> 573.765 | F48: =VLOOKUP($D48,Point_Sources_All!$A$5:$AQ$204,$C$4+4)/1000 -> 2.877066667 | G48: =VLOOKUP($D48,Point_Sources_All!$A$5:$AQ$204,$C$4+7)/1000 -> 1.113783333 | H48: =VLOOKUP($D48,Point_Sources_All!$A$5:$AQ$204,$C$4+10)/1000 -> 0 | I48: =VLOOKUP($D48,Point_Sources_All!$A$5:$AQ$204,$C$4+13)/1000 -> 0 | J48: =VLOOKUP($D48,Point_Sources_All!$A$5:$AQ$204,$C$4+16)/1000 -> 81.37333333 | K48: =VLOOKUP($D48,Point_Sources_All!$A$5:$AQ$204,$C$4+19)/1000 -> 0 | L48: =VLOOKUP($D48,Point_Sources_All!$A$5:$AQ$204,$C$4+22)/1000 -> 0.7912858333 | M48: =VLOOKUP($D48,Point_Sources_All!$A$5:$AQ$204,$C$4+25)/1000 -> 12.34165 | N48: =VLOOKUP($D48,Point_Sources_All!$A$5:$AQ$204,$C$4+28)/1000 -> 1.385658333 | O48: =VLOOKUP($D48,Point_Sources_All!$A$5:$AQ$204,$C$4+31)/1000 -> 2.560141667 | P48: =VLOOKUP($D48,Point_Sources_All!$A$5:$AQ$204,$C$4+34)/1000 -> 1.0128525 | Q48: =VLOOKUP($D48,Point_Sources_All!$A$5:$AQ$204,$C$4+37)/1000 -> 31.73733333 | R48: =VLOOKUP($D48,Point_Sources_All!$A$5:$AQ$204,$C$4+40)/1000 -> 415.6233333 | T48: 73 | U48: =VLOOKUP($T48,Point_Sources_All!$A$5:$AQ$204,$C$4+1)/1000 -> 4.608216667 | V48: =VLOOKUP($T48,Point_Sources_All!$A$5:$AQ$204,$C$4+4)/1000 -> 0 | W48: =VLOOKUP($T48,Point_Sources_All!$A$5:$AQ$204,$C$4+7)/1000 -> 0.5464241667 | X48: =VLOOKUP($T48,Point_Sources_All!$A$5:$AQ$204,$C$4+10)/1000 -> 2.338670833 | Y48: =VLOOKUP($T48,Point_Sources_All!$A$5:$AQ$204,$C$4+13)/1000 -> 0 | Z48: =VLOOKUP($T48,Point_Sources_All!$A$5:$AQ$204,$C$4+16)/1000 -> 0 | AA48: =VLOOKUP($T48,Point_Sources_All!$A$5:$AQ$204,$C$4+19)/1000 -> 0 | AB48: =VLOOKUP($T48,Point_Sources_All!$A$5:$AQ$204,$C$4+22)/1000 -> 0.9177 | AC48: =VLOOKUP($T48,Point_Sources_All!$A$5:$AQ$204,$C$4+25)/1000 -> 14.37724167 | AD48: =VLOOKUP($T48,Point_Sources_All!$A$5:$AQ$204,$C$4+28)/1000 -> 0.02489658333 | AE48: =VLOOKUP($T48,Point_Sources_All!$A$5:$AQ$204,$C$4+31)/1000 -> 0.07793766667 | AF48: =VLOOKUP($T48,Point_Sources_All!$A$5:$AQ$204,$C$4+34)/1000 -> 0.004106391667 | AG48: =VLOOKUP($T48,Point_Sources_All!$A$5:$AQ$204,$C$4+37)/1000 -> 0.1104568333 | AH48: =VLOOKUP($T48,Point_Sources_All!$A$5:$AQ$204,$C$4+40)/1000 -> 0
A49: Tl | D49: 24 | E49: =VLOOKUP($D49,Point_Sources_All!$A$5:$AQ$204,$C$4+1)/1000 -> 555.6191667 | F49: =VLOOKUP($D49,Point_Sources_All!$A$5:$AQ$204,$C$4+4)/1000 -> 2.738191667 | G49: =VLOOKUP($D49,Point_Sources_All!$A$5:$AQ$204,$C$4+7)/1000 -> 1.100825 | H49: =VLOOKUP($D49,Point_Sources_All!$A$5:$AQ$204,$C$4+10)/1000 -> 5.48375 | I49: =VLOOKUP($D49,Point_Sources_All!$A$5:$AQ$204,$C$4+13)/1000 -> 0 | J49: =VLOOKUP($D49,Point_Sources_All!$A$5:$AQ$204,$C$4+16)/1000 -> 81.339 | K49: =VLOOKUP($D49,Point_Sources_All!$A$5:$AQ$204,$C$4+19)/1000 -> 0 | L49: =VLOOKUP($D49,Point_Sources_All!$A$5:$AQ$204,$C$4+22)/1000 -> 0.8577141667 | M49: =VLOOKUP($D49,Point_Sources_All!$A$5:$AQ$204,$C$4+25)/1000 -> 13.411825 | N49: =VLOOKUP($D49,Point_Sources_All!$A$5:$AQ$204,$C$4+28)/1000 -> 1.21755 | O49: =VLOOKUP($D49,Point_Sources_All!$A$5:$AQ$204,$C$4+31)/1000 -> 3.791941667 | P49: =VLOOKUP($D49,Point_Sources_All!$A$5:$AQ$204,$C$4+34)/1000 -> 1.729381667 | Q49: =VLOOKUP($D49,Point_Sources_All!$A$5:$AQ$204,$C$4+37)/1000 -> 32.41341667 | R49: =VLOOKUP($D49,Point_Sources_All!$A$5:$AQ$204,$C$4+40)/1000 -> 388.8366667 | T49: 74 | U49: =VLOOKUP($T49,Point_Sources_All!$A$5:$AQ$204,$C$4+1)/1000 -> 4.546641667 | V49: =VLOOKUP($T49,Point_Sources_All!$A$5:$AQ$204,$C$4+4)/1000 -> 0 | W49: =VLOOKUP($T49,Point_Sources_All!$A$5:$AQ$204,$C$4+7)/1000 -> 0.5454608333 | X49: =VLOOKUP($T49,Point_Sources_All!$A$5:$AQ$204,$C$4+10)/1000 -> 2.380363333 | Y49: =VLOOKUP($T49,Point_Sources_All!$A$5:$AQ$204,$C$4+13)/1000 -> 0 | Z49: =VLOOKUP($T49,Point_Sources_All!$A$5:$AQ$204,$C$4+16)/1000 -> 0 | AA49: =VLOOKUP($T49,Point_Sources_All!$A$5:$AQ$204,$C$4+19)/1000 -> 0 | AB49: =VLOOKUP($T49,Point_Sources_All!$A$5:$AQ$204,$C$4+22)/1000 -> 0.9132858333 | AC49: =VLOOKUP($T49,Point_Sources_All!$A$5:$AQ$204,$C$4+25)/1000 -> 14.307925 | AD49: =VLOOKUP($T49,Point_Sources_All!$A$5:$AQ$204,$C$4+28)/1000 -> 0.02524658333 | AE49: =VLOOKUP($T49,Point_Sources_All!$A$5:$AQ$204,$C$4+31)/1000 -> 0.07393341667 | AF49: =VLOOKUP($T49,Point_Sources_All!$A$5:$AQ$204,$C$4+34)/1000 -> 0.003851008333 | AG49: =VLOOKUP($T49,Point_Sources_All!$A$5:$AQ$204,$C$4+37)/1000 -> 0.1054489167 | AH49: =VLOOKUP($T49,Point_Sources_All!$A$5:$AQ$204,$C$4+40)/1000 -> 0
A50: V | D50: 25 | E50: =VLOOKUP($D50,Point_Sources_All!$A$5:$AQ$204,$C$4+1)/1000 -> 507.1925 | F50: =VLOOKUP($D50,Point_Sources_All!$A$5:$AQ$204,$C$4+4)/1000 -> 2.650716667 | G50: =VLOOKUP($D50,Point_Sources_All!$A$5:$AQ$204,$C$4+7)/1000 -> 1.089191667 | H50: =VLOOKUP($D50,Point_Sources_All!$A$5:$AQ$204,$C$4+10)/1000 -> 6.8655 | I50: =VLOOKUP($D50,Point_Sources_All!$A$5:$AQ$204,$C$4+13)/1000 -> 0 | J50: =VLOOKUP($D50,Point_Sources_All!$A$5:$AQ$204,$C$4+16)/1000 -> 81.34433333 | K50: =VLOOKUP($D50,Point_Sources_All!$A$5:$AQ$204,$C$4+19)/1000 -> 0 | L50: =VLOOKUP($D50,Point_Sources_All!$A$5:$AQ$204,$C$4+22)/1000 -> 0.86622 | M50: =VLOOKUP($D50,Point_Sources_All!$A$5:$AQ$204,$C$4+25)/1000 -> 13.51344167 | N50: =VLOOKUP($D50,Point_Sources_All!$A$5:$AQ$204,$C$4+28)/1000 -> 1.314348333 | O50: =VLOOKUP($D50,Point_Sources_All!$A$5:$AQ$204,$C$4+31)/1000 -> 3.529825 | P50: =VLOOKUP($D50,Point_Sources_All!$A$5:$AQ$204,$C$4+34)/1000 -> 0.8073766667 | Q50: =VLOOKUP($D50,Point_Sources_All!$A$5:$AQ$204,$C$4+37)/1000 -> 26.21141667 | R50: =VLOOKUP($D50,Point_Sources_All!$A$5:$AQ$204,$C$4+40)/1000 -> 340.5558333 | T50: 75 | U50: =VLOOKUP($T50,Point_Sources_All!$A$5:$AQ$204,$C$4+1)/1000 -> 4.5335 | V50: =VLOOKUP($T50,Point_Sources_All!$A$5:$AQ$204,$C$4+4)/1000 -> 0 | W50: =VLOOKUP($T50,Point_Sources_All!$A$5:$AQ$204,$C$4+7)/1000 -> 0.5454808333 | X50: =VLOOKUP($T50,Point_Sources_All!$A$5:$AQ$204,$C$4+10)/1000 -> 2.321207583 | Y50: =VLOOKUP($T50,Point_Sources_All!$A$5:$AQ$204,$C$4+13)/1000 -> 0 | Z50: =VLOOKUP($T50,Point_Sources_All!$A$5:$AQ$204,$C$4+16)/1000 -> 0 | AA50: =VLOOKUP($T50,Point_Sources_All!$A$5:$AQ$204,$C$4+19)/1000 -> 0 | AB50: =VLOOKUP($T50,Point_Sources_All!$A$5:$AQ$204,$C$4+22)/1000 -> 0.8711558333 | AC50: =VLOOKUP($T50,Point_Sources_All!$A$5:$AQ$204,$C$4+25)/1000 -> 13.6481 | AD50: =VLOOKUP($T50,Point_Sources_All!$A$5:$AQ$204,$C$4+28)/1000 -> 0.02529508333 | AE50: =VLOOKUP($T50,Point_Sources_All!$A$5:$AQ$204,$C$4+31)/1000 -> 0.07222175 | AF50: =VLOOKUP($T50,Point_Sources_All!$A$5:$AQ$204,$C$4+34)/1000 -> 0.003741225 | AG50: =VLOOKUP($T50,Point_Sources_All!$A$5:$AQ$204,$C$4+37)/1000 -> 0.1015194167 | AH50: =VLOOKUP($T50,Point_Sources_All!$A$5:$AQ$204,$C$4+40)/1000 -> 0
A51: Zn | D51: 26 | E51: =VLOOKUP($D51,Point_Sources_All!$A$5:$AQ$204,$C$4+1)/1000 -> 411.7716667 | F51: =VLOOKUP($D51,Point_Sources_All!$A$5:$AQ$204,$C$4+4)/1000 -> 2.64485 | G51: =VLOOKUP($D51,Point_Sources_All!$A$5:$AQ$204,$C$4+7)/1000 -> 1.075525 | H51: =VLOOKUP($D51,Point_Sources_All!$A$5:$AQ$204,$C$4+10)/1000 -> 6.277083333 | I51: =VLOOKUP($D51,Point_Sources_All!$A$5:$AQ$204,$C$4+13)/1000 -> 0 | J51: =VLOOKUP($D51,Point_Sources_All!$A$5:$AQ$204,$C$4+16)/1000 -> 81.33575 | K51: =VLOOKUP($D51,Point_Sources_All!$A$5:$AQ$204,$C$4+19)/1000 -> 0 | L51: =VLOOKUP($D51,Point_Sources_All!$A$5:$AQ$204,$C$4+22)/1000 -> 0.9301258333 | M51: =VLOOKUP($D51,Point_Sources_All!$A$5:$AQ$204,$C$4+25)/1000 -> 13.75288333 | N51: =VLOOKUP($D51,Point_Sources_All!$A$5:$AQ$204,$C$4+28)/1000 -> 0.7435225 | O51: =VLOOKUP($D51,Point_Sources_All!$A$5:$AQ$204,$C$4+31)/1000 -> 3.414425 | P51: =VLOOKUP($D51,Point_Sources_All!$A$5:$AQ$204,$C$4+34)/1000 -> 1.094238333 | Q51: =VLOOKUP($D51,Point_Sources_All!$A$5:$AQ$204,$C$4+37)/1000 -> 28.97466667 | R51: =VLOOKUP($D51,Point_Sources_All!$A$5:$AQ$204,$C$4+40)/1000 -> 260.0325 | T51: 76 | U51: =VLOOKUP($T51,Point_Sources_All!$A$5:$AQ$204,$C$4+1)/1000 -> 4.5438 | V51: =VLOOKUP($T51,Point_Sources_All!$A$5:$AQ$204,$C$4+4)/1000 -> 0 | W51: =VLOOKUP($T51,Point_Sources_All!$A$5:$AQ$204,$C$4+7)/1000 -> 0.54513 | X51: =VLOOKUP($T51,Point_Sources_All!$A$5:$AQ$204,$C$4+10)/1000 -> 2.351126917 | Y51: =VLOOKUP($T51,Point_Sources_All!$A$5:$AQ$204,$C$4+13)/1000 -> 0 | Z51: =VLOOKUP($T51,Point_Sources_All!$A$5:$AQ$204,$C$4+16)/1000 -> 0 | AA51: =VLOOKUP($T51,Point_Sources_All!$A$5:$AQ$204,$C$4+19)/1000 -> 0 | AB51: =VLOOKUP($T51,Point_Sources_All!$A$5:$AQ$204,$C$4+22)/1000 -> 0.9401016667 | AC51: =VLOOKUP($T51,Point_Sources_All!$A$5:$AQ$204,$C$4+25)/1000 -> 14.72814167 | AD51: =VLOOKUP($T51,Point_Sources_All!$A$5:$AQ$204,$C$4+28)/1000 -> 0.02533475 | AE51: =VLOOKUP($T51,Point_Sources_All!$A$5:$AQ$204,$C$4+31)/1000 -> 0.07075125 | AF51: =VLOOKUP($T51,Point_Sources_All!$A$5:$AQ$204,$C$4+34)/1000 -> 0.003634 | AG51: =VLOOKUP($T51,Point_Sources_All!$A$5:$AQ$204,$C$4+37)/1000 -> 0.09939366667 | AH51: =VLOOKUP($T51,Point_Sources_All!$A$5:$AQ$204,$C$4+40)/1000 -> 0
D52: 27 | E52: =VLOOKUP($D52,Point_Sources_All!$A$5:$AQ$204,$C$4+1)/1000 -> 268.8783333 | F52: =VLOOKUP($D52,Point_Sources_All!$A$5:$AQ$204,$C$4+4)/1000 -> 2.788375 | G52: =VLOOKUP($D52,Point_Sources_All!$A$5:$AQ$204,$C$4+7)/1000 -> 1.064325 | H52: =VLOOKUP($D52,Point_Sources_All!$A$5:$AQ$204,$C$4+10)/1000 -> 5.623 | I52: =VLOOKUP($D52,Point_Sources_All!$A$5:$AQ$204,$C$4+13)/1000 -> 0 | J52: =VLOOKUP($D52,Point_Sources_All!$A$5:$AQ$204,$C$4+16)/1000 -> 81.33066667 | K52: =VLOOKUP($D52,Point_Sources_All!$A$5:$AQ$204,$C$4+19)/1000 -> 0 | L52: =VLOOKUP($D52,Point_Sources_All!$A$5:$AQ$204,$C$4+22)/1000 -> 0.9467716667 | M52: =VLOOKUP($D52,Point_Sources_All!$A$5:$AQ$204,$C$4+25)/1000 -> 13.8001 | N52: =VLOOKUP($D52,Point_Sources_All!$A$5:$AQ$204,$C$4+28)/1000 -> 0.7741108333 | O52: =VLOOKUP($D52,Point_Sources_All!$A$5:$AQ$204,$C$4+31)/1000 -> 2.5817 | P52: =VLOOKUP($D52,Point_Sources_All!$A$5:$AQ$204,$C$4+34)/1000 -> 1.652975 | Q52: =VLOOKUP($D52,Point_Sources_All!$A$5:$AQ$204,$C$4+37)/1000 -> 25.8565 | R52: =VLOOKUP($D52,Point_Sources_All!$A$5:$AQ$204,$C$4+40)/1000 -> 131.04 | T52: 77 | U52: =VLOOKUP($T52,Point_Sources_All!$A$5:$AQ$204,$C$4+1)/1000 -> 4.573191667 | V52: =VLOOKUP($T52,Point_Sources_All!$A$5:$AQ$204,$C$4+4)/1000 -> 0 | W52: =VLOOKUP($T52,Point_Sources_All!$A$5:$AQ$204,$C$4+7)/1000 -> 0.544845 | X52: =VLOOKUP($T52,Point_Sources_All!$A$5:$AQ$204,$C$4+10)/1000 -> 2.352369167 | Y52: =VLOOKUP($T52,Point_Sources_All!$A$5:$AQ$204,$C$4+13)/1000 -> 0 | Z52: =VLOOKUP($T52,Point_Sources_All!$A$5:$AQ$204,$C$4+16)/1000 -> 0 | AA52: =VLOOKUP($T52,Point_Sources_All!$A$5:$AQ$204,$C$4+19)/1000 -> 0 | AB52: =VLOOKUP($T52,Point_Sources_All!$A$5:$AQ$204,$C$4+22)/1000 -> 0.954025 | AC52: =VLOOKUP($T52,Point_Sources_All!$A$5:$AQ$204,$C$4+25)/1000 -> 14.94636667 | AD52: =VLOOKUP($T52,Point_Sources_All!$A$5:$AQ$204,$C$4+28)/1000 -> 0.02513258333 | AE52: =VLOOKUP($T52,Point_Sources_All!$A$5:$AQ$204,$C$4+31)/1000 -> 0.06921833333 | AF52: =VLOOKUP($T52,Point_Sources_All!$A$5:$AQ$204,$C$4+34)/1000 -> 0.003601466667 | AG52: =VLOOKUP($T52,Point_Sources_All!$A$5:$AQ$204,$C$4+37)/1000 -> 0.09746816667 | AH52: =VLOOKUP($T52,Point_Sources_All!$A$5:$AQ$204,$C$4+40)/1000 -> 0
D53: 28 | E53: =VLOOKUP($D53,Point_Sources_All!$A$5:$AQ$204,$C$4+1)/1000 -> 170.7991667 | F53: =VLOOKUP($D53,Point_Sources_All!$A$5:$AQ$204,$C$4+4)/1000 -> 2.62335 | G53: =VLOOKUP($D53,Point_Sources_All!$A$5:$AQ$204,$C$4+7)/1000 -> 1.053433333 | H53: =VLOOKUP($D53,Point_Sources_All!$A$5:$AQ$204,$C$4+10)/1000 -> 5.211166667 | I53: =VLOOKUP($D53,Point_Sources_All!$A$5:$AQ$204,$C$4+13)/1000 -> 0 | J53: =VLOOKUP($D53,Point_Sources_All!$A$5:$AQ$204,$C$4+16)/1000 -> 81.32375 | K53: =VLOOKUP($D53,Point_Sources_All!$A$5:$AQ$204,$C$4+19)/1000 -> 0 | L53: =VLOOKUP($D53,Point_Sources_All!$A$5:$AQ$204,$C$4+22)/1000 -> 0.96451 | M53: =VLOOKUP($D53,Point_Sources_All!$A$5:$AQ$204,$C$4+25)/1000 -> 12.82223333 | N53: =VLOOKUP($D53,Point_Sources_All!$A$5:$AQ$204,$C$4+28)/1000 -> 0.9760333333 | O53: =VLOOKUP($D53,Point_Sources_All!$A$5:$AQ$204,$C$4+31)/1000 -> 2.519025 | P53: =VLOOKUP($D53,Point_Sources_All!$A$5:$AQ$204,$C$4+34)/1000 -> 1.5578 | Q53: =VLOOKUP($D53,Point_Sources_All!$A$5:$AQ$204,$C$4+37)/1000 -> 18.31208333 | R53: =VLOOKUP($D53,Point_Sources_All!$A$5:$AQ$204,$C$4+40)/1000 -> 46.01408333 | T53: 78 | U53: =VLOOKUP($T53,Point_Sources_All!$A$5:$AQ$204,$C$4+1)/1000 -> 4.596958333 | V53: =VLOOKUP($T53,Point_Sources_All!$A$5:$AQ$204,$C$4+4)/1000 -> 0 | W53: =VLOOKUP($T53,Point_Sources_All!$A$5:$AQ$204,$C$4+7)/1000 -> 0.54469 | X53: =VLOOKUP($T53,Point_Sources_All!$A$5:$AQ$204,$C$4+10)/1000 -> 2.576243333 | Y53: =VLOOKUP($T53,Point_Sources_All!$A$5:$AQ$204,$C$4+13)/1000 -> 0 | Z53: =VLOOKUP($T53,Point_Sources_All!$A$5:$AQ$204,$C$4+16)/1000 -> 0 | AA53: =VLOOKUP($T53,Point_Sources_All!$A$5:$AQ$204,$C$4+19)/1000 -> 0 | AB53: =VLOOKUP($T53,Point_Sources_All!$A$5:$AQ$204,$C$4+22)/1000 -> 0.8997291667 | AC53: =VLOOKUP($T53,Point_Sources_All!$A$5:$AQ$204,$C$4+25)/1000 -> 14.095725 | AD53: =VLOOKUP($T53,Point_Sources_All!$A$5:$AQ$204,$C$4+28)/1000 -> 0.02514041667 | AE53: =VLOOKUP($T53,Point_Sources_All!$A$5:$AQ$204,$C$4+31)/1000 -> 0.06743408333 | AF53: =VLOOKUP($T53,Point_Sources_All!$A$5:$AQ$204,$C$4+34)/1000 -> 0.003511616667 | AG53: =VLOOKUP($T53,Point_Sources_All!$A$5:$AQ$204,$C$4+37)/1000 -> 0.09511616667 | AH53: =VLOOKUP($T53,Point_Sources_All!$A$5:$AQ$204,$C$4+40)/1000 -> 0
D54: 29 | E54: =VLOOKUP($D54,Point_Sources_All!$A$5:$AQ$204,$C$4+1)/1000 -> 138.2116667 | F54: =VLOOKUP($D54,Point_Sources_All!$A$5:$AQ$204,$C$4+4)/1000 -> 2.754775 | G54: =VLOOKUP($D54,Point_Sources_All!$A$5:$AQ$204,$C$4+7)/1000 -> 1.046175 | H54: =VLOOKUP($D54,Point_Sources_All!$A$5:$AQ$204,$C$4+10)/1000 -> 5.1243 | I54: =VLOOKUP($D54,Point_Sources_All!$A$5:$AQ$204,$C$4+13)/1000 -> 0 | J54: =VLOOKUP($D54,Point_Sources_All!$A$5:$AQ$204,$C$4+16)/1000 -> 81.29141667 | K54: =VLOOKUP($D54,Point_Sources_All!$A$5:$AQ$204,$C$4+19)/1000 -> 0 | L54: =VLOOKUP($D54,Point_Sources_All!$A$5:$AQ$204,$C$4+22)/1000 -> 1.045441667 | M54: =VLOOKUP($D54,Point_Sources_All!$A$5:$AQ$204,$C$4+25)/1000 -> 12.96459167 | N54: =VLOOKUP($D54,Point_Sources_All!$A$5:$AQ$204,$C$4+28)/1000 -> 1.018368333 | O54: =VLOOKUP($D54,Point_Sources_All!$A$5:$AQ$204,$C$4+31)/1000 -> 2.494483333 | P54: =VLOOKUP($D54,Point_Sources_All!$A$5:$AQ$204,$C$4+34)/1000 -> 1.221676667 | Q54: =VLOOKUP($D54,Point_Sources_All!$A$5:$AQ$204,$C$4+37)/1000 -> 15.26833333 | R54: =VLOOKUP($D54,Point_Sources_All!$A$5:$AQ$204,$C$4+40)/1000 -> 20.26925 | T54: 79 | U54: =VLOOKUP($T54,Point_Sources_All!$A$5:$AQ$204,$C$4+1)/1000 -> 4.589491667 | V54: =VLOOKUP($T54,Point_Sources_All!$A$5:$AQ$204,$C$4+4)/1000 -> 0 | W54: =VLOOKUP($T54,Point_Sources_All!$A$5:$AQ$204,$C$4+7)/1000 -> 0.5441175 | X54: =VLOOKUP($T54,Point_Sources_All!$A$5:$AQ$204,$C$4+10)/1000 -> 2.375603333 | Y54: =VLOOKUP($T54,Point_Sources_All!$A$5:$AQ$204,$C$4+13)/1000 -> 0 | Z54: =VLOOKUP($T54,Point_Sources_All!$A$5:$AQ$204,$C$4+16)/1000 -> 0 | AA54: =VLOOKUP($T54,Point_Sources_All!$A$5:$AQ$204,$C$4+19)/1000 -> 0 | AB54: =VLOOKUP($T54,Point_Sources_All!$A$5:$AQ$204,$C$4+22)/1000 -> 0.93647 | AC54: =VLOOKUP($T54,Point_Sources_All!$A$5:$AQ$204,$C$4+25)/1000 -> 14.67130833 | AD54: =VLOOKUP($T54,Point_Sources_All!$A$5:$AQ$204,$C$4+28)/1000 -> 0.02493166667 | AE54: =VLOOKUP($T54,Point_Sources_All!$A$5:$AQ$204,$C$4+31)/1000 -> 0.06775958333 | AF54: =VLOOKUP($T54,Point_Sources_All!$A$5:$AQ$204,$C$4+34)/1000 -> 0.003508666667 | AG54: =VLOOKUP($T54,Point_Sources_All!$A$5:$AQ$204,$C$4+37)/1000 -> 0.09541575 | AH54: =VLOOKUP($T54,Point_Sources_All!$A$5:$AQ$204,$C$4+40)/1000 -> 0
D55: 30 | E55: =VLOOKUP($D55,Point_Sources_All!$A$5:$AQ$204,$C$4+1)/1000 -> 128.8533333 | F55: =VLOOKUP($D55,Point_Sources_All!$A$5:$AQ$204,$C$4+4)/1000 -> 2.767458333 | G55: =VLOOKUP($D55,Point_Sources_All!$A$5:$AQ$204,$C$4+7)/1000 -> 1.038775 | H55: =VLOOKUP($D55,Point_Sources_All!$A$5:$AQ$204,$C$4+10)/1000 -> 4.259166667 | I55: =VLOOKUP($D55,Point_Sources_All!$A$5:$AQ$204,$C$4+13)/1000 -> 0 | J55: =VLOOKUP($D55,Point_Sources_All!$A$5:$AQ$204,$C$4+16)/1000 -> 81.23733333 | K55: =VLOOKUP($D55,Point_Sources_All!$A$5:$AQ$204,$C$4+19)/1000 -> 0 | L55: =VLOOKUP($D55,Point_Sources_All!$A$5:$AQ$204,$C$4+22)/1000 -> 1.166506667 | M55: =VLOOKUP($D55,Point_Sources_All!$A$5:$AQ$204,$C$4+25)/1000 -> 11.34625833 | N55: =VLOOKUP($D55,Point_Sources_All!$A$5:$AQ$204,$C$4+28)/1000 -> 1.035539167 | O55: =VLOOKUP($D55,Point_Sources_All!$A$5:$AQ$204,$C$4+31)/1000 -> 2.680191667 | P55: =VLOOKUP($D55,Point_Sources_All!$A$5:$AQ$204,$C$4+34)/1000 -> 1.146046667 | Q55: =VLOOKUP($D55,Point_Sources_All!$A$5:$AQ$204,$C$4+37)/1000 -> 14.50366667 | R55: =VLOOKUP($D55,Point_Sources_All!$A$5:$AQ$204,$C$4+40)/1000 -> 14.56625 | T55: 80 | U55: =VLOOKUP($T55,Point_Sources_All!$A$5:$AQ$204,$C$4+1)/1000 -> 4.5159 | V55: =VLOOKUP($T55,Point_Sources_All!$A$5:$AQ$204,$C$4+4)/1000 -> 0 | W55: =VLOOKUP($T55,Point_Sources_All!$A$5:$AQ$204,$C$4+7)/1000 -> 0.5447816667 | X55: =VLOOKUP($T55,Point_Sources_All!$A$5:$AQ$204,$C$4+10)/1000 -> 2.317208417 | Y55: =VLOOKUP($T55,Point_Sources_All!$A$5:$AQ$204,$C$4+13)/1000 -> 0 | Z55: =VLOOKUP($T55,Point_Sources_All!$A$5:$AQ$204,$C$4+16)/1000 -> 0 | AA55: =VLOOKUP($T55,Point_Sources_All!$A$5:$AQ$204,$C$4+19)/1000 -> 0 | AB55: =VLOOKUP($T55,Point_Sources_All!$A$5:$AQ$204,$C$4+22)/1000 -> 0.9320633333 | AC55: =VLOOKUP($T55,Point_Sources_All!$A$5:$AQ$204,$C$4+25)/1000 -> 14.60236667 | AD55: =VLOOKUP($T55,Point_Sources_All!$A$5:$AQ$204,$C$4+28)/1000 -> 0.024927 | AE55: =VLOOKUP($T55,Point_Sources_All!$A$5:$AQ$204,$C$4+31)/1000 -> 0.06435675 | AF55: =VLOOKUP($T55,Point_Sources_All!$A$5:$AQ$204,$C$4+34)/1000 -> 0.003338583333 | AG55: =VLOOKUP($T55,Point_Sources_All!$A$5:$AQ$204,$C$4+37)/1000 -> 0.09032875 | AH55: =VLOOKUP($T55,Point_Sources_All!$A$5:$AQ$204,$C$4+40)/1000 -> 0
D56: 31 | E56: =VLOOKUP($D56,Point_Sources_All!$A$5:$AQ$204,$C$4+1)/1000 -> 135.8141667 | F56: =VLOOKUP($D56,Point_Sources_All!$A$5:$AQ$204,$C$4+4)/1000 -> 2.766641667 | G56: =VLOOKUP($D56,Point_Sources_All!$A$5:$AQ$204,$C$4+7)/1000 -> 1.031466667 | H56: =VLOOKUP($D56,Point_Sources_All!$A$5:$AQ$204,$C$4+10)/1000 -> 5.4265 | I56: =VLOOKUP($D56,Point_Sources_All!$A$5:$AQ$204,$C$4+13)/1000 -> 0 | J56: =VLOOKUP($D56,Point_Sources_All!$A$5:$AQ$204,$C$4+16)/1000 -> 81.14541667 | K56: =VLOOKUP($D56,Point_Sources_All!$A$5:$AQ$204,$C$4+19)/1000 -> 0 | L56: =VLOOKUP($D56,Point_Sources_All!$A$5:$AQ$204,$C$4+22)/1000 -> 1.324940833 | M56: =VLOOKUP($D56,Point_Sources_All!$A$5:$AQ$204,$C$4+25)/1000 -> 9.757366667 | N56: =VLOOKUP($D56,Point_Sources_All!$A$5:$AQ$204,$C$4+28)/1000 -> 1.018661667 | O56: =VLOOKUP($D56,Point_Sources_All!$A$5:$AQ$204,$C$4+31)/1000 -> 3.038483333 | P56: =VLOOKUP($D56,Point_Sources_All!$A$5:$AQ$204,$C$4+34)/1000 -> 1.278773333 | Q56: =VLOOKUP($D56,Point_Sources_All!$A$5:$AQ$204,$C$4+37)/1000 -> 15.28891667 | R56: =VLOOKUP($D56,Point_Sources_All!$A$5:$AQ$204,$C$4+40)/1000 -> 20.8645 | T56: 81 | U56: =VLOOKUP($T56,Point_Sources_All!$A$5:$AQ$204,$C$4+1)/1000 -> 4.645441667 | V56: =VLOOKUP($T56,Point_Sources_All!$A$5:$AQ$204,$C$4+4)/1000 -> 0 | W56: =VLOOKUP($T56,Point_Sources_All!$A$5:$AQ$204,$C$4+7)/1000 -> 0.5458775 | X56: =VLOOKUP($T56,Point_Sources_All!$A$5:$AQ$204,$C$4+10)/1000 -> 2.579653333 | Y56: =VLOOKUP($T56,Point_Sources_All!$A$5:$AQ$204,$C$4+13)/1000 -> 0 | Z56: =VLOOKUP($T56,Point_Sources_All!$A$5:$AQ$204,$C$4+16)/1000 -> 0 | AA56: =VLOOKUP($T56,Point_Sources_All!$A$5:$AQ$204,$C$4+19)/1000 -> 0 | AB56: =VLOOKUP($T56,Point_Sources_All!$A$5:$AQ$204,$C$4+22)/1000 -> 0.9347508333 | AC56: =VLOOKUP($T56,Point_Sources_All!$A$5:$AQ$204,$C$4+25)/1000 -> 14.64455 | AD56: =VLOOKUP($T56,Point_Sources_All!$A$5:$AQ$204,$C$4+28)/1000 -> 0.02515958333 | AE56: =VLOOKUP($T56,Point_Sources_All!$A$5:$AQ$204,$C$4+31)/1000 -> 0.06565125 | AF56: =VLOOKUP($T56,Point_Sources_All!$A$5:$AQ$204,$C$4+34)/1000 -> 0.003421291667 | AG56: =VLOOKUP($T56,Point_Sources_All!$A$5:$AQ$204,$C$4+37)/1000 -> 0.09299991667 | AH56: =VLOOKUP($T56,Point_Sources_All!$A$5:$AQ$204,$C$4+40)/1000 -> 0
D57: 32 | E57: =VLOOKUP($D57,Point_Sources_All!$A$5:$AQ$204,$C$4+1)/1000 -> 126.4516667 | F57: =VLOOKUP($D57,Point_Sources_All!$A$5:$AQ$204,$C$4+4)/1000 -> 2.7308 | G57: =VLOOKUP($D57,Point_Sources_All!$A$5:$AQ$204,$C$4+7)/1000 -> 1.024866667 | H57: =VLOOKUP($D57,Point_Sources_All!$A$5:$AQ$204,$C$4+10)/1000 -> 5.065791667 | I57: =VLOOKUP($D57,Point_Sources_All!$A$5:$AQ$204,$C$4+13)/1000 -> 0 | J57: =VLOOKUP($D57,Point_Sources_All!$A$5:$AQ$204,$C$4+16)/1000 -> 81.03583333 | K57: =VLOOKUP($D57,Point_Sources_All!$A$5:$AQ$204,$C$4+19)/1000 -> 0 | L57: =VLOOKUP($D57,Point_Sources_All!$A$5:$AQ$204,$C$4+22)/1000 -> 1.667804167 | M57: =VLOOKUP($D57,Point_Sources_All!$A$5:$AQ$204,$C$4+25)/1000 -> 7.303541667 | N57: =VLOOKUP($D57,Point_Sources_All!$A$5:$AQ$204,$C$4+28)/1000 -> 0.85911 | O57: =VLOOKUP($D57,Point_Sources_All!$A$5:$AQ$204,$C$4+31)/1000 -> 2.863433333 | P57: =VLOOKUP($D57,Point_Sources_All!$A$5:$AQ$204,$C$4+34)/1000 -> 1.286175833 | Q57: =VLOOKUP($D57,Point_Sources_All!$A$5:$AQ$204,$C$4+37)/1000 -> 14.353 | R57: =VLOOKUP($D57,Point_Sources_All!$A$5:$AQ$204,$C$4+40)/1000 -> 17.58625 | T57: 82 | U57: =VLOOKUP($T57,Point_Sources_All!$A$5:$AQ$204,$C$4+1)/1000 -> 4.583508333 | V57: =VLOOKUP($T57,Point_Sources_All!$A$5:$AQ$204,$C$4+4)/1000 -> 0 | W57: =VLOOKUP($T57,Point_Sources_All!$A$5:$AQ$204,$C$4+7)/1000 -> 0.545305 | X57: =VLOOKUP($T57,Point_Sources_All!$A$5:$AQ$204,$C$4+10)/1000 -> 2.364250833 | Y57: =VLOOKUP($T57,Point_Sources_All!$A$5:$AQ$204,$C$4+13)/1000 -> 0 | Z57: =VLOOKUP($T57,Point_Sources_All!$A$5:$AQ$204,$C$4+16)/1000 -> 0 | AA57: =VLOOKUP($T57,Point_Sources_All!$A$5:$AQ$204,$C$4+19)/1000 -> 0 | AB57: =VLOOKUP($T57,Point_Sources_All!$A$5:$AQ$204,$C$4+22)/1000 -> 0.9102875 | AC57: =VLOOKUP($T57,Point_Sources_All!$A$5:$AQ$204,$C$4+25)/1000 -> 14.26131667 | AD57: =VLOOKUP($T57,Point_Sources_All!$A$5:$AQ$204,$C$4+28)/1000 -> 0.024834 | AE57: =VLOOKUP($T57,Point_Sources_All!$A$5:$AQ$204,$C$4+31)/1000 -> 0.06374433333 | AF57: =VLOOKUP($T57,Point_Sources_All!$A$5:$AQ$204,$C$4+34)/1000 -> 0.003302875 | AG57: =VLOOKUP($T57,Point_Sources_All!$A$5:$AQ$204,$C$4+37)/1000 -> 0.08985058333 | AH57: =VLOOKUP($T57,Point_Sources_All!$A$5:$AQ$204,$C$4+40)/1000 -> 0
D58: 33 | E58: =VLOOKUP($D58,Point_Sources_All!$A$5:$AQ$204,$C$4+1)/1000 -> 119.945 | F58: =VLOOKUP($D58,Point_Sources_All!$A$5:$AQ$204,$C$4+4)/1000 -> 2.730358333 | G58: =VLOOKUP($D58,Point_Sources_All!$A$5:$AQ$204,$C$4+7)/1000 -> 1.01675 | H58: =VLOOKUP($D58,Point_Sources_All!$A$5:$AQ$204,$C$4+10)/1000 -> 4.131041667 | I58: =VLOOKUP($D58,Point_Sources_All!$A$5:$AQ$204,$C$4+13)/1000 -> 0 | J58: =VLOOKUP($D58,Point_Sources_All!$A$5:$AQ$204,$C$4+16)/1000 -> 80.85833333 | K58: =VLOOKUP($D58,Point_Sources_All!$A$5:$AQ$204,$C$4+19)/1000 -> 0 | L58: =VLOOKUP($D58,Point_Sources_All!$A$5:$AQ$204,$C$4+22)/1000 -> 2.502878333 | M58: =VLOOKUP($D58,Point_Sources_All!$A$5:$AQ$204,$C$4+25)/1000 -> 4.216883333 | N58: =VLOOKUP($D58,Point_Sources_All!$A$5:$AQ$204,$C$4+28)/1000 -> 0.8083208333 | O58: =VLOOKUP($D58,Point_Sources_All!$A$5:$AQ$204,$C$4+31)/1000 -> 3.17905 | P58: =VLOOKUP($D58,Point_Sources_All!$A$5:$AQ$204,$C$4+34)/1000 -> 1.215840833 | Q58: =VLOOKUP($D58,Point_Sources_All!$A$5:$AQ$204,$C$4+37)/1000 -> 13.22511667 | R58: =VLOOKUP($D58,Point_Sources_All!$A$5:$AQ$204,$C$4+40)/1000 -> 16.26141667 | T58: 83 | U58: =VLOOKUP($T58,Point_Sources_All!$A$5:$AQ$204,$C$4+1)/1000 -> 4.476125 | V58: =VLOOKUP($T58,Point_Sources_All!$A$5:$AQ$204,$C$4+4)/1000 -> 0 | W58: =VLOOKUP($T58,Point_Sources_All!$A$5:$AQ$204,$C$4+7)/1000 -> 0.5449833333 | X58: =VLOOKUP($T58,Point_Sources_All!$A$5:$AQ$204,$C$4+10)/1000 -> 2.314765 | Y58: =VLOOKUP($T58,Point_Sources_All!$A$5:$AQ$204,$C$4+13)/1000 -> 0 | Z58: =VLOOKUP($T58,Point_Sources_All!$A$5:$AQ$204,$C$4+16)/1000 -> 0 | AA58: =VLOOKUP($T58,Point_Sources_All!$A$5:$AQ$204,$C$4+19)/1000 -> 0 | AB58: =VLOOKUP($T58,Point_Sources_All!$A$5:$AQ$204,$C$4+22)/1000 -> 0.9234641667 | AC58: =VLOOKUP($T58,Point_Sources_All!$A$5:$AQ$204,$C$4+25)/1000 -> 14.4675 | AD58: =VLOOKUP($T58,Point_Sources_All!$A$5:$AQ$204,$C$4+28)/1000 -> 0.024076 | AE58: =VLOOKUP($T58,Point_Sources_All!$A$5:$AQ$204,$C$4+31)/1000 -> 0.06209108333 | AF58: =VLOOKUP($T58,Point_Sources_All!$A$5:$AQ$204,$C$4+34)/1000 -> 0.00326095 | AG58: =VLOOKUP($T58,Point_Sources_All!$A$5:$AQ$204,$C$4+37)/1000 -> 0.08795008333 | AH58: =VLOOKUP($T58,Point_Sources_All!$A$5:$AQ$204,$C$4+40)/1000 -> 0
D59: 34 | E59: =VLOOKUP($D59,Point_Sources_All!$A$5:$AQ$204,$C$4+1)/1000 -> 112.1404167 | F59: =VLOOKUP($D59,Point_Sources_All!$A$5:$AQ$204,$C$4+4)/1000 -> 2.81335 | G59: =VLOOKUP($D59,Point_Sources_All!$A$5:$AQ$204,$C$4+7)/1000 -> 0.9993158333 | H59: =VLOOKUP($D59,Point_Sources_All!$A$5:$AQ$204,$C$4+10)/1000 -> 3.9387 | I59: =VLOOKUP($D59,Point_Sources_All!$A$5:$AQ$204,$C$4+13)/1000 -> 0.03268991667 | J59: =VLOOKUP($D59,Point_Sources_All!$A$5:$AQ$204,$C$4+16)/1000 -> 13.44461891 | K59: =VLOOKUP($D59,Point_Sources_All!$A$5:$AQ$204,$C$4+19)/1000 -> 0 | L59: =VLOOKUP($D59,Point_Sources_All!$A$5:$AQ$204,$C$4+22)/1000 -> 4.46555 | M59: =VLOOKUP($D59,Point_Sources_All!$A$5:$AQ$204,$C$4+25)/1000 -> 0.0693725 | N59: =VLOOKUP($D59,Point_Sources_All!$A$5:$AQ$204,$C$4+28)/1000 -> 0.7838291667 | O59: =VLOOKUP($D59,Point_Sources_All!$A$5:$AQ$204,$C$4+31)/1000 -> 3.538508333 | P59: =VLOOKUP($D59,Point_Sources_All!$A$5:$AQ$204,$C$4+34)/1000 -> 1.077621667 | Q59: =VLOOKUP($D59,Point_Sources_All!$A$5:$AQ$204,$C$4+37)/1000 -> 12.037375 | R59: =VLOOKUP($D59,Point_Sources_All!$A$5:$AQ$204,$C$4+40)/1000 -> 17.0315 | T59: 84 | U59: =VLOOKUP($T59,Point_Sources_All!$A$5:$AQ$204,$C$4+1)/1000 -> 4.528358333 | V59: =VLOOKUP($T59,Point_Sources_All!$A$5:$AQ$204,$C$4+4)/1000 -> 0 | W59: =VLOOKUP($T59,Point_Sources_All!$A$5:$AQ$204,$C$4+7)/1000 -> 0.5442833333 | X59: =VLOOKUP($T59,Point_Sources_All!$A$5:$AQ$204,$C$4+10)/1000 -> 2.52472 | Y59: =VLOOKUP($T59,Point_Sources_All!$A$5:$AQ$204,$C$4+13)/1000 -> 0 | Z59: =VLOOKUP($T59,Point_Sources_All!$A$5:$AQ$204,$C$4+16)/1000 -> 0 | AA59: =VLOOKUP($T59,Point_Sources_All!$A$5:$AQ$204,$C$4+19)/1000 -> 0 | AB59: =VLOOKUP($T59,Point_Sources_All!$A$5:$AQ$204,$C$4+22)/1000 -> 0.9166391667 | AC59: =VLOOKUP($T59,Point_Sources_All!$A$5:$AQ$204,$C$4+25)/1000 -> 14.36041667 | AD59: =VLOOKUP($T59,Point_Sources_All!$A$5:$AQ$204,$C$4+28)/1000 -> 0.02448233333 | AE59: =VLOOKUP($T59,Point_Sources_All!$A$5:$AQ$204,$C$4+31)/1000 -> 0.06320766667 | AF59: =VLOOKUP($T59,Point_Sources_All!$A$5:$AQ$204,$C$4+34)/1000 -> 0.003286708333 | AG59: =VLOOKUP($T59,Point_Sources_All!$A$5:$AQ$204,$C$4+37)/1000 -> 0.08906175 | AH59: =VLOOKUP($T59,Point_Sources_All!$A$5:$AQ$204,$C$4+40)/1000 -> 0
D60: 35 | E60: =VLOOKUP($D60,Point_Sources_All!$A$5:$AQ$204,$C$4+1)/1000 -> 86.1535 | F60: =VLOOKUP($D60,Point_Sources_All!$A$5:$AQ$204,$C$4+4)/1000 -> 2.746541667 | G60: =VLOOKUP($D60,Point_Sources_All!$A$5:$AQ$204,$C$4+7)/1000 -> 0.9734616667 | H60: =VLOOKUP($D60,Point_Sources_All!$A$5:$AQ$204,$C$4+10)/1000 -> 7.067058333 | I60: =VLOOKUP($D60,Point_Sources_All!$A$5:$AQ$204,$C$4+13)/1000 -> 0.0414565 | J60: =VLOOKUP($D60,Point_Sources_All!$A$5:$AQ$204,$C$4+16)/1000 -> 0 | K60: =VLOOKUP($D60,Point_Sources_All!$A$5:$AQ$204,$C$4+19)/1000 -> 0 | L60: =VLOOKUP($D60,Point_Sources_All!$A$5:$AQ$204,$C$4+22)/1000 -> 6.756375 | M60: =VLOOKUP($D60,Point_Sources_All!$A$5:$AQ$204,$C$4+25)/1000 -> 0 | N60: =VLOOKUP($D60,Point_Sources_All!$A$5:$AQ$204,$C$4+28)/1000 -> 0.7107691667 | O60: =VLOOKUP($D60,Point_Sources_All!$A$5:$AQ$204,$C$4+31)/1000 -> 3.420316667 | P60: =VLOOKUP($D60,Point_Sources_All!$A$5:$AQ$204,$C$4+34)/1000 -> 0.8499191667 | Q60: =VLOOKUP($D60,Point_Sources_All!$A$5:$AQ$204,$C$4+37)/1000 -> 10.77603333 | R60: =VLOOKUP($D60,Point_Sources_All!$A$5:$AQ$204,$C$4+40)/1000 -> 12.30875 | T60: 85 | U60: =VLOOKUP($T60,Point_Sources_All!$A$5:$AQ$204,$C$4+1)/1000 -> 4.523483333 | V60: =VLOOKUP($T60,Point_Sources_All!$A$5:$AQ$204,$C$4+4)/1000 -> 0 | W60: =VLOOKUP($T60,Point_Sources_All!$A$5:$AQ$204,$C$4+7)/1000 -> 0.5444641667 | X60: =VLOOKUP($T60,Point_Sources_All!$A$5:$AQ$204,$C$4+10)/1000 -> 2.340310833 | Y60: =VLOOKUP($T60,Point_Sources_All!$A$5:$AQ$204,$C$4+13)/1000 -> 0 | Z60: =VLOOKUP($T60,Point_Sources_All!$A$5:$AQ$204,$C$4+16)/1000 -> 0 | AA60: =VLOOKUP($T60,Point_Sources_All!$A$5:$AQ$204,$C$4+19)/1000 -> 0 | AB60: =VLOOKUP($T60,Point_Sources_All!$A$5:$AQ$204,$C$4+22)/1000 -> 0.8899458333 | AC60: =VLOOKUP($T60,Point_Sources_All!$A$5:$AQ$204,$C$4+25)/1000 -> 13.94224167 | AD60: =VLOOKUP($T60,Point_Sources_All!$A$5:$AQ$204,$C$4+28)/1000 -> 0.02455958333 | AE60: =VLOOKUP($T60,Point_Sources_All!$A$5:$AQ$204,$C$4+31)/1000 -> 0.06174183333 | AF60: =VLOOKUP($T60,Point_Sources_All!$A$5:$AQ$204,$C$4+34)/1000 -> 0.003200541667 | AG60: =VLOOKUP($T60,Point_Sources_All!$A$5:$AQ$204,$C$4+37)/1000 -> 0.08655166667 | AH60: =VLOOKUP($T60,Point_Sources_All!$A$5:$AQ$204,$C$4+40)/1000 -> 0
D61: 36 | E61: =VLOOKUP($D61,Point_Sources_All!$A$5:$AQ$204,$C$4+1)/1000 -> 73.01966667 | F61: =VLOOKUP($D61,Point_Sources_All!$A$5:$AQ$204,$C$4+4)/1000 -> 2.757675 | G61: =VLOOKUP($D61,Point_Sources_All!$A$5:$AQ$204,$C$4+7)/1000 -> 0.9434725 | H61: =VLOOKUP($D61,Point_Sources_All!$A$5:$AQ$204,$C$4+10)/1000 -> 7.4707 | I61: =VLOOKUP($D61,Point_Sources_All!$A$5:$AQ$204,$C$4+13)/1000 -> 0.04301333333 | J61: =VLOOKUP($D61,Point_Sources_All!$A$5:$AQ$204,$C$4+16)/1000 -> 0 | K61: =VLOOKUP($D61,Point_Sources_All!$A$5:$AQ$204,$C$4+19)/1000 -> 0 | L61: =VLOOKUP($D61,Point_Sources_All!$A$5:$AQ$204,$C$4+22)/1000 -> 9.284541667 | M61: =VLOOKUP($D61,Point_Sources_All!$A$5:$AQ$204,$C$4+25)/1000 -> 0 | N61: =VLOOKUP($D61,Point_Sources_All!$A$5:$AQ$204,$C$4+28)/1000 -> 0.6581341667 | O61: =VLOOKUP($D61,Point_Sources_All!$A$5:$AQ$204,$C$4+31)/1000 -> 3.216466667 | P61: =VLOOKUP($D61,Point_Sources_All!$A$5:$AQ$204,$C$4+34)/1000 -> 0.6993825 | Q61: =VLOOKUP($D61,Point_Sources_All!$A$5:$AQ$204,$C$4+37)/1000 -> 10.05476667 | R61: =VLOOKUP($D61,Point_Sources_All!$A$5:$AQ$204,$C$4+40)/1000 -> 10.36053333 | T61: 86 | U61: =VLOOKUP($T61,Point_Sources_All!$A$5:$AQ$204,$C$4+1)/1000 -> 4.44575 | V61: =VLOOKUP($T61,Point_Sources_All!$A$5:$AQ$204,$C$4+4)/1000 -> 0 | W61: =VLOOKUP($T61,Point_Sources_All!$A$5:$AQ$204,$C$4+7)/1000 -> 0.5445858333 | X61: =VLOOKUP($T61,Point_Sources_All!$A$5:$AQ$204,$C$4+10)/1000 -> 2.3186 | Y61: =VLOOKUP($T61,Point_Sources_All!$A$5:$AQ$204,$C$4+13)/1000 -> 0 | Z61: =VLOOKUP($T61,Point_Sources_All!$A$5:$AQ$204,$C$4+16)/1000 -> 0 | AA61: =VLOOKUP($T61,Point_Sources_All!$A$5:$AQ$204,$C$4+19)/1000 -> 0 | AB61: =VLOOKUP($T61,Point_Sources_All!$A$5:$AQ$204,$C$4+22)/1000 -> 0.8937875 | AC61: =VLOOKUP($T61,Point_Sources_All!$A$5:$AQ$204,$C$4+25)/1000 -> 14.00260833 | AD61: =VLOOKUP($T61,Point_Sources_All!$A$5:$AQ$204,$C$4+28)/1000 -> 0.02461358333 | AE61: =VLOOKUP($T61,Point_Sources_All!$A$5:$AQ$204,$C$4+31)/1000 -> 0.06114841667 | AF61: =VLOOKUP($T61,Point_Sources_All!$A$5:$AQ$204,$C$4+34)/1000 -> 0.003184125 | AG61: =VLOOKUP($T61,Point_Sources_All!$A$5:$AQ$204,$C$4+37)/1000 -> 0.08585675 | AH61: =VLOOKUP($T61,Point_Sources_All!$A$5:$AQ$204,$C$4+40)/1000 -> 0
D62: 37 | E62: =VLOOKUP($D62,Point_Sources_All!$A$5:$AQ$204,$C$4+1)/1000 -> 63.343 | F62: =VLOOKUP($D62,Point_Sources_All!$A$5:$AQ$204,$C$4+4)/1000 -> 2.704175 | G62: =VLOOKUP($D62,Point_Sources_All!$A$5:$AQ$204,$C$4+7)/1000 -> 0.9138283333 | H62: =VLOOKUP($D62,Point_Sources_All!$A$5:$AQ$204,$C$4+10)/1000 -> 6.42695 | I62: =VLOOKUP($D62,Point_Sources_All!$A$5:$AQ$204,$C$4+13)/1000 -> 0.04377533333 | J62: =VLOOKUP($D62,Point_Sources_All!$A$5:$AQ$204,$C$4+16)/1000 -> 0 | K62: =VLOOKUP($D62,Point_Sources_All!$A$5:$AQ$204,$C$4+19)/1000 -> 0 | L62: =VLOOKUP($D62,Point_Sources_All!$A$5:$AQ$204,$C$4+22)/1000 -> 10.67068333 | M62: =VLOOKUP($D62,Point_Sources_All!$A$5:$AQ$204,$C$4+25)/1000 -> 0 | N62: =VLOOKUP($D62,Point_Sources_All!$A$5:$AQ$204,$C$4+28)/1000 -> 0.604385 | O62: =VLOOKUP($D62,Point_Sources_All!$A$5:$AQ$204,$C$4+31)/1000 -> 3.036166667 | P62: =VLOOKUP($D62,Point_Sources_All!$A$5:$AQ$204,$C$4+34)/1000 -> 0.5604125 | Q62: =VLOOKUP($D62,Point_Sources_All!$A$5:$AQ$204,$C$4+37)/1000 -> 9.323633333 | R62: =VLOOKUP($D62,Point_Sources_All!$A$5:$AQ$204,$C$4+40)/1000 -> 8.343041667 | T62: 87 | U62: =VLOOKUP($T62,Point_Sources_All!$A$5:$AQ$204,$C$4+1)/1000 -> 4.498391667 | V62: =VLOOKUP($T62,Point_Sources_All!$A$5:$AQ$204,$C$4+4)/1000 -> 0 | W62: =VLOOKUP($T62,Point_Sources_All!$A$5:$AQ$204,$C$4+7)/1000 -> 0.5447858333 | X62: =VLOOKUP($T62,Point_Sources_All!$A$5:$AQ$204,$C$4+10)/1000 -> 2.286974667 | Y62: =VLOOKUP($T62,Point_Sources_All!$A$5:$AQ$204,$C$4+13)/1000 -> 0 | Z62: =VLOOKUP($T62,Point_Sources_All!$A$5:$AQ$204,$C$4+16)/1000 -> 0 | AA62: =VLOOKUP($T62,Point_Sources_All!$A$5:$AQ$204,$C$4+19)/1000 -> 0 | AB62: =VLOOKUP($T62,Point_Sources_All!$A$5:$AQ$204,$C$4+22)/1000 -> 0.9044666667 | AC62: =VLOOKUP($T62,Point_Sources_All!$A$5:$AQ$204,$C$4+25)/1000 -> 14.16991667 | AD62: =VLOOKUP($T62,Point_Sources_All!$A$5:$AQ$204,$C$4+28)/1000 -> 0.02463491667 | AE62: =VLOOKUP($T62,Point_Sources_All!$A$5:$AQ$204,$C$4+31)/1000 -> 0.05986716667 | AF62: =VLOOKUP($T62,Point_Sources_All!$A$5:$AQ$204,$C$4+34)/1000 -> 0.003105158333 | AG62: =VLOOKUP($T62,Point_Sources_All!$A$5:$AQ$204,$C$4+37)/1000 -> 0.08319241667 | AH62: =VLOOKUP($T62,Point_Sources_All!$A$5:$AQ$204,$C$4+40)/1000 -> 0
D63: 38 | E63: =VLOOKUP($D63,Point_Sources_All!$A$5:$AQ$204,$C$4+1)/1000 -> 59.40341667 | F63: =VLOOKUP($D63,Point_Sources_All!$A$5:$AQ$204,$C$4+4)/1000 -> 2.6963 | G63: =VLOOKUP($D63,Point_Sources_All!$A$5:$AQ$204,$C$4+7)/1000 -> 0.8847975 | H63: =VLOOKUP($D63,Point_Sources_All!$A$5:$AQ$204,$C$4+10)/1000 -> 5.8128 | I63: =VLOOKUP($D63,Point_Sources_All!$A$5:$AQ$204,$C$4+13)/1000 -> 0.04422291667 | J63: =VLOOKUP($D63,Point_Sources_All!$A$5:$AQ$204,$C$4+16)/1000 -> 0 | K63: =VLOOKUP($D63,Point_Sources_All!$A$5:$AQ$204,$C$4+19)/1000 -> 0 | L63: =VLOOKUP($D63,Point_Sources_All!$A$5:$AQ$204,$C$4+22)/1000 -> 11.52405833 | M63: =VLOOKUP($D63,Point_Sources_All!$A$5:$AQ$204,$C$4+25)/1000 -> 0 | N63: =VLOOKUP($D63,Point_Sources_All!$A$5:$AQ$204,$C$4+28)/1000 -> 0.564415 | O63: =VLOOKUP($D63,Point_Sources_All!$A$5:$AQ$204,$C$4+31)/1000 -> 2.930575 | P63: =VLOOKUP($D63,Point_Sources_All!$A$5:$AQ$204,$C$4+34)/1000 -> 0.4439041667 | Q63: =VLOOKUP($D63,Point_Sources_All!$A$5:$AQ$204,$C$4+37)/1000 -> 8.585575 | R63: =VLOOKUP($D63,Point_Sources_All!$A$5:$AQ$204,$C$4+40)/1000 -> 7.695308333 | T63: 88 | U63: =VLOOKUP($T63,Point_Sources_All!$A$5:$AQ$204,$C$4+1)/1000 -> 4.534283333 | V63: =VLOOKUP($T63,Point_Sources_All!$A$5:$AQ$204,$C$4+4)/1000 -> 0 | W63: =VLOOKUP($T63,Point_Sources_All!$A$5:$AQ$204,$C$4+7)/1000 -> 0.5449108333 | X63: =VLOOKUP($T63,Point_Sources_All!$A$5:$AQ$204,$C$4+10)/1000 -> 2.3707275 | Y63: =VLOOKUP($T63,Point_Sources_All!$A$5:$AQ$204,$C$4+13)/1000 -> 0 | Z63: =VLOOKUP($T63,Point_Sources_All!$A$5:$AQ$204,$C$4+16)/1000 -> 0 | AA63: =VLOOKUP($T63,Point_Sources_All!$A$5:$AQ$204,$C$4+19)/1000 -> 0 | AB63: =VLOOKUP($T63,Point_Sources_All!$A$5:$AQ$204,$C$4+22)/1000 -> 0.8946433333 | AC63: =VLOOKUP($T63,Point_Sources_All!$A$5:$AQ$204,$C$4+25)/1000 -> 14.015925 | AD63: =VLOOKUP($T63,Point_Sources_All!$A$5:$AQ$204,$C$4+28)/1000 -> 0.02429983333 | AE63: =VLOOKUP($T63,Point_Sources_All!$A$5:$AQ$204,$C$4+31)/1000 -> 0.05790708333 | AF63: =VLOOKUP($T63,Point_Sources_All!$A$5:$AQ$204,$C$4+34)/1000 -> 0.003014616667 | AG63: =VLOOKUP($T63,Point_Sources_All!$A$5:$AQ$204,$C$4+37)/1000 -> 0.0818225 | AH63: =VLOOKUP($T63,Point_Sources_All!$A$5:$AQ$204,$C$4+40)/1000 -> 0
D64: 39 | E64: =VLOOKUP($D64,Point_Sources_All!$A$5:$AQ$204,$C$4+1)/1000 -> 56.94816667 | F64: =VLOOKUP($D64,Point_Sources_All!$A$5:$AQ$204,$C$4+4)/1000 -> 2.746066667 | G64: =VLOOKUP($D64,Point_Sources_All!$A$5:$AQ$204,$C$4+7)/1000 -> 0.8589575 | H64: =VLOOKUP($D64,Point_Sources_All!$A$5:$AQ$204,$C$4+10)/1000 -> 5.661791667 | I64: =VLOOKUP($D64,Point_Sources_All!$A$5:$AQ$204,$C$4+13)/1000 -> 0.044903 | J64: =VLOOKUP($D64,Point_Sources_All!$A$5:$AQ$204,$C$4+16)/1000 -> 0 | K64: =VLOOKUP($D64,Point_Sources_All!$A$5:$AQ$204,$C$4+19)/1000 -> 0 | L64: =VLOOKUP($D64,Point_Sources_All!$A$5:$AQ$204,$C$4+22)/1000 -> 12.35790833 | M64: =VLOOKUP($D64,Point_Sources_All!$A$5:$AQ$204,$C$4+25)/1000 -> 0 | N64: =VLOOKUP($D64,Point_Sources_All!$A$5:$AQ$204,$C$4+28)/1000 -> 0.556065 | O64: =VLOOKUP($D64,Point_Sources_All!$A$5:$AQ$204,$C$4+31)/1000 -> 3.000741667 | P64: =VLOOKUP($D64,Point_Sources_All!$A$5:$AQ$204,$C$4+34)/1000 -> 0.3636358333 | Q64: =VLOOKUP($D64,Point_Sources_All!$A$5:$AQ$204,$C$4+37)/1000 -> 8.510266667 | R64: =VLOOKUP($D64,Point_Sources_All!$A$5:$AQ$204,$C$4+40)/1000 -> 7.855258333 | T64: 89 | U64: =VLOOKUP($T64,Point_Sources_All!$A$5:$AQ$204,$C$4+1)/1000 -> 4.485266667 | V64: =VLOOKUP($T64,Point_Sources_All!$A$5:$AQ$204,$C$4+4)/1000 -> 0 | W64: =VLOOKUP($T64,Point_Sources_All!$A$5:$AQ$204,$C$4+7)/1000 -> 0.5436208333 | X64: =VLOOKUP($T64,Point_Sources_All!$A$5:$AQ$204,$C$4+10)/1000 -> 2.318606667 | Y64: =VLOOKUP($T64,Point_Sources_All!$A$5:$AQ$204,$C$4+13)/1000 -> 0 | Z64: =VLOOKUP($T64,Point_Sources_All!$A$5:$AQ$204,$C$4+16)/1000 -> 0 | AA64: =VLOOKUP($T64,Point_Sources_All!$A$5:$AQ$204,$C$4+19)/1000 -> 0 | AB64: =VLOOKUP($T64,Point_Sources_All!$A$5:$AQ$204,$C$4+22)/1000 -> 0.8775308333 | AC64: =VLOOKUP($T64,Point_Sources_All!$A$5:$AQ$204,$C$4+25)/1000 -> 13.74775 | AD64: =VLOOKUP($T64,Point_Sources_All!$A$5:$AQ$204,$C$4+28)/1000 -> 0.02464808333 | AE64: =VLOOKUP($T64,Point_Sources_All!$A$5:$AQ$204,$C$4+31)/1000 -> 0.05783716667 | AF64: =VLOOKUP($T64,Point_Sources_All!$A$5:$AQ$204,$C$4+34)/1000 -> 0.00303635 | AG64: =VLOOKUP($T64,Point_Sources_All!$A$5:$AQ$204,$C$4+37)/1000 -> 0.08126908333 | AH64: =VLOOKUP($T64,Point_Sources_All!$A$5:$AQ$204,$C$4+40)/1000 -> 0
D65: 40 | E65: =VLOOKUP($D65,Point_Sources_All!$A$5:$AQ$204,$C$4+1)/1000 -> 54.3525 | F65: =VLOOKUP($D65,Point_Sources_All!$A$5:$AQ$204,$C$4+4)/1000 -> 2.7959 | G65: =VLOOKUP($D65,Point_Sources_All!$A$5:$AQ$204,$C$4+7)/1000 -> 0.8365083333 | H65: =VLOOKUP($D65,Point_Sources_All!$A$5:$AQ$204,$C$4+10)/1000 -> 5.1959145 | I65: =VLOOKUP($D65,Point_Sources_All!$A$5:$AQ$204,$C$4+13)/1000 -> 0.045075 | J65: =VLOOKUP($D65,Point_Sources_All!$A$5:$AQ$204,$C$4+16)/1000 -> 0 | K65: =VLOOKUP($D65,Point_Sources_All!$A$5:$AQ$204,$C$4+19)/1000 -> 0 | L65: =VLOOKUP($D65,Point_Sources_All!$A$5:$AQ$204,$C$4+22)/1000 -> 13.10211667 | M65: =VLOOKUP($D65,Point_Sources_All!$A$5:$AQ$204,$C$4+25)/1000 -> 0 | N65: =VLOOKUP($D65,Point_Sources_All!$A$5:$AQ$204,$C$4+28)/1000 -> 0.5341691667 | O65: =VLOOKUP($D65,Point_Sources_All!$A$5:$AQ$204,$C$4+31)/1000 -> 2.849158333 | P65: =VLOOKUP($D65,Point_Sources_All!$A$5:$AQ$204,$C$4+34)/1000 -> 0.2653425 | Q65: =VLOOKUP($D65,Point_Sources_All!$A$5:$AQ$204,$C$4+37)/1000 -> 8.118866667 | R65: =VLOOKUP($D65,Point_Sources_All!$A$5:$AQ$204,$C$4+40)/1000 -> 7.140116667 | T65: 90 | U65: =VLOOKUP($T65,Point_Sources_All!$A$5:$AQ$204,$C$4+1)/1000 -> 4.529858333 | V65: =VLOOKUP($T65,Point_Sources_All!$A$5:$AQ$204,$C$4+4)/1000 -> 0 | W65: =VLOOKUP($T65,Point_Sources_All!$A$5:$AQ$204,$C$4+7)/1000 -> 0.5438066667 | X65: =VLOOKUP($T65,Point_Sources_All!$A$5:$AQ$204,$C$4+10)/1000 -> 2.371439167 | Y65: =VLOOKUP($T65,Point_Sources_All!$A$5:$AQ$204,$C$4+13)/1000 -> 0 | Z65: =VLOOKUP($T65,Point_Sources_All!$A$5:$AQ$204,$C$4+16)/1000 -> 0 | AA65: =VLOOKUP($T65,Point_Sources_All!$A$5:$AQ$204,$C$4+19)/1000 -> 0 | AB65: =VLOOKUP($T65,Point_Sources_All!$A$5:$AQ$204,$C$4+22)/1000 -> 0.928835 | AC65: =VLOOKUP($T65,Point_Sources_All!$A$5:$AQ$204,$C$4+25)/1000 -> 14.5518 | AD65: =VLOOKUP($T65,Point_Sources_All!$A$5:$AQ$204,$C$4+28)/1000 -> 0.0243965 | AE65: =VLOOKUP($T65,Point_Sources_All!$A$5:$AQ$204,$C$4+31)/1000 -> 0.05647533333 | AF65: =VLOOKUP($T65,Point_Sources_All!$A$5:$AQ$204,$C$4+34)/1000 -> 0.002943725 | AG65: =VLOOKUP($T65,Point_Sources_All!$A$5:$AQ$204,$C$4+37)/1000 -> 0.078884 | AH65: =VLOOKUP($T65,Point_Sources_All!$A$5:$AQ$204,$C$4+40)/1000 -> 0
D66: 41 | E66: =VLOOKUP($D66,Point_Sources_All!$A$5:$AQ$204,$C$4+1)/1000 -> 55.5075 | F66: =VLOOKUP($D66,Point_Sources_All!$A$5:$AQ$204,$C$4+4)/1000 -> 2.866908333 | G66: =VLOOKUP($D66,Point_Sources_All!$A$5:$AQ$204,$C$4+7)/1000 -> 0.8099916667 | H66: =VLOOKUP($D66,Point_Sources_All!$A$5:$AQ$204,$C$4+10)/1000 -> 4.850480833 | I66: =VLOOKUP($D66,Point_Sources_All!$A$5:$AQ$204,$C$4+13)/1000 -> 0.04535808333 | J66: =VLOOKUP($D66,Point_Sources_All!$A$5:$AQ$204,$C$4+16)/1000 -> 0 | K66: =VLOOKUP($D66,Point_Sources_All!$A$5:$AQ$204,$C$4+19)/1000 -> 0 | L66: =VLOOKUP($D66,Point_Sources_All!$A$5:$AQ$204,$C$4+22)/1000 -> 13.778325 | M66: =VLOOKUP($D66,Point_Sources_All!$A$5:$AQ$204,$C$4+25)/1000 -> 0 | N66: =VLOOKUP($D66,Point_Sources_All!$A$5:$AQ$204,$C$4+28)/1000 -> 0.5600266667 | O66: =VLOOKUP($D66,Point_Sources_All!$A$5:$AQ$204,$C$4+31)/1000 -> 2.88805 | P66: =VLOOKUP($D66,Point_Sources_All!$A$5:$AQ$204,$C$4+34)/1000 -> 0.1882458333 | Q66: =VLOOKUP($D66,Point_Sources_All!$A$5:$AQ$204,$C$4+37)/1000 -> 8.454775 | R66: =VLOOKUP($D66,Point_Sources_All!$A$5:$AQ$204,$C$4+40)/1000 -> 8.416575
D67: 42 | E67: =VLOOKUP($D67,Point_Sources_All!$A$5:$AQ$204,$C$4+1)/1000 -> 56.47566667 | F67: =VLOOKUP($D67,Point_Sources_All!$A$5:$AQ$204,$C$4+4)/1000 -> 2.8149 | G67: =VLOOKUP($D67,Point_Sources_All!$A$5:$AQ$204,$C$4+7)/1000 -> 0.7822916667 | H67: =VLOOKUP($D67,Point_Sources_All!$A$5:$AQ$204,$C$4+10)/1000 -> 4.436716667 | I67: =VLOOKUP($D67,Point_Sources_All!$A$5:$AQ$204,$C$4+13)/1000 -> 0.04541333333 | J67: =VLOOKUP($D67,Point_Sources_All!$A$5:$AQ$204,$C$4+16)/1000 -> 0 | K67: =VLOOKUP($D67,Point_Sources_All!$A$5:$AQ$204,$C$4+19)/1000 -> 0 | L67: =VLOOKUP($D67,Point_Sources_All!$A$5:$AQ$204,$C$4+22)/1000 -> 14.25568333 | M67: =VLOOKUP($D67,Point_Sources_All!$A$5:$AQ$204,$C$4+25)/1000 -> 0 | N67: =VLOOKUP($D67,Point_Sources_All!$A$5:$AQ$204,$C$4+28)/1000 -> 0.5815008333 | O67: =VLOOKUP($D67,Point_Sources_All!$A$5:$AQ$204,$C$4+31)/1000 -> 2.991925 | P67: =VLOOKUP($D67,Point_Sources_All!$A$5:$AQ$204,$C$4+34)/1000 -> 0.1599483333 | Q67: =VLOOKUP($D67,Point_Sources_All!$A$5:$AQ$204,$C$4+37)/1000 -> 9.085583333 | R67: =VLOOKUP($D67,Point_Sources_All!$A$5:$AQ$204,$C$4+40)/1000 -> 9.569691667
D68: 43 | E68: =VLOOKUP($D68,Point_Sources_All!$A$5:$AQ$204,$C$4+1)/1000 -> 53.73683333 | F68: =VLOOKUP($D68,Point_Sources_All!$A$5:$AQ$204,$C$4+4)/1000 -> 2.834433333 | G68: =VLOOKUP($D68,Point_Sources_All!$A$5:$AQ$204,$C$4+7)/1000 -> 0.7586425 | H68: =VLOOKUP($D68,Point_Sources_All!$A$5:$AQ$204,$C$4+10)/1000 -> 4.0879025 | I68: =VLOOKUP($D68,Point_Sources_All!$A$5:$AQ$204,$C$4+13)/1000 -> 0.04572008333 | J68: =VLOOKUP($D68,Point_Sources_All!$A$5:$AQ$204,$C$4+16)/1000 -> 0 | K68: =VLOOKUP($D68,Point_Sources_All!$A$5:$AQ$204,$C$4+19)/1000 -> 0 | L68: =VLOOKUP($D68,Point_Sources_All!$A$5:$AQ$204,$C$4+22)/1000 -> 14.22123333 | M68: =VLOOKUP($D68,Point_Sources_All!$A$5:$AQ$204,$C$4+25)/1000 -> 0 | N68: =VLOOKUP($D68,Point_Sources_All!$A$5:$AQ$204,$C$4+28)/1000 -> 0.5477916667 | O68: =VLOOKUP($D68,Point_Sources_All!$A$5:$AQ$204,$C$4+31)/1000 -> 3.02835 | P68: =VLOOKUP($D68,Point_Sources_All!$A$5:$AQ$204,$C$4+34)/1000 -> 0.1842308333 | Q68: =VLOOKUP($D68,Point_Sources_All!$A$5:$AQ$204,$C$4+37)/1000 -> 8.538658333 | R68: =VLOOKUP($D68,Point_Sources_All!$A$5:$AQ$204,$C$4+40)/1000 -> 8.469866667
D69: 44 | E69: =VLOOKUP($D69,Point_Sources_All!$A$5:$AQ$204,$C$4+1)/1000 -> 51.57583333 | F69: =VLOOKUP($D69,Point_Sources_All!$A$5:$AQ$204,$C$4+4)/1000 -> 2.793533333 | G69: =VLOOKUP($D69,Point_Sources_All!$A$5:$AQ$204,$C$4+7)/1000 -> 0.7353483333 | H69: =VLOOKUP($D69,Point_Sources_All!$A$5:$AQ$204,$C$4+10)/1000 -> 3.6454885 | I69: =VLOOKUP($D69,Point_Sources_All!$A$5:$AQ$204,$C$4+13)/1000 -> 0.04593725 | J69: =VLOOKUP($D69,Point_Sources_All!$A$5:$AQ$204,$C$4+16)/1000 -> 0 | K69: =VLOOKUP($D69,Point_Sources_All!$A$5:$AQ$204,$C$4+19)/1000 -> 0 | L69: =VLOOKUP($D69,Point_Sources_All!$A$5:$AQ$204,$C$4+22)/1000 -> 14.19018333 | M69: =VLOOKUP($D69,Point_Sources_All!$A$5:$AQ$204,$C$4+25)/1000 -> 0 | N69: =VLOOKUP($D69,Point_Sources_All!$A$5:$AQ$204,$C$4+28)/1000 -> 0.5169508333 | O69: =VLOOKUP($D69,Point_Sources_All!$A$5:$AQ$204,$C$4+31)/1000 -> 3.050791667 | P69: =VLOOKUP($D69,Point_Sources_All!$A$5:$AQ$204,$C$4+34)/1000 -> 0.2400691667 | Q69: =VLOOKUP($D69,Point_Sources_All!$A$5:$AQ$204,$C$4+37)/1000 -> 8.030341667 | R69: =VLOOKUP($D69,Point_Sources_All!$A$5:$AQ$204,$C$4+40)/1000 -> 8.272633333
D70: 45 | E70: =VLOOKUP($D70,Point_Sources_All!$A$5:$AQ$204,$C$4+1)/1000 -> 50.34708333 | F70: =VLOOKUP($D70,Point_Sources_All!$A$5:$AQ$204,$C$4+4)/1000 -> 2.769466667 | G70: =VLOOKUP($D70,Point_Sources_All!$A$5:$AQ$204,$C$4+7)/1000 -> 0.7113766667 | H70: =VLOOKUP($D70,Point_Sources_All!$A$5:$AQ$204,$C$4+10)/1000 -> 3.526254167 | I70: =VLOOKUP($D70,Point_Sources_All!$A$5:$AQ$204,$C$4+13)/1000 -> 0.046084 | J70: =VLOOKUP($D70,Point_Sources_All!$A$5:$AQ$204,$C$4+16)/1000 -> 0 | K70: =VLOOKUP($D70,Point_Sources_All!$A$5:$AQ$204,$C$4+19)/1000 -> 0 | L70: =VLOOKUP($D70,Point_Sources_All!$A$5:$AQ$204,$C$4+22)/1000 -> 14.14500833 | M70: =VLOOKUP($D70,Point_Sources_All!$A$5:$AQ$204,$C$4+25)/1000 -> 0 | N70: =VLOOKUP($D70,Point_Sources_All!$A$5:$AQ$204,$C$4+28)/1000 -> 0.5007266667 | O70: =VLOOKUP($D70,Point_Sources_All!$A$5:$AQ$204,$C$4+31)/1000 -> 3.204133333 | P70: =VLOOKUP($D70,Point_Sources_All!$A$5:$AQ$204,$C$4+34)/1000 -> 0.2383308333 | Q70: =VLOOKUP($D70,Point_Sources_All!$A$5:$AQ$204,$C$4+37)/1000 -> 7.5481 | R70: =VLOOKUP($D70,Point_Sources_All!$A$5:$AQ$204,$C$4+40)/1000 -> 8.45815
D71: 46 | E71: =VLOOKUP($D71,Point_Sources_All!$A$5:$AQ$204,$C$4+1)/1000 -> 49.16366667 | F71: =VLOOKUP($D71,Point_Sources_All!$A$5:$AQ$204,$C$4+4)/1000 -> 2.776066667 | G71: =VLOOKUP($D71,Point_Sources_All!$A$5:$AQ$204,$C$4+7)/1000 -> 0.68407 | H71: =VLOOKUP($D71,Point_Sources_All!$A$5:$AQ$204,$C$4+10)/1000 -> 3.520438333 | I71: =VLOOKUP($D71,Point_Sources_All!$A$5:$AQ$204,$C$4+13)/1000 -> 0.04617316667 | J71: =VLOOKUP($D71,Point_Sources_All!$A$5:$AQ$204,$C$4+16)/1000 -> 0 | K71: =VLOOKUP($D71,Point_Sources_All!$A$5:$AQ$204,$C$4+19)/1000 -> 0 | L71: =VLOOKUP($D71,Point_Sources_All!$A$5:$AQ$204,$C$4+22)/1000 -> 14.69415 | M71: =VLOOKUP($D71,Point_Sources_All!$A$5:$AQ$204,$C$4+25)/1000 -> 0 | N71: =VLOOKUP($D71,Point_Sources_All!$A$5:$AQ$204,$C$4+28)/1000 -> 0.4757233333 | O71: =VLOOKUP($D71,Point_Sources_All!$A$5:$AQ$204,$C$4+31)/1000 -> 3.3854 | P71: =VLOOKUP($D71,Point_Sources_All!$A$5:$AQ$204,$C$4+34)/1000 -> 0.2191 | Q71: =VLOOKUP($D71,Point_Sources_All!$A$5:$AQ$204,$C$4+37)/1000 -> 7.185391667 | R71: =VLOOKUP($D71,Point_Sources_All!$A$5:$AQ$204,$C$4+40)/1000 -> 8.451308333
D72: 47 | E72: =VLOOKUP($D72,Point_Sources_All!$A$5:$AQ$204,$C$4+1)/1000 -> 48.50983333 | F72: =VLOOKUP($D72,Point_Sources_All!$A$5:$AQ$204,$C$4+4)/1000 -> 2.78395 | G72: =VLOOKUP($D72,Point_Sources_All!$A$5:$AQ$204,$C$4+7)/1000 -> 0.6628075 | H72: =VLOOKUP($D72,Point_Sources_All!$A$5:$AQ$204,$C$4+10)/1000 -> 3.123539833 | I72: =VLOOKUP($D72,Point_Sources_All!$A$5:$AQ$204,$C$4+13)/1000 -> 0.04622333333 | J72: =VLOOKUP($D72,Point_Sources_All!$A$5:$AQ$204,$C$4+16)/1000 -> 0 | K72: =VLOOKUP($D72,Point_Sources_All!$A$5:$AQ$204,$C$4+19)/1000 -> 0 | L72: =VLOOKUP($D72,Point_Sources_All!$A$5:$AQ$204,$C$4+22)/1000 -> 14.57275 | M72: =VLOOKUP($D72,Point_Sources_All!$A$5:$AQ$204,$C$4+25)/1000 -> 0 | N72: =VLOOKUP($D72,Point_Sources_All!$A$5:$AQ$204,$C$4+28)/1000 -> 0.4609458333 | O72: =VLOOKUP($D72,Point_Sources_All!$A$5:$AQ$204,$C$4+31)/1000 -> 3.522216667 | P72: =VLOOKUP($D72,Point_Sources_All!$A$5:$AQ$204,$C$4+34)/1000 -> 0.18222425 | Q72: =VLOOKUP($D72,Point_Sources_All!$A$5:$AQ$204,$C$4+37)/1000 -> 6.776225 | R72: =VLOOKUP($D72,Point_Sources_All!$A$5:$AQ$204,$C$4+40)/1000 -> 8.289008333
D73: 48 | E73: =VLOOKUP($D73,Point_Sources_All!$A$5:$AQ$204,$C$4+1)/1000 -> 46.843 | F73: =VLOOKUP($D73,Point_Sources_All!$A$5:$AQ$204,$C$4+4)/1000 -> 2.652866667 | G73: =VLOOKUP($D73,Point_Sources_All!$A$5:$AQ$204,$C$4+7)/1000 -> 0.6405016667 | H73: =VLOOKUP($D73,Point_Sources_All!$A$5:$AQ$204,$C$4+10)/1000 -> 2.9806575 | I73: =VLOOKUP($D73,Point_Sources_All!$A$5:$AQ$204,$C$4+13)/1000 -> 0.04590383333 | J73: =VLOOKUP($D73,Point_Sources_All!$A$5:$AQ$204,$C$4+16)/1000 -> 0 | K73: =VLOOKUP($D73,Point_Sources_All!$A$5:$AQ$204,$C$4+19)/1000 -> 0 | L73: =VLOOKUP($D73,Point_Sources_All!$A$5:$AQ$204,$C$4+22)/1000 -> 13.728875 | M73: =VLOOKUP($D73,Point_Sources_All!$A$5:$AQ$204,$C$4+25)/1000 -> 0 | N73: =VLOOKUP($D73,Point_Sources_All!$A$5:$AQ$204,$C$4+28)/1000 -> 0.4485416667 | O73: =VLOOKUP($D73,Point_Sources_All!$A$5:$AQ$204,$C$4+31)/1000 -> 3.519516667 | P73: =VLOOKUP($D73,Point_Sources_All!$A$5:$AQ$204,$C$4+34)/1000 -> 0.1598385 | Q73: =VLOOKUP($D73,Point_Sources_All!$A$5:$AQ$204,$C$4+37)/1000 -> 6.539066667 | R73: =VLOOKUP($D73,Point_Sources_All!$A$5:$AQ$204,$C$4+40)/1000 -> 8.894583333
D74: 49 | E74: =VLOOKUP($D74,Point_Sources_All!$A$5:$AQ$204,$C$4+1)/1000 -> 43.449 | F74: =VLOOKUP($D74,Point_Sources_All!$A$5:$AQ$204,$C$4+4)/1000 -> 2.509358333 | G74: =VLOOKUP($D74,Point_Sources_All!$A$5:$AQ$204,$C$4+7)/1000 -> 0.6229183333 | H74: =VLOOKUP($D74,Point_Sources_All!$A$5:$AQ$204,$C$4+10)/1000 -> 3.0700875 | I74: =VLOOKUP($D74,Point_Sources_All!$A$5:$AQ$204,$C$4+13)/1000 -> 0.04507625 | J74: =VLOOKUP($D74,Point_Sources_All!$A$5:$AQ$204,$C$4+16)/1000 -> 0 | K74: =VLOOKUP($D74,Point_Sources_All!$A$5:$AQ$204,$C$4+19)/1000 -> 0 | L74: =VLOOKUP($D74,Point_Sources_All!$A$5:$AQ$204,$C$4+22)/1000 -> 13.128225 | M74: =VLOOKUP($D74,Point_Sources_All!$A$5:$AQ$204,$C$4+25)/1000 -> 0 | N74: =VLOOKUP($D74,Point_Sources_All!$A$5:$AQ$204,$C$4+28)/1000 -> 0.416465 | O74: =VLOOKUP($D74,Point_Sources_All!$A$5:$AQ$204,$C$4+31)/1000 -> 3.378766667 | P74: =VLOOKUP($D74,Point_Sources_All!$A$5:$AQ$204,$C$4+34)/1000 -> 0.1386415833 | Q74: =VLOOKUP($D74,Point_Sources_All!$A$5:$AQ$204,$C$4+37)/1000 -> 5.900183333 | R74: =VLOOKUP($D74,Point_Sources_All!$A$5:$AQ$204,$C$4+40)/1000 -> 7.281933333
D75: 50 | E75: =VLOOKUP($D75,Point_Sources_All!$A$5:$AQ$204,$C$4+1)/1000 -> 40.60183333 | F75: =VLOOKUP($D75,Point_Sources_All!$A$5:$AQ$204,$C$4+4)/1000 -> 2.1075625 | G75: =VLOOKUP($D75,Point_Sources_All!$A$5:$AQ$204,$C$4+7)/1000 -> 0.60609 | H75: =VLOOKUP($D75,Point_Sources_All!$A$5:$AQ$204,$C$4+10)/1000 -> 2.786965333 | I75: =VLOOKUP($D75,Point_Sources_All!$A$5:$AQ$204,$C$4+13)/1000 -> 0.04364133333 | J75: =VLOOKUP($D75,Point_Sources_All!$A$5:$AQ$204,$C$4+16)/1000 -> 0 | K75: =VLOOKUP($D75,Point_Sources_All!$A$5:$AQ$204,$C$4+19)/1000 -> 0 | L75: =VLOOKUP($D75,Point_Sources_All!$A$5:$AQ$204,$C$4+22)/1000 -> 10.8829 | M75: =VLOOKUP($D75,Point_Sources_All!$A$5:$AQ$204,$C$4+25)/1000 -> 0 | N75: =VLOOKUP($D75,Point_Sources_All!$A$5:$AQ$204,$C$4+28)/1000 -> 0.386775 | O75: =VLOOKUP($D75,Point_Sources_All!$A$5:$AQ$204,$C$4+31)/1000 -> 3.191541667 | P75: =VLOOKUP($D75,Point_Sources_All!$A$5:$AQ$204,$C$4+34)/1000 -> 0.1336823333 | Q75: =VLOOKUP($D75,Point_Sources_All!$A$5:$AQ$204,$C$4+37)/1000 -> 5.536083333 | R75: =VLOOKUP($D75,Point_Sources_All!$A$5:$AQ$204,$C$4+40)/1000 -> 6.93695

Sheet Point_Sources_All
B1: Values shown for constituent selected on PlotControl tab
B2: Total | E2: Runoff | H2: Groundwater | K2: East Pit wetland | N2: East Pit Porewater | Q2: CPS Return Water | T2: In-pit Blasted Ore | W2: Cat 1 Stockpile (to pit) | Z2: Cat 1 Stockpile (to WWTF) | AC2: Cat 1 Wallrock | AF2: Cat 2/3 Wallrock | AI2: Cat 4 Wallrock | AL2: Ore Wallrock | AO2: Tailings Basin Pumping
B3: Annual Constituent Loading | E3: Annual Constituent Loading | H3: Annual Constituent Loading | K3: Annual Constituent Loading | N3: Annual Constituent Loading | Q3: Annual Constituent Loading | T3: Annual Constituent Loading | W3: Annual Constituent Loading | Z3: Annual Constituent Loading | AC3: Annual Constituent Loading | AF3: Annual Constituent Loading | AI3: Annual Constituent Loading | AL3: Annual Constituent Loading | AO3: Annual Constituent Loading
A4: Time | B4: P10 | C4: P50 | D4: P90 | E4: P10 | F4: P50 | G4: P90 | H4: P10 | I4: P50 | J4: P90 | K4: P10 | L4: P50 | M4: P90 | N4: P10 | O4: P50 | P4: P90 | Q4: P10 | R4: P50 | S4: P90 | T4: P10 | U4: P50 | V4: P90 | W4: P10 | X4: P50 | Y4: P90 | Z4: P10 | AA4: P50 | AB4: P90 | AC4: P10 | AD4: P50 | AE4: P90 | AF4: P10 | AG4: P50 | AH4: P90 | AI4: P10 | AJ4: P50 | AK4: P90 | AL4: P10 | AM4: P50 | AN4: P90 | AO4: P10 | AP4: P50 | AQ4: P90
A5: 1 | B5: =AVERAGE(OFFSET(Total!$C$10,12*($A5-1),4*(PlotControl!$C$6-1),12,1)) -> 12162.21667 | C5: =AVERAGE(OFFSET(Total!$D$10,12*($A5-1),4*(PlotControl!$C$6-1),12,1)) -> 20417.2 | D5: =AVERAGE(OFFSET(Total!$E$10,12*($A5-1),4*(PlotControl!$C$6-1),12,1)) -> 33684.24167 | E5: =AVERAGE(OFFSET(RO!$C$10,12*($A5-1),4*(PlotControl!$C$6-1),12,1)) -> 0 | F5: =AVERAGE(OFFSET(RO!$D$10,12*($A5-1),4*(PlotControl!$C$6-1),12,1)) -> 0 | G5: =AVERAGE(OFFSET(RO!$E$10,12*($A5-1),4*(PlotControl!$C$6-1),12,1)) -> 0 | H5: =AVERAGE(OFFSET(GW!$C$10,12*($A5-1),4*(PlotControl!$C$6-1),12,1)) -> 0 | I5: =AVERAGE(OFFSET(GW!$D$10,12*($A5-1),4*(PlotControl!$C$6-1),12,1)) -> 0 | J5: =AVERAGE(OFFSET(GW!$E$10,12*($A5-1),4*(PlotControl!$C$6-1),12,1)) -> 0 | K5: =AVERAGE(OFFSET(Wetland!$C$10,12*($A5-1),4*(PlotControl!$C$6-1),12,1)) -> 0 | L5: =AVERAGE(OFFSET(Wetland!$D$10,12*($A5-1),4*(PlotControl!$C$6-1),12,1)) -> 0 | M5: =AVERAGE(OFFSET(Wetland!$E$10,12*($A5-1),4*(PlotControl!$C$6-1),12,1)) -> 0 | N5: =AVERAGE(OFFSET(Pore!$C$10,12*($A5-1),4*(PlotControl!$C$6-1),12,1)) -> 0 | O5: =AVERAGE(OFFSET(Pore!$D$10,12*($A5-1),4*(PlotControl!$C$6-1),12,1)) -> 0 | P5: =AVERAGE(OFFSET(Pore!$E$10,12*($A5-1),4*(PlotControl!$C$6-1),12,1)) -> 0 | Q5: =AVERAGE(OFFSET(CPS!$C$10,12*($A5-1),4*(PlotControl!$C$6-1),12,1)) -> 0 | R5: =AVERAGE(OFFSET(CPS!$D$10,12*($A5-1),4*(PlotControl!$C$6-1),12,1)) -> 0 | S5: =AVERAGE(OFFSET(CPS!$E$10,12*($A5-1),4*(PlotControl!$C$6-1),12,1)) -> 0 | T5: =AVERAGE(OFFSET(Blast!$C$10,12*($A5-1),4*(PlotControl!$C$6-1),12,1)) -> 9571.783333 | U5: =AVERAGE(OFFSET(Blast!$D$10,12*($A5-1),4*(PlotControl!$C$6-1),12,1)) -> 17723.23333 | V5: =AVERAGE(OFFSET(Blast!$E$10,12*($A5-1),4*(PlotControl!$C$6-1),12,1)) -> 31233.04167 | W5: =AVERAGE(OFFSET(Cat1SP!$C$10,12*($A5-1),4*(PlotControl!$C$6-1),12,1)) -> 752.4416667 | X5: =AVERAGE(OFFSET(Cat1SP!$D$10,12*($A5-1),4*(PlotControl!$C$6-1),12,1)) -> 2143.910833 | Y5: =AVERAGE(OFFSET(Cat1SP!$E$10,12*($A5-1),4*(PlotControl!$C$6-1),12,1)) -> 5100.983333 | Z5: =AVERAGE(OFFSET(Cat1SP_WWTF!$C$10,12*($A5-1),4*(PlotControl!$C$6-1),12,1)) -> 0 | AA5: =AVERAGE(OFFSET(Cat1SP_WWTF!$D$10,12*($A5-1),4*(PlotControl!$C$6-1),12,1)) -> 0 | AB5: =AVERAGE(OFFSET(Cat1SP_WWTF!$E$10,12*($A5-1),4*(PlotControl!$C$6-1),12,1)) -> 0 | AC5: =AVERAGE(OFFSET(Cat1wall!$C$10,12*($A5-1),4*(PlotControl!$C$6-1),12,1)) -> 0 | AD5: =AVERAGE(OFFSET(Cat1wall!$D$10,12*($A5-1),4*(PlotControl!$C$6-1),12,1)) -> 0 | AE5: =AVERAGE(OFFSET(Cat1wall!$E$10,12*($A5-1),4*(PlotControl!$C$6-1),12,1)) -> 0 | AF5: =AVERAGE(OFFSET(Cat23wall!$C$10,12*($A5-1),4*(PlotControl!$C$6-1),12,1)) -> 0 | AG5: =AVERAGE(OFFSET(Cat23wall!$D$10,12*($A5-1),4*(PlotControl!$C$6-1),12,1)) -> 0 | AH5: =AVERAGE(OFFSET(Cat23wall!$E$10,12*($A5-1),4*(PlotControl!$C$6-1),12,1)) -> 0 | AI5: =AVERAGE(OFFSET(Cat4wall!$C$10,12*($A5-1),4*(PlotControl!$C$6-1),12,1)) -> 0 | AJ5: =AVERAGE(OFFSET(Cat4wall!$D$10,12*($A5-1),4*(PlotControl!$C$6-1),12,1)) -> 0 | AK5: =AVERAGE(OFFSET(Cat4wall!$E$10,12*($A5-1),4*(PlotControl!$C$6-1),12,1)) -> 0 | AL5: =AVERAGE(OFFSET(Orewall!$C$10,12*($A5-1),4*(PlotControl!$C$6-1),12,1)) -> 0 | AM5: =AVERAGE(OFFSET(Orewall!$D$10,12*($A5-1),4*(PlotControl!$C$6-1),12,1)) -> 0 | AN5: =AVERAGE(OFFSET(Orewall!$E$10,12*($A5-1),4*(PlotControl!$C$6-1),12,1)) -> 0 | AO5: =AVERAGE(OFFSET(TBPump!$C$10,12*($A5-1),4*(PlotControl!$C$6-1),12,1)) -> 0 | AP5: =AVERAGE(OFFSET(TBPump!$D$10,12*($A5-1),4*(PlotControl!$C$6-1),12,1)) -> 0 | AQ5: =AVERAGE(OFFSET(TBPump!$E$10,12*($A5-1),4*(PlotControl!$C$6-1),12,1)) -> 0
A6: 2 | B6: =AVERAGE(OFFSET(Total!$C$10,12*($A6-1),4*(PlotControl!$C$6-1),12,1)) -> 50693.33333 | C6: =AVERAGE(OFFSET(Total!$D$10,12*($A6-1),4*(PlotControl!$C$6-1),12,1)) -> 92507.33333 | D6: =AVERAGE(OFFSET(Total!$E$10,12*($A6-1),4*(PlotControl!$C$6-1),12,1)) -> 146742.6667 | E6: =AVERAGE(OFFSET(RO!$C$10,12*($A6-1),4*(PlotControl!$C$6-1),12,1)) -> 0 | F6: =AVERAGE(OFFSET(RO!$D$10,12*($A6-1),4*(PlotControl!$C$6-1),12,1)) -> 0 | G6: =AVERAGE(OFFSET(RO!$E$10,12*($A6-1),4*(PlotControl!$C$6-1),12,1)) -> 0 | H6: =AVERAGE(OFFSET(GW!$C$10,12*($A6-1),4*(PlotControl!$C$6-1),12,1)) -> 412.07925 | I6: =AVERAGE(OFFSET(GW!$D$10,12*($A6-1),4*(PlotControl!$C$6-1),12,1)) -> 485.0563333 | J6: =AVERAGE(OFFSET(GW!$E$10,12*($A6-1),4*(PlotControl!$C$6-1),12,1)) -> 705.72 | K6: =AVERAGE(OFFSET(Wetland!$C$10,12*($A6-1),4*(PlotControl!$C$6-1),12,1)) -> 0 | L6: =AVERAGE(OFFSET(Wetland!$D$10,12*($A6-1),4*(PlotControl!$C$6-1),12,1)) -> 0 | M6: =AVERAGE(OFFSET(Wetland!$E$10,12*($A6-1),4*(PlotControl!$C$6-1),12,1)) -> 0 | N6: =AVERAGE(OFFSET(Pore!$C$10,12*($A6-1),4*(PlotControl!$C$6-1),12,1)) -> 0 | O6: =AVERAGE(OFFSET(Pore!$D$10,12*($A6-1),4*(PlotControl!$C$6-1),12,1)) -> 0 | P6: =AVERAGE(OFFSET(Pore!$E$10,12*($A6-1),4*(PlotControl!$C$6-1),12,1)) -> 0 | Q6: =AVERAGE(OFFSET(CPS!$C$10,12*($A6-1),4*(PlotControl!$C$6-1),12,1)) -> 0 | R6: =AVERAGE(OFFSET(CPS!$D$10,12*($A6-1),4*(PlotControl!$C$6-1),12,1)) -> 0 | S6: =AVERAGE(OFFSET(CPS!$E$10,12*($A6-1),4*(PlotControl!$C$6-1),12,1)) -> 0 | T6: =AVERAGE(OFFSET(Blast!$C$10,12*($A6-1),4*(PlotControl!$C$6-1),12,1)) -> 22157.83333 | U6: =AVERAGE(OFFSET(Blast!$D$10,12*($A6-1),4*(PlotControl!$C$6-1),12,1)) -> 42560.08333 | V6: =AVERAGE(OFFSET(Blast!$E$10,12*($A6-1),4*(PlotControl!$C$6-1),12,1)) -> 64645.16667 | W6: =AVERAGE(OFFSET(Cat1SP!$C$10,12*($A6-1),4*(PlotControl!$C$6-1),12,1)) -> 2533.85 | X6: =AVERAGE(OFFSET(Cat1SP!$D$10,12*($A6-1),4*(PlotControl!$C$6-1),12,1)) -> 6519.6 | Y6: =AVERAGE(OFFSET(Cat1SP!$E$10,12*($A6-1),4*(PlotControl!$C$6-1),12,1)) -> 15024.03333 | Z6: =AVERAGE(OFFSET(Cat1SP_WWTF!$C$10,12*($A6-1),4*(PlotControl!$C$6-1),12,1)) -> 0 | AA6: =AVERAGE(OFFSET(Cat1SP_WWTF!$D$10,12*($A6-1),4*(PlotControl!$C$6-1),12,1)) -> 0 | AB6: =AVERAGE(OFFSET(Cat1SP_WWTF!$E$10,12*($A6-1),4*(PlotControl!$C$6-1),12,1)) -> 0 | AC6: =AVERAGE(OFFSET(Cat1wall!$C$10,12*($A6-1),4*(PlotControl!$C$6-1),12,1)) -> 985.0858333 | AD6: =AVERAGE(OFFSET(Cat1wall!$D$10,12*($A6-1),4*(PlotControl!$C$6-1),12,1)) -> 2095.25 | AE6: =AVERAGE(OFFSET(Cat1wall!$E$10,12*($A6-1),4*(PlotControl!$C$6-1),12,1)) -> 4154.891667 | AF6: =AVERAGE(OFFSET(Cat23wall!$C$10,12*($A6-1),4*(PlotControl!$C$6-1),12,1)) -> 2406.225 | AG6: =AVERAGE(OFFSET(Cat23wall!$D$10,12*($A6-1),4*(PlotControl!$C$6-1),12,1)) -> 4972.608333 | AH6: =AVERAGE(OFFSET(Cat23wall!$E$10,12*($A6-1),4*(PlotControl!$C$6-1),12,1)) -> 10939.00833 | AI6: =AVERAGE(OFFSET(Cat4wall!$C$10,12*($A6-1),4*(PlotControl!$C$6-1),12,1)) -> 680.7516667 | AJ6: =AVERAGE(OFFSET(Cat4wall!$D$10,12*($A6-1),4*(PlotControl!$C$6-1),12,1)) -> 1922.2 | AK6: =AVERAGE(OFFSET(Cat4wall!$E$10,12*($A6-1),4*(PlotControl!$C$6-1),12,1)) -> 6880.141667 | AL6: =AVERAGE(OFFSET(Orewall!$C$10,12*($A6-1),4*(PlotControl!$C$6-1),12,1)) -> 12659.63333 | AM6: =AVERAGE(OFFSET(Orewall!$D$10,12*($A6-1),4*(PlotControl!$C$6-1),12,1)) -> 27720.75 | AN6: =AVERAGE(OFFSET(Orewall!$E$10,12*($A6-1),4*(PlotControl!$C$6-1),12,1)) -> 65148.33333 | AO6: =AVERAGE(OFFSET(TBPump!$C$10,12*($A6-1),4*(PlotControl!$C$6-1),12,1)) -> 0 | AP6: =AVERAGE(OFFSET(TBPump!$D$10,12*($A6-1),4*(PlotControl!$C$6-1),12,1)) -> 0 | AQ6: =AVERAGE(OFFSET(TBPump!$E$10,12*($A6-1),4*(PlotControl!$C$6-1),12,1)) -> 0
A7: 3 | B7: =AVERAGE(OFFSET(Total!$C$10,12*($A7-1),4*(PlotControl!$C$6-1),12,1)) -> 47636.58333 | C7: =AVERAGE(OFFSET(Total!$D$10,12*($A7-1),4*(PlotControl!$C$6-1),12,1)) -> 80984.66667 | D7: =AVERAGE(OFFSET(Total!$E$10,12*($A7-1),4*(PlotControl!$C$6-1),12,1)) -> 116205.5833 | E7: =AVERAGE(OFFSET(RO!$C$10,12*($A7-1),4*(PlotControl!$C$6-1),12,1)) -> 0 | F7: =AVERAGE(OFFSET(RO!$D$10,12*($A7-1),4*(PlotControl!$C$6-1),12,1)) -> 0 | G7: =AVERAGE(OFFSET(RO!$E$10,12*($A7-1),4*(PlotControl!$C$6-1),12,1)) -> 0 | H7: =AVERAGE(OFFSET(GW!$C$10,12*($A7-1),4*(PlotControl!$C$6-1),12,1)) -> 779.3091667 | I7: =AVERAGE(OFFSET(GW!$D$10,12*($A7-1),4*(PlotControl!$C$6-1),12,1)) -> 918.5708333 | J7: =AVERAGE(OFFSET(GW!$E$10,12*($A7-1),4*(PlotControl!$C$6-1),12,1)) -> 1333.6 | K7: =AVERAGE(OFFSET(Wetland!$C$10,12*($A7-1),4*(PlotControl!$C$6-1),12,1)) -> 0 | L7: =AVERAGE(OFFSET(Wetland!$D$10,12*($A7-1),4*(PlotControl!$C$6-1),12,1)) -> 0 | M7: =AVERAGE(OFFSET(Wetland!$E$10,12*($A7-1),4*(PlotControl!$C$6-1),12,1)) -> 0 | N7: =AVERAGE(OFFSET(Pore!$C$10,12*($A7-1),4*(PlotControl!$C$6-1),12,1)) -> 0 | O7: =AVERAGE(OFFSET(Pore!$D$10,12*($A7-1),4*(PlotControl!$C$6-1),12,1)) -> 0 | P7: =AVERAGE(OFFSET(Pore!$E$10,12*($A7-1),4*(PlotControl!$C$6-1),12,1)) -> 0 | Q7: =AVERAGE(OFFSET(CPS!$C$10,12*($A7-1),4*(PlotControl!$C$6-1),12,1)) -> 0 | R7: =AVERAGE(OFFSET(CPS!$D$10,12*($A7-1),4*(PlotControl!$C$6-1),12,1)) -> 0 | S7: =AVERAGE(OFFSET(CPS!$E$10,12*($A7-1),4*(PlotControl!$C$6-1),12,1)) -> 0 | T7: =AVERAGE(OFFSET(Blast!$C$10,12*($A7-1),4*(PlotControl!$C$6-1),12,1)) -> 22228.08333 | U7: =AVERAGE(OFFSET(Blast!$D$10,12*($A7-1),4*(PlotControl!$C$6-1),12,1)) -> 42754.33333 | V7: =AVERAGE(OFFSET(Blast!$E$10,12*($A7-1),4*(PlotControl!$C$6-1),12,1)) -> 65200.25 | W7: =AVERAGE(OFFSET(Cat1SP!$C$10,12*($A7-1),4*(PlotControl!$C$6-1),12,1)) -> 4075.066667 | X7: =AVERAGE(OFFSET(Cat1SP!$D$10,12*($A7-1),4*(PlotControl!$C$6-1),12,1)) -> 11475.66667 | Y7: =AVERAGE(OFFSET(Cat1SP!$E$10,12*($A7-1),4*(PlotControl!$C$6-1),12,1)) -> 24014.83333 | Z7: =AVERAGE(OFFSET(Cat1SP_WWTF!$C$10,12*($A7-1),4*(PlotControl!$C$6-1),12,1)) -> 0 | AA7: =AVERAGE(OFFSET(Cat1SP_WWTF!$D$10,12*($A7-1),4*(PlotControl!$C$6-1),12,1)) -> 0 | AB7: =AVERAGE(OFFSET(Cat1SP_WWTF!$E$10,12*($A7-1),4*(PlotControl!$C$6-1),12,1)) -> 0 | AC7: =AVERAGE(OFFSET(Cat1wall!$C$10,12*($A7-1),4*(PlotControl!$C$6-1),12,1)) -> 513.7508333 | AD7: =AVERAGE(OFFSET(Cat1wall!$D$10,12*($A7-1),4*(PlotControl!$C$6-1),12,1)) -> 1125.133333 | AE7: =AVERAGE(OFFSET(Cat1wall!$E$10,12*($A7-1),4*(PlotControl!$C$6-1),12,1)) -> 2253.008333 | AF7: =AVERAGE(OFFSET(Cat23wall!$C$10,12*($A7-1),4*(PlotControl!$C$6-1),12,1)) -> 1268.675 | AG7: =AVERAGE(OFFSET(Cat23wall!$D$10,12*($A7-1),4*(PlotControl!$C$6-1),12,1)) -> 2778.441667 | AH7: =AVERAGE(OFFSET(Cat23wall!$E$10,12*($A7-1),4*(PlotControl!$C$6-1),12,1)) -> 5563.583333 | AI7: =AVERAGE(OFFSET(Cat4wall!$C$10,12*($A7-1),4*(PlotControl!$C$6-1),12,1)) -> 402.1766667 | AJ7: =AVERAGE(OFFSET(Cat4wall!$D$10,12*($A7-1),4*(PlotControl!$C$6-1),12,1)) -> 1132.808333 | AK7: =AVERAGE(OFFSET(Cat4wall!$E$10,12*($A7-1),4*(PlotControl!$C$6-1),12,1)) -> 3820.041667 | AL7: =AVERAGE(OFFSET(Orewall!$C$10,12*($A7-1),4*(PlotControl!$C$6-1),12,1)) -> 7330.108333 | AM7: =AVERAGE(OFFSET(Orewall!$D$10,12*($A7-1),4*(PlotControl!$C$6-1),12,1)) -> 16053.25 | AN7: =AVERAGE(OFFSET(Orewall!$E$10,12*($A7-1),4*(PlotControl!$C$6-1),12,1)) -> 32146.16667 | AO7: =AVERAGE(OFFSET(TBPump!$C$10,12*($A7-1),4*(PlotControl!$C$6-1),12,1)) -> 0 | AP7: =AVERAGE(OFFSET(TBPump!$D$10,12*($A7-1),4*(PlotControl!$C$6-1),12,1)) -> 0 | AQ7: =AVERAGE(OFFSET(TBPump!$E$10,12*($A7-1),4*(PlotControl!$C$6-1),12,1)) -> 0
A8: 4 | B8: =AVERAGE(OFFSET(Total!$C$10,12*($A8-1),4*(PlotControl!$C$6-1),12,1)) -> 50764.41667 | C8: =AVERAGE(OFFSET(Total!$D$10,12*($A8-1),4*(PlotControl!$C$6-1),12,1)) -> 84945.91667 | D8: =AVERAGE(OFFSET(Total!$E$10,12*($A8-1),4*(PlotControl!$C$6-1),12,1)) -> 123289.75 | E8: =AVERAGE(OFFSET(RO!$C$10,12*($A8-1),4*(PlotControl!$C$6-1),12,1)) -> 0 | F8: =AVERAGE(OFFSET(RO!$D$10,12*($A8-1),4*(PlotControl!$C$6-1),12,1)) -> 0 | G8: =AVERAGE(OFFSET(RO!$E$10,12*($A8-1),4*(PlotControl!$C$6-1),12,1)) -> 0 | H8: =AVERAGE(OFFSET(GW!$C$10,12*($A8-1),4*(PlotControl!$C$6-1),12,1)) -> 561.8958333 | I8: =AVERAGE(OFFSET(GW!$D$10,12*($A8-1),4*(PlotControl!$C$6-1),12,1)) -> 660.8375 | J8: =AVERAGE(OFFSET(GW!$E$10,12*($A8-1),4*(PlotControl!$C$6-1),12,1)) -> 960.3591667 | K8: =AVERAGE(OFFSET(Wetland!$C$10,12*($A8-1),4*(PlotControl!$C$6-1),12,1)) -> 0 | L8: =AVERAGE(OFFSET(Wetland!$D$10,12*($A8-1),4*(PlotControl!$C$6-1),12,1)) -> 0 | M8: =AVERAGE(OFFSET(Wetland!$E$10,12*($A8-1),4*(PlotControl!$C$6-1),12,1)) -> 0 | N8: =AVERAGE(OFFSET(Pore!$C$10,12*($A8-1),4*(PlotControl!$C$6-1),12,1)) -> 0 | O8: =AVERAGE(OFFSET(Pore!$D$10,12*($A8-1),4*(PlotControl!$C$6-1),12,1)) -> 0 | P8: =AVERAGE(OFFSET(Pore!$E$10,12*($A8-1),4*(PlotControl!$C$6-1),12,1)) -> 0 | Q8: =AVERAGE(OFFSET(CPS!$C$10,12*($A8-1),4*(PlotControl!$C$6-1),12,1)) -> 0 | R8: =AVERAGE(OFFSET(CPS!$D$10,12*($A8-1),4*(PlotControl!$C$6-1),12,1)) -> 0 | S8: =AVERAGE(OFFSET(CPS!$E$10,12*($A8-1),4*(PlotControl!$C$6-1),12,1)) -> 0 | T8: =AVERAGE(OFFSET(Blast!$C$10,12*($A8-1),4*(PlotControl!$C$6-1),12,1)) -> 22212.91667 | U8: =AVERAGE(OFFSET(Blast!$D$10,12*($A8-1),4*(PlotControl!$C$6-1),12,1)) -> 43379.08333 | V8: =AVERAGE(OFFSET(Blast!$E$10,12*($A8-1),4*(PlotControl!$C$6-1),12,1)) -> 66245.33333 | W8: =AVERAGE(OFFSET(Cat1SP!$C$10,12*($A8-1),4*(PlotControl!$C$6-1),12,1)) -> 5044.483333 | X8: =AVERAGE(OFFSET(Cat1SP!$D$10,12*($A8-1),4*(PlotControl!$C$6-1),12,1)) -> 13961.66667 | Y8: =AVERAGE(OFFSET(Cat1SP!$E$10,12*($A8-1),4*(PlotControl!$C$6-1),12,1)) -> 33793.91667 | Z8: =AVERAGE(OFFSET(Cat1SP_WWTF!$C$10,12*($A8-1),4*(PlotControl!$C$6-1),12,1)) -> 0 | AA8: =AVERAGE(OFFSET(Cat1SP_WWTF!$D$10,12*($A8-1),4*(PlotControl!$C$6-1),12,1)) -> 0 | AB8: =AVERAGE(OFFSET(Cat1SP_WWTF!$E$10,12*($A8-1),4*(PlotControl!$C$6-1),12,1)) -> 0 | AC8: =AVERAGE(OFFSET(Cat1wall!$C$10,12*($A8-1),4*(PlotControl!$C$6-1),12,1)) -> 505.2066667 | AD8: =AVERAGE(OFFSET(Cat1wall!$D$10,12*($A8-1),4*(PlotControl!$C$6-1),12,1)) -> 1111.775 | AE8: =AVERAGE(OFFSET(Cat1wall!$E$10,12*($A8-1),4*(PlotControl!$C$6-1),12,1)) -> 2163.258333 | AF8: =AVERAGE(OFFSET(Cat23wall!$C$10,12*($A8-1),4*(PlotControl!$C$6-1),12,1)) -> 1247.583333 | AG8: =AVERAGE(OFFSET(Cat23wall!$D$10,12*($A8-1),4*(PlotControl!$C$6-1),12,1)) -> 2745.458333 | AH8: =AVERAGE(OFFSET(Cat23wall!$E$10,12*($A8-1),4*(PlotControl!$C$6-1),12,1)) -> 5341.866667 | AI8: =AVERAGE(OFFSET(Cat4wall!$C$10,12*($A8-1),4*(PlotControl!$C$6-1),12,1)) -> 404.9508333 | AJ8: =AVERAGE(OFFSET(Cat4wall!$D$10,12*($A8-1),4*(PlotControl!$C$6-1),12,1)) -> 1145.658333 | AK8: =AVERAGE(OFFSET(Cat4wall!$E$10,12*($A8-1),4*(PlotControl!$C$6-1),12,1)) -> 3843.033333 | AL8: =AVERAGE(OFFSET(Orewall!$C$10,12*($A8-1),4*(PlotControl!$C$6-1),12,1)) -> 7208.108333 | AM8: =AVERAGE(OFFSET(Orewall!$D$10,12*($A8-1),4*(PlotControl!$C$6-1),12,1)) -> 15863.16667 | AN8: =AVERAGE(OFFSET(Orewall!$E$10,12*($A8-1),4*(PlotControl!$C$6-1),12,1)) -> 30866.91667 | AO8: =AVERAGE(OFFSET(TBPump!$C$10,12*($A8-1),4*(PlotControl!$C$6-1),12,1)) -> 0 | AP8: =AVERAGE(OFFSET(TBPump!$D$10,12*($A8-1),4*(PlotControl!$C$6-1),12,1)) -> 0 | AQ8: =AVERAGE(OFFSET(TBPump!$E$10,12*($A8-1),4*(PlotControl!$C$6-1),12,1)) -> 0
A9: 5 | B9: =AVERAGE(OFFSET(Total!$C$10,12*($A9-1),4*(PlotControl!$C$6-1),12,1)) -> 54633.16667 | C9: =AVERAGE(OFFSET(Total!$D$10,12*($A9-1),4*(PlotControl!$C$6-1),12,1)) -> 89278.08333 | D9: =AVERAGE(OFFSET(Total!$E$10,12*($A9-1),4*(PlotControl!$C$6-1),12,1)) -> 132796.3333 | E9: =AVERAGE(OFFSET(RO!$C$10,12*($A9-1),4*(PlotControl!$C$6-1),12,1)) -> 0 | F9: =AVERAGE(OFFSET(RO!$D$10,12*($A9-1),4*(PlotControl!$C$6-1),12,1)) -> 0 | G9: =AVERAGE(OFFSET(RO!$E$10,12*($A9-1),4*(PlotControl!$C$6-1),12,1)) -> 0 | H9: =AVERAGE(OFFSET(GW!$C$10,12*($A9-1),4*(PlotControl!$C$6-1),12,1)) -> 493.135 | I9: =AVERAGE(OFFSET(GW!$D$10,12*($A9-1),4*(PlotControl!$C$6-1),12,1)) -> 579.0183333 | J9: =AVERAGE(OFFSET(GW!$E$10,12*($A9-1),4*(PlotControl!$C$6-1),12,1)) -> 845.6341667 | K9: =AVERAGE(OFFSET(Wetland!$C$10,12*($A9-1),4*(PlotControl!$C$6-1),12,1)) -> 0 | L9: =AVERAGE(OFFSET(Wetland!$D$10,12*($A9-1),4*(PlotControl!$C$6-1),12,1)) -> 0 | M9: =AVERAGE(OFFSET(Wetland!$E$10,12*($A9-1),4*(PlotControl!$C$6-1),12,1)) -> 0 | N9: =AVERAGE(OFFSET(Pore!$C$10,12*($A9-1),4*(PlotControl!$C$6-1),12,1)) -> 0 | O9: =AVERAGE(OFFSET(Pore!$D$10,12*($A9-1),4*(PlotControl!$C$6-1),12,1)) -> 0 | P9: =AVERAGE(OFFSET(Pore!$E$10,12*($A9-1),4*(PlotControl!$C$6-1),12,1)) -> 0 | Q9: =AVERAGE(OFFSET(CPS!$C$10,12*($A9-1),4*(PlotControl!$C$6-1),12,1)) -> 0 | R9: =AVERAGE(OFFSET(CPS!$D$10,12*($A9-1),4*(PlotControl!$C$6-1),12,1)) -> 0 | S9: =AVERAGE(OFFSET(CPS!$E$10,12*($A9-1),4*(PlotControl!$C$6-1),12,1)) -> 0 | T9: =AVERAGE(OFFSET(Blast!$C$10,12*($A9-1),4*(PlotControl!$C$6-1),12,1)) -> 22502.08333 | U9: =AVERAGE(OFFSET(Blast!$D$10,12*($A9-1),4*(PlotControl!$C$6-1),12,1)) -> 43391.83333 | V9: =AVERAGE(OFFSET(Blast!$E$10,12*($A9-1),4*(PlotControl!$C$6-1),12,1)) -> 64938.25 | W9: =AVERAGE(OFFSET(Cat1SP!$C$10,12*($A9-1),4*(PlotControl!$C$6-1),12,1)) -> 6856.766667 | X9: =AVERAGE(OFFSET(Cat1SP!$D$10,12*($A9-1),4*(PlotControl!$C$6-1),12,1)) -> 19559.08333 | Y9: =AVERAGE(OFFSET(Cat1SP!$E$10,12*($A9-1),4*(PlotControl!$C$6-1),12,1)) -> 43568.41667 | Z9: =AVERAGE(OFFSET(Cat1SP_WWTF!$C$10,12*($A9-1),4*(PlotControl!$C$6-1),12,1)) -> 0 | AA9: =AVERAGE(OFFSET(Cat1SP_WWTF!$D$10,12*($A9-1),4*(PlotControl!$C$6-1),12,1)) -> 0 | AB9: =AVERAGE(OFFSET(Cat1SP_WWTF!$E$10,12*($A9-1),4*(PlotControl!$C$6-1),12,1)) -> 0 | AC9: =AVERAGE(OFFSET(Cat1wall!$C$10,12*($A9-1),4*(PlotControl!$C$6-1),12,1)) -> 505.5533333 | AD9: =AVERAGE(OFFSET(Cat1wall!$D$10,12*($A9-1),4*(PlotControl!$C$6-1),12,1)) -> 1103.308333 | AE9: =AVERAGE(OFFSET(Cat1wall!$E$10,12*($A9-1),4*(PlotControl!$C$6-1),12,1)) -> 2226.258333 | AF9: =AVERAGE(OFFSET(Cat23wall!$C$10,12*($A9-1),4*(PlotControl!$C$6-1),12,1)) -> 1248.433333 | AG9: =AVERAGE(OFFSET(Cat23wall!$D$10,12*($A9-1),4*(PlotControl!$C$6-1),12,1)) -> 2724.5 | AH9: =AVERAGE(OFFSET(Cat23wall!$E$10,12*($A9-1),4*(PlotControl!$C$6-1),12,1)) -> 5497.7 | AI9: =AVERAGE(OFFSET(Cat4wall!$C$10,12*($A9-1),4*(PlotControl!$C$6-1),12,1)) -> 408.925 | AJ9: =AVERAGE(OFFSET(Cat4wall!$D$10,12*($A9-1),4*(PlotControl!$C$6-1),12,1)) -> 1116.991667 | AK9: =AVERAGE(OFFSET(Cat4wall!$E$10,12*($A9-1),4*(PlotControl!$C$6-1),12,1)) -> 3640.583333 | AL9: =AVERAGE(OFFSET(Orewall!$C$10,12*($A9-1),4*(PlotControl!$C$6-1),12,1)) -> 7212.9 | AM9: =AVERAGE(OFFSET(Orewall!$D$10,12*($A9-1),4*(PlotControl!$C$6-1),12,1)) -> 15742.58333 | AN9: =AVERAGE(OFFSET(Orewall!$E$10,12*($A9-1),4*(PlotControl!$C$6-1),12,1)) -> 31761.5 | AO9: =AVERAGE(OFFSET(TBPump!$C$10,12*($A9-1),4*(PlotControl!$C$6-1),12,1)) -> 0 | AP9: =AVERAGE(OFFSET(TBPump!$D$10,12*($A9-1),4*(PlotControl!$C$6-1),12,1)) -> 0 | AQ9: =AVERAGE(OFFSET(TBPump!$E$10,12*($A9-1),4*(PlotControl!$C$6-1),12,1)) -> 0
A10: 6 | B10: =AVERAGE(OFFSET(Total!$C$10,12*($A10-1),4*(PlotControl!$C$6-1),12,1)) -> 56257.91667 | C10: =AVERAGE(OFFSET(Total!$D$10,12*($A10-1),4*(PlotControl!$C$6-1),12,1)) -> 94175.16667 | D10: =AVERAGE(OFFSET(Total!$E$10,12*($A10-1),4*(PlotControl!$C$6-1),12,1)) -> 136249.5 | E10: =AVERAGE(OFFSET(RO!$C$10,12*($A10-1),4*(PlotControl!$C$6-1),12,1)) -> 0 | F10: =AVERAGE(OFFSET(RO!$D$10,12*($A10-1),4*(PlotControl!$C$6-1),12,1)) -> 0 | G10: =AVERAGE(OFFSET(RO!$E$10,12*($A10-1),4*(PlotControl!$C$6-1),12,1)) -> 0 | H10: =AVERAGE(OFFSET(GW!$C$10,12*($A10-1),4*(PlotControl!$C$6-1),12,1)) -> 637.2216667 | I10: =AVERAGE(OFFSET(GW!$D$10,12*($A10-1),4*(PlotControl!$C$6-1),12,1)) -> 748.3916667 | J10: =AVERAGE(OFFSET(GW!$E$10,12*($A10-1),4*(PlotControl!$C$6-1),12,1)) -> 1091.2575 | K10: =AVERAGE(OFFSET(Wetland!$C$10,12*($A10-1),4*(PlotControl!$C$6-1),12,1)) -> 0 | L10: =AVERAGE(OFFSET(Wetland!$D$10,12*($A10-1),4*(PlotControl!$C$6-1),12,1)) -> 0 | M10: =AVERAGE(OFFSET(Wetland!$E$10,12*($A10-1),4*(PlotControl!$C$6-1),12,1)) -> 0 | N10: =AVERAGE(OFFSET(Pore!$C$10,12*($A10-1),4*(PlotControl!$C$6-1),12,1)) -> 0 | O10: =AVERAGE(OFFSET(Pore!$D$10,12*($A10-1),4*(PlotControl!$C$6-1),12,1)) -> 0 | P10: =AVERAGE(OFFSET(Pore!$E$10,12*($A10-1),4*(PlotControl!$C$6-1),12,1)) -> 0 | Q10: =AVERAGE(OFFSET(CPS!$C$10,12*($A10-1),4*(PlotControl!$C$6-1),12,1)) -> 0 | R10: =AVERAGE(OFFSET(CPS!$D$10,12*($A10-1),4*(PlotControl!$C$6-1),12,1)) -> 0 | S10: =AVERAGE(OFFSET(CPS!$E$10,12*($A10-1),4*(PlotControl!$C$6-1),12,1)) -> 0 | T10: =AVERAGE(OFFSET(Blast!$C$10,12*($A10-1),4*(PlotControl!$C$6-1),12,1)) -> 22421.16667 | U10: =AVERAGE(OFFSET(Blast!$D$10,12*($A10-1),4*(PlotControl!$C$6-1),12,1)) -> 42903.83333 | V10: =AVERAGE(OFFSET(Blast!$E$10,12*($A10-1),4*(PlotControl!$C$6-1),12,1)) -> 66604.41667 | W10: =AVERAGE(OFFSET(Cat1SP!$C$10,12*($A10-1),4*(PlotControl!$C$6-1),12,1)) -> 9032.533333 | X10: =AVERAGE(OFFSET(Cat1SP!$D$10,12*($A10-1),4*(PlotControl!$C$6-1),12,1)) -> 22775.66667 | Y10: =AVERAGE(OFFSET(Cat1SP!$E$10,12*($A10-1),4*(PlotControl!$C$6-1),12,1)) -> 49679.58333 | Z10: =AVERAGE(OFFSET(Cat1SP_WWTF!$C$10,12*($A10-1),4*(PlotControl!$C$6-1),12,1)) -> 0 | AA10: =AVERAGE(OFFSET(Cat1SP_WWTF!$D$10,12*($A10-1),4*(PlotControl!$C$6-1),12,1)) -> 0 | AB10: =AVERAGE(OFFSET(Cat1SP_WWTF!$E$10,12*($A10-1),4*(PlotControl!$C$6-1),12,1)) -> 0 | AC10: =AVERAGE(OFFSET(Cat1wall!$C$10,12*($A10-1),4*(PlotControl!$C$6-1),12,1)) -> 536.2333333 | AD10: =AVERAGE(OFFSET(Cat1wall!$D$10,12*($A10-1),4*(PlotControl!$C$6-1),12,1)) -> 1153.558333 | AE10: =AVERAGE(OFFSET(Cat1wall!$E$10,12*($A10-1),4*(PlotControl!$C$6-1),12,1)) -> 2249.45 | AF10: =AVERAGE(OFFSET(Cat23wall!$C$10,12*($A10-1),4*(PlotControl!$C$6-1),12,1)) -> 1324.191667 | AG10: =AVERAGE(OFFSET(Cat23wall!$D$10,12*($A10-1),4*(PlotControl!$C$6-1),12,1)) -> 2848.591667 | AH10: =AVERAGE(OFFSET(Cat23wall!$E$10,12*($A10-1),4*(PlotControl!$C$6-1),12,1)) -> 5554.833333 | AI10: =AVERAGE(OFFSET(Cat4wall!$C$10,12*($A10-1),4*(PlotControl!$C$6-1),12,1)) -> 409.8841667 | AJ10: =AVERAGE(OFFSET(Cat4wall!$D$10,12*($A10-1),4*(PlotControl!$C$6-1),12,1)) -> 1133.491667 | AK10: =AVERAGE(OFFSET(Cat4wall!$E$10,12*($A10-1),4*(PlotControl!$C$6-1),12,1)) -> 3671.15 | AL10: =AVERAGE(OFFSET(Orewall!$C$10,12*($A10-1),4*(PlotControl!$C$6-1),12,1)) -> 7650.775 | AM10: =AVERAGE(OFFSET(Orewall!$D$10,12*($A10-1),4*(PlotControl!$C$6-1),12,1)) -> 16459.16667 | AN10: =AVERAGE(OFFSET(Orewall!$E$10,12*($A10-1),4*(PlotControl!$C$6-1),12,1)) -> 32094.83333 | AO10: =AVERAGE(OFFSET(TBPump!$C$10,12*($A10-1),4*(PlotControl!$C$6-1),12,1)) -> 0 | AP10: =AVERAGE(OFFSET(TBPump!$D$10,12*($A10-1),4*(PlotControl!$C$6-1),12,1)) -> 0 | AQ10: =AVERAGE(OFFSET(TBPump!$E$10,12*($A10-1),4*(PlotControl!$C$6-1),12,1)) -> 0
A11: 7 | B11: =AVERAGE(OFFSET(Total!$C$10,12*($A11-1),4*(PlotControl!$C$6-1),12,1)) -> 60761.5 | C11: =AVERAGE(OFFSET(Total!$D$10,12*($A11-1),4*(PlotControl!$C$6-1),12,1)) -> 97938.75 | D11: =AVERAGE(OFFSET(Total!$E$10,12*($A11-1),4*(PlotControl!$C$6-1),12,1)) -> 143526.75 | E11: =AVERAGE(OFFSET(RO!$C$10,12*($A11-1),4*(PlotControl!$C$6-1),12,1)) -> 0 | F11: =AVERAGE(OFFSET(RO!$D$10,12*($A11-1),4*(PlotControl!$C$6-1),12,1)) -> 0 | G11: =AVERAGE(OFFSET(RO!$E$10,12*($A11-1),4*(PlotControl!$C$6-1),12,1)) -> 0 | H11: =AVERAGE(OFFSET(GW!$C$10,12*($A11-1),4*(PlotControl!$C$6-1),12,1)) -> 738.6175 | I11: =AVERAGE(OFFSET(GW!$D$10,12*($A11-1),4*(PlotControl!$C$6-1),12,1)) -> 867.5575 | J11: =AVERAGE(OFFSET(GW!$E$10,12*($A11-1),4*(PlotControl!$C$6-1),12,1)) -> 1264.933333 | K11: =AVERAGE(OFFSET(Wetland!$C$10,12*($A11-1),4*(PlotControl!$C$6-1),12,1)) -> 0 | L11: =AVERAGE(OFFSET(Wetland!$D$10,12*($A11-1),4*(PlotControl!$C$6-1),12,1)) -> 0 | M11: =AVERAGE(OFFSET(Wetland!$E$10,12*($A11-1),4*(PlotControl!$C$6-1),12,1)) -> 0 | N11: =AVERAGE(OFFSET(Pore!$C$10,12*($A11-1),4*(PlotControl!$C$6-1),12,1)) -> 0 | O11: =AVERAGE(OFFSET(Pore!$D$10,12*($A11-1),4*(PlotControl!$C$6-1),12,1)) -> 0 | P11: =AVERAGE(OFFSET(Pore!$E$10,12*($A11-1),4*(PlotControl!$C$6-1),12,1)) -> 0 | Q11: =AVERAGE(OFFSET(CPS!$C$10,12*($A11-1),4*(PlotControl!$C$6-1),12,1)) -> 0 | R11: =AVERAGE(OFFSET(CPS!$D$10,12*($A11-1),4*(PlotControl!$C$6-1),12,1)) -> 0 | S11: =AVERAGE(OFFSET(CPS!$E$10,12*($A11-1),4*(PlotControl!$C$6-1),12,1)) -> 0 | T11: =AVERAGE(OFFSET(Blast!$C$10,12*($A11-1),4*(PlotControl!$C$6-1),12,1)) -> 22350.08333 | U11: =AVERAGE(OFFSET(Blast!$D$10,12*($A11-1),4*(PlotControl!$C$6-1),12,1)) -> 43362.25 | V11: =AVERAGE(OFFSET(Blast!$E$10,12*($A11-1),4*(PlotControl!$C$6-1),12,1)) -> 64776.33333 | W11: =AVERAGE(OFFSET(Cat1SP!$C$10,12*($A11-1),4*(PlotControl!$C$6-1),12,1)) -> 10978.15833 | X11: =AVERAGE(OFFSET(Cat1SP!$D$10,12*($A11-1),4*(PlotControl!$C$6-1),12,1)) -> 26270.91667 | Y11: =AVERAGE(OFFSET(Cat1SP!$E$10,12*($A11-1),4*(PlotControl!$C$6-1),12,1)) -> 58206.41667 | Z11: =AVERAGE(OFFSET(Cat1SP_WWTF!$C$10,12*($A11-1),4*(PlotControl!$C$6-1),12,1)) -> 0 | AA11: =AVERAGE(OFFSET(Cat1SP_WWTF!$D$10,12*($A11-1),4*(PlotControl!$C$6-1),12,1)) -> 0 | AB11: =AVERAGE(OFFSET(Cat1SP_WWTF!$E$10,12*($A11-1),4*(PlotControl!$C$6-1),12,1)) -> 0 | AC11: =AVERAGE(OFFSET(Cat1wall!$C$10,12*($A11-1),4*(PlotControl!$C$6-1),12,1)) -> 506.555 | AD11: =AVERAGE(OFFSET(Cat1wall!$D$10,12*($A11-1),4*(PlotControl!$C$6-1),12,1)) -> 1119.25 | AE11: =AVERAGE(OFFSET(Cat1wall!$E$10,12*($A11-1),4*(PlotControl!$C$6-1),12,1)) -> 2236.233333 | AF11: =AVERAGE(OFFSET(Cat23wall!$C$10,12*($A11-1),4*(PlotControl!$C$6-1),12,1)) -> 1250.891667 | AG11: =AVERAGE(OFFSET(Cat23wall!$D$10,12*($A11-1),4*(PlotControl!$C$6-1),12,1)) -> 2763.875 | AH11: =AVERAGE(OFFSET(Cat23wall!$E$10,12*($A11-1),4*(PlotControl!$C$6-1),12,1)) -> 5522.166667 | AI11: =AVERAGE(OFFSET(Cat4wall!$C$10,12*($A11-1),4*(PlotControl!$C$6-1),12,1)) -> 408.4258333 | AJ11: =AVERAGE(OFFSET(Cat4wall!$D$10,12*($A11-1),4*(PlotControl!$C$6-1),12,1)) -> 1120.65 | AK11: =AVERAGE(OFFSET(Cat4wall!$E$10,12*($A11-1),4*(PlotControl!$C$6-1),12,1)) -> 3741.675 | AL11: =AVERAGE(OFFSET(Orewall!$C$10,12*($A11-1),4*(PlotControl!$C$6-1),12,1)) -> 7227.425 | AM11: =AVERAGE(OFFSET(Orewall!$D$10,12*($A11-1),4*(PlotControl!$C$6-1),12,1)) -> 15969.58333 | AN11: =AVERAGE(OFFSET(Orewall!$E$10,12*($A11-1),4*(PlotControl!$C$6-1),12,1)) -> 31906.16667 | AO11: =AVERAGE(OFFSET(TBPump!$C$10,12*($A11-1),4*(PlotControl!$C$6-1),12,1)) -> 0 | AP11: =AVERAGE(OFFSET(TBPump!$D$10,12*($A11-1),4*(PlotControl!$C$6-1),12,1)) -> 0 | AQ11: =AVERAGE(OFFSET(TBPump!$E$10,12*($A11-1),4*(PlotControl!$C$6-1),12,1)) -> 0
A12: 8 | B12: =AVERAGE(OFFSET(Total!$C$10,12*($A12-1),4*(PlotControl!$C$6-1),12,1)) -> 61106.83333 | C12: =AVERAGE(OFFSET(Total!$D$10,12*($A12-1),4*(PlotControl!$C$6-1),12,1)) -> 99514.25 | D12: =AVERAGE(OFFSET(Total!$E$10,12*($A12-1),4*(PlotControl!$C$6-1),12,1)) -> 149356.5833 | E12: =AVERAGE(OFFSET(RO!$C$10,12*($A12-1),4*(PlotControl!$C$6-1),12,1)) -> 0 | F12: =AVERAGE(OFFSET(RO!$D$10,12*($A12-1),4*(PlotControl!$C$6-1),12,1)) -> 0 | G12: =AVERAGE(OFFSET(RO!$E$10,12*($A12-1),4*(PlotControl!$C$6-1),12,1)) -> 0 | H12: =AVERAGE(OFFSET(GW!$C$10,12*($A12-1),4*(PlotControl!$C$6-1),12,1)) -> 700.645 | I12: =AVERAGE(OFFSET(GW!$D$10,12*($A12-1),4*(PlotControl!$C$6-1),12,1)) -> 816.6658333 | J12: =AVERAGE(OFFSET(GW!$E$10,12*($A12-1),4*(PlotControl!$C$6-1),12,1)) -> 1203.9 | K12: =AVERAGE(OFFSET(Wetland!$C$10,12*($A12-1),4*(PlotControl!$C$6-1),12,1)) -> 0 | L12: =AVERAGE(OFFSET(Wetland!$D$10,12*($A12-1),4*(PlotControl!$C$6-1),12,1)) -> 0 | M12: =AVERAGE(OFFSET(Wetland!$E$10,12*($A12-1),4*(PlotControl!$C$6-1),12,1)) -> 0 | N12: =AVERAGE(OFFSET(Pore!$C$10,12*($A12-1),4*(PlotControl!$C$6-1),12,1)) -> 0 | O12: =AVERAGE(OFFSET(Pore!$D$10,12*($A12-1),4*(PlotControl!$C$6-1),12,1)) -> 0 | P12: =AVERAGE(OFFSET(Pore!$E$10,12*($A12-1),4*(PlotControl!$C$6-1),12,1)) -> 0 | Q12: =AVERAGE(OFFSET(CPS!$C$10,12*($A12-1),4*(PlotControl!$C$6-1),12,1)) -> 0 | R12: =AVERAGE(OFFSET(CPS!$D$10,12*($A12-1),4*(PlotControl!$C$6-1),12,1)) -> 0 | S12: =AVERAGE(OFFSET(CPS!$E$10,12*($A12-1),4*(PlotControl!$C$6-1),12,1)) -> 0 | T12: =AVERAGE(OFFSET(Blast!$C$10,12*($A12-1),4*(PlotControl!$C$6-1),12,1)) -> 22333.58333 | U12: =AVERAGE(OFFSET(Blast!$D$10,12*($A12-1),4*(PlotControl!$C$6-1),12,1)) -> 43115.75 | V12: =AVERAGE(OFFSET(Blast!$E$10,12*($A12-1),4*(PlotControl!$C$6-1),12,1)) -> 65991.83333 | W12: =AVERAGE(OFFSET(Cat1SP!$C$10,12*($A12-1),4*(PlotControl!$C$6-1),12,1)) -> 9585.225 | X12: =AVERAGE(OFFSET(Cat1SP!$D$10,12*($A12-1),4*(PlotControl!$C$6-1),12,1)) -> 29313.41667 | Y12: =AVERAGE(OFFSET(Cat1SP!$E$10,12*($A12-1),4*(PlotControl!$C$6-1),12,1)) -> 67694.25 | Z12: =AVERAGE(OFFSET(Cat1SP_WWTF!$C$10,12*($A12-1),4*(PlotControl!$C$6-1),12,1)) -> 0 | AA12: =AVERAGE(OFFSET(Cat1SP_WWTF!$D$10,12*($A12-1),4*(PlotControl!$C$6-1),12,1)) -> 0 | AB12: =AVERAGE(OFFSET(Cat1SP_WWTF!$E$10,12*($A12-1),4*(PlotControl!$C$6-1),12,1)) -> 0 | AC12: =AVERAGE(OFFSET(Cat1wall!$C$10,12*($A12-1),4*(PlotControl!$C$6-1),12,1)) -> 541.015 | AD12: =AVERAGE(OFFSET(Cat1wall!$D$10,12*($A12-1),4*(PlotControl!$C$6-1),12,1)) -> 1132.833333 | AE12: =AVERAGE(OFFSET(Cat1wall!$E$10,12*($A12-1),4*(PlotControl!$C$6-1),12,1)) -> 2209.141667 | AF12: =AVERAGE(OFFSET(Cat23wall!$C$10,12*($A12-1),4*(PlotControl!$C$6-1),12,1)) -> 1335.991667 | AG12: =AVERAGE(OFFSET(Cat23wall!$D$10,12*($A12-1),4*(PlotControl!$C$6-1),12,1)) -> 2797.45 | AH12: =AVERAGE(OFFSET(Cat23wall!$E$10,12*($A12-1),4*(PlotControl!$C$6-1),12,1)) -> 5455.325 | AI12: =AVERAGE(OFFSET(Cat4wall!$C$10,12*($A12-1),4*(PlotControl!$C$6-1),12,1)) -> 415.1566667 | AJ12: =AVERAGE(OFFSET(Cat4wall!$D$10,12*($A12-1),4*(PlotControl!$C$6-1),12,1)) -> 1145.833333 | AK12: =AVERAGE(OFFSET(Cat4wall!$E$10,12*($A12-1),4*(PlotControl!$C$6-1),12,1)) -> 3668.583333 | AL12: =AVERAGE(OFFSET(Orewall!$C$10,12*($A12-1),4*(PlotControl!$C$6-1),12,1)) -> 7718.991667 | AM12: =AVERAGE(OFFSET(Orewall!$D$10,12*($A12-1),4*(PlotControl!$C$6-1),12,1)) -> 16163.41667 | AN12: =AVERAGE(OFFSET(Orewall!$E$10,12*($A12-1),4*(PlotControl!$C$6-1),12,1)) -> 31520.08333 | AO12: =AVERAGE(OFFSET(TBPump!$C$10,12*($A12-1),4*(PlotControl!$C$6-1),12,1)) -> 0 | AP12: =AVERAGE(OFFSET(TBPump!$D$10,12*($A12-1),4*(PlotControl!$C$6-1),12,1)) -> 0 | AQ12: =AVERAGE(OFFSET(TBPump!$E$10,12*($A12-1),4*(PlotControl!$C$6-1),12,1)) -> 0
A13: 9 | B13: =AVERAGE(OFFSET(Total!$C$10,12*($A13-1),4*(PlotControl!$C$6-1),12,1)) -> 64292 | C13: =AVERAGE(OFFSET(Total!$D$10,12*($A13-1),4*(PlotControl!$C$6-1),12,1)) -> 105448.5 | D13: =AVERAGE(OFFSET(Total!$E$10,12*($A13-1),4*(PlotControl!$C$6-1),12,1)) -> 160182.5 | E13: =AVERAGE(OFFSET(RO!$C$10,12*($A13-1),4*(PlotControl!$C$6-1),12,1)) -> 0 | F13: =AVERAGE(OFFSET(RO!$D$10,12*($A13-1),4*(PlotControl!$C$6-1),12,1)) -> 0 | G13: =AVERAGE(OFFSET(RO!$E$10,12*($A13-1),4*(PlotControl!$C$6-1),12,1)) -> 0 | H13: =AVERAGE(OFFSET(GW!$C$10,12*($A13-1),4*(PlotControl!$C$6-1),12,1)) -> 661.2933333 | I13: =AVERAGE(OFFSET(GW!$D$10,12*($A13-1),4*(PlotControl!$C$6-1),12,1)) -> 771.4708333 | J13: =AVERAGE(OFFSET(GW!$E$10,12*($A13-1),4*(PlotControl!$C$6-1),12,1)) -> 1134.9 | K13: =AVERAGE(OFFSET(Wetland!$C$10,12*($A13-1),4*(PlotControl!$C$6-1),12,1)) -> 0 | L13: =AVERAGE(OFFSET(Wetland!$D$10,12*($A13-1),4*(PlotControl!$C$6-1),12,1)) -> 0 | M13: =AVERAGE(OFFSET(Wetland!$E$10,12*($A13-1),4*(PlotControl!$C$6-1),12,1)) -> 0 | N13: =AVERAGE(OFFSET(Pore!$C$10,12*($A13-1),4*(PlotControl!$C$6-1),12,1)) -> 0 | O13: =AVERAGE(OFFSET(Pore!$D$10,12*($A13-1),4*(PlotControl!$C$6-1),12,1)) -> 0 | P13: =AVERAGE(OFFSET(Pore!$E$10,12*($A13-1),4*(PlotControl!$C$6-1),12,1)) -> 0 | Q13: =AVERAGE(OFFSET(CPS!$C$10,12*($A13-1),4*(PlotControl!$C$6-1),12,1)) -> 0 | R13: =AVERAGE(OFFSET(CPS!$D$10,12*($A13-1),4*(PlotControl!$C$6-1),12,1)) -> 0 | S13: =AVERAGE(OFFSET(CPS!$E$10,12*($A13-1),4*(PlotControl!$C$6-1),12,1)) -> 0 | T13: =AVERAGE(OFFSET(Blast!$C$10,12*($A13-1),4*(PlotControl!$C$6-1),12,1)) -> 22252.58333 | U13: =AVERAGE(OFFSET(Blast!$D$10,12*($A13-1),4*(PlotControl!$C$6-1),12,1)) -> 43015.75 | V13: =AVERAGE(OFFSET(Blast!$E$10,12*($A13-1),4*(PlotControl!$C$6-1),12,1)) -> 64821.5 | W13: =AVERAGE(OFFSET(Cat1SP!$C$10,12*($A13-1),4*(PlotControl!$C$6-1),12,1)) -> 12183.75 | X13: =AVERAGE(OFFSET(Cat1SP!$D$10,12*($A13-1),4*(PlotControl!$C$6-1),12,1)) -> 33271.83333 | Y13: =AVERAGE(OFFSET(Cat1SP!$E$10,12*($A13-1),4*(PlotControl!$C$6-1),12,1)) -> 78400.33333 | Z13: =AVERAGE(OFFSET(Cat1SP_WWTF!$C$10,12*($A13-1),4*(PlotControl!$C$6-1),12,1)) -> 0 | AA13: =AVERAGE(OFFSET(Cat1SP_WWTF!$D$10,12*($A13-1),4*(PlotControl!$C$6-1),12,1)) -> 0 | AB13: =AVERAGE(OFFSET(Cat1SP_WWTF!$E$10,12*($A13-1),4*(PlotControl!$C$6-1),12,1)) -> 0 | AC13: =AVERAGE(OFFSET(Cat1wall!$C$10,12*($A13-1),4*(PlotControl!$C$6-1),12,1)) -> 524.6175 | AD13: =AVERAGE(OFFSET(Cat1wall!$D$10,12*($A13-1),4*(PlotControl!$C$6-1),12,1)) -> 1111.516667 | AE13: =AVERAGE(OFFSET(Cat1wall!$E$10,12*($A13-1),4*(PlotControl!$C$6-1),12,1)) -> 2267.1 | AF13: =AVERAGE(OFFSET(Cat23wall!$C$10,12*($A13-1),4*(PlotControl!$C$6-1),12,1)) -> 1295.508333 | AG13: =AVERAGE(OFFSET(Cat23wall!$D$10,12*($A13-1),4*(PlotControl!$C$6-1),12,1)) -> 2744.758333 | AH13: =AVERAGE(OFFSET(Cat23wall!$E$10,12*($A13-1),4*(PlotControl!$C$6-1),12,1)) -> 5598.458333 | AI13: =AVERAGE(OFFSET(Cat4wall!$C$10,12*($A13-1),4*(PlotControl!$C$6-1),12,1)) -> 415.5866667 | AJ13: =AVERAGE(OFFSET(Cat4wall!$D$10,12*($A13-1),4*(PlotControl!$C$6-1),12,1)) -> 1111.783333 | AK13: =AVERAGE(OFFSET(Cat4wall!$E$10,12*($A13-1),4*(PlotControl!$C$6-1),12,1)) -> 3900.625 | AL13: =AVERAGE(OFFSET(Orewall!$C$10,12*($A13-1),4*(PlotControl!$C$6-1),12,1)) -> 7485.25 | AM13: =AVERAGE(OFFSET(Orewall!$D$10,12*($A13-1),4*(PlotControl!$C$6-1),12,1)) -> 15859 | AN13: =AVERAGE(OFFSET(Orewall!$E$10,12*($A13-1),4*(PlotControl!$C$6-1),12,1)) -> 32345.5 | AO13: =AVERAGE(OFFSET(TBPump!$C$10,12*($A13-1),4*(PlotControl!$C$6-1),12,1)) -> 0 | AP13: =AVERAGE(OFFSET(TBPump!$D$10,12*($A13-1),4*(PlotControl!$C$6-1),12,1)) -> 0 | AQ13: =AVERAGE(OFFSET(TBPump!$E$10,12*($A13-1),4*(PlotControl!$C$6-1),12,1)) -> 0
A14: 10 | B14: =AVERAGE(OFFSET(Total!$C$10,12*($A14-1),4*(PlotControl!$C$6-1),12,1)) -> 66194.08333 | C14: =AVERAGE(OFFSET(Total!$D$10,12*($A14-1),4*(PlotControl!$C$6-1),12,1)) -> 105178.5833 | D14: =AVERAGE(OFFSET(Total!$E$10,12*($A14-1),4*(PlotControl!$C$6-1),12,1)) -> 165905.8333 | E14: =AVERAGE(OFFSET(RO!$C$10,12*($A14-1),4*(PlotControl!$C$6-1),12,1)) -> 0 | F14: =AVERAGE(OFFSET(RO!$D$10,12*($A14-1),4*(PlotControl!$C$6-1),12,1)) -> 0 | G14: =AVERAGE(OFFSET(RO!$E$10,12*($A14-1),4*(PlotControl!$C$6-1),12,1)) -> 0 | H14: =AVERAGE(OFFSET(GW!$C$10,12*($A14-1),4*(PlotControl!$C$6-1),12,1)) -> 596.3075 | I14: =AVERAGE(OFFSET(GW!$D$10,12*($A14-1),4*(PlotControl!$C$6-1),12,1)) -> 702.6325 | J14: =AVERAGE(OFFSET(GW!$E$10,12*($A14-1),4*(PlotControl!$C$6-1),12,1)) -> 1033.715833 | K14: =AVERAGE(OFFSET(Wetland!$C$10,12*($A14-1),4*(PlotControl!$C$6-1),12,1)) -> 0 | L14: =AVERAGE(OFFSET(Wetland!$D$10,12*($A14-1),4*(PlotControl!$C$6-1),12,1)) -> 0 | M14: =AVERAGE(OFFSET(Wetland!$E$10,12*($A14-1),4*(PlotControl!$C$6-1),12,1)) -> 0 | N14: =AVERAGE(OFFSET(Pore!$C$10,12*($A14-1),4*(PlotControl!$C$6-1),12,1)) -> 0 | O14: =AVERAGE(OFFSET(Pore!$D$10,12*($A14-1),4*(PlotControl!$C$6-1),12,1)) -> 0 | P14: =AVERAGE(OFFSET(Pore!$E$10,12*($A14-1),4*(PlotControl!$C$6-1),12,1)) -> 0 | Q14: =AVERAGE(OFFSET(CPS!$C$10,12*($A14-1),4*(PlotControl!$C$6-1),12,1)) -> 0 | R14: =AVERAGE(OFFSET(CPS!$D$10,12*($A14-1),4*(PlotControl!$C$6-1),12,1)) -> 0 | S14: =AVERAGE(OFFSET(CPS!$E$10,12*($A14-1),4*(PlotControl!$C$6-1),12,1)) -> 0 | T14: =AVERAGE(OFFSET(Blast!$C$10,12*($A14-1),4*(PlotControl!$C$6-1),12,1)) -> 22318.83333 | U14: =AVERAGE(OFFSET(Blast!$D$10,12*($A14-1),4*(PlotControl!$C$6-1),12,1)) -> 43158.41667 | V14: =AVERAGE(OFFSET(Blast!$E$10,12*($A14-1),4*(PlotControl!$C$6-1),12,1)) -> 65760.58333 | W14: =AVERAGE(OFFSET(Cat1SP!$C$10,12*($A14-1),4*(PlotControl!$C$6-1),12,1)) -> 12286 | X14: =AVERAGE(OFFSET(Cat1SP!$D$10,12*($A14-1),4*(PlotControl!$C$6-1),12,1)) -> 35234.25 | Y14: =AVERAGE(OFFSET(Cat1SP!$E$10,12*($A14-1),4*(PlotControl!$C$6-1),12,1)) -> 83363.41667 | Z14: =AVERAGE(OFFSET(Cat1SP_WWTF!$C$10,12*($A14-1),4*(PlotControl!$C$6-1),12,1)) -> 0 | AA14: =AVERAGE(OFFSET(Cat1SP_WWTF!$D$10,12*($A14-1),4*(PlotControl!$C$6-1),12,1)) -> 0 | AB14: =AVERAGE(OFFSET(Cat1SP_WWTF!$E$10,12*($A14-1),4*(PlotControl!$C$6-1),12,1)) -> 0 | AC14: =AVERAGE(OFFSET(Cat1wall!$C$10,12*($A14-1),4*(PlotControl!$C$6-1),12,1)) -> 526.6258333 | AD14: =AVERAGE(OFFSET(Cat1wall!$D$10,12*($A14-1),4*(PlotControl!$C$6-1),12,1)) -> 1115.966667 | AE14: =AVERAGE(OFFSET(Cat1wall!$E$10,12*($A14-1),4*(PlotControl!$C$6-1),12,1)) -> 2222.516667 | AF14: =AVERAGE(OFFSET(Cat23wall!$C$10,12*($A14-1),4*(PlotControl!$C$6-1),12,1)) -> 1300.458333 | AG14: =AVERAGE(OFFSET(Cat23wall!$D$10,12*($A14-1),4*(PlotControl!$C$6-1),12,1)) -> 2755.783333 | AH14: =AVERAGE(OFFSET(Cat23wall!$E$10,12*($A14-1),4*(PlotControl!$C$6-1),12,1)) -> 5488.325 | AI14: =AVERAGE(OFFSET(Cat4wall!$C$10,12*($A14-1),4*(PlotControl!$C$6-1),12,1)) -> 412.1908333 | AJ14: =AVERAGE(OFFSET(Cat4wall!$D$10,12*($A14-1),4*(PlotControl!$C$6-1),12,1)) -> 1148.7 | AK14: =AVERAGE(OFFSET(Cat4wall!$E$10,12*($A14-1),4*(PlotControl!$C$6-1),12,1)) -> 3816.8 | AL14: =AVERAGE(OFFSET(Orewall!$C$10,12*($A14-1),4*(PlotControl!$C$6-1),12,1)) -> 7513.7 | AM14: =AVERAGE(OFFSET(Orewall!$D$10,12*($A14-1),4*(PlotControl!$C$6-1),12,1)) -> 15922.41667 | AN14: =AVERAGE(OFFSET(Orewall!$E$10,12*($A14-1),4*(PlotControl!$C$6-1),12,1)) -> 31710.83333 | AO14: =AVERAGE(OFFSET(TBPump!$C$10,12*($A14-1),4*(PlotControl!$C$6-1),12,1)) -> 0 | AP14: =AVERAGE(OFFSET(TBPump!$D$10,12*($A14-1),4*(PlotControl!$C$6-1),12,1)) -> 0 | AQ14: =AVERAGE(OFFSET(TBPump!$E$10,12*($A14-1),4*(PlotControl!$C$6-1),12,1)) -> 0
A15: 11 | B15: =AVERAGE(OFFSET(Total!$C$10,12*($A15-1),4*(PlotControl!$C$6-1),12,1)) -> 78913.41667 | C15: =AVERAGE(OFFSET(Total!$D$10,12*($A15-1),4*(PlotControl!$C$6-1),12,1)) -> 117419.75 | D15: =AVERAGE(OFFSET(Total!$E$10,12*($A15-1),4*(PlotControl!$C$6-1),12,1)) -> 173871.9167 | E15: =AVERAGE(OFFSET(RO!$C$10,12*($A15-1),4*(PlotControl!$C$6-1),12,1)) -> 0 | F15: =AVERAGE(OFFSET(RO!$D$10,12*($A15-1),4*(PlotControl!$C$6-1),12,1)) -> 0 | G15: =AVERAGE(OFFSET(RO!$E$10,12*($A15-1),4*(PlotControl!$C$6-1),12,1)) -> 0 | H15: =AVERAGE(OFFSET(GW!$C$10,12*($A15-1),4*(PlotControl!$C$6-1),12,1)) -> 1347.285833 | I15: =AVERAGE(OFFSET(GW!$D$10,12*($A15-1),4*(PlotControl!$C$6-1),12,1)) -> 1577.419167 | J15: =AVERAGE(OFFSET(GW!$E$10,12*($A15-1),4*(PlotControl!$C$6-1),12,1)) -> 2318.708333 | K15: =AVERAGE(OFFSET(Wetland!$C$10,12*($A15-1),4*(PlotControl!$C$6-1),12,1)) -> 0 | L15: =AVERAGE(OFFSET(Wetland!$D$10,12*($A15-1),4*(PlotControl!$C$6-1),12,1)) -> 0 | M15: =AVERAGE(OFFSET(Wetland!$E$10,12*($A15-1),4*(PlotControl!$C$6-1),12,1)) -> 0 | N15: =AVERAGE(OFFSET(Pore!$C$10,12*($A15-1),4*(PlotControl!$C$6-1),12,1)) -> 0 | O15: =AVERAGE(OFFSET(Pore!$D$10,12*($A15-1),4*(PlotControl!$C$6-1),12,1)) -> 0 | P15: =AVERAGE(OFFSET(Pore!$E$10,12*($A15-1),4*(PlotControl!$C$6-1),12,1)) -> 0 | Q15: =AVERAGE(OFFSET(CPS!$C$10,12*($A15-1),4*(PlotControl!$C$6-1),12,1)) -> 0 | R15: =AVERAGE(OFFSET(CPS!$D$10,12*($A15-1),4*(PlotControl!$C$6-1),12,1)) -> 0 | S15: =AVERAGE(OFFSET(CPS!$E$10,12*($A15-1),4*(PlotControl!$C$6-1),12,1)) -> 0 | T15: =AVERAGE(OFFSET(Blast!$C$10,12*($A15-1),4*(PlotControl!$C$6-1),12,1)) -> 33112.16667 | U15: =AVERAGE(OFFSET(Blast!$D$10,12*($A15-1),4*(PlotControl!$C$6-1),12,1)) -> 48839.25 | V15: =AVERAGE(OFFSET(Blast!$E$10,12*($A15-1),4*(PlotControl!$C$6-1),12,1)) -> 71264.33333 | W15: =AVERAGE(OFFSET(Cat1SP!$C$10,12*($A15-1),4*(PlotControl!$C$6-1),12,1)) -> 13598.5 | X15: =AVERAGE(OFFSET(Cat1SP!$D$10,12*($A15-1),4*(PlotControl!$C$6-1),12,1)) -> 37562.5 | Y15: =AVERAGE(OFFSET(Cat1SP!$E$10,12*($A15-1),4*(PlotControl!$C$6-1),12,1)) -> 89004 | Z15: =AVERAGE(OFFSET(Cat1SP_WWTF!$C$10,12*($A15-1),4*(PlotControl!$C$6-1),12,1)) -> 0 | AA15: =AVERAGE(OFFSET(Cat1SP_WWTF!$D$10,12*($A15-1),4*(PlotControl!$C$6-1),12,1)) -> 0 | AB15: =AVERAGE(OFFSET(Cat1SP_WWTF!$E$10,12*($A15-1),4*(PlotControl!$C$6-1),12,1)) -> 0 | AC15: =AVERAGE(OFFSET(Cat1wall!$C$10,12*($A15-1),4*(PlotControl!$C$6-1),12,1)) -> 510.4766667 | AD15: =AVERAGE(OFFSET(Cat1wall!$D$10,12*($A15-1),4*(PlotControl!$C$6-1),12,1)) -> 1140.225 | AE15: =AVERAGE(OFFSET(Cat1wall!$E$10,12*($A15-1),4*(PlotControl!$C$6-1),12,1)) -> 2262.158333 | AF15: =AVERAGE(OFFSET(Cat23wall!$C$10,12*($A15-1),4*(PlotControl!$C$6-1),12,1)) -> 1260.566667 | AG15: =AVERAGE(OFFSET(Cat23wall!$D$10,12*($A15-1),4*(PlotControl!$C$6-1),12,1)) -> 2815.641667 | AH15: =AVERAGE(OFFSET(Cat23wall!$E$10,12*($A15-1),4*(PlotControl!$C$6-1),12,1)) -> 5586.275 | AI15: =AVERAGE(OFFSET(Cat4wall!$C$10,12*($A15-1),4*(PlotControl!$C$6-1),12,1)) -> 399.875 | AJ15: =AVERAGE(OFFSET(Cat4wall!$D$10,12*($A15-1),4*(PlotControl!$C$6-1),12,1)) -> 1121.266667 | AK15: =AVERAGE(OFFSET(Cat4wall!$E$10,12*($A15-1),4*(PlotControl!$C$6-1),12,1)) -> 3962.991667 | AL15: =AVERAGE(OFFSET(Orewall!$C$10,12*($A15-1),4*(PlotControl!$C$6-1),12,1)) -> 7283.6 | AM15: =AVERAGE(OFFSET(Orewall!$D$10,12*($A15-1),4*(PlotControl!$C$6-1),12,1)) -> 16269 | AN15: =AVERAGE(OFFSET(Orewall!$E$10,12*($A15-1),4*(PlotControl!$C$6-1),12,1)) -> 32275.66667 | AO15: =AVERAGE(OFFSET(TBPump!$C$10,12*($A15-1),4*(PlotControl!$C$6-1),12,1)) -> 0 | AP15: =AVERAGE(OFFSET(TBPump!$D$10,12*($A15-1),4*(PlotControl!$C$6-1),12,1)) -> 0 | AQ15: =AVERAGE(OFFSET(TBPump!$E$10,12*($A15-1),4*(PlotControl!$C$6-1),12,1)) -> 0
A16: 12 | B16: =AVERAGE(OFFSET(Total!$C$10,12*($A16-1),4*(PlotControl!$C$6-1),12,1)) -> 83509 | C16: =AVERAGE(OFFSET(Total!$D$10,12*($A16-1),4*(PlotControl!$C$6-1),12,1)) -> 120795.25 | D16: =AVERAGE(OFFSET(Total!$E$10,12*($A16-1),4*(PlotControl!$C$6-1),12,1)) -> 183277.4167 | E16: =AVERAGE(OFFSET(RO!$C$10,12*($A16-1),4*(PlotControl!$C$6-1),12,1)) -> 0 | F16: =AVERAGE(OFFSET(RO!$D$10,12*($A16-1),4*(PlotControl!$C$6-1),12,1)) -> 0 | G16: =AVERAGE(OFFSET(RO!$E$10,12*($A16-1),4*(PlotControl!$C$6-1),12,1)) -> 0 | H16: =AVERAGE(OFFSET(GW!$C$10,12*($A16-1),4*(PlotControl!$C$6-1),12,1)) -> 1402.65 | I16: =AVERAGE(OFFSET(GW!$D$10,12*($A16-1),4*(PlotControl!$C$6-1),12,1)) -> 1632.758333 | J16: =AVERAGE(OFFSET(GW!$E$10,12*($A16-1),4*(PlotControl!$C$6-1),12,1)) -> 2408.575 | K16: =AVERAGE(OFFSET(Wetland!$C$10,12*($A16-1),4*(PlotControl!$C$6-1),12,1)) -> 0 | L16: =AVERAGE(OFFSET(Wetland!$D$10,12*($A16-1),4*(PlotControl!$C$6-1),12,1)) -> 0 | M16: =AVERAGE(OFFSET(Wetland!$E$10,12*($A16-1),4*(PlotControl!$C$6-1),12,1)) -> 0 | N16: =AVERAGE(OFFSET(Pore!$C$10,12*($A16-1),4*(PlotControl!$C$6-1),12,1)) -> 0 | O16: =AVERAGE(OFFSET(Pore!$D$10,12*($A16-1),4*(PlotControl!$C$6-1),12,1)) -> 0 | P16: =AVERAGE(OFFSET(Pore!$E$10,12*($A16-1),4*(PlotControl!$C$6-1),12,1)) -> 0 | Q16: =AVERAGE(OFFSET(CPS!$C$10,12*($A16-1),4*(PlotControl!$C$6-1),12,1)) -> 0 | R16: =AVERAGE(OFFSET(CPS!$D$10,12*($A16-1),4*(PlotControl!$C$6-1),12,1)) -> 0 | S16: =AVERAGE(OFFSET(CPS!$E$10,12*($A16-1),4*(PlotControl!$C$6-1),12,1)) -> 0 | T16: =AVERAGE(OFFSET(Blast!$C$10,12*($A16-1),4*(PlotControl!$C$6-1),12,1)) -> 34793.58333 | U16: =AVERAGE(OFFSET(Blast!$D$10,12*($A16-1),4*(PlotControl!$C$6-1),12,1)) -> 50630 | V16: =AVERAGE(OFFSET(Blast!$E$10,12*($A16-1),4*(PlotControl!$C$6-1),12,1)) -> 74704.25 | W16: =AVERAGE(OFFSET(Cat1SP!$C$10,12*($A16-1),4*(PlotControl!$C$6-1),12,1)) -> 15414.66667 | X16: =AVERAGE(OFFSET(Cat1SP!$D$10,12*($A16-1),4*(PlotControl!$C$6-1),12,1)) -> 40448.75 | Y16: =AVERAGE(OFFSET(Cat1SP!$E$10,12*($A16-1),4*(PlotControl!$C$6-1),12,1)) -> 95194.5 | Z16: =AVERAGE(OFFSET(Cat1SP_WWTF!$C$10,12*($A16-1),4*(PlotControl!$C$6-1),12,1)) -> 0 | AA16: =AVERAGE(OFFSET(Cat1SP_WWTF!$D$10,12*($A16-1),4*(PlotControl!$C$6-1),12,1)) -> 0 | AB16: =AVERAGE(OFFSET(Cat1SP_WWTF!$E$10,12*($A16-1),4*(PlotControl!$C$6-1),12,1)) -> 0 | AC16: =AVERAGE(OFFSET(Cat1wall!$C$10,12*($A16-1),4*(PlotControl!$C$6-1),12,1)) -> 507.2083333 | AD16: =AVERAGE(OFFSET(Cat1wall!$D$10,12*($A16-1),4*(PlotControl!$C$6-1),12,1)) -> 1135.091667 | AE16: =AVERAGE(OFFSET(Cat1wall!$E$10,12*($A16-1),4*(PlotControl!$C$6-1),12,1)) -> 2251.566667 | AF16: =AVERAGE(OFFSET(Cat23wall!$C$10,12*($A16-1),4*(PlotControl!$C$6-1),12,1)) -> 1252.525 | AG16: =AVERAGE(OFFSET(Cat23wall!$D$10,12*($A16-1),4*(PlotControl!$C$6-1),12,1)) -> 2803.033333 | AH16: =AVERAGE(OFFSET(Cat23wall!$E$10,12*($A16-1),4*(PlotControl!$C$6-1),12,1)) -> 5560.133333 | AI16: =AVERAGE(OFFSET(Cat4wall!$C$10,12*($A16-1),4*(PlotControl!$C$6-1),12,1)) -> 405.6358333 | AJ16: =AVERAGE(OFFSET(Cat4wall!$D$10,12*($A16-1),4*(PlotControl!$C$6-1),12,1)) -> 1151.841667 | AK16: =AVERAGE(OFFSET(Cat4wall!$E$10,12*($A16-1),4*(PlotControl!$C$6-1),12,1)) -> 3731.25 | AL16: =AVERAGE(OFFSET(Orewall!$C$10,12*($A16-1),4*(PlotControl!$C$6-1),12,1)) -> 7236.558333 | AM16: =AVERAGE(OFFSET(Orewall!$D$10,12*($A16-1),4*(PlotControl!$C$6-1),12,1)) -> 16195.58333 | AN16: =AVERAGE(OFFSET(Orewall!$E$10,12*($A16-1),4*(PlotControl!$C$6-1),12,1)) -> 32124.33333 | AO16: =AVERAGE(OFFSET(TBPump!$C$10,12*($A16-1),4*(PlotControl!$C$6-1),12,1)) -> 0 | AP16: =AVERAGE(OFFSET(TBPump!$D$10,12*($A16-1),4*(PlotControl!$C$6-1),12,1)) -> 0 | AQ16: =AVERAGE(OFFSET(TBPump!$E$10,12*($A16-1),4*(PlotControl!$C$6-1),12,1)) -> 0
A17: 13 | B17: =AVERAGE(OFFSET(Total!$C$10,12*($A17-1),4*(PlotControl!$C$6-1),12,1)) -> 84740.58333 | C17: =AVERAGE(OFFSET(Total!$D$10,12*($A17-1),4*(PlotControl!$C$6-1),12,1)) -> 123980.0833 | D17: =AVERAGE(OFFSET(Total!$E$10,12*($A17-1),4*(PlotControl!$C$6-1),12,1)) -> 189470.5 | E17: =AVERAGE(OFFSET(RO!$C$10,12*($A17-1),4*(PlotControl!$C$6-1),12,1)) -> 0 | F17: =AVERAGE(OFFSET(RO!$D$10,12*($A17-1),4*(PlotControl!$C$6-1),12,1)) -> 0 | G17: =AVERAGE(OFFSET(RO!$E$10,12*($A17-1),4*(PlotControl!$C$6-1),12,1)) -> 0 | H17: =AVERAGE(OFFSET(GW!$C$10,12*($A17-1),4*(PlotControl!$C$6-1),12,1)) -> 1089.9425 | I17: =AVERAGE(OFFSET(GW!$D$10,12*($A17-1),4*(PlotControl!$C$6-1),12,1)) -> 1269.383333 | J17: =AVERAGE(OFFSET(GW!$E$10,12*($A17-1),4*(PlotControl!$C$6-1),12,1)) -> 1874.191667 | K17: =AVERAGE(OFFSET(Wetland!$C$10,12*($A17-1),4*(PlotControl!$C$6-1),12,1)) -> 0 | L17: =AVERAGE(OFFSET(Wetland!$D$10,12*($A17-1),4*(PlotControl!$C$6-1),12,1)) -> 0 | M17: =AVERAGE(OFFSET(Wetland!$E$10,12*($A17-1),4*(PlotControl!$C$6-1),12,1)) -> 0 | N17: =AVERAGE(OFFSET(Pore!$C$10,12*($A17-1),4*(PlotControl!$C$6-1),12,1)) -> 0 | O17: =AVERAGE(OFFSET(Pore!$D$10,12*($A17-1),4*(PlotControl!$C$6-1),12,1)) -> 0 | P17: =AVERAGE(OFFSET(Pore!$E$10,12*($A17-1),4*(PlotControl!$C$6-1),12,1)) -> 0 | Q17: =AVERAGE(OFFSET(CPS!$C$10,12*($A17-1),4*(PlotControl!$C$6-1),12,1)) -> 0 | R17: =AVERAGE(OFFSET(CPS!$D$10,12*($A17-1),4*(PlotControl!$C$6-1),12,1)) -> 0 | S17: =AVERAGE(OFFSET(CPS!$E$10,12*($A17-1),4*(PlotControl!$C$6-1),12,1)) -> 0 | T17: =AVERAGE(OFFSET(Blast!$C$10,12*($A17-1),4*(PlotControl!$C$6-1),12,1)) -> 36163.83333 | U17: =AVERAGE(OFFSET(Blast!$D$10,12*($A17-1),4*(PlotControl!$C$6-1),12,1)) -> 50625.33333 | V17: =AVERAGE(OFFSET(Blast!$E$10,12*($A17-1),4*(PlotControl!$C$6-1),12,1)) -> 75645.08333 | W17: =AVERAGE(OFFSET(Cat1SP!$C$10,12*($A17-1),4*(PlotControl!$C$6-1),12,1)) -> 16594.75 | X17: =AVERAGE(OFFSET(Cat1SP!$D$10,12*($A17-1),4*(PlotControl!$C$6-1),12,1)) -> 43252.41667 | Y17: =AVERAGE(OFFSET(Cat1SP!$E$10,12*($A17-1),4*(PlotControl!$C$6-1),12,1)) -> 101543.5 | Z17: =AVERAGE(OFFSET(Cat1SP_WWTF!$C$10,12*($A17-1),4*(PlotControl!$C$6-1),12,1)) -> 0 | AA17: =AVERAGE(OFFSET(Cat1SP_WWTF!$D$10,12*($A17-1),4*(PlotControl!$C$6-1),12,1)) -> 0 | AB17: =AVERAGE(OFFSET(Cat1SP_WWTF!$E$10,12*($A17-1),4*(PlotControl!$C$6-1),12,1)) -> 0 | AC17: =AVERAGE(OFFSET(Cat1wall!$C$10,12*($A17-1),4*(PlotControl!$C$6-1),12,1)) -> 530.2033333 | AD17: =AVERAGE(OFFSET(Cat1wall!$D$10,12*($A17-1),4*(PlotControl!$C$6-1),12,1)) -> 1116.625 | AE17: =AVERAGE(OFFSET(Cat1wall!$E$10,12*($A17-1),4*(PlotControl!$C$6-1),12,1)) -> 2182.633333 | AF17: =AVERAGE(OFFSET(Cat23wall!$C$10,12*($A17-1),4*(PlotControl!$C$6-1),12,1)) -> 1309.291667 | AG17: =AVERAGE(OFFSET(Cat23wall!$D$10,12*($A17-1),4*(PlotControl!$C$6-1),12,1)) -> 2757.391667 | AH17: =AVERAGE(OFFSET(Cat23wall!$E$10,12*($A17-1),4*(PlotControl!$C$6-1),12,1)) -> 5389.841667 | AI17: =AVERAGE(OFFSET(Cat4wall!$C$10,12*($A17-1),4*(PlotControl!$C$6-1),12,1)) -> 437.7316667 | AJ17: =AVERAGE(OFFSET(Cat4wall!$D$10,12*($A17-1),4*(PlotControl!$C$6-1),12,1)) -> 1114.791667 | AK17: =AVERAGE(OFFSET(Cat4wall!$E$10,12*($A17-1),4*(PlotControl!$C$6-1),12,1)) -> 3800.466667 | AL17: =AVERAGE(OFFSET(Orewall!$C$10,12*($A17-1),4*(PlotControl!$C$6-1),12,1)) -> 7564.75 | AM17: =AVERAGE(OFFSET(Orewall!$D$10,12*($A17-1),4*(PlotControl!$C$6-1),12,1)) -> 15932 | AN17: =AVERAGE(OFFSET(Orewall!$E$10,12*($A17-1),4*(PlotControl!$C$6-1),12,1)) -> 31141.66667 | AO17: =AVERAGE(OFFSET(TBPump!$C$10,12*($A17-1),4*(PlotControl!$C$6-1),12,1)) -> 0 | AP17: =AVERAGE(OFFSET(TBPump!$D$10,12*($A17-1),4*(PlotControl!$C$6-1),12,1)) -> 0 | AQ17: =AVERAGE(OFFSET(TBPump!$E$10,12*($A17-1),4*(PlotControl!$C$6-1),12,1)) -> 0
A18: 14 | B18: =AVERAGE(OFFSET(Total!$C$10,12*($A18-1),4*(PlotControl!$C$6-1),12,1)) -> 78346.75 | C18: =AVERAGE(OFFSET(Total!$D$10,12*($A18-1),4*(PlotControl!$C$6-1),12,1)) -> 121798.0833 | D18: =AVERAGE(OFFSET(Total!$E$10,12*($A18-1),4*(PlotControl!$C$6-1),12,1)) -> 184303.4167 | E18: =AVERAGE(OFFSET(RO!$C$10,12*($A18-1),4*(PlotControl!$C$6-1),12,1)) -> 0 | F18: =AVERAGE(OFFSET(RO!$D$10,12*($A18-1),4*(PlotControl!$C$6-1),12,1)) -> 0 | G18: =AVERAGE(OFFSET(RO!$E$10,12*($A18-1),4*(PlotControl!$C$6-1),12,1)) -> 0 | H18: =AVERAGE(OFFSET(GW!$C$10,12*($A18-1),4*(PlotControl!$C$6-1),12,1)) -> 928.9825 | I18: =AVERAGE(OFFSET(GW!$D$10,12*($A18-1),4*(PlotControl!$C$6-1),12,1)) -> 1082.858333 | J18: =AVERAGE(OFFSET(GW!$E$10,12*($A18-1),4*(PlotControl!$C$6-1),12,1)) -> 1595.425 | K18: =AVERAGE(OFFSET(Wetland!$C$10,12*($A18-1),4*(PlotControl!$C$6-1),12,1)) -> 0 | L18: =AVERAGE(OFFSET(Wetland!$D$10,12*($A18-1),4*(PlotControl!$C$6-1),12,1)) -> 0 | M18: =AVERAGE(OFFSET(Wetland!$E$10,12*($A18-1),4*(PlotControl!$C$6-1),12,1)) -> 0 | N18: =AVERAGE(OFFSET(Pore!$C$10,12*($A18-1),4*(PlotControl!$C$6-1),12,1)) -> 0 | O18: =AVERAGE(OFFSET(Pore!$D$10,12*($A18-1),4*(PlotControl!$C$6-1),12,1)) -> 0 | P18: =AVERAGE(OFFSET(Pore!$E$10,12*($A18-1),4*(PlotControl!$C$6-1),12,1)) -> 0 | Q18: =AVERAGE(OFFSET(CPS!$C$10,12*($A18-1),4*(PlotControl!$C$6-1),12,1)) -> 0 | R18: =AVERAGE(OFFSET(CPS!$D$10,12*($A18-1),4*(PlotControl!$C$6-1),12,1)) -> 0 | S18: =AVERAGE(OFFSET(CPS!$E$10,12*($A18-1),4*(PlotControl!$C$6-1),12,1)) -> 0 | T18: =AVERAGE(OFFSET(Blast!$C$10,12*($A18-1),4*(PlotControl!$C$6-1),12,1)) -> 34674.58333 | U18: =AVERAGE(OFFSET(Blast!$D$10,12*($A18-1),4*(PlotControl!$C$6-1),12,1)) -> 49556.83333 | V18: =AVERAGE(OFFSET(Blast!$E$10,12*($A18-1),4*(PlotControl!$C$6-1),12,1)) -> 76766.66667 | W18: =AVERAGE(OFFSET(Cat1SP!$C$10,12*($A18-1),4*(PlotControl!$C$6-1),12,1)) -> 14338.16667 | X18: =AVERAGE(OFFSET(Cat1SP!$D$10,12*($A18-1),4*(PlotControl!$C$6-1),12,1)) -> 40609.66667 | Y18: =AVERAGE(OFFSET(Cat1SP!$E$10,12*($A18-1),4*(PlotControl!$C$6-1),12,1)) -> 97226.75 | Z18: =AVERAGE(OFFSET(Cat1SP_WWTF!$C$10,12*($A18-1),4*(PlotControl!$C$6-1),12,1)) -> 0 | AA18: =AVERAGE(OFFSET(Cat1SP_WWTF!$D$10,12*($A18-1),4*(PlotControl!$C$6-1),12,1)) -> 0 | AB18: =AVERAGE(OFFSET(Cat1SP_WWTF!$E$10,12*($A18-1),4*(PlotControl!$C$6-1),12,1)) -> 0 | AC18: =AVERAGE(OFFSET(Cat1wall!$C$10,12*($A18-1),4*(PlotControl!$C$6-1),12,1)) -> 520.2075 | AD18: =AVERAGE(OFFSET(Cat1wall!$D$10,12*($A18-1),4*(PlotControl!$C$6-1),12,1)) -> 1119.716667 | AE18: =AVERAGE(OFFSET(Cat1wall!$E$10,12*($A18-1),4*(PlotControl!$C$6-1),12,1)) -> 2197.175 | AF18: =AVERAGE(OFFSET(Cat23wall!$C$10,12*($A18-1),4*(PlotControl!$C$6-1),12,1)) -> 1284.625 | AG18: =AVERAGE(OFFSET(Cat23wall!$D$10,12*($A18-1),4*(PlotControl!$C$6-1),12,1)) -> 2765.1 | AH18: =AVERAGE(OFFSET(Cat23wall!$E$10,12*($A18-1),4*(PlotControl!$C$6-1),12,1)) -> 5425.791667 | AI18: =AVERAGE(OFFSET(Cat4wall!$C$10,12*($A18-1),4*(PlotControl!$C$6-1),12,1)) -> 426.1866667 | AJ18: =AVERAGE(OFFSET(Cat4wall!$D$10,12*($A18-1),4*(PlotControl!$C$6-1),12,1)) -> 1129.775 | AK18: =AVERAGE(OFFSET(Cat4wall!$E$10,12*($A18-1),4*(PlotControl!$C$6-1),12,1)) -> 3764.908333 | AL18: =AVERAGE(OFFSET(Orewall!$C$10,12*($A18-1),4*(PlotControl!$C$6-1),12,1)) -> 7422.283333 | AM18: =AVERAGE(OFFSET(Orewall!$D$10,12*($A18-1),4*(PlotControl!$C$6-1),12,1)) -> 15975.5 | AN18: =AVERAGE(OFFSET(Orewall!$E$10,12*($A18-1),4*(PlotControl!$C$6-1),12,1)) -> 31349.33333 | AO18: =AVERAGE(OFFSET(TBPump!$C$10,12*($A18-1),4*(PlotControl!$C$6-1),12,1)) -> 0 | AP18: =AVERAGE(OFFSET(TBPump!$D$10,12*($A18-1),4*(PlotControl!$C$6-1),12,1)) -> 0 | AQ18: =AVERAGE(OFFSET(TBPump!$E$10,12*($A18-1),4*(PlotControl!$C$6-1),12,1)) -> 0
A19: 15 | B19: =AVERAGE(OFFSET(Total!$C$10,12*($A19-1),4*(PlotControl!$C$6-1),12,1)) -> 78216.75 | C19: =AVERAGE(OFFSET(Total!$D$10,12*($A19-1),4*(PlotControl!$C$6-1),12,1)) -> 116504.5 | D19: =AVERAGE(OFFSET(Total!$E$10,12*($A19-1),4*(PlotControl!$C$6-1),12,1)) -> 172318.75 | E19: =AVERAGE(OFFSET(RO!$C$10,12*($A19-1),4*(PlotControl!$C$6-1),12,1)) -> 0 | F19: =AVERAGE(OFFSET(RO!$D$10,12*($A19-1),4*(PlotControl!$C$6-1),12,1)) -> 0 | G19: =AVERAGE(OFFSET(RO!$E$10,12*($A19-1),4*(PlotControl!$C$6-1),12,1)) -> 0 | H19: =AVERAGE(OFFSET(GW!$C$10,12*($A19-1),4*(PlotControl!$C$6-1),12,1)) -> 874.6716667 | I19: =AVERAGE(OFFSET(GW!$D$10,12*($A19-1),4*(PlotControl!$C$6-1),12,1)) -> 1025.735 | J19: =AVERAGE(OFFSET(GW!$E$10,12*($A19-1),4*(PlotControl!$C$6-1),12,1)) -> 1501.808333 | K19: =AVERAGE(OFFSET(Wetland!$C$10,12*($A19-1),4*(PlotControl!$C$6-1),12,1)) -> 0 | L19: =AVERAGE(OFFSET(Wetland!$D$10,12*($A19-1),4*(PlotControl!$C$6-1),12,1)) -> 0 | M19: =AVERAGE(OFFSET(Wetland!$E$10,12*($A19-1),4*(PlotControl!$C$6-1),12,1)) -> 0 | N19: =AVERAGE(OFFSET(Pore!$C$10,12*($A19-1),4*(PlotControl!$C$6-1),12,1)) -> 0 | O19: =AVERAGE(OFFSET(Pore!$D$10,12*($A19-1),4*(PlotControl!$C$6-1),12,1)) -> 0 | P19: =AVERAGE(OFFSET(Pore!$E$10,12*($A19-1),4*(PlotControl!$C$6-1),12,1)) -> 0 | Q19: =AVERAGE(OFFSET(CPS!$C$10,12*($A19-1),4*(PlotControl!$C$6-1),12,1)) -> 0 | R19: =AVERAGE(OFFSET(CPS!$D$10,12*($A19-1),4*(PlotControl!$C$6-1),12,1)) -> 0 | S19: =AVERAGE(OFFSET(CPS!$E$10,12*($A19-1),4*(PlotControl!$C$6-1),12,1)) -> 0 | T19: =AVERAGE(OFFSET(Blast!$C$10,12*($A19-1),4*(PlotControl!$C$6-1),12,1)) -> 35332.25 | U19: =AVERAGE(OFFSET(Blast!$D$10,12*($A19-1),4*(PlotControl!$C$6-1),12,1)) -> 50866.91667 | V19: =AVERAGE(OFFSET(Blast!$E$10,12*($A19-1),4*(PlotControl!$C$6-1),12,1)) -> 76688.91667 | W19: =AVERAGE(OFFSET(Cat1SP!$C$10,12*($A19-1),4*(PlotControl!$C$6-1),12,1)) -> 13553.91667 | X19: =AVERAGE(OFFSET(Cat1SP!$D$10,12*($A19-1),4*(PlotControl!$C$6-1),12,1)) -> 35969.83333 | Y19: =AVERAGE(OFFSET(Cat1SP!$E$10,12*($A19-1),4*(PlotControl!$C$6-1),12,1)) -> 84340.08333 | Z19: =AVERAGE(OFFSET(Cat1SP_WWTF!$C$10,12*($A19-1),4*(PlotControl!$C$6-1),12,1)) -> 0 | AA19: =AVERAGE(OFFSET(Cat1SP_WWTF!$D$10,12*($A19-1),4*(PlotControl!$C$6-1),12,1)) -> 0 | AB19: =AVERAGE(OFFSET(Cat1SP_WWTF!$E$10,12*($A19-1),4*(PlotControl!$C$6-1),12,1)) -> 0 | AC19: =AVERAGE(OFFSET(Cat1wall!$C$10,12*($A19-1),4*(PlotControl!$C$6-1),12,1)) -> 512.4058333 | AD19: =AVERAGE(OFFSET(Cat1wall!$D$10,12*($A19-1),4*(PlotControl!$C$6-1),12,1)) -> 1115.408333 | AE19: =AVERAGE(OFFSET(Cat1wall!$E$10,12*($A19-1),4*(PlotControl!$C$6-1),12,1)) -> 2219.35 | AF19: =AVERAGE(OFFSET(Cat23wall!$C$10,12*($A19-1),4*(PlotControl!$C$6-1),12,1)) -> 1265.341667 | AG19: =AVERAGE(OFFSET(Cat23wall!$D$10,12*($A19-1),4*(PlotControl!$C$6-1),12,1)) -> 2754.433333 | AH19: =AVERAGE(OFFSET(Cat23wall!$E$10,12*($A19-1),4*(PlotControl!$C$6-1),12,1)) -> 5480.433333 | AI19: =AVERAGE(OFFSET(Cat4wall!$C$10,12*($A19-1),4*(PlotControl!$C$6-1),12,1)) -> 397.5458333 | AJ19: =AVERAGE(OFFSET(Cat4wall!$D$10,12*($A19-1),4*(PlotControl!$C$6-1),12,1)) -> 1118.7 | AK19: =AVERAGE(OFFSET(Cat4wall!$E$10,12*($A19-1),4*(PlotControl!$C$6-1),12,1)) -> 3718.466667 | AL19: =AVERAGE(OFFSET(Orewall!$C$10,12*($A19-1),4*(PlotControl!$C$6-1),12,1)) -> 7311.108333 | AM19: =AVERAGE(OFFSET(Orewall!$D$10,12*($A19-1),4*(PlotControl!$C$6-1),12,1)) -> 15914.25 | AN19: =AVERAGE(OFFSET(Orewall!$E$10,12*($A19-1),4*(PlotControl!$C$6-1),12,1)) -> 31666.58333 | AO19: =AVERAGE(OFFSET(TBPump!$C$10,12*($A19-1),4*(PlotControl!$C$6-1),12,1)) -> 0 | AP19: =AVERAGE(OFFSET(TBPump!$D$10,12*($A19-1),4*(PlotControl!$C$6-1),12,1)) -> 0 | AQ19: =AVERAGE(OFFSET(TBPump!$E$10,12*($A19-1),4*(PlotControl!$C$6-1),12,1)) -> 0
A20: 16 | B20: =AVERAGE(OFFSET(Total!$C$10,12*($A20-1),4*(PlotControl!$C$6-1),12,1)) -> 77078.41667 | C20: =AVERAGE(OFFSET(Total!$D$10,12*($A20-1),4*(PlotControl!$C$6-1),12,1)) -> 108914.4167 | D20: =AVERAGE(OFFSET(Total!$E$10,12*($A20-1),4*(PlotControl!$C$6-1),12,1)) -> 159768.75 | E20: =AVERAGE(OFFSET(RO!$C$10,12*($A20-1),4*(PlotControl!$C$6-1),12,1)) -> 0 | F20: =AVERAGE(OFFSET(RO!$D$10,12*($A20-1),4*(PlotControl!$C$6-1),12,1)) -> 0 | G20: =AVERAGE(OFFSET(RO!$E$10,12*($A20-1),4*(PlotControl!$C$6-1),12,1)) -> 0 | H20: =AVERAGE(OFFSET(GW!$C$10,12*($A20-1),4*(PlotControl!$C$6-1),12,1)) -> 798.0708333 | I20: =AVERAGE(OFFSET(GW!$D$10,12*($A20-1),4*(PlotControl!$C$6-1),12,1)) -> 940.6866667 | J20: =AVERAGE(OFFSET(GW!$E$10,12*($A20-1),4*(PlotControl!$C$6-1),12,1)) -> 1386.141667 | K20: =AVERAGE(OFFSET(Wetland!$C$10,12*($A20-1),4*(PlotControl!$C$6-1),12,1)) -> 0 | L20: =AVERAGE(OFFSET(Wetland!$D$10,12*($A20-1),4*(PlotControl!$C$6-1),12,1)) -> 0 | M20: =AVERAGE(OFFSET(Wetland!$E$10,12*($A20-1),4*(PlotControl!$C$6-1),12,1)) -> 0 | N20: =AVERAGE(OFFSET(Pore!$C$10,12*($A20-1),4*(PlotControl!$C$6-1),12,1)) -> 0 | O20: =AVERAGE(OFFSET(Pore!$D$10,12*($A20-1),4*(PlotControl!$C$6-1),12,1)) -> 0 | P20: =AVERAGE(OFFSET(Pore!$E$10,12*($A20-1),4*(PlotControl!$C$6-1),12,1)) -> 0 | Q20: =AVERAGE(OFFSET(CPS!$C$10,12*($A20-1),4*(PlotControl!$C$6-1),12,1)) -> 0 | R20: =AVERAGE(OFFSET(CPS!$D$10,12*($A20-1),4*(PlotControl!$C$6-1),12,1)) -> 0 | S20: =AVERAGE(OFFSET(CPS!$E$10,12*($A20-1),4*(PlotControl!$C$6-1),12,1)) -> 0 | T20: =AVERAGE(OFFSET(Blast!$C$10,12*($A20-1),4*(PlotControl!$C$6-1),12,1)) -> 34905.83333 | U20: =AVERAGE(OFFSET(Blast!$D$10,12*($A20-1),4*(PlotControl!$C$6-1),12,1)) -> 50590 | V20: =AVERAGE(OFFSET(Blast!$E$10,12*($A20-1),4*(PlotControl!$C$6-1),12,1)) -> 74513.75 | W20: =AVERAGE(OFFSET(Cat1SP!$C$10,12*($A20-1),4*(PlotControl!$C$6-1),12,1)) -> 11500.35 | X20: =AVERAGE(OFFSET(Cat1SP!$D$10,12*($A20-1),4*(PlotControl!$C$6-1),12,1)) -> 29551 | Y20: =AVERAGE(OFFSET(Cat1SP!$E$10,12*($A20-1),4*(PlotControl!$C$6-1),12,1)) -> 69003.58333 | Z20: =AVERAGE(OFFSET(Cat1SP_WWTF!$C$10,12*($A20-1),4*(PlotControl!$C$6-1),12,1)) -> 0 | AA20: =AVERAGE(OFFSET(Cat1SP_WWTF!$D$10,12*($A20-1),4*(PlotControl!$C$6-1),12,1)) -> 0 | AB20: =AVERAGE(OFFSET(Cat1SP_WWTF!$E$10,12*($A20-1),4*(PlotControl!$C$6-1),12,1)) -> 0 | AC20: =AVERAGE(OFFSET(Cat1wall!$C$10,12*($A20-1),4*(PlotControl!$C$6-1),12,1)) -> 505.845 | AD20: =AVERAGE(OFFSET(Cat1wall!$D$10,12*($A20-1),4*(PlotControl!$C$6-1),12,1)) -> 1134.091667 | AE20: =AVERAGE(OFFSET(Cat1wall!$E$10,12*($A20-1),4*(PlotControl!$C$6-1),12,1)) -> 2218.308333 | AF20: =AVERAGE(OFFSET(Cat23wall!$C$10,12*($A20-1),4*(PlotControl!$C$6-1),12,1)) -> 1249.15 | AG20: =AVERAGE(OFFSET(Cat23wall!$D$10,12*($A20-1),4*(PlotControl!$C$6-1),12,1)) -> 2800.583333 | AH20: =AVERAGE(OFFSET(Cat23wall!$E$10,12*($A20-1),4*(PlotControl!$C$6-1),12,1)) -> 5477.891667 | AI20: =AVERAGE(OFFSET(Cat4wall!$C$10,12*($A20-1),4*(PlotControl!$C$6-1),12,1)) -> 415.04 | AJ20: =AVERAGE(OFFSET(Cat4wall!$D$10,12*($A20-1),4*(PlotControl!$C$6-1),12,1)) -> 1130 | AK20: =AVERAGE(OFFSET(Cat4wall!$E$10,12*($A20-1),4*(PlotControl!$C$6-1),12,1)) -> 3765.716667 | AL20: =AVERAGE(OFFSET(Orewall!$C$10,12*($A20-1),4*(PlotControl!$C$6-1),12,1)) -> 7217.3 | AM20: =AVERAGE(OFFSET(Orewall!$D$10,12*($A20-1),4*(PlotControl!$C$6-1),12,1)) -> 16180.66667 | AN20: =AVERAGE(OFFSET(Orewall!$E$10,12*($A20-1),4*(PlotControl!$C$6-1),12,1)) -> 31651.33333 | AO20: =AVERAGE(OFFSET(TBPump!$C$10,12*($A20-1),4*(PlotControl!$C$6-1),12,1)) -> 0 | AP20: =AVERAGE(OFFSET(TBPump!$D$10,12*($A20-1),4*(PlotControl!$C$6-1),12,1)) -> 0 | AQ20: =AVERAGE(OFFSET(TBPump!$E$10,12*($A20-1),4*(PlotControl!$C$6-1),12,1)) -> 0
A21: 17 | B21: =AVERAGE(OFFSET(Total!$C$10,12*($A21-1),4*(PlotControl!$C$6-1),12,1)) -> 72639.5 | C21: =AVERAGE(OFFSET(Total!$D$10,12*($A21-1),4*(PlotControl!$C$6-1),12,1)) -> 103283.25 | D21: =AVERAGE(OFFSET(Total!$E$10,12*($A21-1),4*(PlotControl!$C$6-1),12,1)) -> 147129 | E21: =AVERAGE(OFFSET(RO!$C$10,12*($A21-1),4*(PlotControl!$C$6-1),12,1)) -> 0 | F21: =AVERAGE(OFFSET(RO!$D$10,12*($A21-1),4*(PlotControl!$C$6-1),12,1)) -> 0 | G21: =AVERAGE(OFFSET(RO!$E$10,12*($A21-1),4*(PlotControl!$C$6-1),12,1)) -> 0 | H21: =AVERAGE(OFFSET(GW!$C$10,12*($A21-1),4*(PlotControl!$C$6-1),12,1)) -> 823.2758333 | I21: =AVERAGE(OFFSET(GW!$D$10,12*($A21-1),4*(PlotControl!$C$6-1),12,1)) -> 972.5008333 | J21: =AVERAGE(OFFSET(GW!$E$10,12*($A21-1),4*(PlotControl!$C$6-1),12,1)) -> 1438.391667 | K21: =AVERAGE(OFFSET(Wetland!$C$10,12*($A21-1),4*(PlotControl!$C$6-1),12,1)) -> 0 | L21: =AVERAGE(OFFSET(Wetland!$D$10,12*($A21-1),4*(PlotControl!$C$6-1),12,1)) -> 0 | M21: =AVERAGE(OFFSET(Wetland!$E$10,12*($A21-1),4*(PlotControl!$C$6-1),12,1)) -> 0 | N21: =AVERAGE(OFFSET(Pore!$C$10,12*($A21-1),4*(PlotControl!$C$6-1),12,1)) -> 0 | O21: =AVERAGE(OFFSET(Pore!$D$10,12*($A21-1),4*(PlotControl!$C$6-1),12,1)) -> 0 | P21: =AVERAGE(OFFSET(Pore!$E$10,12*($A21-1),4*(PlotControl!$C$6-1),12,1)) -> 0 | Q21: =AVERAGE(OFFSET(CPS!$C$10,12*($A21-1),4*(PlotControl!$C$6-1),12,1)) -> 0 | R21: =AVERAGE(OFFSET(CPS!$D$10,12*($A21-1),4*(PlotControl!$C$6-1),12,1)) -> 0 | S21: =AVERAGE(OFFSET(CPS!$E$10,12*($A21-1),4*(PlotControl!$C$6-1),12,1)) -> 0 | T21: =AVERAGE(OFFSET(Blast!$C$10,12*($A21-1),4*(PlotControl!$C$6-1),12,1)) -> 35509.25 | U21: =AVERAGE(OFFSET(Blast!$D$10,12*($A21-1),4*(PlotControl!$C$6-1),12,1)) -> 51041.08333 | V21: =AVERAGE(OFFSET(Blast!$E$10,12*($A21-1),4*(PlotControl!$C$6-1),12,1)) -> 73317.66667 | W21: =AVERAGE(OFFSET(Cat1SP!$C$10,12*($A21-1),4*(PlotControl!$C$6-1),12,1)) -> 9241.316667 | X21: =AVERAGE(OFFSET(Cat1SP!$D$10,12*($A21-1),4*(PlotControl!$C$6-1),12,1)) -> 24214.83333 | Y21: =AVERAGE(OFFSET(Cat1SP!$E$10,12*($A21-1),4*(PlotControl!$C$6-1),12,1)) -> 55917.25 | Z21: =AVERAGE(OFFSET(Cat1SP_WWTF!$C$10,12*($A21-1),4*(PlotControl!$C$6-1),12,1)) -> 0 | AA21: =AVERAGE(OFFSET(Cat1SP_WWTF!$D$10,12*($A21-1),4*(PlotControl!$C$6-1),12,1)) -> 0 | AB21: =AVERAGE(OFFSET(Cat1SP_WWTF!$E$10,12*($A21-1),4*(PlotControl!$C$6-1),12,1)) -> 0 | AC21: =AVERAGE(OFFSET(Cat1wall!$C$10,12*($A21-1),4*(PlotControl!$C$6-1),12,1)) -> 520.9225 | AD21: =AVERAGE(OFFSET(Cat1wall!$D$10,12*($A21-1),4*(PlotControl!$C$6-1),12,1)) -> 1120.275 | AE21: =AVERAGE(OFFSET(Cat1wall!$E$10,12*($A21-1),4*(PlotControl!$C$6-1),12,1)) -> 2256.191667 | AF21: =AVERAGE(OFFSET(Cat23wall!$C$10,12*($A21-1),4*(PlotControl!$C$6-1),12,1)) -> 1286.383333 | AG21: =AVERAGE(OFFSET(Cat23wall!$D$10,12*($A21-1),4*(PlotControl!$C$6-1),12,1)) -> 2766.416667 | AH21: =AVERAGE(OFFSET(Cat23wall!$E$10,12*($A21-1),4*(PlotControl!$C$6-1),12,1)) -> 5571.491667 | AI21: =AVERAGE(OFFSET(Cat4wall!$C$10,12*($A21-1),4*(PlotControl!$C$6-1),12,1)) -> 402.9808333 | AJ21: =AVERAGE(OFFSET(Cat4wall!$D$10,12*($A21-1),4*(PlotControl!$C$6-1),12,1)) -> 1127.508333 | AK21: =AVERAGE(OFFSET(Cat4wall!$E$10,12*($A21-1),4*(PlotControl!$C$6-1),12,1)) -> 3761.691667 | AL21: =AVERAGE(OFFSET(Orewall!$C$10,12*($A21-1),4*(PlotControl!$C$6-1),12,1)) -> 7432.35 | AM21: =AVERAGE(OFFSET(Orewall!$D$10,12*($A21-1),4*(PlotControl!$C$6-1),12,1)) -> 15983.83333 | AN21: =AVERAGE(OFFSET(Orewall!$E$10,12*($A21-1),4*(PlotControl!$C$6-1),12,1)) -> 32191.75 | AO21: =AVERAGE(OFFSET(TBPump!$C$10,12*($A21-1),4*(PlotControl!$C$6-1),12,1)) -> 0 | AP21: =AVERAGE(OFFSET(TBPump!$D$10,12*($A21-1),4*(PlotControl!$C$6-1),12,1)) -> 0 | AQ21: =AVERAGE(OFFSET(TBPump!$E$10,12*($A21-1),4*(PlotControl!$C$6-1),12,1)) -> 0
A22: 18 | B22: =AVERAGE(OFFSET(Total!$C$10,12*($A22-1),4*(PlotControl!$C$6-1),12,1)) -> 69776.08333 | C22: =AVERAGE(OFFSET(Total!$D$10,12*($A22-1),4*(PlotControl!$C$6-1),12,1)) -> 99945.41667 | D22: =AVERAGE(OFFSET(Total!$E$10,12*($A22-1),4*(PlotControl!$C$6-1),12,1)) -> 139298.3333 | E22: =AVERAGE(OFFSET(RO!$C$10,12*($A22-1),4*(PlotControl!$C$6-1),12,1)) -> 0 | F22: =AVERAGE(OFFSET(RO!$D$10,12*($A22-1),4*(PlotControl!$C$6-1),12,1)) -> 0 | G22: =AVERAGE(OFFSET(RO!$E$10,12*($A22-1),4*(PlotControl!$C$6-1),12,1)) -> 0 | H22: =AVERAGE(OFFSET(GW!$C$10,12*($A22-1),4*(PlotControl!$C$6-1),12,1)) -> 846.4766667 | I22: =AVERAGE(OFFSET(GW!$D$10,12*($A22-1),4*(PlotControl!$C$6-1),12,1)) -> 999.0941667 | J22: =AVERAGE(OFFSET(GW!$E$10,12*($A22-1),4*(PlotControl!$C$6-1),12,1)) -> 1481.541667 | K22: =AVERAGE(OFFSET(Wetland!$C$10,12*($A22-1),4*(PlotControl!$C$6-1),12,1)) -> 0 | L22: =AVERAGE(OFFSET(Wetland!$D$10,12*($A22-1),4*(PlotControl!$C$6-1),12,1)) -> 0 | M22: =AVERAGE(OFFSET(Wetland!$E$10,12*($A22-1),4*(PlotControl!$C$6-1),12,1)) -> 0 | N22: =AVERAGE(OFFSET(Pore!$C$10,12*($A22-1),4*(PlotControl!$C$6-1),12,1)) -> 0 | O22: =AVERAGE(OFFSET(Pore!$D$10,12*($A22-1),4*(PlotControl!$C$6-1),12,1)) -> 0 | P22: =AVERAGE(OFFSET(Pore!$E$10,12*($A22-1),4*(PlotControl!$C$6-1),12,1)) -> 0 | Q22: =AVERAGE(OFFSET(CPS!$C$10,12*($A22-1),4*(PlotControl!$C$6-1),12,1)) -> 0 | R22: =AVERAGE(OFFSET(CPS!$D$10,12*($A22-1),4*(PlotControl!$C$6-1),12,1)) -> 0 | S22: =AVERAGE(OFFSET(CPS!$E$10,12*($A22-1),4*(PlotControl!$C$6-1),12,1)) -> 0 | T22: =AVERAGE(OFFSET(Blast!$C$10,12*($A22-1),4*(PlotControl!$C$6-1),12,1)) -> 34926.08333 | U22: =AVERAGE(OFFSET(Blast!$D$10,12*($A22-1),4*(PlotControl!$C$6-1),12,1)) -> 49838.25 | V22: =AVERAGE(OFFSET(Blast!$E$10,12*($A22-1),4*(PlotControl!$C$6-1),12,1)) -> 76873.58333 | W22: =AVERAGE(OFFSET(Cat1SP!$C$10,12*($A22-1),4*(PlotControl!$C$6-1),12,1)) -> 8223.6 | X22: =AVERAGE(OFFSET(Cat1SP!$D$10,12*($A22-1),4*(PlotControl!$C$6-1),12,1)) -> 20444.75 | Y22: =AVERAGE(OFFSET(Cat1SP!$E$10,12*($A22-1),4*(PlotControl!$C$6-1),12,1)) -> 46454.5 | Z22: =AVERAGE(OFFSET(Cat1SP_WWTF!$C$10,12*($A22-1),4*(PlotControl!$C$6-1),12,1)) -> 0 | AA22: =AVERAGE(OFFSET(Cat1SP_WWTF!$D$10,12*($A22-1),4*(PlotControl!$C$6-1),12,1)) -> 0 | AB22: =AVERAGE(OFFSET(Cat1SP_WWTF!$E$10,12*($A22-1),4*(PlotControl!$C$6-1),12,1)) -> 0 | AC22: =AVERAGE(OFFSET(Cat1wall!$C$10,12*($A22-1),4*(PlotControl!$C$6-1),12,1)) -> 516.9316667 | AD22: =AVERAGE(OFFSET(Cat1wall!$D$10,12*($A22-1),4*(PlotControl!$C$6-1),12,1)) -> 1112.516667 | AE22: =AVERAGE(OFFSET(Cat1wall!$E$10,12*($A22-1),4*(PlotControl!$C$6-1),12,1)) -> 2207.266667 | AF22: =AVERAGE(OFFSET(Cat23wall!$C$10,12*($A22-1),4*(PlotControl!$C$6-1),12,1)) -> 1276.525 | AG22: =AVERAGE(OFFSET(Cat23wall!$D$10,12*($A22-1),4*(PlotControl!$C$6-1),12,1)) -> 2747.283333 | AH22: =AVERAGE(OFFSET(Cat23wall!$E$10,12*($A22-1),4*(PlotControl!$C$6-1),12,1)) -> 5450.608333 | AI22: =AVERAGE(OFFSET(Cat4wall!$C$10,12*($A22-1),4*(PlotControl!$C$6-1),12,1)) -> 398.415 | AJ22: =AVERAGE(OFFSET(Cat4wall!$D$10,12*($A22-1),4*(PlotControl!$C$6-1),12,1)) -> 1086.116667 | AK22: =AVERAGE(OFFSET(Cat4wall!$E$10,12*($A22-1),4*(PlotControl!$C$6-1),12,1)) -> 3758.816667 | AL22: =AVERAGE(OFFSET(Orewall!$C$10,12*($A22-1),4*(PlotControl!$C$6-1),12,1)) -> 7375.475 | AM22: =AVERAGE(OFFSET(Orewall!$D$10,12*($A22-1),4*(PlotControl!$C$6-1),12,1)) -> 15873 | AN22: =AVERAGE(OFFSET(Orewall!$E$10,12*($A22-1),4*(PlotControl!$C$6-1),12,1)) -> 31595.5 | AO22: =AVERAGE(OFFSET(TBPump!$C$10,12*($A22-1),4*(PlotControl!$C$6-1),12,1)) -> 0 | AP22: =AVERAGE(OFFSET(TBPump!$D$10,12*($A22-1),4*(PlotControl!$C$6-1),12,1)) -> 0 | AQ22: =AVERAGE(OFFSET(TBPump!$E$10,12*($A22-1),4*(PlotControl!$C$6-1),12,1)) -> 0
A23: 19 | B23: =AVERAGE(OFFSET(Total!$C$10,12*($A23-1),4*(PlotControl!$C$6-1),12,1)) -> 66710 | C23: =AVERAGE(OFFSET(Total!$D$10,12*($A23-1),4*(PlotControl!$C$6-1),12,1)) -> 93926.83333 | D23: =AVERAGE(OFFSET(Total!$E$10,12*($A23-1),4*(PlotControl!$C$6-1),12,1)) -> 131565.5 | E23: =AVERAGE(OFFSET(RO!$C$10,12*($A23-1),4*(PlotControl!$C$6-1),12,1)) -> 0 | F23: =AVERAGE(OFFSET(RO!$D$10,12*($A23-1),4*(PlotControl!$C$6-1),12,1)) -> 0 | G23: =AVERAGE(OFFSET(RO!$E$10,12*($A23-1),4*(PlotControl!$C$6-1),12,1)) -> 0 | H23: =AVERAGE(OFFSET(GW!$C$10,12*($A23-1),4*(PlotControl!$C$6-1),12,1)) -> 870.385 | I23: =AVERAGE(OFFSET(GW!$D$10,12*($A23-1),4*(PlotControl!$C$6-1),12,1)) -> 1029.275 | J23: =AVERAGE(OFFSET(GW!$E$10,12*($A23-1),4*(PlotControl!$C$6-1),12,1)) -> 1520.691667 | K23: =AVERAGE(OFFSET(Wetland!$C$10,12*($A23-1),4*(PlotControl!$C$6-1),12,1)) -> 0 | L23: =AVERAGE(OFFSET(Wetland!$D$10,12*($A23-1),4*(PlotControl!$C$6-1),12,1)) -> 0 | M23: =AVERAGE(OFFSET(Wetland!$E$10,12*($A23-1),4*(PlotControl!$C$6-1),12,1)) -> 0 | N23: =AVERAGE(OFFSET(Pore!$C$10,12*($A23-1),4*(PlotControl!$C$6-1),12,1)) -> 0 | O23: =AVERAGE(OFFSET(Pore!$D$10,12*($A23-1),4*(PlotControl!$C$6-1),12,1)) -> 0 | P23: =AVERAGE(OFFSET(Pore!$E$10,12*($A23-1),4*(PlotControl!$C$6-1),12,1)) -> 0 | Q23: =AVERAGE(OFFSET(CPS!$C$10,12*($A23-1),4*(PlotControl!$C$6-1),12,1)) -> 0 | R23: =AVERAGE(OFFSET(CPS!$D$10,12*($A23-1),4*(PlotControl!$C$6-1),12,1)) -> 0 | S23: =AVERAGE(OFFSET(CPS!$E$10,12*($A23-1),4*(PlotControl!$C$6-1),12,1)) -> 0 | T23: =AVERAGE(OFFSET(Blast!$C$10,12*($A23-1),4*(PlotControl!$C$6-1),12,1)) -> 34690.66667 | U23: =AVERAGE(OFFSET(Blast!$D$10,12*($A23-1),4*(PlotControl!$C$6-1),12,1)) -> 51060.75 | V23: =AVERAGE(OFFSET(Blast!$E$10,12*($A23-1),4*(PlotControl!$C$6-1),12,1)) -> 74394.41667 | W23: =AVERAGE(OFFSET(Cat1SP!$C$10,12*($A23-1),4*(PlotControl!$C$6-1),12,1)) -> 6416.891667 | X23: =AVERAGE(OFFSET(Cat1SP!$D$10,12*($A23-1),4*(PlotControl!$C$6-1),12,1)) -> 14952.00833 | Y23: =AVERAGE(OFFSET(Cat1SP!$E$10,12*($A23-1),4*(PlotControl!$C$6-1),12,1)) -> 33346.5 | Z23: =AVERAGE(OFFSET(Cat1SP_WWTF!$C$10,12*($A23-1),4*(PlotControl!$C$6-1),12,1)) -> 0 | AA23: =AVERAGE(OFFSET(Cat1SP_WWTF!$D$10,12*($A23-1),4*(PlotControl!$C$6-1),12,1)) -> 0 | AB23: =AVERAGE(OFFSET(Cat1SP_WWTF!$E$10,12*($A23-1),4*(PlotControl!$C$6-1),12,1)) -> 0 | AC23: =AVERAGE(OFFSET(Cat1wall!$C$10,12*($A23-1),4*(PlotControl!$C$6-1),12,1)) -> 524.6825 | AD23: =AVERAGE(OFFSET(Cat1wall!$D$10,12*($A23-1),4*(PlotControl!$C$6-1),12,1)) -> 1112.575 | AE23: =AVERAGE(OFFSET(Cat1wall!$E$10,12*($A23-1),4*(PlotControl!$C$6-1),12,1)) -> 2187.716667 | AF23: =AVERAGE(OFFSET(Cat23wall!$C$10,12*($A23-1),4*(PlotControl!$C$6-1),12,1)) -> 1295.666667 | AG23: =AVERAGE(OFFSET(Cat23wall!$D$10,12*($A23-1),4*(PlotControl!$C$6-1),12,1)) -> 2747.408333 | AH23: =AVERAGE(OFFSET(Cat23wall!$E$10,12*($A23-1),4*(PlotControl!$C$6-1),12,1)) -> 5402.425 | AI23: =AVERAGE(OFFSET(Cat4wall!$C$10,12*($A23-1),4*(PlotControl!$C$6-1),12,1)) -> 406.1283333 | AJ23: =AVERAGE(OFFSET(Cat4wall!$D$10,12*($A23-1),4*(PlotControl!$C$6-1),12,1)) -> 1151.483333 | AK23: =AVERAGE(OFFSET(Cat4wall!$E$10,12*($A23-1),4*(PlotControl!$C$6-1),12,1)) -> 3941.258333 | AL23: =AVERAGE(OFFSET(Orewall!$C$10,12*($A23-1),4*(PlotControl!$C$6-1),12,1)) -> 7486.025 | AM23: =AVERAGE(OFFSET(Orewall!$D$10,12*($A23-1),4*(PlotControl!$C$6-1),12,1)) -> 16089.75 | AN23: =AVERAGE(OFFSET(Orewall!$E$10,12*($A23-1),4*(PlotControl!$C$6-1),12,1)) -> 31867.83333 | AO23: =AVERAGE(OFFSET(TBPump!$C$10,12*($A23-1),4*(PlotControl!$C$6-1),12,1)) -> 0 | AP23: =AVERAGE(OFFSET(TBPump!$D$10,12*($A23-1),4*(PlotControl!$C$6-1),12,1)) -> 0 | AQ23: =AVERAGE(OFFSET(TBPump!$E$10,12*($A23-1),4*(PlotControl!$C$6-1),12,1)) -> 0
A24: 20 | B24: =AVERAGE(OFFSET(Total!$C$10,12*($A24-1),4*(PlotControl!$C$6-1),12,1)) -> 50182.41667 | C24: =AVERAGE(OFFSET(Total!$D$10,12*($A24-1),4*(PlotControl!$C$6-1),12,1)) -> 86483.66667 | D24: =AVERAGE(OFFSET(Total!$E$10,12*($A24-1),4*(PlotControl!$C$6-1),12,1)) -> 126384.75 | E24: =AVERAGE(OFFSET(RO!$C$10,12*($A24-1),4*(PlotControl!$C$6-1),12,1)) -> 0 | F24: =AVERAGE(OFFSET(RO!$D$10,12*($A24-1),4*(PlotControl!$C$6-1),12,1)) -> 0 | G24: =AVERAGE(OFFSET(RO!$E$10,12*($A24-1),4*(PlotControl!$C$6-1),12,1)) -> 0 | H24: =AVERAGE(OFFSET(GW!$C$10,12*($A24-1),4*(PlotControl!$C$6-1),12,1)) -> 900.1875 | I24: =AVERAGE(OFFSET(GW!$D$10,12*($A24-1),4*(PlotControl!$C$6-1),12,1)) -> 1067.6 | J24: =AVERAGE(OFFSET(GW!$E$10,12*($A24-1),4*(PlotControl!$C$6-1),12,1)) -> 1575.625 | K24: =AVERAGE(OFFSET(Wetland!$C$10,12*($A24-1),4*(PlotControl!$C$6-1),12,1)) -> 0 | L24: =AVERAGE(OFFSET(Wetland!$D$10,12*($A24-1),4*(PlotControl!$C$6-1),12,1)) -> 0 | M24: =AVERAGE(OFFSET(Wetland!$E$10,12*($A24-1),4*(PlotControl!$C$6-1),12,1)) -> 0 | N24: =AVERAGE(OFFSET(Pore!$C$10,12*($A24-1),4*(PlotControl!$C$6-1),12,1)) -> 13.0975 | O24: =AVERAGE(OFFSET(Pore!$D$10,12*($A24-1),4*(PlotControl!$C$6-1),12,1)) -> 30.7925 | P24: =AVERAGE(OFFSET(Pore!$E$10,12*($A24-1),4*(PlotControl!$C$6-1),12,1)) -> 54.02166667 | Q24: =AVERAGE(OFFSET(CPS!$C$10,12*($A24-1),4*(PlotControl!$C$6-1),12,1)) -> 0 | R24: =AVERAGE(OFFSET(CPS!$D$10,12*($A24-1),4*(PlotControl!$C$6-1),12,1)) -> 0 | S24: =AVERAGE(OFFSET(CPS!$E$10,12*($A24-1),4*(PlotControl!$C$6-1),12,1)) -> 0 | T24: =AVERAGE(OFFSET(Blast!$C$10,12*($A24-1),4*(PlotControl!$C$6-1),12,1)) -> 23256.55833 | U24: =AVERAGE(OFFSET(Blast!$D$10,12*($A24-1),4*(PlotControl!$C$6-1),12,1)) -> 49337 | V24: =AVERAGE(OFFSET(Blast!$E$10,12*($A24-1),4*(PlotControl!$C$6-1),12,1)) -> 74925.41667 | W24: =AVERAGE(OFFSET(Cat1SP!$C$10,12*($A24-1),4*(PlotControl!$C$6-1),12,1)) -> 4020.141667 | X24: =AVERAGE(OFFSET(Cat1SP!$D$10,12*($A24-1),4*(PlotControl!$C$6-1),12,1)) -> 9374.508333 | Y24: =AVERAGE(OFFSET(Cat1SP!$E$10,12*($A24-1),4*(PlotControl!$C$6-1),12,1)) -> 19700.25 | Z24: =AVERAGE(OFFSET(Cat1SP_WWTF!$C$10,12*($A24-1),4*(PlotControl!$C$6-1),12,1)) -> 0 | AA24: =AVERAGE(OFFSET(Cat1SP_WWTF!$D$10,12*($A24-1),4*(PlotControl!$C$6-1),12,1)) -> 0 | AB24: =AVERAGE(OFFSET(Cat1SP_WWTF!$E$10,12*($A24-1),4*(PlotControl!$C$6-1),12,1)) -> 0 | AC24: =AVERAGE(OFFSET(Cat1wall!$C$10,12*($A24-1),4*(PlotControl!$C$6-1),12,1)) -> 509.4575 | AD24: =AVERAGE(OFFSET(Cat1wall!$D$10,12*($A24-1),4*(PlotControl!$C$6-1),12,1)) -> 1135.233333 | AE24: =AVERAGE(OFFSET(Cat1wall!$E$10,12*($A24-1),4*(PlotControl!$C$6-1),12,1)) -> 2240.25 | AF24: =AVERAGE(OFFSET(Cat23wall!$C$10,12*($A24-1),4*(PlotControl!$C$6-1),12,1)) -> 1260.975 | AG24: =AVERAGE(OFFSET(Cat23wall!$D$10,12*($A24-1),4*(PlotControl!$C$6-1),12,1)) -> 2807.041667 | AH24: =AVERAGE(OFFSET(Cat23wall!$E$10,12*($A24-1),4*(PlotControl!$C$6-1),12,1)) -> 5573.6 | AI24: =AVERAGE(OFFSET(Cat4wall!$C$10,12*($A24-1),4*(PlotControl!$C$6-1),12,1)) -> 425.0616667 | AJ24: =AVERAGE(OFFSET(Cat4wall!$D$10,12*($A24-1),4*(PlotControl!$C$6-1),12,1)) -> 1159.508333 | AK24: =AVERAGE(OFFSET(Cat4wall!$E$10,12*($A24-1),4*(PlotControl!$C$6-1),12,1)) -> 4239.283333 | AL24: =AVERAGE(OFFSET(Orewall!$C$10,12*($A24-1),4*(PlotControl!$C$6-1),12,1)) -> 7268.966667 | AM24: =AVERAGE(OFFSET(Orewall!$D$10,12*($A24-1),4*(PlotControl!$C$6-1),12,1)) -> 16424.41667 | AN24: =AVERAGE(OFFSET(Orewall!$E$10,12*($A24-1),4*(PlotControl!$C$6-1),12,1)) -> 33371.25 | AO24: =AVERAGE(OFFSET(TBPump!$C$10,12*($A24-1),4*(PlotControl!$C$6-1),12,1)) -> 0 | AP24: =AVERAGE(OFFSET(TBPump!$D$10,12*($A24-1),4*(PlotControl!$C$6-1),12,1)) -> 0 | AQ24: =AVERAGE(OFFSET(TBPump!$E$10,12*($A24-1),4*(PlotControl!$C$6-1),12,1)) -> 0
A25: 21 | B25: =AVERAGE(OFFSET(Total!$C$10,12*($A25-1),4*(PlotControl!$C$6-1),12,1)) -> 311901.75 | C25: =AVERAGE(OFFSET(Total!$D$10,12*($A25-1),4*(PlotControl!$C$6-1),12,1)) -> 557771.0833 | D25: =AVERAGE(OFFSET(Total!$E$10,12*($A25-1),4*(PlotControl!$C$6-1),12,1)) -> 1132056.333 | E25: =AVERAGE(OFFSET(RO!$C$10,12*($A25-1),4*(PlotControl!$C$6-1),12,1)) -> 847.7766667 | F25: =AVERAGE(OFFSET(RO!$D$10,12*($A25-1),4*(PlotControl!$C$6-1),12,1)) -> 2765.9 | G25: =AVERAGE(OFFSET(RO!$E$10,12*($A25-1),4*(PlotControl!$C$6-1),12,1)) -> 8834.766667 | H25: =AVERAGE(OFFSET(GW!$C$10,12*($A25-1),4*(PlotControl!$C$6-1),12,1)) -> 969.2958333 | I25: =AVERAGE(OFFSET(GW!$D$10,12*($A25-1),4*(PlotControl!$C$6-1),12,1)) -> 1138.6 | J25: =AVERAGE(OFFSET(GW!$E$10,12*($A25-1),4*(PlotControl!$C$6-1),12,1)) -> 1667.45 | K25: =AVERAGE(OFFSET(Wetland!$C$10,12*($A25-1),4*(PlotControl!$C$6-1),12,1)) -> 0 | L25: =AVERAGE(OFFSET(Wetland!$D$10,12*($A25-1),4*(PlotControl!$C$6-1),12,1)) -> 33710.83333 | M25: =AVERAGE(OFFSET(Wetland!$E$10,12*($A25-1),4*(PlotControl!$C$6-1),12,1)) -> 68601 | N25: =AVERAGE(OFFSET(Pore!$C$10,12*($A25-1),4*(PlotControl!$C$6-1),12,1)) -> 124.2166667 | O25: =AVERAGE(OFFSET(Pore!$D$10,12*($A25-1),4*(PlotControl!$C$6-1),12,1)) -> 304.5191667 | P25: =AVERAGE(OFFSET(Pore!$E$10,12*($A25-1),4*(PlotControl!$C$6-1),12,1)) -> 572.1933333 | Q25: =AVERAGE(OFFSET(CPS!$C$10,12*($A25-1),4*(PlotControl!$C$6-1),12,1)) -> 0 | R25: =AVERAGE(OFFSET(CPS!$D$10,12*($A25-1),4*(PlotControl!$C$6-1),12,1)) -> 22623.66667 | S25: =AVERAGE(OFFSET(CPS!$E$10,12*($A25-1),4*(PlotControl!$C$6-1),12,1)) -> 453337.25 | T25: =AVERAGE(OFFSET(Blast!$C$10,12*($A25-1),4*(PlotControl!$C$6-1),12,1)) -> 171.5691102 | U25: =AVERAGE(OFFSET(Blast!$D$10,12*($A25-1),4*(PlotControl!$C$6-1),12,1)) -> 2435.60328 | V25: =AVERAGE(OFFSET(Blast!$E$10,12*($A25-1),4*(PlotControl!$C$6-1),12,1)) -> 4346.236436 | W25: =AVERAGE(OFFSET(Cat1SP!$C$10,12*($A25-1),4*(PlotControl!$C$6-1),12,1)) -> 1907.4725 | X25: =AVERAGE(OFFSET(Cat1SP!$D$10,12*($A25-1),4*(PlotControl!$C$6-1),12,1)) -> 4273.009167 | Y25: =AVERAGE(OFFSET(Cat1SP!$E$10,12*($A25-1),4*(PlotControl!$C$6-1),12,1)) -> 8086.033333 | Z25: =AVERAGE(OFFSET(Cat1SP_WWTF!$C$10,12*($A25-1),4*(PlotControl!$C$6-1),12,1)) -> 1121.383333 | AA25: =AVERAGE(OFFSET(Cat1SP_WWTF!$D$10,12*($A25-1),4*(PlotControl!$C$6-1),12,1)) -> 6491.083333 | AB25: =AVERAGE(OFFSET(Cat1SP_WWTF!$E$10,12*($A25-1),4*(PlotControl!$C$6-1),12,1)) -> 24353.83333 | AC25: =AVERAGE(OFFSET(Cat1wall!$C$10,12*($A25-1),4*(PlotControl!$C$6-1),12,1)) -> 1020.934167 | AD25: =AVERAGE(OFFSET(Cat1wall!$D$10,12*($A25-1),4*(PlotControl!$C$6-1),12,1)) -> 2540.383333 | AE25: =AVERAGE(OFFSET(Cat1wall!$E$10,12*($A25-1),4*(PlotControl!$C$6-1),12,1)) -> 13184.48333 | AF25: =AVERAGE(OFFSET(Cat23wall!$C$10,12*($A25-1),4*(PlotControl!$C$6-1),12,1)) -> 3987.016667 | AG25: =AVERAGE(OFFSET(Cat23wall!$D$10,12*($A25-1),4*(PlotControl!$C$6-1),12,1)) -> 9134.866667 | AH25: =AVERAGE(OFFSET(Cat23wall!$E$10,12*($A25-1),4*(PlotControl!$C$6-1),12,1)) -> 38548.40833 | AI25: =AVERAGE(OFFSET(Cat4wall!$C$10,12*($A25-1),4*(PlotControl!$C$6-1),12,1)) -> 3162.1875 | AJ25: =AVERAGE(OFFSET(Cat4wall!$D$10,12*($A25-1),4*(PlotControl!$C$6-1),12,1)) -> 10848.8 | AK25: =AVERAGE(OFFSET(Cat4wall!$E$10,12*($A25-1),4*(PlotControl!$C$6-1),12,1)) -> 38559.14167 | AL25: =AVERAGE(OFFSET(Orewall!$C$10,12*($A25-1),4*(PlotControl!$C$6-1),12,1)) -> 21977.525 | AM25: =AVERAGE(OFFSET(Orewall!$D$10,12*($A25-1),4*(PlotControl!$C$6-1),12,1)) -> 51638.58333 | AN25: =AVERAGE(OFFSET(Orewall!$E$10,12*($A25-1),4*(PlotControl!$C$6-1),12,1)) -> 242347.5 | AO25: =AVERAGE(OFFSET(TBPump!$C$10,12*($A25-1),4*(PlotControl!$C$6-1),12,1)) -> 182596.6667 | AP25: =AVERAGE(OFFSET(TBPump!$D$10,12*($A25-1),4*(PlotControl!$C$6-1),12,1)) -> 315355 | AQ25: =AVERAGE(OFFSET(TBPump!$E$10,12*($A25-1),4*(PlotControl!$C$6-1),12,1)) -> 467426.6667
A26: 22 | B26: =AVERAGE(OFFSET(Total!$C$10,12*($A26-1),4*(PlotControl!$C$6-1),12,1)) -> 388470 | C26: =AVERAGE(OFFSET(Total!$D$10,12*($A26-1),4*(PlotControl!$C$6-1),12,1)) -> 578626.6667 | D26: =AVERAGE(OFFSET(Total!$E$10,12*($A26-1),4*(PlotControl!$C$6-1),12,1)) -> 808521.6667 | E26: =AVERAGE(OFFSET(RO!$C$10,12*($A26-1),4*(PlotControl!$C$6-1),12,1)) -> 841.8008333 | F26: =AVERAGE(OFFSET(RO!$D$10,12*($A26-1),4*(PlotControl!$C$6-1),12,1)) -> 2693.133333 | G26: =AVERAGE(OFFSET(RO!$E$10,12*($A26-1),4*(PlotControl!$C$6-1),12,1)) -> 8784.491667 | H26: =AVERAGE(OFFSET(GW!$C$10,12*($A26-1),4*(PlotControl!$C$6-1),12,1)) -> 961.0766667 | I26: =AVERAGE(OFFSET(GW!$D$10,12*($A26-1),4*(PlotControl!$C$6-1),12,1)) -> 1126.816667 | J26: =AVERAGE(OFFSET(GW!$E$10,12*($A26-1),4*(PlotControl!$C$6-1),12,1)) -> 1649.041667 | K26: =AVERAGE(OFFSET(Wetland!$C$10,12*($A26-1),4*(PlotControl!$C$6-1),12,1)) -> 0 | L26: =AVERAGE(OFFSET(Wetland!$D$10,12*($A26-1),4*(PlotControl!$C$6-1),12,1)) -> 0 | M26: =AVERAGE(OFFSET(Wetland!$E$10,12*($A26-1),4*(PlotControl!$C$6-1),12,1)) -> 0 | N26: =AVERAGE(OFFSET(Pore!$C$10,12*($A26-1),4*(PlotControl!$C$6-1),12,1)) -> 0 | O26: =AVERAGE(OFFSET(Pore!$D$10,12*($A26-1),4*(PlotControl!$C$6-1),12,1)) -> 0 | P26: =AVERAGE(OFFSET(Pore!$E$10,12*($A26-1),4*(PlotControl!$C$6-1),12,1)) -> 0 | Q26: =AVERAGE(OFFSET(CPS!$C$10,12*($A26-1),4*(PlotControl!$C$6-1),12,1)) -> 80870.83333 | R26: =AVERAGE(OFFSET(CPS!$D$10,12*($A26-1),4*(PlotControl!$C$6-1),12,1)) -> 81374.66667 | S26: =AVERAGE(OFFSET(CPS!$E$10,12*($A26-1),4*(PlotControl!$C$6-1),12,1)) -> 83083.41667 | T26: =AVERAGE(OFFSET(Blast!$C$10,12*($A26-1),4*(PlotControl!$C$6-1),12,1)) -> 4.032583333e-14 | U26: =AVERAGE(OFFSET(Blast!$D$10,12*($A26-1),4*(PlotControl!$C$6-1),12,1)) -> 1.090833333e-12 | V26: =AVERAGE(OFFSET(Blast!$E$10,12*($A26-1),4*(PlotControl!$C$6-1),12,1)) -> 9.143333333e-12 | W26: =AVERAGE(OFFSET(Cat1SP!$C$10,12*($A26-1),4*(PlotControl!$C$6-1),12,1)) -> 97.99241667 | X26: =AVERAGE(OFFSET(Cat1SP!$D$10,12*($A26-1),4*(PlotControl!$C$6-1),12,1)) -> 556.7833333 | Y26: =AVERAGE(OFFSET(Cat1SP!$E$10,12*($A26-1),4*(PlotControl!$C$6-1),12,1)) -> 2547.958333 | Z26: =AVERAGE(OFFSET(Cat1SP_WWTF!$C$10,12*($A26-1),4*(PlotControl!$C$6-1),12,1)) -> 1467.815 | AA26: =AVERAGE(OFFSET(Cat1SP_WWTF!$D$10,12*($A26-1),4*(PlotControl!$C$6-1),12,1)) -> 8585.633333 | AB26: =AVERAGE(OFFSET(Cat1SP_WWTF!$E$10,12*($A26-1),4*(PlotControl!$C$6-1),12,1)) -> 39776.29167 | AC26: =AVERAGE(OFFSET(Cat1wall!$C$10,12*($A26-1),4*(PlotControl!$C$6-1),12,1)) -> 1118.525833 | AD26: =AVERAGE(OFFSET(Cat1wall!$D$10,12*($A26-1),4*(PlotControl!$C$6-1),12,1)) -> 2183.658333 | AE26: =AVERAGE(OFFSET(Cat1wall!$E$10,12*($A26-1),4*(PlotControl!$C$6-1),12,1)) -> 4616.558333 | AF26: =AVERAGE(OFFSET(Cat23wall!$C$10,12*($A26-1),4*(PlotControl!$C$6-1),12,1)) -> 1484.691667 | AG26: =AVERAGE(OFFSET(Cat23wall!$D$10,12*($A26-1),4*(PlotControl!$C$6-1),12,1)) -> 3461.516667 | AH26: =AVERAGE(OFFSET(Cat23wall!$E$10,12*($A26-1),4*(PlotControl!$C$6-1),12,1)) -> 10002.85 | AI26: =AVERAGE(OFFSET(Cat4wall!$C$10,12*($A26-1),4*(PlotControl!$C$6-1),12,1)) -> 303.7441667 | AJ26: =AVERAGE(OFFSET(Cat4wall!$D$10,12*($A26-1),4*(PlotControl!$C$6-1),12,1)) -> 1176.460833 | AK26: =AVERAGE(OFFSET(Cat4wall!$E$10,12*($A26-1),4*(PlotControl!$C$6-1),12,1)) -> 5088.733333 | AL26: =AVERAGE(OFFSET(Orewall!$C$10,12*($A26-1),4*(PlotControl!$C$6-1),12,1)) -> 13110.53333 | AM26: =AVERAGE(OFFSET(Orewall!$D$10,12*($A26-1),4*(PlotControl!$C$6-1),12,1)) -> 28014.58333 | AN26: =AVERAGE(OFFSET(Orewall!$E$10,12*($A26-1),4*(PlotControl!$C$6-1),12,1)) -> 84563.5 | AO26: =AVERAGE(OFFSET(TBPump!$C$10,12*($A26-1),4*(PlotControl!$C$6-1),12,1)) -> 258865 | AP26: =AVERAGE(OFFSET(TBPump!$D$10,12*($A26-1),4*(PlotControl!$C$6-1),12,1)) -> 439098.3333 | AQ26: =AVERAGE(OFFSET(TBPump!$E$10,12*($A26-1),4*(PlotControl!$C$6-1),12,1)) -> 648306.6667
A27: 23 | B27: =AVERAGE(OFFSET(Total!$C$10,12*($A27-1),4*(PlotControl!$C$6-1),12,1)) -> 365785.8333 | C27: =AVERAGE(OFFSET(Total!$D$10,12*($A27-1),4*(PlotControl!$C$6-1),12,1)) -> 573765 | D27: =AVERAGE(OFFSET(Total!$E$10,12*($A27-1),4*(PlotControl!$C$6-1),12,1)) -> 829552.5 | E27: =AVERAGE(OFFSET(RO!$C$10,12*($A27-1),4*(PlotControl!$C$6-1),12,1)) -> 900.2366667 | F27: =AVERAGE(OFFSET(RO!$D$10,12*($A27-1),4*(PlotControl!$C$6-1),12,1)) -> 2877.066667 | G27: =AVERAGE(OFFSET(RO!$E$10,12*($A27-1),4*(PlotControl!$C$6-1),12,1)) -> 8989.941667 | H27: =AVERAGE(OFFSET(GW!$C$10,12*($A27-1),4*(PlotControl!$C$6-1),12,1)) -> 952.27 | I27: =AVERAGE(OFFSET(GW!$D$10,12*($A27-1),4*(PlotControl!$C$6-1),12,1)) -> 1113.783333 | J27: =AVERAGE(OFFSET(GW!$E$10,12*($A27-1),4*(PlotControl!$C$6-1),12,1)) -> 1629.641667 | K27: =AVERAGE(OFFSET(Wetland!$C$10,12*($A27-1),4*(PlotControl!$C$6-1),12,1)) -> 0 | L27: =AVERAGE(OFFSET(Wetland!$D$10,12*($A27-1),4*(PlotControl!$C$6-1),12,1)) -> 0 | M27: =AVERAGE(OFFSET(Wetland!$E$10,12*($A27-1),4*(PlotControl!$C$6-1),12,1)) -> 29061.08333 | N27: =AVERAGE(OFFSET(Pore!$C$10,12*($A27-1),4*(PlotControl!$C$6-1),12,1)) -> 0 | O27: =AVERAGE(OFFSET(Pore!$D$10,12*($A27-1),4*(PlotControl!$C$6-1),12,1)) -> 0 | P27: =AVERAGE(OFFSET(Pore!$E$10,12*($A27-1),4*(PlotControl!$C$6-1),12,1)) -> 0 | Q27: =AVERAGE(OFFSET(CPS!$C$10,12*($A27-1),4*(PlotControl!$C$6-1),12,1)) -> 80844.25 | R27: =AVERAGE(OFFSET(CPS!$D$10,12*($A27-1),4*(PlotControl!$C$6-1),12,1)) -> 81373.33333 | S27: =AVERAGE(OFFSET(CPS!$E$10,12*($A27-1),4*(PlotControl!$C$6-1),12,1)) -> 83295.58333 | T27: =AVERAGE(OFFSET(Blast!$C$10,12*($A27-1),4*(PlotControl!$C$6-1),12,1)) -> 0 | U27: =AVERAGE(OFFSET(Blast!$D$10,12*($A27-1),4*(PlotControl!$C$6-1),12,1)) -> 0 | V27: =AVERAGE(OFFSET(Blast!$E$10,12*($A27-1),4*(PlotControl!$C$6-1),12,1)) -> 0 | W27: =AVERAGE(OFFSET(Cat1SP!$C$10,12*($A27-1),4*(PlotControl!$C$6-1),12,1)) -> 135.9855 | X27: =AVERAGE(OFFSET(Cat1SP!$D$10,12*($A27-1),4*(PlotControl!$C$6-1),12,1)) -> 791.2858333 | Y27: =AVERAGE(OFFSET(Cat1SP!$E$10,12*($A27-1),4*(PlotControl!$C$6-1),12,1)) -> 3030.213333 | Z27: =AVERAGE(OFFSET(Cat1SP_WWTF!$C$10,12*($A27-1),4*(PlotControl!$C$6-1),12,1)) -> 2082.501667 | AA27: =AVERAGE(OFFSET(Cat1SP_WWTF!$D$10,12*($A27-1),4*(PlotControl!$C$6-1),12,1)) -> 12341.65 | AB27: =AVERAGE(OFFSET(Cat1SP_WWTF!$E$10,12*($A27-1),4*(PlotControl!$C$6-1),12,1)) -> 47467.33333 | AC27: =AVERAGE(OFFSET(Cat1wall!$C$10,12*($A27-1),4*(PlotControl!$C$6-1),12,1)) -> 712.9041667 | AD27: =AVERAGE(OFFSET(Cat1wall!$D$10,12*($A27-1),4*(PlotControl!$C$6-1),12,1)) -> 1385.658333 | AE27: =AVERAGE(OFFSET(Cat1wall!$E$10,12*($A27-1),4*(PlotControl!$C$6-1),12,1)) -> 4496.1 | AF27: =AVERAGE(OFFSET(Cat23wall!$C$10,12*($A27-1),4*(PlotControl!$C$6-1),12,1)) -> 1111.993333 | AG27: =AVERAGE(OFFSET(Cat23wall!$D$10,12*($A27-1),4*(PlotControl!$C$6-1),12,1)) -> 2560.141667 | AH27: =AVERAGE(OFFSET(Cat23wall!$E$10,12*($A27-1),4*(PlotControl!$C$6-1),12,1)) -> 14276.13333 | AI27: =AVERAGE(OFFSET(Cat4wall!$C$10,12*($A27-1),4*(PlotControl!$C$6-1),12,1)) -> 275.95 | AJ27: =AVERAGE(OFFSET(Cat4wall!$D$10,12*($A27-1),4*(PlotControl!$C$6-1),12,1)) -> 1012.8525 | AK27: =AVERAGE(OFFSET(Cat4wall!$E$10,12*($A27-1),4*(PlotControl!$C$6-1),12,1)) -> 5623.275 | AL27: =AVERAGE(OFFSET(Orewall!$C$10,12*($A27-1),4*(PlotControl!$C$6-1),12,1)) -> 14873.91667 | AM27: =AVERAGE(OFFSET(Orewall!$D$10,12*($A27-1),4*(PlotControl!$C$6-1),12,1)) -> 31737.33333 | AN27: =AVERAGE(OFFSET(Orewall!$E$10,12*($A27-1),4*(PlotControl!$C$6-1),12,1)) -> 124646.75 | AO27: =AVERAGE(OFFSET(TBPump!$C$10,12*($A27-1),4*(PlotControl!$C$6-1),12,1)) -> 227863.3333 | AP27: =AVERAGE(OFFSET(TBPump!$D$10,12*($A27-1),4*(PlotControl!$C$6-1),12,1)) -> 415623.3333 | AQ27: =AVERAGE(OFFSET(TBPump!$E$10,12*($A27-1),4*(PlotControl!$C$6-1),12,1)) -> 627631.6667
A28: 24 | B28: =AVERAGE(OFFSET(Total!$C$10,12*($A28-1),4*(PlotControl!$C$6-1),12,1)) -> 343235.8333 | C28: =AVERAGE(OFFSET(Total!$D$10,12*($A28-1),4*(PlotControl!$C$6-1),12,1)) -> 555619.1667 | D28: =AVERAGE(OFFSET(Total!$E$10,12*($A28-1),4*(PlotControl!$C$6-1),12,1)) -> 817022.5 | E28: =AVERAGE(OFFSET(RO!$C$10,12*($A28-1),4*(PlotControl!$C$6-1),12,1)) -> 849.2316667 | F28: =AVERAGE(OFFSET(RO!$D$10,12*($A28-1),4*(PlotControl!$C$6-1),12,1)) -> 2738.191667 | G28: =AVERAGE(OFFSET(RO!$E$10,12*($A28-1),4*(PlotControl!$C$6-1),12,1)) -> 8736.208333 | H28: =AVERAGE(OFFSET(GW!$C$10,12*($A28-1),4*(PlotControl!$C$6-1),12,1)) -> 942.825 | I28: =AVERAGE(OFFSET(GW!$D$10,12*($A28-1),4*(PlotControl!$C$6-1),12,1)) -> 1100.825 | J28: =AVERAGE(OFFSET(GW!$E$10,12*($A28-1),4*(PlotControl!$C$6-1),12,1)) -> 1612.491667 | K28: =AVERAGE(OFFSET(Wetland!$C$10,12*($A28-1),4*(PlotControl!$C$6-1),12,1)) -> 0 | L28: =AVERAGE(OFFSET(Wetland!$D$10,12*($A28-1),4*(PlotControl!$C$6-1),12,1)) -> 5483.75 | M28: =AVERAGE(OFFSET(Wetland!$E$10,12*($A28-1),4*(PlotControl!$C$6-1),12,1)) -> 35660.925 | N28: =AVERAGE(OFFSET(Pore!$C$10,12*($A28-1),4*(PlotControl!$C$6-1),12,1)) -> 0 | O28: =AVERAGE(OFFSET(Pore!$D$10,12*($A28-1),4*(PlotControl!$C$6-1),12,1)) -> 0 | P28: =AVERAGE(OFFSET(Pore!$E$10,12*($A28-1),4*(PlotControl!$C$6-1),12,1)) -> 0 | Q28: =AVERAGE(OFFSET(CPS!$C$10,12*($A28-1),4*(PlotControl!$C$6-1),12,1)) -> 80844.58333 | R28: =AVERAGE(OFFSET(CPS!$D$10,12*($A28-1),4*(PlotControl!$C$6-1),12,1)) -> 81339 | S28: =AVERAGE(OFFSET(CPS!$E$10,12*($A28-1),4*(PlotControl!$C$6-1),12,1)) -> 83148.91667 | T28: =AVERAGE(OFFSET(Blast!$C$10,12*($A28-1),4*(PlotControl!$C$6-1),12,1)) -> 0 | U28: =AVERAGE(OFFSET(Blast!$D$10,12*($A28-1),4*(PlotControl!$C$6-1),12,1)) -> 0 | V28: =AVERAGE(OFFSET(Blast!$E$10,12*($A28-1),4*(PlotControl!$C$6-1),12,1)) -> 0 | W28: =AVERAGE(OFFSET(Cat1SP!$C$10,12*($A28-1),4*(PlotControl!$C$6-1),12,1)) -> 174.73925 | X28: =AVERAGE(OFFSET(Cat1SP!$D$10,12*($A28-1),4*(PlotControl!$C$6-1),12,1)) -> 857.7141667 | Y28: =AVERAGE(OFFSET(Cat1SP!$E$10,12*($A28-1),4*(PlotControl!$C$6-1),12,1)) -> 2992.705833 | Z28: =AVERAGE(OFFSET(Cat1SP_WWTF!$C$10,12*($A28-1),4*(PlotControl!$C$6-1),12,1)) -> 2700.5 | AA28: =AVERAGE(OFFSET(Cat1SP_WWTF!$D$10,12*($A28-1),4*(PlotControl!$C$6-1),12,1)) -> 13411.825 | AB28: =AVERAGE(OFFSET(Cat1SP_WWTF!$E$10,12*($A28-1),4*(PlotControl!$C$6-1),12,1)) -> 46881.91667 | AC28: =AVERAGE(OFFSET(Cat1wall!$C$10,12*($A28-1),4*(PlotControl!$C$6-1),12,1)) -> 550.0908333 | AD28: =AVERAGE(OFFSET(Cat1wall!$D$10,12*($A28-1),4*(PlotControl!$C$6-1),12,1)) -> 1217.55 | AE28: =AVERAGE(OFFSET(Cat1wall!$E$10,12*($A28-1),4*(PlotControl!$C$6-1),12,1)) -> 4216.191667 | AF28: =AVERAGE(OFFSET(Cat23wall!$C$10,12*($A28-1),4*(PlotControl!$C$6-1),12,1)) -> 1830.841667 | AG28: =AVERAGE(OFFSET(Cat23wall!$D$10,12*($A28-1),4*(PlotControl!$C$6-1),12,1)) -> 3791.941667 | AH28: =AVERAGE(OFFSET(Cat23wall!$E$10,12*($A28-1),4*(PlotControl!$C$6-1),12,1)) -> 20475.91667 | AI28: =AVERAGE(OFFSET(Cat4wall!$C$10,12*($A28-1),4*(PlotControl!$C$6-1),12,1)) -> 444.9283333 | AJ28: =AVERAGE(OFFSET(Cat4wall!$D$10,12*($A28-1),4*(PlotControl!$C$6-1),12,1)) -> 1729.381667 | AK28: =AVERAGE(OFFSET(Cat4wall!$E$10,12*($A28-1),4*(PlotControl!$C$6-1),12,1)) -> 6576.525 | AL28: =AVERAGE(OFFSET(Orewall!$C$10,12*($A28-1),4*(PlotControl!$C$6-1),12,1)) -> 13377.16667 | AM28: =AVERAGE(OFFSET(Orewall!$D$10,12*($A28-1),4*(PlotControl!$C$6-1),12,1)) -> 32413.41667 | AN28: =AVERAGE(OFFSET(Orewall!$E$10,12*($A28-1),4*(PlotControl!$C$6-1),12,1)) -> 118484.9167 | AO28: =AVERAGE(OFFSET(TBPump!$C$10,12*($A28-1),4*(PlotControl!$C$6-1),12,1)) -> 197909.1667 | AP28: =AVERAGE(OFFSET(TBPump!$D$10,12*($A28-1),4*(PlotControl!$C$6-1),12,1)) -> 388836.6667 | AQ28: =AVERAGE(OFFSET(TBPump!$E$10,12*($A28-1),4*(PlotControl!$C$6-1),12,1)) -> 609833.3333
A29: 25 | B29: =AVERAGE(OFFSET(Total!$C$10,12*($A29-1),4*(PlotControl!$C$6-1),12,1)) -> 298673.3333 | C29: =AVERAGE(OFFSET(Total!$D$10,12*($A29-1),4*(PlotControl!$C$6-1),12,1)) -> 507192.5 | D29: =AVERAGE(OFFSET(Total!$E$10,12*($A29-1),4*(PlotControl!$C$6-1),12,1)) -> 1035094.167 | E29: =AVERAGE(OFFSET(RO!$C$10,12*($A29-1),4*(PlotControl!$C$6-1),12,1)) -> 856.5091667 | F29: =AVERAGE(OFFSET(RO!$D$10,12*($A29-1),4*(PlotControl!$C$6-1),12,1)) -> 2650.716667 | G29: =AVERAGE(OFFSET(RO!$E$10,12*($A29-1),4*(PlotControl!$C$6-1),12,1)) -> 8497.366667 | H29: =AVERAGE(OFFSET(GW!$C$10,12*($A29-1),4*(PlotControl!$C$6-1),12,1)) -> 933.7908333 | I29: =AVERAGE(OFFSET(GW!$D$10,12*($A29-1),4*(PlotControl!$C$6-1),12,1)) -> 1089.191667 | J29: =AVERAGE(OFFSET(GW!$E$10,12*($A29-1),4*(PlotControl!$C$6-1),12,1)) -> 1600.533333 | K29: =AVERAGE(OFFSET(Wetland!$C$10,12*($A29-1),4*(PlotControl!$C$6-1),12,1)) -> 0 | L29: =AVERAGE(OFFSET(Wetland!$D$10,12*($A29-1),4*(PlotControl!$C$6-1),12,1)) -> 6865.5 | M29: =AVERAGE(OFFSET(Wetland!$E$10,12*($A29-1),4*(PlotControl!$C$6-1),12,1)) -> 33835.06667 | N29: =AVERAGE(OFFSET(Pore!$C$10,12*($A29-1),4*(PlotControl!$C$6-1),12,1)) -> 0 | O29: =AVERAGE(OFFSET(Pore!$D$10,12*($A29-1),4*(PlotControl!$C$6-1),12,1)) -> 0 | P29: =AVERAGE(OFFSET(Pore!$E$10,12*($A29-1),4*(PlotControl!$C$6-1),12,1)) -> 0 | Q29: =AVERAGE(OFFSET(CPS!$C$10,12*($A29-1),4*(PlotControl!$C$6-1),12,1)) -> 80837.16667 | R29: =AVERAGE(OFFSET(CPS!$D$10,12*($A29-1),4*(PlotControl!$C$6-1),12,1)) -> 81344.33333 | S29: =AVERAGE(OFFSET(CPS!$E$10,12*($A29-1),4*(PlotControl!$C$6-1),12,1)) -> 83113.58333 | T29: =AVERAGE(OFFSET(Blast!$C$10,12*($A29-1),4*(PlotControl!$C$6-1),12,1)) -> 0 | U29: =AVERAGE(OFFSET(Blast!$D$10,12*($A29-1),4*(PlotControl!$C$6-1),12,1)) -> 0 | V29: =AVERAGE(OFFSET(Blast!$E$10,12*($A29-1),4*(PlotControl!$C$6-1),12,1)) -> 0 | W29: =AVERAGE(OFFSET(Cat1SP!$C$10,12*($A29-1),4*(PlotControl!$C$6-1),12,1)) -> 188.8009167 | X29: =AVERAGE(OFFSET(Cat1SP!$D$10,12*($A29-1),4*(PlotControl!$C$6-1),12,1)) -> 866.22 | Y29: =AVERAGE(OFFSET(Cat1SP!$E$10,12*($A29-1),4*(PlotControl!$C$6-1),12,1)) -> 3060.640833 | Z29: =AVERAGE(OFFSET(Cat1SP_WWTF!$C$10,12*($A29-1),4*(PlotControl!$C$6-1),12,1)) -> 2930.351667 | AA29: =AVERAGE(OFFSET(Cat1SP_WWTF!$D$10,12*($A29-1),4*(PlotControl!$C$6-1),12,1)) -> 13513.44167 | AB29: =AVERAGE(OFFSET(Cat1SP_WWTF!$E$10,12*($A29-1),4*(PlotControl!$C$6-1),12,1)) -> 47370 | AC29: =AVERAGE(OFFSET(Cat1wall!$C$10,12*($A29-1),4*(PlotControl!$C$6-1),12,1)) -> 657.4275 | AD29: =AVERAGE(OFFSET(Cat1wall!$D$10,12*($A29-1),4*(PlotControl!$C$6-1),12,1)) -> 1314.348333 | AE29: =AVERAGE(OFFSET(Cat1wall!$E$10,12*($A29-1),4*(PlotControl!$C$6-1),12,1)) -> 20477.53333 | AF29: =AVERAGE(OFFSET(Cat23wall!$C$10,12*($A29-1),4*(PlotControl!$C$6-1),12,1)) -> 1385.608333 | AG29: =AVERAGE(OFFSET(Cat23wall!$D$10,12*($A29-1),4*(PlotControl!$C$6-1),12,1)) -> 3529.825 | AH29: =AVERAGE(OFFSET(Cat23wall!$E$10,12*($A29-1),4*(PlotControl!$C$6-1),12,1)) -> 67733 | AI29: =AVERAGE(OFFSET(Cat4wall!$C$10,12*($A29-1),4*(PlotControl!$C$6-1),12,1)) -> 216.875 | AJ29: =AVERAGE(OFFSET(Cat4wall!$D$10,12*($A29-1),4*(PlotControl!$C$6-1),12,1)) -> 807.3766667 | AK29: =AVERAGE(OFFSET(Cat4wall!$E$10,12*($A29-1),4*(PlotControl!$C$6-1),12,1)) -> 20102.15833 | AL29: =AVERAGE(OFFSET(Orewall!$C$10,12*($A29-1),4*(PlotControl!$C$6-1),12,1)) -> 10482.55 | AM29: =AVERAGE(OFFSET(Orewall!$D$10,12*($A29-1),4*(PlotControl!$C$6-1),12,1)) -> 26211.41667 | AN29: =AVERAGE(OFFSET(Orewall!$E$10,12*($A29-1),4*(PlotControl!$C$6-1),12,1)) -> 354251.1667 | AO29: =AVERAGE(OFFSET(TBPump!$C$10,12*($A29-1),4*(PlotControl!$C$6-1),12,1)) -> 153781.6667 | AP29: =AVERAGE(OFFSET(TBPump!$D$10,12*($A29-1),4*(PlotControl!$C$6-1),12,1)) -> 340555.8333 | AQ29: =AVERAGE(OFFSET(TBPump!$E$10,12*($A29-1),4*(PlotControl!$C$6-1),12,1)) -> 580157.5
A30: 26 | B30: =AVERAGE(OFFSET(Total!$C$10,12*($A30-1),4*(PlotControl!$C$6-1),12,1)) -> 246503.3333 | C30: =AVERAGE(OFFSET(Total!$D$10,12*($A30-1),4*(PlotControl!$C$6-1),12,1)) -> 411771.6667 | D30: =AVERAGE(OFFSET(Total!$E$10,12*($A30-1),4*(PlotControl!$C$6-1),12,1)) -> 634290 | E30: =AVERAGE(OFFSET(RO!$C$10,12*($A30-1),4*(PlotControl!$C$6-1),12,1)) -> 851.9941667 | F30: =AVERAGE(OFFSET(RO!$D$10,12*($A30-1),4*(PlotControl!$C$6-1),12,1)) -> 2644.85 | G30: =AVERAGE(OFFSET(RO!$E$10,12*($A30-1),4*(PlotControl!$C$6-1),12,1)) -> 8118.016667 | H30: =AVERAGE(OFFSET(GW!$C$10,12*($A30-1),4*(PlotControl!$C$6-1),12,1)) -> 922.1758333 | I30: =AVERAGE(OFFSET(GW!$D$10,12*($A30-1),4*(PlotControl!$C$6-1),12,1)) -> 1075.525 | J30: =AVERAGE(OFFSET(GW!$E$10,12*($A30-1),4*(PlotControl!$C$6-1),12,1)) -> 1587.475 | K30: =AVERAGE(OFFSET(Wetland!$C$10,12*($A30-1),4*(PlotControl!$C$6-1),12,1)) -> 0 | L30: =AVERAGE(OFFSET(Wetland!$D$10,12*($A30-1),4*(PlotControl!$C$6-1),12,1)) -> 6277.083333 | M30: =AVERAGE(OFFSET(Wetland!$E$10,12*($A30-1),4*(PlotControl!$C$6-1),12,1)) -> 28009.88333 | N30: =AVERAGE(OFFSET(Pore!$C$10,12*($A30-1),4*(PlotControl!$C$6-1),12,1)) -> 0 | O30: =AVERAGE(OFFSET(Pore!$D$10,12*($A30-1),4*(PlotControl!$C$6-1),12,1)) -> 0 | P30: =AVERAGE(OFFSET(Pore!$E$10,12*($A30-1),4*(PlotControl!$C$6-1),12,1)) -> 0 | Q30: =AVERAGE(OFFSET(CPS!$C$10,12*($A30-1),4*(PlotControl!$C$6-1),12,1)) -> 80840.16667 | R30: =AVERAGE(OFFSET(CPS!$D$10,12*($A30-1),4*(PlotControl!$C$6-1),12,1)) -> 81335.75 | S30: =AVERAGE(OFFSET(CPS!$E$10,12*($A30-1),4*(PlotControl!$C$6-1),12,1)) -> 83184.41667 | T30: =AVERAGE(OFFSET(Blast!$C$10,12*($A30-1),4*(PlotControl!$C$6-1),12,1)) -> 0 | U30: =AVERAGE(OFFSET(Blast!$D$10,12*($A30-1),4*(PlotControl!$C$6-1),12,1)) -> 0 | V30: =AVERAGE(OFFSET(Blast!$E$10,12*($A30-1),4*(PlotControl!$C$6-1),12,1)) -> 0 | W30: =AVERAGE(OFFSET(Cat1SP!$C$10,12*($A30-1),4*(PlotControl!$C$6-1),12,1)) -> 209.9849167 | X30: =AVERAGE(OFFSET(Cat1SP!$D$10,12*($A30-1),4*(PlotControl!$C$6-1),12,1)) -> 930.1258333 | Y30: =AVERAGE(OFFSET(Cat1SP!$E$10,12*($A30-1),4*(PlotControl!$C$6-1),12,1)) -> 3087.078333 | Z30: =AVERAGE(OFFSET(Cat1SP_WWTF!$C$10,12*($A30-1),4*(PlotControl!$C$6-1),12,1)) -> 3095.6025 | AA30: =AVERAGE(OFFSET(Cat1SP_WWTF!$D$10,12*($A30-1),4*(PlotControl!$C$6-1),12,1)) -> 13752.88333 | AB30: =AVERAGE(OFFSET(Cat1SP_WWTF!$E$10,12*($A30-1),4*(PlotControl!$C$6-1),12,1)) -> 46885.83333 | AC30: =AVERAGE(OFFSET(Cat1wall!$C$10,12*($A30-1),4*(PlotControl!$C$6-1),12,1)) -> 315.6783333 | AD30: =AVERAGE(OFFSET(Cat1wall!$D$10,12*($A30-1),4*(PlotControl!$C$6-1),12,1)) -> 743.5225 | AE30: =AVERAGE(OFFSET(Cat1wall!$E$10,12*($A30-1),4*(PlotControl!$C$6-1),12,1)) -> 3056.916667 | AF30: =AVERAGE(OFFSET(Cat23wall!$C$10,12*($A30-1),4*(PlotControl!$C$6-1),12,1)) -> 1396.4 | AG30: =AVERAGE(OFFSET(Cat23wall!$D$10,12*($A30-1),4*(PlotControl!$C$6-1),12,1)) -> 3414.425 | AH30: =AVERAGE(OFFSET(Cat23wall!$E$10,12*($A30-1),4*(PlotControl!$C$6-1),12,1)) -> 21058.25 | AI30: =AVERAGE(OFFSET(Cat4wall!$C$10,12*($A30-1),4*(PlotControl!$C$6-1),12,1)) -> 277.6041667 | AJ30: =AVERAGE(OFFSET(Cat4wall!$D$10,12*($A30-1),4*(PlotControl!$C$6-1),12,1)) -> 1094.238333 | AK30: =AVERAGE(OFFSET(Cat4wall!$E$10,12*($A30-1),4*(PlotControl!$C$6-1),12,1)) -> 4691.1 | AL30: =AVERAGE(OFFSET(Orewall!$C$10,12*($A30-1),4*(PlotControl!$C$6-1),12,1)) -> 11661.35833 | AM30: =AVERAGE(OFFSET(Orewall!$D$10,12*($A30-1),4*(PlotControl!$C$6-1),12,1)) -> 28974.66667 | AN30: =AVERAGE(OFFSET(Orewall!$E$10,12*($A30-1),4*(PlotControl!$C$6-1),12,1)) -> 95066.08333 | AO30: =AVERAGE(OFFSET(TBPump!$C$10,12*($A30-1),4*(PlotControl!$C$6-1),12,1)) -> 109143.9167 | AP30: =AVERAGE(OFFSET(TBPump!$D$10,12*($A30-1),4*(PlotControl!$C$6-1),12,1)) -> 260032.5 | AQ30: =AVERAGE(OFFSET(TBPump!$E$10,12*($A30-1),4*(PlotControl!$C$6-1),12,1)) -> 444626.6667
A31: 27 | B31: =AVERAGE(OFFSET(Total!$C$10,12*($A31-1),4*(PlotControl!$C$6-1),12,1)) -> 173593.3333 | C31: =AVERAGE(OFFSET(Total!$D$10,12*($A31-1),4*(PlotControl!$C$6-1),12,1)) -> 268878.3333 | D31: =AVERAGE(OFFSET(Total!$E$10,12*($A31-1),4*(PlotControl!$C$6-1),12,1)) -> 398560 | E31: =AVERAGE(OFFSET(RO!$C$10,12*($A31-1),4*(PlotControl!$C$6-1),12,1)) -> 914.64 | F31: =AVERAGE(OFFSET(RO!$D$10,12*($A31-1),4*(PlotControl!$C$6-1),12,1)) -> 2788.375 | G31: =AVERAGE(OFFSET(RO!$E$10,12*($A31-1),4*(PlotControl!$C$6-1),12,1)) -> 8516.708333 | H31: =AVERAGE(OFFSET(GW!$C$10,12*($A31-1),4*(PlotControl!$C$6-1),12,1)) -> 911.3933333 | I31: =AVERAGE(OFFSET(GW!$D$10,12*($A31-1),4*(PlotControl!$C$6-1),12,1)) -> 1064.325 | J31: =AVERAGE(OFFSET(GW!$E$10,12*($A31-1),4*(PlotControl!$C$6-1),12,1)) -> 1573.025 | K31: =AVERAGE(OFFSET(Wetland!$C$10,12*($A31-1),4*(PlotControl!$C$6-1),12,1)) -> 0 | L31: =AVERAGE(OFFSET(Wetland!$D$10,12*($A31-1),4*(PlotControl!$C$6-1),12,1)) -> 5623 | M31: =AVERAGE(OFFSET(Wetland!$E$10,12*($A31-1),4*(PlotControl!$C$6-1),12,1)) -> 25809.03333 | N31: =AVERAGE(OFFSET(Pore!$C$10,12*($A31-1),4*(PlotControl!$C$6-1),12,1)) -> 0 | O31: =AVERAGE(OFFSET(Pore!$D$10,12*($A31-1),4*(PlotControl!$C$6-1),12,1)) -> 0 | P31: =AVERAGE(OFFSET(Pore!$E$10,12*($A31-1),4*(PlotControl!$C$6-1),12,1)) -> 0 | Q31: =AVERAGE(OFFSET(CPS!$C$10,12*($A31-1),4*(PlotControl!$C$6-1),12,1)) -> 80824.25 | R31: =AVERAGE(OFFSET(CPS!$D$10,12*($A31-1),4*(PlotControl!$C$6-1),12,1)) -> 81330.66667 | S31: =AVERAGE(OFFSET(CPS!$E$10,12*($A31-1),4*(PlotControl!$C$6-1),12,1)) -> 83043.33333 | T31: =AVERAGE(OFFSET(Blast!$C$10,12*($A31-1),4*(PlotControl!$C$6-1),12,1)) -> 0 | U31: =AVERAGE(OFFSET(Blast!$D$10,12*($A31-1),4*(PlotControl!$C$6-1),12,1)) -> 0 | V31: =AVERAGE(OFFSET(Blast!$E$10,12*($A31-1),4*(PlotControl!$C$6-1),12,1)) -> 0 | W31: =AVERAGE(OFFSET(Cat1SP!$C$10,12*($A31-1),4*(PlotControl!$C$6-1),12,1)) -> 242.788 | X31: =AVERAGE(OFFSET(Cat1SP!$D$10,12*($A31-1),4*(PlotControl!$C$6-1),12,1)) -> 946.7716667 | Y31: =AVERAGE(OFFSET(Cat1SP!$E$10,12*($A31-1),4*(PlotControl!$C$6-1),12,1)) -> 3356.810833 | Z31: =AVERAGE(OFFSET(Cat1SP_WWTF!$C$10,12*($A31-1),4*(PlotControl!$C$6-1),12,1)) -> 3075.51 | AA31: =AVERAGE(OFFSET(Cat1SP_WWTF!$D$10,12*($A31-1),4*(PlotControl!$C$6-1),12,1)) -> 13800.1 | AB31: =AVERAGE(OFFSET(Cat1SP_WWTF!$E$10,12*($A31-1),4*(PlotControl!$C$6-1),12,1)) -> 47409.58333 | AC31: =AVERAGE(OFFSET(Cat1wall!$C$10,12*($A31-1),4*(PlotControl!$C$6-1),12,1)) -> 350.7241667 | AD31: =AVERAGE(OFFSET(Cat1wall!$D$10,12*($A31-1),4*(PlotControl!$C$6-1),12,1)) -> 774.1108333 | AE31: =AVERAGE(OFFSET(Cat1wall!$E$10,12*($A31-1),4*(PlotControl!$C$6-1),12,1)) -> 1655.675 | AF31: =AVERAGE(OFFSET(Cat23wall!$C$10,12*($A31-1),4*(PlotControl!$C$6-1),12,1)) -> 1168.083333 | AG31: =AVERAGE(OFFSET(Cat23wall!$D$10,12*($A31-1),4*(PlotControl!$C$6-1),12,1)) -> 2581.7 | AH31: =AVERAGE(OFFSET(Cat23wall!$E$10,12*($A31-1),4*(PlotControl!$C$6-1),12,1)) -> 14317.5 | AI31: =AVERAGE(OFFSET(Cat4wall!$C$10,12*($A31-1),4*(PlotControl!$C$6-1),12,1)) -> 543.3283333 | AJ31: =AVERAGE(OFFSET(Cat4wall!$D$10,12*($A31-1),4*(PlotControl!$C$6-1),12,1)) -> 1652.975 | AK31: =AVERAGE(OFFSET(Cat4wall!$E$10,12*($A31-1),4*(PlotControl!$C$6-1),12,1)) -> 4147.475 | AL31: =AVERAGE(OFFSET(Orewall!$C$10,12*($A31-1),4*(PlotControl!$C$6-1),12,1)) -> 10241.90833 | AM31: =AVERAGE(OFFSET(Orewall!$D$10,12*($A31-1),4*(PlotControl!$C$6-1),12,1)) -> 25856.5 | AN31: =AVERAGE(OFFSET(Orewall!$E$10,12*($A31-1),4*(PlotControl!$C$6-1),12,1)) -> 59684.75 | AO31: =AVERAGE(OFFSET(TBPump!$C$10,12*($A31-1),4*(PlotControl!$C$6-1),12,1)) -> 46251.33333 | AP31: =AVERAGE(OFFSET(TBPump!$D$10,12*($A31-1),4*(PlotControl!$C$6-1),12,1)) -> 131040 | AQ31: =AVERAGE(OFFSET(TBPump!$E$10,12*($A31-1),4*(PlotControl!$C$6-1),12,1)) -> 243076.6667
A32: 28 | B32: =AVERAGE(OFFSET(Total!$C$10,12*($A32-1),4*(PlotControl!$C$6-1),12,1)) -> 129045 | C32: =AVERAGE(OFFSET(Total!$D$10,12*($A32-1),4*(PlotControl!$C$6-1),12,1)) -> 170799.1667 | D32: =AVERAGE(OFFSET(Total!$E$10,12*($A32-1),4*(PlotControl!$C$6-1),12,1)) -> 227459.1667 | E32: =AVERAGE(OFFSET(RO!$C$10,12*($A32-1),4*(PlotControl!$C$6-1),12,1)) -> 865 | F32: =AVERAGE(OFFSET(RO!$D$10,12*($A32-1),4*(PlotControl!$C$6-1),12,1)) -> 2623.35 | G32: =AVERAGE(OFFSET(RO!$E$10,12*($A32-1),4*(PlotControl!$C$6-1),12,1)) -> 8695.833333 | H32: =AVERAGE(OFFSET(GW!$C$10,12*($A32-1),4*(PlotControl!$C$6-1),12,1)) -> 902.3383333 | I32: =AVERAGE(OFFSET(GW!$D$10,12*($A32-1),4*(PlotControl!$C$6-1),12,1)) -> 1053.433333 | J32: =AVERAGE(OFFSET(GW!$E$10,12*($A32-1),4*(PlotControl!$C$6-1),12,1)) -> 1557.633333 | K32: =AVERAGE(OFFSET(Wetland!$C$10,12*($A32-1),4*(PlotControl!$C$6-1),12,1)) -> 0 | L32: =AVERAGE(OFFSET(Wetland!$D$10,12*($A32-1),4*(PlotControl!$C$6-1),12,1)) -> 5211.166667 | M32: =AVERAGE(OFFSET(Wetland!$E$10,12*($A32-1),4*(PlotControl!$C$6-1),12,1)) -> 23000.25833 | N32: =AVERAGE(OFFSET(Pore!$C$10,12*($A32-1),4*(PlotControl!$C$6-1),12,1)) -> 0 | O32: =AVERAGE(OFFSET(Pore!$D$10,12*($A32-1),4*(PlotControl!$C$6-1),12,1)) -> 0 | P32: =AVERAGE(OFFSET(Pore!$E$10,12*($A32-1),4*(PlotControl!$C$6-1),12,1)) -> 0 | Q32: =AVERAGE(OFFSET(CPS!$C$10,12*($A32-1),4*(PlotControl!$C$6-1),12,1)) -> 80804.25 | R32: =AVERAGE(OFFSET(CPS!$D$10,12*($A32-1),4*(PlotControl!$C$6-1),12,1)) -> 81323.75 | S32: =AVERAGE(OFFSET(CPS!$E$10,12*($A32-1),4*(PlotControl!$C$6-1),12,1)) -> 83068.08333 | T32: =AVERAGE(OFFSET(Blast!$C$10,12*($A32-1),4*(PlotControl!$C$6-1),12,1)) -> 0 | U32: =AVERAGE(OFFSET(Blast!$D$10,12*($A32-1),4*(PlotControl!$C$6-1),12,1)) -> 0 | V32: =AVERAGE(OFFSET(Blast!$E$10,12*($A32-1),4*(PlotControl!$C$6-1),12,1)) -> 0 | W32: =AVERAGE(OFFSET(Cat1SP!$C$10,12*($A32-1),4*(PlotControl!$C$6-1),12,1)) -> 248.3911667 | X32: =AVERAGE(OFFSET(Cat1SP!$D$10,12*($A32-1),4*(PlotControl!$C$6-1),12,1)) -> 964.51 | Y32: =AVERAGE(OFFSET(Cat1SP!$E$10,12*($A32-1),4*(PlotControl!$C$6-1),12,1)) -> 3436.23 | Z32: =AVERAGE(OFFSET(Cat1SP_WWTF!$C$10,12*($A32-1),4*(PlotControl!$C$6-1),12,1)) -> 2652.985 | AA32: =AVERAGE(OFFSET(Cat1SP_WWTF!$D$10,12*($A32-1),4*(PlotControl!$C$6-1),12,1)) -> 12822.23333 | AB32: =AVERAGE(OFFSET(Cat1SP_WWTF!$E$10,12*($A32-1),4*(PlotControl!$C$6-1),12,1)) -> 45124.75 | AC32: =AVERAGE(OFFSET(Cat1wall!$C$10,12*($A32-1),4*(PlotControl!$C$6-1),12,1)) -> 519.2408333 | AD32: =AVERAGE(OFFSET(Cat1wall!$D$10,12*($A32-1),4*(PlotControl!$C$6-1),12,1)) -> 976.0333333 | AE32: =AVERAGE(OFFSET(Cat1wall!$E$10,12*($A32-1),4*(PlotControl!$C$6-1),12,1)) -> 1743.341667 | AF32: =AVERAGE(OFFSET(Cat23wall!$C$10,12*($A32-1),4*(PlotControl!$C$6-1),12,1)) -> 1062.515833 | AG32: =AVERAGE(OFFSET(Cat23wall!$D$10,12*($A32-1),4*(PlotControl!$C$6-1),12,1)) -> 2519.025 | AH32: =AVERAGE(OFFSET(Cat23wall!$E$10,12*($A32-1),4*(PlotControl!$C$6-1),12,1)) -> 12419.83333 | AI32: =AVERAGE(OFFSET(Cat4wall!$C$10,12*($A32-1),4*(PlotControl!$C$6-1),12,1)) -> 560.7891667 | AJ32: =AVERAGE(OFFSET(Cat4wall!$D$10,12*($A32-1),4*(PlotControl!$C$6-1),12,1)) -> 1557.8 | AK32: =AVERAGE(OFFSET(Cat4wall!$E$10,12*($A32-1),4*(PlotControl!$C$6-1),12,1)) -> 3553.716667 | AL32: =AVERAGE(OFFSET(Orewall!$C$10,12*($A32-1),4*(PlotControl!$C$6-1),12,1)) -> 7922.983333 | AM32: =AVERAGE(OFFSET(Orewall!$D$10,12*($A32-1),4*(PlotControl!$C$6-1),12,1)) -> 18312.08333 | AN32: =AVERAGE(OFFSET(Orewall!$E$10,12*($A32-1),4*(PlotControl!$C$6-1),12,1)) -> 40773.33333 | AO32: =AVERAGE(OFFSET(TBPump!$C$10,12*($A32-1),4*(PlotControl!$C$6-1),12,1)) -> 19833.41667 | AP32: =AVERAGE(OFFSET(TBPump!$D$10,12*($A32-1),4*(PlotControl!$C$6-1),12,1)) -> 46014.08333 | AQ32: =AVERAGE(OFFSET(TBPump!$E$10,12*($A32-1),4*(PlotControl!$C$6-1),12,1)) -> 80610.91667
A33: 29 | B33: =AVERAGE(OFFSET(Total!$C$10,12*($A33-1),4*(PlotControl!$C$6-1),12,1)) -> 110952.5 | C33: =AVERAGE(OFFSET(Total!$D$10,12*($A33-1),4*(PlotControl!$C$6-1),12,1)) -> 138211.6667 | D33: =AVERAGE(OFFSET(Total!$E$10,12*($A33-1),4*(PlotControl!$C$6-1),12,1)) -> 178333.3333 | E33: =AVERAGE(OFFSET(RO!$C$10,12*($A33-1),4*(PlotControl!$C$6-1),12,1)) -> 864.2491667 | F33: =AVERAGE(OFFSET(RO!$D$10,12*($A33-1),4*(PlotControl!$C$6-1),12,1)) -> 2754.775 | G33: =AVERAGE(OFFSET(RO!$E$10,12*($A33-1),4*(PlotControl!$C$6-1),12,1)) -> 8762.225 | H33: =AVERAGE(OFFSET(GW!$C$10,12*($A33-1),4*(PlotControl!$C$6-1),12,1)) -> 895.4458333 | I33: =AVERAGE(OFFSET(GW!$D$10,12*($A33-1),4*(PlotControl!$C$6-1),12,1)) -> 1046.175 | J33: =AVERAGE(OFFSET(GW!$E$10,12*($A33-1),4*(PlotControl!$C$6-1),12,1)) -> 1544.966667 | K33: =AVERAGE(OFFSET(Wetland!$C$10,12*($A33-1),4*(PlotControl!$C$6-1),12,1)) -> 0 | L33: =AVERAGE(OFFSET(Wetland!$D$10,12*($A33-1),4*(PlotControl!$C$6-1),12,1)) -> 5124.3 | M33: =AVERAGE(OFFSET(Wetland!$E$10,12*($A33-1),4*(PlotControl!$C$6-1),12,1)) -> 22938.04167 | N33: =AVERAGE(OFFSET(Pore!$C$10,12*($A33-1),4*(PlotControl!$C$6-1),12,1)) -> 0 | O33: =AVERAGE(OFFSET(Pore!$D$10,12*($A33-1),4*(PlotControl!$C$6-1),12,1)) -> 0 | P33: =AVERAGE(OFFSET(Pore!$E$10,12*($A33-1),4*(PlotControl!$C$6-1),12,1)) -> 9.890916667 | Q33: =AVERAGE(OFFSET(CPS!$C$10,12*($A33-1),4*(PlotControl!$C$6-1),12,1)) -> 60551.42607 | R33: =AVERAGE(OFFSET(CPS!$D$10,12*($A33-1),4*(PlotControl!$C$6-1),12,1)) -> 81291.41667 | S33: =AVERAGE(OFFSET(CPS!$E$10,12*($A33-1),4*(PlotControl!$C$6-1),12,1)) -> 83000.5 | T33: =AVERAGE(OFFSET(Blast!$C$10,12*($A33-1),4*(PlotControl!$C$6-1),12,1)) -> 0 | U33: =AVERAGE(OFFSET(Blast!$D$10,12*($A33-1),4*(PlotControl!$C$6-1),12,1)) -> 0 | V33: =AVERAGE(OFFSET(Blast!$E$10,12*($A33-1),4*(PlotControl!$C$6-1),12,1)) -> 0 | W33: =AVERAGE(OFFSET(Cat1SP!$C$10,12*($A33-1),4*(PlotControl!$C$6-1),12,1)) -> 245.2341667 | X33: =AVERAGE(OFFSET(Cat1SP!$D$10,12*($A33-1),4*(PlotControl!$C$6-1),12,1)) -> 1045.441667 | Y33: =AVERAGE(OFFSET(Cat1SP!$E$10,12*($A33-1),4*(PlotControl!$C$6-1),12,1)) -> 5106.783333 | Z33: =AVERAGE(OFFSET(Cat1SP_WWTF!$C$10,12*($A33-1),4*(PlotControl!$C$6-1),12,1)) -> 1063.8425 | AA33: =AVERAGE(OFFSET(Cat1SP_WWTF!$D$10,12*($A33-1),4*(PlotControl!$C$6-1),12,1)) -> 12964.59167 | AB33: =AVERAGE(OFFSET(Cat1SP_WWTF!$E$10,12*($A33-1),4*(PlotControl!$C$6-1),12,1)) -> 42556.5 | AC33: =AVERAGE(OFFSET(Cat1wall!$C$10,12*($A33-1),4*(PlotControl!$C$6-1),12,1)) -> 544.3625 | AD33: =AVERAGE(OFFSET(Cat1wall!$D$10,12*($A33-1),4*(PlotControl!$C$6-1),12,1)) -> 1018.368333 | AE33: =AVERAGE(OFFSET(Cat1wall!$E$10,12*($A33-1),4*(PlotControl!$C$6-1),12,1)) -> 1821.05 | AF33: =AVERAGE(OFFSET(Cat23wall!$C$10,12*($A33-1),4*(PlotControl!$C$6-1),12,1)) -> 916.94 | AG33: =AVERAGE(OFFSET(Cat23wall!$D$10,12*($A33-1),4*(PlotControl!$C$6-1),12,1)) -> 2494.483333 | AH33: =AVERAGE(OFFSET(Cat23wall!$E$10,12*($A33-1),4*(PlotControl!$C$6-1),12,1)) -> 11249.83333 | AI33: =AVERAGE(OFFSET(Cat4wall!$C$10,12*($A33-1),4*(PlotControl!$C$6-1),12,1)) -> 490.5791667 | AJ33: =AVERAGE(OFFSET(Cat4wall!$D$10,12*($A33-1),4*(PlotControl!$C$6-1),12,1)) -> 1221.676667 | AK33: =AVERAGE(OFFSET(Cat4wall!$E$10,12*($A33-1),4*(PlotControl!$C$6-1),12,1)) -> 2662.916667 | AL33: =AVERAGE(OFFSET(Orewall!$C$10,12*($A33-1),4*(PlotControl!$C$6-1),12,1)) -> 6917.7 | AM33: =AVERAGE(OFFSET(Orewall!$D$10,12*($A33-1),4*(PlotControl!$C$6-1),12,1)) -> 15268.33333 | AN33: =AVERAGE(OFFSET(Orewall!$E$10,12*($A33-1),4*(PlotControl!$C$6-1),12,1)) -> 33728.33333 | AO33: =AVERAGE(OFFSET(TBPump!$C$10,12*($A33-1),4*(PlotControl!$C$6-1),12,1)) -> 10568.83333 | AP33: =AVERAGE(OFFSET(TBPump!$D$10,12*($A33-1),4*(PlotControl!$C$6-1),12,1)) -> 20269.25 | AQ33: =AVERAGE(OFFSET(TBPump!$E$10,12*($A33-1),4*(PlotControl!$C$6-1),12,1)) -> 31826.16667
A34: 30 | B34: =AVERAGE(OFFSET(Total!$C$10,12*($A34-1),4*(PlotControl!$C$6-1),12,1)) -> 89938.41667 | C34: =AVERAGE(OFFSET(Total!$D$10,12*($A34-1),4*(PlotControl!$C$6-1),12,1)) -> 128853.3333 | D34: =AVERAGE(OFFSET(Total!$E$10,12*($A34-1),4*(PlotControl!$C$6-1),12,1)) -> 169035.8333 | E34: =AVERAGE(OFFSET(RO!$C$10,12*($A34-1),4*(PlotControl!$C$6-1),12,1)) -> 870.7058333 | F34: =AVERAGE(OFFSET(RO!$D$10,12*($A34-1),4*(PlotControl!$C$6-1),12,1)) -> 2767.458333 | G34: =AVERAGE(OFFSET(RO!$E$10,12*($A34-1),4*(PlotControl!$C$6-1),12,1)) -> 8846.933333 | H34: =AVERAGE(OFFSET(GW!$C$10,12*($A34-1),4*(PlotControl!$C$6-1),12,1)) -> 889.5116667 | I34: =AVERAGE(OFFSET(GW!$D$10,12*($A34-1),4*(PlotControl!$C$6-1),12,1)) -> 1038.775 | J34: =AVERAGE(OFFSET(GW!$E$10,12*($A34-1),4*(PlotControl!$C$6-1),12,1)) -> 1533.05 | K34: =AVERAGE(OFFSET(Wetland!$C$10,12*($A34-1),4*(PlotControl!$C$6-1),12,1)) -> 0 | L34: =AVERAGE(OFFSET(Wetland!$D$10,12*($A34-1),4*(PlotControl!$C$6-1),12,1)) -> 4259.166667 | M34: =AVERAGE(OFFSET(Wetland!$E$10,12*($A34-1),4*(PlotControl!$C$6-1),12,1)) -> 27242.65 | N34: =AVERAGE(OFFSET(Pore!$C$10,12*($A34-1),4*(PlotControl!$C$6-1),12,1)) -> 0 | O34: =AVERAGE(OFFSET(Pore!$D$10,12*($A34-1),4*(PlotControl!$C$6-1),12,1)) -> 0 | P34: =AVERAGE(OFFSET(Pore!$E$10,12*($A34-1),4*(PlotControl!$C$6-1),12,1)) -> 44.32766667 | Q34: =AVERAGE(OFFSET(CPS!$C$10,12*($A34-1),4*(PlotControl!$C$6-1),12,1)) -> 0 | R34: =AVERAGE(OFFSET(CPS!$D$10,12*($A34-1),4*(PlotControl!$C$6-1),12,1)) -> 81237.33333 | S34: =AVERAGE(OFFSET(CPS!$E$10,12*($A34-1),4*(PlotControl!$C$6-1),12,1)) -> 82931.41667 | T34: =AVERAGE(OFFSET(Blast!$C$10,12*($A34-1),4*(PlotControl!$C$6-1),12,1)) -> 0 | U34: =AVERAGE(OFFSET(Blast!$D$10,12*($A34-1),4*(PlotControl!$C$6-1),12,1)) -> 0 | V34: =AVERAGE(OFFSET(Blast!$E$10,12*($A34-1),4*(PlotControl!$C$6-1),12,1)) -> 0 | W34: =AVERAGE(OFFSET(Cat1SP!$C$10,12*($A34-1),4*(PlotControl!$C$6-1),12,1)) -> 275.658 | X34: =AVERAGE(OFFSET(Cat1SP!$D$10,12*($A34-1),4*(PlotControl!$C$6-1),12,1)) -> 1166.506667 | Y34: =AVERAGE(OFFSET(Cat1SP!$E$10,12*($A34-1),4*(PlotControl!$C$6-1),12,1)) -> 8539.883333 | Z34: =AVERAGE(OFFSET(Cat1SP_WWTF!$C$10,12*($A34-1),4*(PlotControl!$C$6-1),12,1)) -> 0 | AA34: =AVERAGE(OFFSET(Cat1SP_WWTF!$D$10,12*($A34-1),4*(PlotControl!$C$6-1),12,1)) -> 11346.25833 | AB34: =AVERAGE(OFFSET(Cat1SP_WWTF!$E$10,12*($A34-1),4*(PlotControl!$C$6-1),12,1)) -> 42014.16667 | AC34: =AVERAGE(OFFSET(Cat1wall!$C$10,12*($A34-1),4*(PlotControl!$C$6-1),12,1)) -> 531.71 | AD34: =AVERAGE(OFFSET(Cat1wall!$D$10,12*($A34-1),4*(PlotControl!$C$6-1),12,1)) -> 1035.539167 | AE34: =AVERAGE(OFFSET(Cat1wall!$E$10,12*($A34-1),4*(PlotControl!$C$6-1),12,1)) -> 1858.491667 | AF34: =AVERAGE(OFFSET(Cat23wall!$C$10,12*($A34-1),4*(PlotControl!$C$6-1),12,1)) -> 766.1408333 | AG34: =AVERAGE(OFFSET(Cat23wall!$D$10,12*($A34-1),4*(PlotControl!$C$6-1),12,1)) -> 2680.191667 | AH34: =AVERAGE(OFFSET(Cat23wall!$E$10,12*($A34-1),4*(PlotControl!$C$6-1),12,1)) -> 11750.91667 | AI34: =AVERAGE(OFFSET(Cat4wall!$C$10,12*($A34-1),4*(PlotControl!$C$6-1),12,1)) -> 477.045 | AJ34: =AVERAGE(OFFSET(Cat4wall!$D$10,12*($A34-1),4*(PlotControl!$C$6-1),12,1)) -> 1146.046667 | AK34: =AVERAGE(OFFSET(Cat4wall!$E$10,12*($A34-1),4*(PlotControl!$C$6-1),12,1)) -> 2598.125 | AL34: =AVERAGE(OFFSET(Orewall!$C$10,12*($A34-1),4*(PlotControl!$C$6-1),12,1)) -> 6626.275 | AM34: =AVERAGE(OFFSET(Orewall!$D$10,12*($A34-1),4*(PlotControl!$C$6-1),12,1)) -> 14503.66667 | AN34: =AVERAGE(OFFSET(Orewall!$E$10,12*($A34-1),4*(PlotControl!$C$6-1),12,1)) -> 32290.08333 | AO34: =AVERAGE(OFFSET(TBPump!$C$10,12*($A34-1),4*(PlotControl!$C$6-1),12,1)) -> 7449.25 | AP34: =AVERAGE(OFFSET(TBPump!$D$10,12*($A34-1),4*(PlotControl!$C$6-1),12,1)) -> 14566.25 | AQ34: =AVERAGE(OFFSET(TBPump!$E$10,12*($A34-1),4*(PlotControl!$C$6-1),12,1)) -> 22172.41667
A35: 31 | B35: =AVERAGE(OFFSET(Total!$C$10,12*($A35-1),4*(PlotControl!$C$6-1),12,1)) -> 78879.66667 | C35: =AVERAGE(OFFSET(Total!$D$10,12*($A35-1),4*(PlotControl!$C$6-1),12,1)) -> 135814.1667 | D35: =AVERAGE(OFFSET(Total!$E$10,12*($A35-1),4*(PlotControl!$C$6-1),12,1)) -> 220805.8333 | E35: =AVERAGE(OFFSET(RO!$C$10,12*($A35-1),4*(PlotControl!$C$6-1),12,1)) -> 880.9083333 | F35: =AVERAGE(OFFSET(RO!$D$10,12*($A35-1),4*(PlotControl!$C$6-1),12,1)) -> 2766.641667 | G35: =AVERAGE(OFFSET(RO!$E$10,12*($A35-1),4*(PlotControl!$C$6-1),12,1)) -> 8934.183333 | H35: =AVERAGE(OFFSET(GW!$C$10,12*($A35-1),4*(PlotControl!$C$6-1),12,1)) -> 883.2666667 | I35: =AVERAGE(OFFSET(GW!$D$10,12*($A35-1),4*(PlotControl!$C$6-1),12,1)) -> 1031.466667 | J35: =AVERAGE(OFFSET(GW!$E$10,12*($A35-1),4*(PlotControl!$C$6-1),12,1)) -> 1522.391667 | K35: =AVERAGE(OFFSET(Wetland!$C$10,12*($A35-1),4*(PlotControl!$C$6-1),12,1)) -> 0 | L35: =AVERAGE(OFFSET(Wetland!$D$10,12*($A35-1),4*(PlotControl!$C$6-1),12,1)) -> 5426.5 | M35: =AVERAGE(OFFSET(Wetland!$E$10,12*($A35-1),4*(PlotControl!$C$6-1),12,1)) -> 28398.59167 | N35: =AVERAGE(OFFSET(Pore!$C$10,12*($A35-1),4*(PlotControl!$C$6-1),12,1)) -> 0 | O35: =AVERAGE(OFFSET(Pore!$D$10,12*($A35-1),4*(PlotControl!$C$6-1),12,1)) -> 0 | P35: =AVERAGE(OFFSET(Pore!$E$10,12*($A35-1),4*(PlotControl!$C$6-1),12,1)) -> 49.42033333 | Q35: =AVERAGE(OFFSET(CPS!$C$10,12*($A35-1),4*(PlotControl!$C$6-1),12,1)) -> 0 | R35: =AVERAGE(OFFSET(CPS!$D$10,12*($A35-1),4*(PlotControl!$C$6-1),12,1)) -> 81145.41667 | S35: =AVERAGE(OFFSET(CPS!$E$10,12*($A35-1),4*(PlotControl!$C$6-1),12,1)) -> 82742.75 | T35: =AVERAGE(OFFSET(Blast!$C$10,12*($A35-1),4*(PlotControl!$C$6-1),12,1)) -> 0 | U35: =AVERAGE(OFFSET(Blast!$D$10,12*($A35-1),4*(PlotControl!$C$6-1),12,1)) -> 0 | V35: =AVERAGE(OFFSET(Blast!$E$10,12*($A35-1),4*(PlotControl!$C$6-1),12,1)) -> 0 | W35: =AVERAGE(OFFSET(Cat1SP!$C$10,12*($A35-1),4*(PlotControl!$C$6-1),12,1)) -> 285.7276667 | X35: =AVERAGE(OFFSET(Cat1SP!$D$10,12*($A35-1),4*(PlotControl!$C$6-1),12,1)) -> 1324.940833 | Y35: =AVERAGE(OFFSET(Cat1SP!$E$10,12*($A35-1),4*(PlotControl!$C$6-1),12,1)) -> 17419.24167 | Z35: =AVERAGE(OFFSET(Cat1SP_WWTF!$C$10,12*($A35-1),4*(PlotControl!$C$6-1),12,1)) -> 0 | AA35: =AVERAGE(OFFSET(Cat1SP_WWTF!$D$10,12*($A35-1),4*(PlotControl!$C$6-1),12,1)) -> 9757.366667 | AB35: =AVERAGE(OFFSET(Cat1SP_WWTF!$E$10,12*($A35-1),4*(PlotControl!$C$6-1),12,1)) -> 41728.58333 | AC35: =AVERAGE(OFFSET(Cat1wall!$C$10,12*($A35-1),4*(PlotControl!$C$6-1),12,1)) -> 494.5166667 | AD35: =AVERAGE(OFFSET(Cat1wall!$D$10,12*($A35-1),4*(PlotControl!$C$6-1),12,1)) -> 1018.661667 | AE35: =AVERAGE(OFFSET(Cat1wall!$E$10,12*($A35-1),4*(PlotControl!$C$6-1),12,1)) -> 2311.433333 | AF35: =AVERAGE(OFFSET(Cat23wall!$C$10,12*($A35-1),4*(PlotControl!$C$6-1),12,1)) -> 655.7916667 | AG35: =AVERAGE(OFFSET(Cat23wall!$D$10,12*($A35-1),4*(PlotControl!$C$6-1),12,1)) -> 3038.483333 | AH35: =AVERAGE(OFFSET(Cat23wall!$E$10,12*($A35-1),4*(PlotControl!$C$6-1),12,1)) -> 17698.83333 | AI35: =AVERAGE(OFFSET(Cat4wall!$C$10,12*($A35-1),4*(PlotControl!$C$6-1),12,1)) -> 542.8566667 | AJ35: =AVERAGE(OFFSET(Cat4wall!$D$10,12*($A35-1),4*(PlotControl!$C$6-1),12,1)) -> 1278.773333 | AK35: =AVERAGE(OFFSET(Cat4wall!$E$10,12*($A35-1),4*(PlotControl!$C$6-1),12,1)) -> 3994.75 | AL35: =AVERAGE(OFFSET(Orewall!$C$10,12*($A35-1),4*(PlotControl!$C$6-1),12,1)) -> 6855.266667 | AM35: =AVERAGE(OFFSET(Orewall!$D$10,12*($A35-1),4*(PlotControl!$C$6-1),12,1)) -> 15288.91667 | AN35: =AVERAGE(OFFSET(Orewall!$E$10,12*($A35-1),4*(PlotControl!$C$6-1),12,1)) -> 48649.25 | AO35: =AVERAGE(OFFSET(TBPump!$C$10,12*($A35-1),4*(PlotControl!$C$6-1),12,1)) -> 9214.45 | AP35: =AVERAGE(OFFSET(TBPump!$D$10,12*($A35-1),4*(PlotControl!$C$6-1),12,1)) -> 20864.5 | AQ35: =AVERAGE(OFFSET(TBPump!$E$10,12*($A35-1),4*(PlotControl!$C$6-1),12,1)) -> 36029.58333
A36: 32 | B36: =AVERAGE(OFFSET(Total!$C$10,12*($A36-1),4*(PlotControl!$C$6-1),12,1)) -> 64534 | C36: =AVERAGE(OFFSET(Total!$D$10,12*($A36-1),4*(PlotControl!$C$6-1),12,1)) -> 126451.6667 | D36: =AVERAGE(OFFSET(Total!$E$10,12*($A36-1),4*(PlotControl!$C$6-1),12,1)) -> 189428.3333 | E36: =AVERAGE(OFFSET(RO!$C$10,12*($A36-1),4*(PlotControl!$C$6-1),12,1)) -> 848.6583333 | F36: =AVERAGE(OFFSET(RO!$D$10,12*($A36-1),4*(PlotControl!$C$6-1),12,1)) -> 2730.8 | G36: =AVERAGE(OFFSET(RO!$E$10,12*($A36-1),4*(PlotControl!$C$6-1),12,1)) -> 8987.983333 | H36: =AVERAGE(OFFSET(GW!$C$10,12*($A36-1),4*(PlotControl!$C$6-1),12,1)) -> 877.5566667 | I36: =AVERAGE(OFFSET(GW!$D$10,12*($A36-1),4*(PlotControl!$C$6-1),12,1)) -> 1024.866667 | J36: =AVERAGE(OFFSET(GW!$E$10,12*($A36-1),4*(PlotControl!$C$6-1),12,1)) -> 1512.5 | K36: =AVERAGE(OFFSET(Wetland!$C$10,12*($A36-1),4*(PlotControl!$C$6-1),12,1)) -> 0 | L36: =AVERAGE(OFFSET(Wetland!$D$10,12*($A36-1),4*(PlotControl!$C$6-1),12,1)) -> 5065.791667 | M36: =AVERAGE(OFFSET(Wetland!$E$10,12*($A36-1),4*(PlotControl!$C$6-1),12,1)) -> 27547.04167 | N36: =AVERAGE(OFFSET(Pore!$C$10,12*($A36-1),4*(PlotControl!$C$6-1),12,1)) -> 0 | O36: =AVERAGE(OFFSET(Pore!$D$10,12*($A36-1),4*(PlotControl!$C$6-1),12,1)) -> 0 | P36: =AVERAGE(OFFSET(Pore!$E$10,12*($A36-1),4*(PlotControl!$C$6-1),12,1)) -> 53.65641667 | Q36: =AVERAGE(OFFSET(CPS!$C$10,12*($A36-1),4*(PlotControl!$C$6-1),12,1)) -> 0 | R36: =AVERAGE(OFFSET(CPS!$D$10,12*($A36-1),4*(PlotControl!$C$6-1),12,1)) -> 81035.83333 | S36: =AVERAGE(OFFSET(CPS!$E$10,12*($A36-1),4*(PlotControl!$C$6-1),12,1)) -> 82650.91667 | T36: =AVERAGE(OFFSET(Blast!$C$10,12*($A36-1),4*(PlotControl!$C$6-1),12,1)) -> 0 | U36: =AVERAGE(OFFSET(Blast!$D$10,12*($A36-1),4*(PlotControl!$C$6-1),12,1)) -> 0 | V36: =AVERAGE(OFFSET(Blast!$E$10,12*($A36-1),4*(PlotControl!$C$6-1),12,1)) -> 0 | W36: =AVERAGE(OFFSET(Cat1SP!$C$10,12*($A36-1),4*(PlotControl!$C$6-1),12,1)) -> 318.13175 | X36: =AVERAGE(OFFSET(Cat1SP!$D$10,12*($A36-1),4*(PlotControl!$C$6-1),12,1)) -> 1667.804167 | Y36: =AVERAGE(OFFSET(Cat1SP!$E$10,12*($A36-1),4*(PlotControl!$C$6-1),12,1)) -> 25376.81667 | Z36: =AVERAGE(OFFSET(Cat1SP_WWTF!$C$10,12*($A36-1),4*(PlotControl!$C$6-1),12,1)) -> 0 | AA36: =AVERAGE(OFFSET(Cat1SP_WWTF!$D$10,12*($A36-1),4*(PlotControl!$C$6-1),12,1)) -> 7303.541667 | AB36: =AVERAGE(OFFSET(Cat1SP_WWTF!$E$10,12*($A36-1),4*(PlotControl!$C$6-1),12,1)) -> 37812.16667 | AC36: =AVERAGE(OFFSET(Cat1wall!$C$10,12*($A36-1),4*(PlotControl!$C$6-1),12,1)) -> 444.4783333 | AD36: =AVERAGE(OFFSET(Cat1wall!$D$10,12*($A36-1),4*(PlotControl!$C$6-1),12,1)) -> 859.11 | AE36: =AVERAGE(OFFSET(Cat1wall!$E$10,12*($A36-1),4*(PlotControl!$C$6-1),12,1)) -> 1909.075 | AF36: =AVERAGE(OFFSET(Cat23wall!$C$10,12*($A36-1),4*(PlotControl!$C$6-1),12,1)) -> 641.9925 | AG36: =AVERAGE(OFFSET(Cat23wall!$D$10,12*($A36-1),4*(PlotControl!$C$6-1),12,1)) -> 2863.433333 | AH36: =AVERAGE(OFFSET(Cat23wall!$E$10,12*($A36-1),4*(PlotControl!$C$6-1),12,1)) -> 11767.25 | AI36: =AVERAGE(OFFSET(Cat4wall!$C$10,12*($A36-1),4*(PlotControl!$C$6-1),12,1)) -> 548.86 | AJ36: =AVERAGE(OFFSET(Cat4wall!$D$10,12*($A36-1),4*(PlotControl!$C$6-1),12,1)) -> 1286.175833 | AK36: =AVERAGE(OFFSET(Cat4wall!$E$10,12*($A36-1),4*(PlotControl!$C$6-1),12,1)) -> 3530.358333 | AL36: =AVERAGE(OFFSET(Orewall!$C$10,12*($A36-1),4*(PlotControl!$C$6-1),12,1)) -> 6641.083333 | AM36: =AVERAGE(OFFSET(Orewall!$D$10,12*($A36-1),4*(PlotControl!$C$6-1),12,1)) -> 14353 | AN36: =AVERAGE(OFFSET(Orewall!$E$10,12*($A36-1),4*(PlotControl!$C$6-1),12,1)) -> 36896.25 | AO36: =AVERAGE(OFFSET(TBPump!$C$10,12*($A36-1),4*(PlotControl!$C$6-1),12,1)) -> 9087.766667 | AP36: =AVERAGE(OFFSET(TBPump!$D$10,12*($A36-1),4*(PlotControl!$C$6-1),12,1)) -> 17586.25 | AQ36: =AVERAGE(OFFSET(TBPump!$E$10,12*($A36-1),4*(PlotControl!$C$6-1),12,1)) -> 27661.91667
A37: 33 | B37: =AVERAGE(OFFSET(Total!$C$10,12*($A37-1),4*(PlotControl!$C$6-1),12,1)) -> 55928.25 | C37: =AVERAGE(OFFSET(Total!$D$10,12*($A37-1),4*(PlotControl!$C$6-1),12,1)) -> 119945 | D37: =AVERAGE(OFFSET(Total!$E$10,12*($A37-1),4*(PlotControl!$C$6-1),12,1)) -> 167120.8333 | E37: =AVERAGE(OFFSET(RO!$C$10,12*($A37-1),4*(PlotControl!$C$6-1),12,1)) -> 865.1341667 | F37: =AVERAGE(OFFSET(RO!$D$10,12*($A37-1),4*(PlotControl!$C$6-1),12,1)) -> 2730.358333 | G37: =AVERAGE(OFFSET(RO!$E$10,12*($A37-1),4*(PlotControl!$C$6-1),12,1)) -> 8482.15 | H37: =AVERAGE(OFFSET(GW!$C$10,12*($A37-1),4*(PlotControl!$C$6-1),12,1)) -> 869.7291667 | I37: =AVERAGE(OFFSET(GW!$D$10,12*($A37-1),4*(PlotControl!$C$6-1),12,1)) -> 1016.75 | J37: =AVERAGE(OFFSET(GW!$E$10,12*($A37-1),4*(PlotControl!$C$6-1),12,1)) -> 1498.366667 | K37: =AVERAGE(OFFSET(Wetland!$C$10,12*($A37-1),4*(PlotControl!$C$6-1),12,1)) -> 0 | L37: =AVERAGE(OFFSET(Wetland!$D$10,12*($A37-1),4*(PlotControl!$C$6-1),12,1)) -> 4131.041667 | M37: =AVERAGE(OFFSET(Wetland!$E$10,12*($A37-1),4*(PlotControl!$C$6-1),12,1)) -> 26658.71667 | N37: =AVERAGE(OFFSET(Pore!$C$10,12*($A37-1),4*(PlotControl!$C$6-1),12,1)) -> 0 | O37: =AVERAGE(OFFSET(Pore!$D$10,12*($A37-1),4*(PlotControl!$C$6-1),12,1)) -> 0 | P37: =AVERAGE(OFFSET(Pore!$E$10,12*($A37-1),4*(PlotControl!$C$6-1),12,1)) -> 58.03366667 | Q37: =AVERAGE(OFFSET(CPS!$C$10,12*($A37-1),4*(PlotControl!$C$6-1),12,1)) -> 0 | R37: =AVERAGE(OFFSET(CPS!$D$10,12*($A37-1),4*(PlotControl!$C$6-1),12,1)) -> 80858.33333 | S37: =AVERAGE(OFFSET(CPS!$E$10,12*($A37-1),4*(PlotControl!$C$6-1),12,1)) -> 82415.75 | T37: =AVERAGE(OFFSET(Blast!$C$10,12*($A37-1),4*(PlotControl!$C$6-1),12,1)) -> 0 | U37: =AVERAGE(OFFSET(Blast!$D$10,12*($A37-1),4*(PlotControl!$C$6-1),12,1)) -> 0 | V37: =AVERAGE(OFFSET(Blast!$E$10,12*($A37-1),4*(PlotControl!$C$6-1),12,1)) -> 0 | W37: =AVERAGE(OFFSET(Cat1SP!$C$10,12*($A37-1),4*(PlotControl!$C$6-1),12,1)) -> 369.9725 | X37: =AVERAGE(OFFSET(Cat1SP!$D$10,12*($A37-1),4*(PlotControl!$C$6-1),12,1)) -> 2502.878333 | Y37: =AVERAGE(OFFSET(Cat1SP!$E$10,12*($A37-1),4*(PlotControl!$C$6-1),12,1)) -> 31044.26667 | Z37: =AVERAGE(OFFSET(Cat1SP_WWTF!$C$10,12*($A37-1),4*(PlotControl!$C$6-1),12,1)) -> 0 | AA37: =AVERAGE(OFFSET(Cat1SP_WWTF!$D$10,12*($A37-1),4*(PlotControl!$C$6-1),12,1)) -> 4216.883333 | AB37: =AVERAGE(OFFSET(Cat1SP_WWTF!$E$10,12*($A37-1),4*(PlotControl!$C$6-1),12,1)) -> 34080 | AC37: =AVERAGE(OFFSET(Cat1wall!$C$10,12*($A37-1),4*(PlotControl!$C$6-1),12,1)) -> 418.375 | AD37: =AVERAGE(OFFSET(Cat1wall!$D$10,12*($A37-1),4*(PlotControl!$C$6-1),12,1)) -> 808.3208333 | AE37: =AVERAGE(OFFSET(Cat1wall!$E$10,12*($A37-1),4*(PlotControl!$C$6-1),12,1)) -> 1662.475 | AF37: =AVERAGE(OFFSET(Cat23wall!$C$10,12*($A37-1),4*(PlotControl!$C$6-1),12,1)) -> 775.84 | AG37: =AVERAGE(OFFSET(Cat23wall!$D$10,12*($A37-1),4*(PlotControl!$C$6-1),12,1)) -> 3179.05 | AH37: =AVERAGE(OFFSET(Cat23wall!$E$10,12*($A37-1),4*(PlotControl!$C$6-1),12,1)) -> 10629.79167 | AI37: =AVERAGE(OFFSET(Cat4wall!$C$10,12*($A37-1),4*(PlotControl!$C$6-1),12,1)) -> 506.3616667 | AJ37: =AVERAGE(OFFSET(Cat4wall!$D$10,12*($A37-1),4*(PlotControl!$C$6-1),12,1)) -> 1215.840833 | AK37: =AVERAGE(OFFSET(Cat4wall!$E$10,12*($A37-1),4*(PlotControl!$C$6-1),12,1)) -> 3155.583333 | AL37: =AVERAGE(OFFSET(Orewall!$C$10,12*($A37-1),4*(PlotControl!$C$6-1),12,1)) -> 6446.1 | AM37: =AVERAGE(OFFSET(Orewall!$D$10,12*($A37-1),4*(PlotControl!$C$6-1),12,1)) -> 13225.11667 | AN37: =AVERAGE(OFFSET(Orewall!$E$10,12*($A37-1),4*(PlotControl!$C$6-1),12,1)) -> 30676.33333 | AO37: =AVERAGE(OFFSET(TBPump!$C$10,12*($A37-1),4*(PlotControl!$C$6-1),12,1)) -> 9211.025 | AP37: =AVERAGE(OFFSET(TBPump!$D$10,12*($A37-1),4*(PlotControl!$C$6-1),12,1)) -> 16261.41667 | AQ37: =AVERAGE(OFFSET(TBPump!$E$10,12*($A37-1),4*(PlotControl!$C$6-1),12,1)) -> 24058.5
A38: 34 | B38: =AVERAGE(OFFSET(Total!$C$10,12*($A38-1),4*(PlotControl!$C$6-1),12,1)) -> 51694.66667 | C38: =AVERAGE(OFFSET(Total!$D$10,12*($A38-1),4*(PlotControl!$C$6-1),12,1)) -> 112140.4167 | D38: =AVERAGE(OFFSET(Total!$E$10,12*($A38-1),4*(PlotControl!$C$6-1),12,1)) -> 161851.6667 | E38: =AVERAGE(OFFSET(RO!$C$10,12*($A38-1),4*(PlotControl!$C$6-1),12,1)) -> 863.775 | F38: =AVERAGE(OFFSET(RO!$D$10,12*($A38-1),4*(PlotControl!$C$6-1),12,1)) -> 2813.35 | G38: =AVERAGE(OFFSET(RO!$E$10,12*($A38-1),4*(PlotControl!$C$6-1),12,1)) -> 9044.283333 | H38: =AVERAGE(OFFSET(GW!$C$10,12*($A38-1),4*(PlotControl!$C$6-1),12,1)) -> 850.89 | I38: =AVERAGE(OFFSET(GW!$D$10,12*($A38-1),4*(PlotControl!$C$6-1),12,1)) -> 999.3158333 | J38: =AVERAGE(OFFSET(GW!$E$10,12*($A38-1),4*(PlotControl!$C$6-1),12,1)) -> 1471.675 | K38: =AVERAGE(OFFSET(Wetland!$C$10,12*($A38-1),4*(PlotControl!$C$6-1),12,1)) -> 0 | L38: =AVERAGE(OFFSET(Wetland!$D$10,12*($A38-1),4*(PlotControl!$C$6-1),12,1)) -> 3938.7 | M38: =AVERAGE(OFFSET(Wetland!$E$10,12*($A38-1),4*(PlotControl!$C$6-1),12,1)) -> 26277.46667 | N38: =AVERAGE(OFFSET(Pore!$C$10,12*($A38-1),4*(PlotControl!$C$6-1),12,1)) -> 0 | O38: =AVERAGE(OFFSET(Pore!$D$10,12*($A38-1),4*(PlotControl!$C$6-1),12,1)) -> 32.68991667 | P38: =AVERAGE(OFFSET(Pore!$E$10,12*($A38-1),4*(PlotControl!$C$6-1),12,1)) -> 60.77575 | Q38: =AVERAGE(OFFSET(CPS!$C$10,12*($A38-1),4*(PlotControl!$C$6-1),12,1)) -> 0 | R38: =AVERAGE(OFFSET(CPS!$D$10,12*($A38-1),4*(PlotControl!$C$6-1),12,1)) -> 13444.61891 | S38: =AVERAGE(OFFSET(CPS!$E$10,12*($A38-1),4*(PlotControl!$C$6-1),12,1)) -> 82181.5 | T38: =AVERAGE(OFFSET(Blast!$C$10,12*($A38-1),4*(PlotControl!$C$6-1),12,1)) -> 0 | U38: =AVERAGE(OFFSET(Blast!$D$10,12*($A38-1),4*(PlotControl!$C$6-1),12,1)) -> 0 | V38: =AVERAGE(OFFSET(Blast!$E$10,12*($A38-1),4*(PlotControl!$C$6-1),12,1)) -> 0 | W38: =AVERAGE(OFFSET(Cat1SP!$C$10,12*($A38-1),4*(PlotControl!$C$6-1),12,1)) -> 428.1508333 | X38: =AVERAGE(OFFSET(Cat1SP!$D$10,12*($A38-1),4*(PlotControl!$C$6-1),12,1)) -> 4465.55 | Y38: =AVERAGE(OFFSET(Cat1SP!$E$10,12*($A38-1),4*(PlotControl!$C$6-1),12,1)) -> 37009.5 | Z38: =AVERAGE(OFFSET(Cat1SP_WWTF!$C$10,12*($A38-1),4*(PlotControl!$C$6-1),12,1)) -> 0 | AA38: =AVERAGE(OFFSET(Cat1SP_WWTF!$D$10,12*($A38-1),4*(PlotControl!$C$6-1),12,1)) -> 69.3725 | AB38: =AVERAGE(OFFSET(Cat1SP_WWTF!$E$10,12*($A38-1),4*(PlotControl!$C$6-1),12,1)) -> 28922.46667 | AC38: =AVERAGE(OFFSET(Cat1wall!$C$10,12*($A38-1),4*(PlotControl!$C$6-1),12,1)) -> 407.28 | AD38: =AVERAGE(OFFSET(Cat1wall!$D$10,12*($A38-1),4*(PlotControl!$C$6-1),12,1)) -> 783.8291667 | AE38: =AVERAGE(OFFSET(Cat1wall!$E$10,12*($A38-1),4*(PlotControl!$C$6-1),12,1)) -> 1530.175 | AF38: =AVERAGE(OFFSET(Cat23wall!$C$10,12*($A38-1),4*(PlotControl!$C$6-1),12,1)) -> 937.17 | AG38: =AVERAGE(OFFSET(Cat23wall!$D$10,12*($A38-1),4*(PlotControl!$C$6-1),12,1)) -> 3538.508333 | AH38: =AVERAGE(OFFSET(Cat23wall!$E$10,12*($A38-1),4*(PlotControl!$C$6-1),12,1)) -> 9975.616667 | AI38: =AVERAGE(OFFSET(Cat4wall!$C$10,12*($A38-1),4*(PlotControl!$C$6-1),12,1)) -> 451.43 | AJ38: =AVERAGE(OFFSET(Cat4wall!$D$10,12*($A38-1),4*(PlotControl!$C$6-1),12,1)) -> 1077.621667 | AK38: =AVERAGE(OFFSET(Cat4wall!$E$10,12*($A38-1),4*(PlotControl!$C$6-1),12,1)) -> 2655.416667 | AL38: =AVERAGE(OFFSET(Orewall!$C$10,12*($A38-1),4*(PlotControl!$C$6-1),12,1)) -> 6030.508333 | AM38: =AVERAGE(OFFSET(Orewall!$D$10,12*($A38-1),4*(PlotControl!$C$6-1),12,1)) -> 12037.375 | AN38: =AVERAGE(OFFSET(Orewall!$E$10,12*($A38-1),4*(PlotControl!$C$6-1),12,1)) -> 28125.91667 | AO38: =AVERAGE(OFFSET(TBPump!$C$10,12*($A38-1),4*(PlotControl!$C$6-1),12,1)) -> 9196.841667 | AP38: =AVERAGE(OFFSET(TBPump!$D$10,12*($A38-1),4*(PlotControl!$C$6-1),12,1)) -> 17031.5 | AQ38: =AVERAGE(OFFSET(TBPump!$E$10,12*($A38-1),4*(PlotControl!$C$6-1),12,1)) -> 25451.25
A39: 35 | B39: =AVERAGE(OFFSET(Total!$C$10,12*($A39-1),4*(PlotControl!$C$6-1),12,1)) -> 42791 | C39: =AVERAGE(OFFSET(Total!$D$10,12*($A39-1),4*(PlotControl!$C$6-1),12,1)) -> 86153.5 | D39: =AVERAGE(OFFSET(Total!$E$10,12*($A39-1),4*(PlotControl!$C$6-1),12,1)) -> 146270 | E39: =AVERAGE(OFFSET(RO!$C$10,12*($A39-1),4*(PlotControl!$C$6-1),12,1)) -> 863.6941667 | F39: =AVERAGE(OFFSET(RO!$D$10,12*($A39-1),4*(PlotControl!$C$6-1),12,1)) -> 2746.541667 | G39: =AVERAGE(OFFSET(RO!$E$10,12*($A39-1),4*(PlotControl!$C$6-1),12,1)) -> 8600.908333 | H39: =AVERAGE(OFFSET(GW!$C$10,12*($A39-1),4*(PlotControl!$C$6-1),12,1)) -> 824.5416667 | I39: =AVERAGE(OFFSET(GW!$D$10,12*($A39-1),4*(PlotControl!$C$6-1),12,1)) -> 973.4616667 | J39: =AVERAGE(OFFSET(GW!$E$10,12*($A39-1),4*(PlotControl!$C$6-1),12,1)) -> 1438.041667 | K39: =AVERAGE(OFFSET(Wetland!$C$10,12*($A39-1),4*(PlotControl!$C$6-1),12,1)) -> 0 | L39: =AVERAGE(OFFSET(Wetland!$D$10,12*($A39-1),4*(PlotControl!$C$6-1),12,1)) -> 7067.058333 | M39: =AVERAGE(OFFSET(Wetland!$E$10,12*($A39-1),4*(PlotControl!$C$6-1),12,1)) -> 24690.56667 | N39: =AVERAGE(OFFSET(Pore!$C$10,12*($A39-1),4*(PlotControl!$C$6-1),12,1)) -> 0 | O39: =AVERAGE(OFFSET(Pore!$D$10,12*($A39-1),4*(PlotControl!$C$6-1),12,1)) -> 41.4565 | P39: =AVERAGE(OFFSET(Pore!$E$10,12*($A39-1),4*(PlotControl!$C$6-1),12,1)) -> 62.30616667 | Q39: =AVERAGE(OFFSET(CPS!$C$10,12*($A39-1),4*(PlotControl!$C$6-1),12,1)) -> 0 | R39: =AVERAGE(OFFSET(CPS!$D$10,12*($A39-1),4*(PlotControl!$C$6-1),12,1)) -> 0 | S39: =AVERAGE(OFFSET(CPS!$E$10,12*($A39-1),4*(PlotControl!$C$6-1),12,1)) -> 81982.91667 | T39: =AVERAGE(OFFSET(Blast!$C$10,12*($A39-1),4*(PlotControl!$C$6-1),12,1)) -> 0 | U39: =AVERAGE(OFFSET(Blast!$D$10,12*($A39-1),4*(PlotControl!$C$6-1),12,1)) -> 0 | V39: =AVERAGE(OFFSET(Blast!$E$10,12*($A39-1),4*(PlotControl!$C$6-1),12,1)) -> 0 | W39: =AVERAGE(OFFSET(Cat1SP!$C$10,12*($A39-1),4*(PlotControl!$C$6-1),12,1)) -> 517.6583333 | X39: =AVERAGE(OFFSET(Cat1SP!$D$10,12*($A39-1),4*(PlotControl!$C$6-1),12,1)) -> 6756.375 | Y39: =AVERAGE(OFFSET(Cat1SP!$E$10,12*($A39-1),4*(PlotControl!$C$6-1),12,1)) -> 38004.5 | Z39: =AVERAGE(OFFSET(Cat1SP_WWTF!$C$10,12*($A39-1),4*(PlotControl!$C$6-1),12,1)) -> 0 | AA39: =AVERAGE(OFFSET(Cat1SP_WWTF!$D$10,12*($A39-1),4*(PlotControl!$C$6-1),12,1)) -> 0 | AB39: =AVERAGE(OFFSET(Cat1SP_WWTF!$E$10,12*($A39-1),4*(PlotControl!$C$6-1),12,1)) -> 25160.775 | AC39: =AVERAGE(OFFSET(Cat1wall!$C$10,12*($A39-1),4*(PlotControl!$C$6-1),12,1)) -> 354.2583333 | AD39: =AVERAGE(OFFSET(Cat1wall!$D$10,12*($A39-1),4*(PlotControl!$C$6-1),12,1)) -> 710.7691667 | AE39: =AVERAGE(OFFSET(Cat1wall!$E$10,12*($A39-1),4*(PlotControl!$C$6-1),12,1)) -> 1380.565 | AF39: =AVERAGE(OFFSET(Cat23wall!$C$10,12*($A39-1),4*(PlotControl!$C$6-1),12,1)) -> 1099.720833 | AG39: =AVERAGE(OFFSET(Cat23wall!$D$10,12*($A39-1),4*(PlotControl!$C$6-1),12,1)) -> 3420.316667 | AH39: =AVERAGE(OFFSET(Cat23wall!$E$10,12*($A39-1),4*(PlotControl!$C$6-1),12,1)) -> 8176.466667 | AI39: =AVERAGE(OFFSET(Cat4wall!$C$10,12*($A39-1),4*(PlotControl!$C$6-1),12,1)) -> 356.11 | AJ39: =AVERAGE(OFFSET(Cat4wall!$D$10,12*($A39-1),4*(PlotControl!$C$6-1),12,1)) -> 849.9191667 | AK39: =AVERAGE(OFFSET(Cat4wall!$E$10,12*($A39-1),4*(PlotControl!$C$6-1),12,1)) -> 2081.2 | AL39: =AVERAGE(OFFSET(Orewall!$C$10,12*($A39-1),4*(PlotControl!$C$6-1),12,1)) -> 5088.775 | AM39: =AVERAGE(OFFSET(Orewall!$D$10,12*($A39-1),4*(PlotControl!$C$6-1),12,1)) -> 10776.03333 | AN39: =AVERAGE(OFFSET(Orewall!$E$10,12*($A39-1),4*(PlotControl!$C$6-1),12,1)) -> 23654.5 | AO39: =AVERAGE(OFFSET(TBPump!$C$10,12*($A39-1),4*(PlotControl!$C$6-1),12,1)) -> 5861.308333 | AP39: =AVERAGE(OFFSET(TBPump!$D$10,12*($A39-1),4*(PlotControl!$C$6-1),12,1)) -> 12308.75 | AQ39: =AVERAGE(OFFSET(TBPump!$E$10,12*($A39-1),4*(PlotControl!$C$6-1),12,1)) -> 18859.91667
A40: 36 | B40: =AVERAGE(OFFSET(Total!$C$10,12*($A40-1),4*(PlotControl!$C$6-1),12,1)) -> 39946.25 | C40: =AVERAGE(OFFSET(Total!$D$10,12*($A40-1),4*(PlotControl!$C$6-1),12,1)) -> 73019.66667 | D40: =AVERAGE(OFFSET(Total!$E$10,12*($A40-1),4*(PlotControl!$C$6-1),12,1)) -> 136984.1667 | E40: =AVERAGE(OFFSET(RO!$C$10,12*($A40-1),4*(PlotControl!$C$6-1),12,1)) -> 863.4766667 | F40: =AVERAGE(OFFSET(RO!$D$10,12*($A40-1),4*(PlotControl!$C$6-1),12,1)) -> 2757.675 | G40: =AVERAGE(OFFSET(RO!$E$10,12*($A40-1),4*(PlotControl!$C$6-1),12,1)) -> 8987.183333 | H40: =AVERAGE(OFFSET(GW!$C$10,12*($A40-1),4*(PlotControl!$C$6-1),12,1)) -> 797.1691667 | I40: =AVERAGE(OFFSET(GW!$D$10,12*($A40-1),4*(PlotControl!$C$6-1),12,1)) -> 943.4725 | J40: =AVERAGE(OFFSET(GW!$E$10,12*($A40-1),4*(PlotControl!$C$6-1),12,1)) -> 1392.166667 | K40: =AVERAGE(OFFSET(Wetland!$C$10,12*($A40-1),4*(PlotControl!$C$6-1),12,1)) -> 0 | L40: =AVERAGE(OFFSET(Wetland!$D$10,12*($A40-1),4*(PlotControl!$C$6-1),12,1)) -> 7470.7 | M40: =AVERAGE(OFFSET(Wetland!$E$10,12*($A40-1),4*(PlotControl!$C$6-1),12,1)) -> 22754.25833 | N40: =AVERAGE(OFFSET(Pore!$C$10,12*($A40-1),4*(PlotControl!$C$6-1),12,1)) -> 0 | O40: =AVERAGE(OFFSET(Pore!$D$10,12*($A40-1),4*(PlotControl!$C$6-1),12,1)) -> 43.01333333 | P40: =AVERAGE(OFFSET(Pore!$E$10,12*($A40-1),4*(PlotControl!$C$6-1),12,1)) -> 63.593 | Q40: =AVERAGE(OFFSET(CPS!$C$10,12*($A40-1),4*(PlotControl!$C$6-1),12,1)) -> 0 | R40: =AVERAGE(OFFSET(CPS!$D$10,12*($A40-1),4*(PlotControl!$C$6-1),12,1)) -> 0 | S40: =AVERAGE(OFFSET(CPS!$E$10,12*($A40-1),4*(PlotControl!$C$6-1),12,1)) -> 81671.25 | T40: =AVERAGE(OFFSET(Blast!$C$10,12*($A40-1),4*(PlotControl!$C$6-1),12,1)) -> 0 | U40: =AVERAGE(OFFSET(Blast!$D$10,12*($A40-1),4*(PlotControl!$C$6-1),12,1)) -> 0 | V40: =AVERAGE(OFFSET(Blast!$E$10,12*($A40-1),4*(PlotControl!$C$6-1),12,1)) -> 0 | W40: =AVERAGE(OFFSET(Cat1SP!$C$10,12*($A40-1),4*(PlotControl!$C$6-1),12,1)) -> 629.1166667 | X40: =AVERAGE(OFFSET(Cat1SP!$D$10,12*($A40-1),4*(PlotControl!$C$6-1),12,1)) -> 9284.541667 | Y40: =AVERAGE(OFFSET(Cat1SP!$E$10,12*($A40-1),4*(PlotControl!$C$6-1),12,1)) -> 42648.41667 | Z40: =AVERAGE(OFFSET(Cat1SP_WWTF!$C$10,12*($A40-1),4*(PlotControl!$C$6-1),12,1)) -> 0 | AA40: =AVERAGE(OFFSET(Cat1SP_WWTF!$D$10,12*($A40-1),4*(PlotControl!$C$6-1),12,1)) -> 0 | AB40: =AVERAGE(OFFSET(Cat1SP_WWTF!$E$10,12*($A40-1),4*(PlotControl!$C$6-1),12,1)) -> 20143.89167 | AC40: =AVERAGE(OFFSET(Cat1wall!$C$10,12*($A40-1),4*(PlotControl!$C$6-1),12,1)) -> 331.9633333 | AD40: =AVERAGE(OFFSET(Cat1wall!$D$10,12*($A40-1),4*(PlotControl!$C$6-1),12,1)) -> 658.1341667 | AE40: =AVERAGE(OFFSET(Cat1wall!$E$10,12*($A40-1),4*(PlotControl!$C$6-1),12,1)) -> 1185.484167 | AF40: =AVERAGE(OFFSET(Cat23wall!$C$10,12*($A40-1),4*(PlotControl!$C$6-1),12,1)) -> 1225.02 | AG40: =AVERAGE(OFFSET(Cat23wall!$D$10,12*($A40-1),4*(PlotControl!$C$6-1),12,1)) -> 3216.466667 | AH40: =AVERAGE(OFFSET(Cat23wall!$E$10,12*($A40-1),4*(PlotControl!$C$6-1),12,1)) -> 7353.15 | AI40: =AVERAGE(OFFSET(Cat4wall!$C$10,12*($A40-1),4*(PlotControl!$C$6-1),12,1)) -> 291.4091667 | AJ40: =AVERAGE(OFFSET(Cat4wall!$D$10,12*($A40-1),4*(PlotControl!$C$6-1),12,1)) -> 699.3825 | AK40: =AVERAGE(OFFSET(Cat4wall!$E$10,12*($A40-1),4*(PlotControl!$C$6-1),12,1)) -> 1650.641667 | AL40: =AVERAGE(OFFSET(Orewall!$C$10,12*($A40-1),4*(PlotControl!$C$6-1),12,1)) -> 4872.641667 | AM40: =AVERAGE(OFFSET(Orewall!$D$10,12*($A40-1),4*(PlotControl!$C$6-1),12,1)) -> 10054.76667 | AN40: =AVERAGE(OFFSET(Orewall!$E$10,12*($A40-1),4*(PlotControl!$C$6-1),12,1)) -> 20754.25 | AO40: =AVERAGE(OFFSET(TBPump!$C$10,12*($A40-1),4*(PlotControl!$C$6-1),12,1)) -> 4725.7 | AP40: =AVERAGE(OFFSET(TBPump!$D$10,12*($A40-1),4*(PlotControl!$C$6-1),12,1)) -> 10360.53333 | AQ40: =AVERAGE(OFFSET(TBPump!$E$10,12*($A40-1),4*(PlotControl!$C$6-1),12,1)) -> 16236.58333
A41: 37 | B41: =AVERAGE(OFFSET(Total!$C$10,12*($A41-1),4*(PlotControl!$C$6-1),12,1)) -> 34658.16667 | C41: =AVERAGE(OFFSET(Total!$D$10,12*($A41-1),4*(PlotControl!$C$6-1),12,1)) -> 63343 | D41: =AVERAGE(OFFSET(Total!$E$10,12*($A41-1),4*(PlotControl!$C$6-1),12,1)) -> 130417.5 | E41: =AVERAGE(OFFSET(RO!$C$10,12*($A41-1),4*(PlotControl!$C$6-1),12,1)) -> 839.4016667 | F41: =AVERAGE(OFFSET(RO!$D$10,12*($A41-1),4*(PlotControl!$C$6-1),12,1)) -> 2704.175 | G41: =AVERAGE(OFFSET(RO!$E$10,12*($A41-1),4*(PlotControl!$C$6-1),12,1)) -> 8398.833333 | H41: =AVERAGE(OFFSET(GW!$C$10,12*($A41-1),4*(PlotControl!$C$6-1),12,1)) -> 769.1216667 | I41: =AVERAGE(OFFSET(GW!$D$10,12*($A41-1),4*(PlotControl!$C$6-1),12,1)) -> 913.8283333 | J41: =AVERAGE(OFFSET(GW!$E$10,12*($A41-1),4*(PlotControl!$C$6-1),12,1)) -> 1344.366667 | K41: =AVERAGE(OFFSET(Wetland!$C$10,12*($A41-1),4*(PlotControl!$C$6-1),12,1)) -> 0 | L41: =AVERAGE(OFFSET(Wetland!$D$10,12*($A41-1),4*(PlotControl!$C$6-1),12,1)) -> 6426.95 | M41: =AVERAGE(OFFSET(Wetland!$E$10,12*($A41-1),4*(PlotControl!$C$6-1),12,1)) -> 20965.01667 | N41: =AVERAGE(OFFSET(Pore!$C$10,12*($A41-1),4*(PlotControl!$C$6-1),12,1)) -> 0 | O41: =AVERAGE(OFFSET(Pore!$D$10,12*($A41-1),4*(PlotControl!$C$6-1),12,1)) -> 43.77533333 | P41: =AVERAGE(OFFSET(Pore!$E$10,12*($A41-1),4*(PlotControl!$C$6-1),12,1)) -> 64.63233333 | Q41: =AVERAGE(OFFSET(CPS!$C$10,12*($A41-1),4*(PlotControl!$C$6-1),12,1)) -> 0 | R41: =AVERAGE(OFFSET(CPS!$D$10,12*($A41-1),4*(PlotControl!$C$6-1),12,1)) -> 0 | S41: =AVERAGE(OFFSET(CPS!$E$10,12*($A41-1),4*(PlotControl!$C$6-1),12,1)) -> 81463.25 | T41: =AVERAGE(OFFSET(Blast!$C$10,12*($A41-1),4*(PlotControl!$C$6-1),12,1)) -> 0 | U41: =AVERAGE(OFFSET(Blast!$D$10,12*($A41-1),4*(PlotControl!$C$6-1),12,1)) -> 0 | V41: =AVERAGE(OFFSET(Blast!$E$10,12*($A41-1),4*(PlotControl!$C$6-1),12,1)) -> 0 | W41: =AVERAGE(OFFSET(Cat1SP!$C$10,12*($A41-1),4*(PlotControl!$C$6-1),12,1)) -> 694.0041667 | X41: =AVERAGE(OFFSET(Cat1SP!$D$10,12*($A41-1),4*(PlotControl!$C$6-1),12,1)) -> 10670.68333 | Y41: =AVERAGE(OFFSET(Cat1SP!$E$10,12*($A41-1),4*(PlotControl!$C$6-1),12,1)) -> 43769.33333 | Z41: =AVERAGE(OFFSET(Cat1SP_WWTF!$C$10,12*($A41-1),4*(PlotControl!$C$6-1),12,1)) -> 0 | AA41: =AVERAGE(OFFSET(Cat1SP_WWTF!$D$10,12*($A41-1),4*(PlotControl!$C$6-1),12,1)) -> 0 | AB41: =AVERAGE(OFFSET(Cat1SP_WWTF!$E$10,12*($A41-1),4*(PlotControl!$C$6-1),12,1)) -> 16914.90833 | AC41: =AVERAGE(OFFSET(Cat1wall!$C$10,12*($A41-1),4*(PlotControl!$C$6-1),12,1)) -> 295.645 | AD41: =AVERAGE(OFFSET(Cat1wall!$D$10,12*($A41-1),4*(PlotControl!$C$6-1),12,1)) -> 604.385 | AE41: =AVERAGE(OFFSET(Cat1wall!$E$10,12*($A41-1),4*(PlotControl!$C$6-1),12,1)) -> 1072.524167 | AF41: =AVERAGE(OFFSET(Cat23wall!$C$10,12*($A41-1),4*(PlotControl!$C$6-1),12,1)) -> 1243.5875 | AG41: =AVERAGE(OFFSET(Cat23wall!$D$10,12*($A41-1),4*(PlotControl!$C$6-1),12,1)) -> 3036.166667 | AH41: =AVERAGE(OFFSET(Cat23wall!$E$10,12*($A41-1),4*(PlotControl!$C$6-1),12,1)) -> 6772.491667 | AI41: =AVERAGE(OFFSET(Cat4wall!$C$10,12*($A41-1),4*(PlotControl!$C$6-1),12,1)) -> 214.9941667 | AJ41: =AVERAGE(OFFSET(Cat4wall!$D$10,12*($A41-1),4*(PlotControl!$C$6-1),12,1)) -> 560.4125 | AK41: =AVERAGE(OFFSET(Cat4wall!$E$10,12*($A41-1),4*(PlotControl!$C$6-1),12,1)) -> 1343.886667 | AL41: =AVERAGE(OFFSET(Orewall!$C$10,12*($A41-1),4*(PlotControl!$C$6-1),12,1)) -> 4339.6 | AM41: =AVERAGE(OFFSET(Orewall!$D$10,12*($A41-1),4*(PlotControl!$C$6-1),12,1)) -> 9323.633333 | AN41: =AVERAGE(OFFSET(Orewall!$E$10,12*($A41-1),4*(PlotControl!$C$6-1),12,1)) -> 18523.41667 | AO41: =AVERAGE(OFFSET(TBPump!$C$10,12*($A41-1),4*(PlotControl!$C$6-1),12,1)) -> 3107.6 | AP41: =AVERAGE(OFFSET(TBPump!$D$10,12*($A41-1),4*(PlotControl!$C$6-1),12,1)) -> 8343.041667 | AQ41: =AVERAGE(OFFSET(TBPump!$E$10,12*($A41-1),4*(PlotControl!$C$6-1),12,1)) -> 14053.75
A42: 38 | B42: =AVERAGE(OFFSET(Total!$C$10,12*($A42-1),4*(PlotControl!$C$6-1),12,1)) -> 32539.25 | C42: =AVERAGE(OFFSET(Total!$D$10,12*($A42-1),4*(PlotControl!$C$6-1),12,1)) -> 59403.41667 | D42: =AVERAGE(OFFSET(Total!$E$10,12*($A42-1),4*(PlotControl!$C$6-1),12,1)) -> 124892.5 | E42: =AVERAGE(OFFSET(RO!$C$10,12*($A42-1),4*(PlotControl!$C$6-1),12,1)) -> 898.525 | F42: =AVERAGE(OFFSET(RO!$D$10,12*($A42-1),4*(PlotControl!$C$6-1),12,1)) -> 2696.3 | G42: =AVERAGE(OFFSET(RO!$E$10,12*($A42-1),4*(PlotControl!$C$6-1),12,1)) -> 8516.25 | H42: =AVERAGE(OFFSET(GW!$C$10,12*($A42-1),4*(PlotControl!$C$6-1),12,1)) -> 748.9016667 | I42: =AVERAGE(OFFSET(GW!$D$10,12*($A42-1),4*(PlotControl!$C$6-1),12,1)) -> 884.7975 | J42: =AVERAGE(OFFSET(GW!$E$10,12*($A42-1),4*(PlotControl!$C$6-1),12,1)) -> 1297.258333 | K42: =AVERAGE(OFFSET(Wetland!$C$10,12*($A42-1),4*(PlotControl!$C$6-1),12,1)) -> 0 | L42: =AVERAGE(OFFSET(Wetland!$D$10,12*($A42-1),4*(PlotControl!$C$6-1),12,1)) -> 5812.8 | M42: =AVERAGE(OFFSET(Wetland!$E$10,12*($A42-1),4*(PlotControl!$C$6-1),12,1)) -> 19099.43333 | N42: =AVERAGE(OFFSET(Pore!$C$10,12*($A42-1),4*(PlotControl!$C$6-1),12,1)) -> 0 | O42: =AVERAGE(OFFSET(Pore!$D$10,12*($A42-1),4*(PlotControl!$C$6-1),12,1)) -> 44.22291667 | P42: =AVERAGE(OFFSET(Pore!$E$10,12*($A42-1),4*(PlotControl!$C$6-1),12,1)) -> 65.07991667 | Q42: =AVERAGE(OFFSET(CPS!$C$10,12*($A42-1),4*(PlotControl!$C$6-1),12,1)) -> 0 | R42: =AVERAGE(OFFSET(CPS!$D$10,12*($A42-1),4*(PlotControl!$C$6-1),12,1)) -> 0 | S42: =AVERAGE(OFFSET(CPS!$E$10,12*($A42-1),4*(PlotControl!$C$6-1),12,1)) -> 81214.33333 | T42: =AVERAGE(OFFSET(Blast!$C$10,12*($A42-1),4*(PlotControl!$C$6-1),12,1)) -> 0 | U42: =AVERAGE(OFFSET(Blast!$D$10,12*($A42-1),4*(PlotControl!$C$6-1),12,1)) -> 0 | V42: =AVERAGE(OFFSET(Blast!$E$10,12*($A42-1),4*(PlotControl!$C$6-1),12,1)) -> 0 | W42: =AVERAGE(OFFSET(Cat1SP!$C$10,12*($A42-1),4*(PlotControl!$C$6-1),12,1)) -> 879.2983333 | X42: =AVERAGE(OFFSET(Cat1SP!$D$10,12*($A42-1),4*(PlotControl!$C$6-1),12,1)) -> 11524.05833 | Y42: =AVERAGE(OFFSET(Cat1SP!$E$10,12*($A42-1),4*(PlotControl!$C$6-1),12,1)) -> 44859.5 | Z42: =AVERAGE(OFFSET(Cat1SP_WWTF!$C$10,12*($A42-1),4*(PlotControl!$C$6-1),12,1)) -> 0 | AA42: =AVERAGE(OFFSET(Cat1SP_WWTF!$D$10,12*($A42-1),4*(PlotControl!$C$6-1),12,1)) -> 0 | AB42: =AVERAGE(OFFSET(Cat1SP_WWTF!$E$10,12*($A42-1),4*(PlotControl!$C$6-1),12,1)) -> 11071.51667 | AC42: =AVERAGE(OFFSET(Cat1wall!$C$10,12*($A42-1),4*(PlotControl!$C$6-1),12,1)) -> 297.2175 | AD42: =AVERAGE(OFFSET(Cat1wall!$D$10,12*($A42-1),4*(PlotControl!$C$6-1),12,1)) -> 564.415 | AE42: =AVERAGE(OFFSET(Cat1wall!$E$10,12*($A42-1),4*(PlotControl!$C$6-1),12,1)) -> 1022.28 | AF42: =AVERAGE(OFFSET(Cat23wall!$C$10,12*($A42-1),4*(PlotControl!$C$6-1),12,1)) -> 1276.7825 | AG42: =AVERAGE(OFFSET(Cat23wall!$D$10,12*($A42-1),4*(PlotControl!$C$6-1),12,1)) -> 2930.575 | AH42: =AVERAGE(OFFSET(Cat23wall!$E$10,12*($A42-1),4*(PlotControl!$C$6-1),12,1)) -> 6367.216667 | AI42: =AVERAGE(OFFSET(Cat4wall!$C$10,12*($A42-1),4*(PlotControl!$C$6-1),12,1)) -> 150.42825 | AJ42: =AVERAGE(OFFSET(Cat4wall!$D$10,12*($A42-1),4*(PlotControl!$C$6-1),12,1)) -> 443.9041667 | AK42: =AVERAGE(OFFSET(Cat4wall!$E$10,12*($A42-1),4*(PlotControl!$C$6-1),12,1)) -> 1116.226667 | AL42: =AVERAGE(OFFSET(Orewall!$C$10,12*($A42-1),4*(PlotControl!$C$6-1),12,1)) -> 4133.883333 | AM42: =AVERAGE(OFFSET(Orewall!$D$10,12*($A42-1),4*(PlotControl!$C$6-1),12,1)) -> 8585.575 | AN42: =AVERAGE(OFFSET(Orewall!$E$10,12*($A42-1),4*(PlotControl!$C$6-1),12,1)) -> 17587.33333 | AO42: =AVERAGE(OFFSET(TBPump!$C$10,12*($A42-1),4*(PlotControl!$C$6-1),12,1)) -> 3018.241667 | AP42: =AVERAGE(OFFSET(TBPump!$D$10,12*($A42-1),4*(PlotControl!$C$6-1),12,1)) -> 7695.308333 | AQ42: =AVERAGE(OFFSET(TBPump!$E$10,12*($A42-1),4*(PlotControl!$C$6-1),12,1)) -> 12652.91667
A43: 39 | B43: =AVERAGE(OFFSET(Total!$C$10,12*($A43-1),4*(PlotControl!$C$6-1),12,1)) -> 30226.83333 | C43: =AVERAGE(OFFSET(Total!$D$10,12*($A43-1),4*(PlotControl!$C$6-1),12,1)) -> 56948.16667 | D43: =AVERAGE(OFFSET(Total!$E$10,12*($A43-1),4*(PlotControl!$C$6-1),12,1)) -> 123315.3333 | E43: =AVERAGE(OFFSET(RO!$C$10,12*($A43-1),4*(PlotControl!$C$6-1),12,1)) -> 839.4525 | F43: =AVERAGE(OFFSET(RO!$D$10,12*($A43-1),4*(PlotControl!$C$6-1),12,1)) -> 2746.066667 | G43: =AVERAGE(OFFSET(RO!$E$10,12*($A43-1),4*(PlotControl!$C$6-1),12,1)) -> 8552.958333 | H43: =AVERAGE(OFFSET(GW!$C$10,12*($A43-1),4*(PlotControl!$C$6-1),12,1)) -> 728.0741667 | I43: =AVERAGE(OFFSET(GW!$D$10,12*($A43-1),4*(PlotControl!$C$6-1),12,1)) -> 858.9575 | J43: =AVERAGE(OFFSET(GW!$E$10,12*($A43-1),4*(PlotControl!$C$6-1),12,1)) -> 1257.091667 | K43: =AVERAGE(OFFSET(Wetland!$C$10,12*($A43-1),4*(PlotControl!$C$6-1),12,1)) -> 0 | L43: =AVERAGE(OFFSET(Wetland!$D$10,12*($A43-1),4*(PlotControl!$C$6-1),12,1)) -> 5661.791667 | M43: =AVERAGE(OFFSET(Wetland!$E$10,12*($A43-1),4*(PlotControl!$C$6-1),12,1)) -> 17101.88333 | N43: =AVERAGE(OFFSET(Pore!$C$10,12*($A43-1),4*(PlotControl!$C$6-1),12,1)) -> 0 | O43: =AVERAGE(OFFSET(Pore!$D$10,12*($A43-1),4*(PlotControl!$C$6-1),12,1)) -> 44.903 | P43: =AVERAGE(OFFSET(Pore!$E$10,12*($A43-1),4*(PlotControl!$C$6-1),12,1)) -> 65.3755 | Q43: =AVERAGE(OFFSET(CPS!$C$10,12*($A43-1),4*(PlotControl!$C$6-1),12,1)) -> 0 | R43: =AVERAGE(OFFSET(CPS!$D$10,12*($A43-1),4*(PlotControl!$C$6-1),12,1)) -> 0 | S43: =AVERAGE(OFFSET(CPS!$E$10,12*($A43-1),4*(PlotControl!$C$6-1),12,1)) -> 81067.33333 | T43: =AVERAGE(OFFSET(Blast!$C$10,12*($A43-1),4*(PlotControl!$C$6-1),12,1)) -> 0 | U43: =AVERAGE(OFFSET(Blast!$D$10,12*($A43-1),4*(PlotControl!$C$6-1),12,1)) -> 0 | V43: =AVERAGE(OFFSET(Blast!$E$10,12*($A43-1),4*(PlotControl!$C$6-1),12,1)) -> 0 | W43: =AVERAGE(OFFSET(Cat1SP!$C$10,12*($A43-1),4*(PlotControl!$C$6-1),12,1)) -> 1143.394167 | X43: =AVERAGE(OFFSET(Cat1SP!$D$10,12*($A43-1),4*(PlotControl!$C$6-1),12,1)) -> 12357.90833 | Y43: =AVERAGE(OFFSET(Cat1SP!$E$10,12*($A43-1),4*(PlotControl!$C$6-1),12,1)) -> 45438.33333 | Z43: =AVERAGE(OFFSET(Cat1SP_WWTF!$C$10,12*($A43-1),4*(PlotControl!$C$6-1),12,1)) -> 0 | AA43: =AVERAGE(OFFSET(Cat1SP_WWTF!$D$10,12*($A43-1),4*(PlotControl!$C$6-1),12,1)) -> 0 | AB43: =AVERAGE(OFFSET(Cat1SP_WWTF!$E$10,12*($A43-1),4*(PlotControl!$C$6-1),12,1)) -> 7947.741667 | AC43: =AVERAGE(OFFSET(Cat1wall!$C$10,12*($A43-1),4*(PlotControl!$C$6-1),12,1)) -> 286.9658333 | AD43: =AVERAGE(OFFSET(Cat1wall!$D$10,12*($A43-1),4*(PlotControl!$C$6-1),12,1)) -> 556.065 | AE43: =AVERAGE(OFFSET(Cat1wall!$E$10,12*($A43-1),4*(PlotControl!$C$6-1),12,1)) -> 1015.855833 | AF43: =AVERAGE(OFFSET(Cat23wall!$C$10,12*($A43-1),4*(PlotControl!$C$6-1),12,1)) -> 1310.92 | AG43: =AVERAGE(OFFSET(Cat23wall!$D$10,12*($A43-1),4*(PlotControl!$C$6-1),12,1)) -> 3000.741667 | AH43: =AVERAGE(OFFSET(Cat23wall!$E$10,12*($A43-1),4*(PlotControl!$C$6-1),12,1)) -> 6097.783333 | AI43: =AVERAGE(OFFSET(Cat4wall!$C$10,12*($A43-1),4*(PlotControl!$C$6-1),12,1)) -> 79.98825 | AJ43: =AVERAGE(OFFSET(Cat4wall!$D$10,12*($A43-1),4*(PlotControl!$C$6-1),12,1)) -> 363.6358333 | AK43: =AVERAGE(OFFSET(Cat4wall!$E$10,12*($A43-1),4*(PlotControl!$C$6-1),12,1)) -> 1013.13 | AL43: =AVERAGE(OFFSET(Orewall!$C$10,12*($A43-1),4*(PlotControl!$C$6-1),12,1)) -> 3960.175 | AM43: =AVERAGE(OFFSET(Orewall!$D$10,12*($A43-1),4*(PlotControl!$C$6-1),12,1)) -> 8510.266667 | AN43: =AVERAGE(OFFSET(Orewall!$E$10,12*($A43-1),4*(PlotControl!$C$6-1),12,1)) -> 17424.83333 | AO43: =AVERAGE(OFFSET(TBPump!$C$10,12*($A43-1),4*(PlotControl!$C$6-1),12,1)) -> 2430.791667 | AP43: =AVERAGE(OFFSET(TBPump!$D$10,12*($A43-1),4*(PlotControl!$C$6-1),12,1)) -> 7855.258333 | AQ43: =AVERAGE(OFFSET(TBPump!$E$10,12*($A43-1),4*(PlotControl!$C$6-1),12,1)) -> 14351.91667
A44: 40 | B44: =AVERAGE(OFFSET(Total!$C$10,12*($A44-1),4*(PlotControl!$C$6-1),12,1)) -> 29327.5 | C44: =AVERAGE(OFFSET(Total!$D$10,12*($A44-1),4*(PlotControl!$C$6-1),12,1)) -> 54352.5 | D44: =AVERAGE(OFFSET(Total!$E$10,12*($A44-1),4*(PlotControl!$C$6-1),12,1)) -> 122070.5833 | E44: =AVERAGE(OFFSET(RO!$C$10,12*($A44-1),4*(PlotControl!$C$6-1),12,1)) -> 866.6683333 | F44: =AVERAGE(OFFSET(RO!$D$10,12*($A44-1),4*(PlotControl!$C$6-1),12,1)) -> 2795.9 | G44: =AVERAGE(OFFSET(RO!$E$10,12*($A44-1),4*(PlotControl!$C$6-1),12,1)) -> 8745.658333 | H44: =AVERAGE(OFFSET(GW!$C$10,12*($A44-1),4*(PlotControl!$C$6-1),12,1)) -> 705.25 | I44: =AVERAGE(OFFSET(GW!$D$10,12*($A44-1),4*(PlotControl!$C$6-1),12,1)) -> 836.5083333 | J44: =AVERAGE(OFFSET(GW!$E$10,12*($A44-1),4*(PlotControl!$C$6-1),12,1)) -> 1212.441667 | K44: =AVERAGE(OFFSET(Wetland!$C$10,12*($A44-1),4*(PlotControl!$C$6-1),12,1)) -> 0 | L44: =AVERAGE(OFFSET(Wetland!$D$10,12*($A44-1),4*(PlotControl!$C$6-1),12,1)) -> 5195.9145 | M44: =AVERAGE(OFFSET(Wetland!$E$10,12*($A44-1),4*(PlotControl!$C$6-1),12,1)) -> 15507.5 | N44: =AVERAGE(OFFSET(Pore!$C$10,12*($A44-1),4*(PlotControl!$C$6-1),12,1)) -> 0 | O44: =AVERAGE(OFFSET(Pore!$D$10,12*($A44-1),4*(PlotControl!$C$6-1),12,1)) -> 45.075 | P44: =AVERAGE(OFFSET(Pore!$E$10,12*($A44-1),4*(PlotControl!$C$6-1),12,1)) -> 65.37275 | Q44: =AVERAGE(OFFSET(CPS!$C$10,12*($A44-1),4*(PlotControl!$C$6-1),12,1)) -> 0 | R44: =AVERAGE(OFFSET(CPS!$D$10,12*($A44-1),4*(PlotControl!$C$6-1),12,1)) -> 0 | S44: =AVERAGE(OFFSET(CPS!$E$10,12*($A44-1),4*(PlotControl!$C$6-1),12,1)) -> 80921.91667 | T44: =AVERAGE(OFFSET(Blast!$C$10,12*($A44-1),4*(PlotControl!$C$6-1),12,1)) -> 0 | U44: =AVERAGE(OFFSET(Blast!$D$10,12*($A44-1),4*(PlotControl!$C$6-1),12,1)) -> 0 | V44: =AVERAGE(OFFSET(Blast!$E$10,12*($A44-1),4*(PlotControl!$C$6-1),12,1)) -> 0 | W44: =AVERAGE(OFFSET(Cat1SP!$C$10,12*($A44-1),4*(PlotControl!$C$6-1),12,1)) -> 1499.4825 | X44: =AVERAGE(OFFSET(Cat1SP!$D$10,12*($A44-1),4*(PlotControl!$C$6-1),12,1)) -> 13102.11667 | Y44: =AVERAGE(OFFSET(Cat1SP!$E$10,12*($A44-1),4*(PlotControl!$C$6-1),12,1)) -> 47314.16667 | Z44: =AVERAGE(OFFSET(Cat1SP_WWTF!$C$10,12*($A44-1),4*(PlotControl!$C$6-1),12,1)) -> 0 | AA44: =AVERAGE(OFFSET(Cat1SP_WWTF!$D$10,12*($A44-1),4*(PlotControl!$C$6-1),12,1)) -> 0 | AB44: =AVERAGE(OFFSET(Cat1SP_WWTF!$E$10,12*($A44-1),4*(PlotControl!$C$6-1),12,1)) -> 5522.3 | AC44: =AVERAGE(OFFSET(Cat1wall!$C$10,12*($A44-1),4*(PlotControl!$C$6-1),12,1)) -> 272.4525 | AD44: =AVERAGE(OFFSET(Cat1wall!$D$10,12*($A44-1),4*(PlotControl!$C$6-1),12,1)) -> 534.1691667 | AE44: =AVERAGE(OFFSET(Cat1wall!$E$10,12*($A44-1),4*(PlotControl!$C$6-1),12,1)) -> 983.2941667 | AF44: =AVERAGE(OFFSET(Cat23wall!$C$10,12*($A44-1),4*(PlotControl!$C$6-1),12,1)) -> 1280.213333 | AG44: =AVERAGE(OFFSET(Cat23wall!$D$10,12*($A44-1),4*(PlotControl!$C$6-1),12,1)) -> 2849.158333 | AH44: =AVERAGE(OFFSET(Cat23wall!$E$10,12*($A44-1),4*(PlotControl!$C$6-1),12,1)) -> 6042.55 | AI44: =AVERAGE(OFFSET(Cat4wall!$C$10,12*($A44-1),4*(PlotControl!$C$6-1),12,1)) -> 52.99708333 | AJ44: =AVERAGE(OFFSET(Cat4wall!$D$10,12*($A44-1),4*(PlotControl!$C$6-1),12,1)) -> 265.3425 | AK44: =AVERAGE(OFFSET(Cat4wall!$E$10,12*($A44-1),4*(PlotControl!$C$6-1),12,1)) -> 889.1675 | AL44: =AVERAGE(OFFSET(Orewall!$C$10,12*($A44-1),4*(PlotControl!$C$6-1),12,1)) -> 3718.741667 | AM44: =AVERAGE(OFFSET(Orewall!$D$10,12*($A44-1),4*(PlotControl!$C$6-1),12,1)) -> 8118.866667 | AN44: =AVERAGE(OFFSET(Orewall!$E$10,12*($A44-1),4*(PlotControl!$C$6-1),12,1)) -> 17528.16667 | AO44: =AVERAGE(OFFSET(TBPump!$C$10,12*($A44-1),4*(PlotControl!$C$6-1),12,1)) -> 1855.95 | AP44: =AVERAGE(OFFSET(TBPump!$D$10,12*($A44-1),4*(PlotControl!$C$6-1),12,1)) -> 7140.116667 | AQ44: =AVERAGE(OFFSET(TBPump!$E$10,12*($A44-1),4*(PlotControl!$C$6-1),12,1)) -> 13370.41667
A45: 41 | B45: =AVERAGE(OFFSET(Total!$C$10,12*($A45-1),4*(PlotControl!$C$6-1),12,1)) -> 29785.83333 | C45: =AVERAGE(OFFSET(Total!$D$10,12*($A45-1),4*(PlotControl!$C$6-1),12,1)) -> 55507.5 | D45: =AVERAGE(OFFSET(Total!$E$10,12*($A45-1),4*(PlotControl!$C$6-1),12,1)) -> 123643.3333 | E45: =AVERAGE(OFFSET(RO!$C$10,12*($A45-1),4*(PlotControl!$C$6-1),12,1)) -> 855.8466667 | F45: =AVERAGE(OFFSET(RO!$D$10,12*($A45-1),4*(PlotControl!$C$6-1),12,1)) -> 2866.908333 | G45: =AVERAGE(OFFSET(RO!$E$10,12*($A45-1),4*(PlotControl!$C$6-1),12,1)) -> 9003.891667 | H45: =AVERAGE(OFFSET(GW!$C$10,12*($A45-1),4*(PlotControl!$C$6-1),12,1)) -> 680.2008333 | I45: =AVERAGE(OFFSET(GW!$D$10,12*($A45-1),4*(PlotControl!$C$6-1),12,1)) -> 809.9916667 | J45: =AVERAGE(OFFSET(GW!$E$10,12*($A45-1),4*(PlotControl!$C$6-1),12,1)) -> 1170.308333 | K45: =AVERAGE(OFFSET(Wetland!$C$10,12*($A45-1),4*(PlotControl!$C$6-1),12,1)) -> 1.14425 | L45: =AVERAGE(OFFSET(Wetland!$D$10,12*($A45-1),4*(PlotControl!$C$6-1),12,1)) -> 4850.480833 | M45: =AVERAGE(OFFSET(Wetland!$E$10,12*($A45-1),4*(PlotControl!$C$6-1),12,1)) -> 13105.36667 | N45: =AVERAGE(OFFSET(Pore!$C$10,12*($A45-1),4*(PlotControl!$C$6-1),12,1)) -> 12.13291667 | O45: =AVERAGE(OFFSET(Pore!$D$10,12*($A45-1),4*(PlotControl!$C$6-1),12,1)) -> 45.35808333 | P45: =AVERAGE(OFFSET(Pore!$E$10,12*($A45-1),4*(PlotControl!$C$6-1),12,1)) -> 65.90166667 | Q45: =AVERAGE(OFFSET(CPS!$C$10,12*($A45-1),4*(PlotControl!$C$6-1),12,1)) -> 0 | R45: =AVERAGE(OFFSET(CPS!$D$10,12*($A45-1),4*(PlotControl!$C$6-1),12,1)) -> 0 | S45: =AVERAGE(OFFSET(CPS!$E$10,12*($A45-1),4*(PlotControl!$C$6-1),12,1)) -> 47106.95051 | T45: =AVERAGE(OFFSET(Blast!$C$10,12*($A45-1),4*(PlotControl!$C$6-1),12,1)) -> 0 | U45: =AVERAGE(OFFSET(Blast!$D$10,12*($A45-1),4*(PlotControl!$C$6-1),12,1)) -> 0 | V45: =AVERAGE(OFFSET(Blast!$E$10,12*($A45-1),4*(PlotControl!$C$6-1),12,1)) -> 0 | W45: =AVERAGE(OFFSET(Cat1SP!$C$10,12*($A45-1),4*(PlotControl!$C$6-1),12,1)) -> 1867.1425 | X45: =AVERAGE(OFFSET(Cat1SP!$D$10,12*($A45-1),4*(PlotControl!$C$6-1),12,1)) -> 13778.325 | Y45: =AVERAGE(OFFSET(Cat1SP!$E$10,12*($A45-1),4*(PlotControl!$C$6-1),12,1)) -> 50157.75 | Z45: =AVERAGE(OFFSET(Cat1SP_WWTF!$C$10,12*($A45-1),4*(PlotControl!$C$6-1),12,1)) -> 0 | AA45: =AVERAGE(OFFSET(Cat1SP_WWTF!$D$10,12*($A45-1),4*(PlotControl!$C$6-1),12,1)) -> 0 | AB45: =AVERAGE(OFFSET(Cat1SP_WWTF!$E$10,12*($A45-1),4*(PlotControl!$C$6-1),12,1)) -> 1160.416667 | AC45: =AVERAGE(OFFSET(Cat1wall!$C$10,12*($A45-1),4*(PlotControl!$C$6-1),12,1)) -> 281.16 | AD45: =AVERAGE(OFFSET(Cat1wall!$D$10,12*($A45-1),4*(PlotControl!$C$6-1),12,1)) -> 560.0266667 | AE45: =AVERAGE(OFFSET(Cat1wall!$E$10,12*($A45-1),4*(PlotControl!$C$6-1),12,1)) -> 1029.501667 | AF45: =AVERAGE(OFFSET(Cat23wall!$C$10,12*($A45-1),4*(PlotControl!$C$6-1),12,1)) -> 1298.959167 | AG45: =AVERAGE(OFFSET(Cat23wall!$D$10,12*($A45-1),4*(PlotControl!$C$6-1),12,1)) -> 2888.05 | AH45: =AVERAGE(OFFSET(Cat23wall!$E$10,12*($A45-1),4*(PlotControl!$C$6-1),12,1)) -> 6304.866667 | AI45: =AVERAGE(OFFSET(Cat4wall!$C$10,12*($A45-1),4*(PlotControl!$C$6-1),12,1)) -> 45.05416667 | AJ45: =AVERAGE(OFFSET(Cat4wall!$D$10,12*($A45-1),4*(PlotControl!$C$6-1),12,1)) -> 188.2458333 | AK45: =AVERAGE(OFFSET(Cat4wall!$E$10,12*($A45-1),4*(PlotControl!$C$6-1),12,1)) -> 859.3191667 | AL45: =AVERAGE(OFFSET(Orewall!$C$10,12*($A45-1),4*(PlotControl!$C$6-1),12,1)) -> 3780.808333 | AM45: =AVERAGE(OFFSET(Orewall!$D$10,12*($A45-1),4*(PlotControl!$C$6-1),12,1)) -> 8454.775 | AN45: =AVERAGE(OFFSET(Orewall!$E$10,12*($A45-1),4*(PlotControl!$C$6-1),12,1)) -> 18412.25 | AO45: =AVERAGE(OFFSET(TBPump!$C$10,12*($A45-1),4*(PlotControl!$C$6-1),12,1)) -> 2391.758333 | AP45: =AVERAGE(OFFSET(TBPump!$D$10,12*($A45-1),4*(PlotControl!$C$6-1),12,1)) -> 8416.575 | AQ45: =AVERAGE(OFFSET(TBPump!$E$10,12*($A45-1),4*(PlotControl!$C$6-1),12,1)) -> 15247.83333
A46: 42 | B46: =AVERAGE(OFFSET(Total!$C$10,12*($A46-1),4*(PlotControl!$C$6-1),12,1)) -> 31168.08333 | C46: =AVERAGE(OFFSET(Total!$D$10,12*($A46-1),4*(PlotControl!$C$6-1),12,1)) -> 56475.66667 | D46: =AVERAGE(OFFSET(Total!$E$10,12*($A46-1),4*(PlotControl!$C$6-1),12,1)) -> 128358.75 | E46: =AVERAGE(OFFSET(RO!$C$10,12*($A46-1),4*(PlotControl!$C$6-1),12,1)) -> 881.53 | F46: =AVERAGE(OFFSET(RO!$D$10,12*($A46-1),4*(PlotControl!$C$6-1),12,1)) -> 2814.9 | G46: =AVERAGE(OFFSET(RO!$E$10,12*($A46-1),4*(PlotControl!$C$6-1),12,1)) -> 9016.025 | H46: =AVERAGE(OFFSET(GW!$C$10,12*($A46-1),4*(PlotControl!$C$6-1),12,1)) -> 653.8033333 | I46: =AVERAGE(OFFSET(GW!$D$10,12*($A46-1),4*(PlotControl!$C$6-1),12,1)) -> 782.2916667 | J46: =AVERAGE(OFFSET(GW!$E$10,12*($A46-1),4*(PlotControl!$C$6-1),12,1)) -> 1132.025 | K46: =AVERAGE(OFFSET(Wetland!$C$10,12*($A46-1),4*(PlotControl!$C$6-1),12,1)) -> 32.93416667 | L46: =AVERAGE(OFFSET(Wetland!$D$10,12*($A46-1),4*(PlotControl!$C$6-1),12,1)) -> 4436.716667 | M46: =AVERAGE(OFFSET(Wetland!$E$10,12*($A46-1),4*(PlotControl!$C$6-1),12,1)) -> 11252.95833 | N46: =AVERAGE(OFFSET(Pore!$C$10,12*($A46-1),4*(PlotControl!$C$6-1),12,1)) -> 36.99216667 | O46: =AVERAGE(OFFSET(Pore!$D$10,12*($A46-1),4*(PlotControl!$C$6-1),12,1)) -> 45.41333333 | P46: =AVERAGE(OFFSET(Pore!$E$10,12*($A46-1),4*(PlotControl!$C$6-1),12,1)) -> 66.16441667 | Q46: =AVERAGE(OFFSET(CPS!$C$10,12*($A46-1),4*(PlotControl!$C$6-1),12,1)) -> 0 | R46: =AVERAGE(OFFSET(CPS!$D$10,12*($A46-1),4*(PlotControl!$C$6-1),12,1)) -> 0 | S46: =AVERAGE(OFFSET(CPS!$E$10,12*($A46-1),4*(PlotControl!$C$6-1),12,1)) -> 0 | T46: =AVERAGE(OFFSET(Blast!$C$10,12*($A46-1),4*(PlotControl!$C$6-1),12,1)) -> 0 | U46: =AVERAGE(OFFSET(Blast!$D$10,12*($A46-1),4*(PlotControl!$C$6-1),12,1)) -> 0 | V46: =AVERAGE(OFFSET(Blast!$E$10,12*($A46-1),4*(PlotControl!$C$6-1),12,1)) -> 0 | W46: =AVERAGE(OFFSET(Cat1SP!$C$10,12*($A46-1),4*(PlotControl!$C$6-1),12,1)) -> 2166.289167 | X46: =AVERAGE(OFFSET(Cat1SP!$D$10,12*($A46-1),4*(PlotControl!$C$6-1),12,1)) -> 14255.68333 | Y46: =AVERAGE(OFFSET(Cat1SP!$E$10,12*($A46-1),4*(PlotControl!$C$6-1),12,1)) -> 46577.75 | Z46: =AVERAGE(OFFSET(Cat1SP_WWTF!$C$10,12*($A46-1),4*(PlotControl!$C$6-1),12,1)) -> 0 | AA46: =AVERAGE(OFFSET(Cat1SP_WWTF!$D$10,12*($A46-1),4*(PlotControl!$C$6-1),12,1)) -> 0 | AB46: =AVERAGE(OFFSET(Cat1SP_WWTF!$E$10,12*($A46-1),4*(PlotControl!$C$6-1),12,1)) -> 0 | AC46: =AVERAGE(OFFSET(Cat1wall!$C$10,12*($A46-1),4*(PlotControl!$C$6-1),12,1)) -> 281.6533333 | AD46: =AVERAGE(OFFSET(Cat1wall!$D$10,12*($A46-1),4*(PlotControl!$C$6-1),12,1)) -> 581.5008333 | AE46: =AVERAGE(OFFSET(Cat1wall!$E$10,12*($A46-1),4*(PlotControl!$C$6-1),12,1)) -> 1139.289167 | AF46: =AVERAGE(OFFSET(Cat23wall!$C$10,12*($A46-1),4*(PlotControl!$C$6-1),12,1)) -> 1355.509167 | AG46: =AVERAGE(OFFSET(Cat23wall!$D$10,12*($A46-1),4*(PlotControl!$C$6-1),12,1)) -> 2991.925 | AH46: =AVERAGE(OFFSET(Cat23wall!$E$10,12*($A46-1),4*(PlotControl!$C$6-1),12,1)) -> 7058.941667 | AI46: =AVERAGE(OFFSET(Cat4wall!$C$10,12*($A46-1),4*(PlotControl!$C$6-1),12,1)) -> 45.29041667 | AJ46: =AVERAGE(OFFSET(Cat4wall!$D$10,12*($A46-1),4*(PlotControl!$C$6-1),12,1)) -> 159.9483333 | AK46: =AVERAGE(OFFSET(Cat4wall!$E$10,12*($A46-1),4*(PlotControl!$C$6-1),12,1)) -> 948.125 | AL46: =AVERAGE(OFFSET(Orewall!$C$10,12*($A46-1),4*(PlotControl!$C$6-1),12,1)) -> 3938.058333 | AM46: =AVERAGE(OFFSET(Orewall!$D$10,12*($A46-1),4*(PlotControl!$C$6-1),12,1)) -> 9085.583333 | AN46: =AVERAGE(OFFSET(Orewall!$E$10,12*($A46-1),4*(PlotControl!$C$6-1),12,1)) -> 20930.91667 | AO46: =AVERAGE(OFFSET(TBPump!$C$10,12*($A46-1),4*(PlotControl!$C$6-1),12,1)) -> 2720.325 | AP46: =AVERAGE(OFFSET(TBPump!$D$10,12*($A46-1),4*(PlotControl!$C$6-1),12,1)) -> 9569.691667 | AQ46: =AVERAGE(OFFSET(TBPump!$E$10,12*($A46-1),4*(PlotControl!$C$6-1),12,1)) -> 16908.33333
A47: 43 | B47: =AVERAGE(OFFSET(Total!$C$10,12*($A47-1),4*(PlotControl!$C$6-1),12,1)) -> 29707.16667 | C47: =AVERAGE(OFFSET(Total!$D$10,12*($A47-1),4*(PlotControl!$C$6-1),12,1)) -> 53736.83333 | D47: =AVERAGE(OFFSET(Total!$E$10,12*($A47-1),4*(PlotControl!$C$6-1),12,1)) -> 131089.5 | E47: =AVERAGE(OFFSET(RO!$C$10,12*($A47-1),4*(PlotControl!$C$6-1),12,1)) -> 851.0508333 | F47: =AVERAGE(OFFSET(RO!$D$10,12*($A47-1),4*(PlotControl!$C$6-1),12,1)) -> 2834.433333 | G47: =AVERAGE(OFFSET(RO!$E$10,12*($A47-1),4*(PlotControl!$C$6-1),12,1)) -> 8664.8 | H47: =AVERAGE(OFFSET(GW!$C$10,12*($A47-1),4*(PlotControl!$C$6-1),12,1)) -> 631.1758333 | I47: =AVERAGE(OFFSET(GW!$D$10,12*($A47-1),4*(PlotControl!$C$6-1),12,1)) -> 758.6425 | J47: =AVERAGE(OFFSET(GW!$E$10,12*($A47-1),4*(PlotControl!$C$6-1),12,1)) -> 1088.541667 | K47: =AVERAGE(OFFSET(Wetland!$C$10,12*($A47-1),4*(PlotControl!$C$6-1),12,1)) -> 139.425 | L47: =AVERAGE(OFFSET(Wetland!$D$10,12*($A47-1),4*(PlotControl!$C$6-1),12,1)) -> 4087.9025 | M47: =AVERAGE(OFFSET(Wetland!$E$10,12*($A47-1),4*(PlotControl!$C$6-1),12,1)) -> 9891.258333 | N47: =AVERAGE(OFFSET(Pore!$C$10,12*($A47-1),4*(PlotControl!$C$6-1),12,1)) -> 37.72116667 | O47: =AVERAGE(OFFSET(Pore!$D$10,12*($A47-1),4*(PlotControl!$C$6-1),12,1)) -> 45.72008333 | P47: =AVERAGE(OFFSET(Pore!$E$10,12*($A47-1),4*(PlotControl!$C$6-1),12,1)) -> 66.36941667 | Q47: =AVERAGE(OFFSET(CPS!$C$10,12*($A47-1),4*(PlotControl!$C$6-1),12,1)) -> 0 | R47: =AVERAGE(OFFSET(CPS!$D$10,12*($A47-1),4*(PlotControl!$C$6-1),12,1)) -> 0 | S47: =AVERAGE(OFFSET(CPS!$E$10,12*($A47-1),4*(PlotControl!$C$6-1),12,1)) -> 0 | T47: =AVERAGE(OFFSET(Blast!$C$10,12*($A47-1),4*(PlotControl!$C$6-1),12,1)) -> 0 | U47: =AVERAGE(OFFSET(Blast!$D$10,12*($A47-1),4*(PlotControl!$C$6-1),12,1)) -> 0 | V47: =AVERAGE(OFFSET(Blast!$E$10,12*($A47-1),4*(PlotControl!$C$6-1),12,1)) -> 0 | W47: =AVERAGE(OFFSET(Cat1SP!$C$10,12*($A47-1),4*(PlotControl!$C$6-1),12,1)) -> 2417.2075 | X47: =AVERAGE(OFFSET(Cat1SP!$D$10,12*($A47-1),4*(PlotControl!$C$6-1),12,1)) -> 14221.23333 | Y47: =AVERAGE(OFFSET(Cat1SP!$E$10,12*($A47-1),4*(PlotControl!$C$6-1),12,1)) -> 48013.58333 | Z47: =AVERAGE(OFFSET(Cat1SP_WWTF!$C$10,12*($A47-1),4*(PlotControl!$C$6-1),12,1)) -> 0 | AA47: =AVERAGE(OFFSET(Cat1SP_WWTF!$D$10,12*($A47-1),4*(PlotControl!$C$6-1),12,1)) -> 0 | AB47: =AVERAGE(OFFSET(Cat1SP_WWTF!$E$10,12*($A47-1),4*(PlotControl!$C$6-1),12,1)) -> 0 | AC47: =AVERAGE(OFFSET(Cat1wall!$C$10,12*($A47-1),4*(PlotControl!$C$6-1),12,1)) -> 262.4458333 | AD47: =AVERAGE(OFFSET(Cat1wall!$D$10,12*($A47-1),4*(PlotControl!$C$6-1),12,1)) -> 547.7916667 | AE47: =AVERAGE(OFFSET(Cat1wall!$E$10,12*($A47-1),4*(PlotControl!$C$6-1),12,1)) -> 1154.279167 | AF47: =AVERAGE(OFFSET(Cat23wall!$C$10,12*($A47-1),4*(PlotControl!$C$6-1),12,1)) -> 1333.314167 | AG47: =AVERAGE(OFFSET(Cat23wall!$D$10,12*($A47-1),4*(PlotControl!$C$6-1),12,1)) -> 3028.35 | AH47: =AVERAGE(OFFSET(Cat23wall!$E$10,12*($A47-1),4*(PlotControl!$C$6-1),12,1)) -> 7537.841667 | AI47: =AVERAGE(OFFSET(Cat4wall!$C$10,12*($A47-1),4*(PlotControl!$C$6-1),12,1)) -> 47.55833333 | AJ47: =AVERAGE(OFFSET(Cat4wall!$D$10,12*($A47-1),4*(PlotControl!$C$6-1),12,1)) -> 184.2308333 | AK47: =AVERAGE(OFFSET(Cat4wall!$E$10,12*($A47-1),4*(PlotControl!$C$6-1),12,1)) -> 1066.289167 | AL47: =AVERAGE(OFFSET(Orewall!$C$10,12*($A47-1),4*(PlotControl!$C$6-1),12,1)) -> 3736.308333 | AM47: =AVERAGE(OFFSET(Orewall!$D$10,12*($A47-1),4*(PlotControl!$C$6-1),12,1)) -> 8538.658333 | AN47: =AVERAGE(OFFSET(Orewall!$E$10,12*($A47-1),4*(PlotControl!$C$6-1),12,1)) -> 21638.75 | AO47: =AVERAGE(OFFSET(TBPump!$C$10,12*($A47-1),4*(PlotControl!$C$6-1),12,1)) -> 2602.183333 | AP47: =AVERAGE(OFFSET(TBPump!$D$10,12*($A47-1),4*(PlotControl!$C$6-1),12,1)) -> 8469.866667 | AQ47: =AVERAGE(OFFSET(TBPump!$E$10,12*($A47-1),4*(PlotControl!$C$6-1),12,1)) -> 15395.83333
A48: 44 | B48: =AVERAGE(OFFSET(Total!$C$10,12*($A48-1),4*(PlotControl!$C$6-1),12,1)) -> 28390.58333 | C48: =AVERAGE(OFFSET(Total!$D$10,12*($A48-1),4*(PlotControl!$C$6-1),12,1)) -> 51575.83333 | D48: =AVERAGE(OFFSET(Total!$E$10,12*($A48-1),4*(PlotControl!$C$6-1),12,1)) -> 124707.9167 | E48: =AVERAGE(OFFSET(RO!$C$10,12*($A48-1),4*(PlotControl!$C$6-1),12,1)) -> 840.9108333 | F48: =AVERAGE(OFFSET(RO!$D$10,12*($A48-1),4*(PlotControl!$C$6-1),12,1)) -> 2793.533333 | G48: =AVERAGE(OFFSET(RO!$E$10,12*($A48-1),4*(PlotControl!$C$6-1),12,1)) -> 8557.516667 | H48: =AVERAGE(OFFSET(GW!$C$10,12*($A48-1),4*(PlotControl!$C$6-1),12,1)) -> 611.5066667 | I48: =AVERAGE(OFFSET(GW!$D$10,12*($A48-1),4*(PlotControl!$C$6-1),12,1)) -> 735.3483333 | J48: =AVERAGE(OFFSET(GW!$E$10,12*($A48-1),4*(PlotControl!$C$6-1),12,1)) -> 1056.15 | K48: =AVERAGE(OFFSET(Wetland!$C$10,12*($A48-1),4*(PlotControl!$C$6-1),12,1)) -> 82.80833333 | L48: =AVERAGE(OFFSET(Wetland!$D$10,12*($A48-1),4*(PlotControl!$C$6-1),12,1)) -> 3645.4885 | M48: =AVERAGE(OFFSET(Wetland!$E$10,12*($A48-1),4*(PlotControl!$C$6-1),12,1)) -> 9606.8 | N48: =AVERAGE(OFFSET(Pore!$C$10,12*($A48-1),4*(PlotControl!$C$6-1),12,1)) -> 38.14975 | O48: =AVERAGE(OFFSET(Pore!$D$10,12*($A48-1),4*(PlotControl!$C$6-1),12,1)) -> 45.93725 | P48: =AVERAGE(OFFSET(Pore!$E$10,12*($A48-1),4*(PlotControl!$C$6-1),12,1)) -> 66.5475 | Q48: =AVERAGE(OFFSET(CPS!$C$10,12*($A48-1),4*(PlotControl!$C$6-1),12,1)) -> 0 | R48: =AVERAGE(OFFSET(CPS!$D$10,12*($A48-1),4*(PlotControl!$C$6-1),12,1)) -> 0 | S48: =AVERAGE(OFFSET(CPS!$E$10,12*($A48-1),4*(PlotControl!$C$6-1),12,1)) -> 0 | T48: =AVERAGE(OFFSET(Blast!$C$10,12*($A48-1),4*(PlotControl!$C$6-1),12,1)) -> 0 | U48: =AVERAGE(OFFSET(Blast!$D$10,12*($A48-1),4*(PlotControl!$C$6-1),12,1)) -> 0 | V48: =AVERAGE(OFFSET(Blast!$E$10,12*($A48-1),4*(PlotControl!$C$6-1),12,1)) -> 0 | W48: =AVERAGE(OFFSET(Cat1SP!$C$10,12*($A48-1),4*(PlotControl!$C$6-1),12,1)) -> 3303.095 | X48: =AVERAGE(OFFSET(Cat1SP!$D$10,12*($A48-1),4*(PlotControl!$C$6-1),12,1)) -> 14190.18333 | Y48: =AVERAGE(OFFSET(Cat1SP!$E$10,12*($A48-1),4*(PlotControl!$C$6-1),12,1)) -> 48332.75 | Z48: =AVERAGE(OFFSET(Cat1SP_WWTF!$C$10,12*($A48-1),4*(PlotControl!$C$6-1),12,1)) -> 0 | AA48: =AVERAGE(OFFSET(Cat1SP_WWTF!$D$10,12*($A48-1),4*(PlotControl!$C$6-1),12,1)) -> 0 | AB48: =AVERAGE(OFFSET(Cat1SP_WWTF!$E$10,12*($A48-1),4*(PlotControl!$C$6-1),12,1)) -> 0 | AC48: =AVERAGE(OFFSET(Cat1wall!$C$10,12*($A48-1),4*(PlotControl!$C$6-1),12,1)) -> 241.3058333 | AD48: =AVERAGE(OFFSET(Cat1wall!$D$10,12*($A48-1),4*(PlotControl!$C$6-1),12,1)) -> 516.9508333 | AE48: =AVERAGE(OFFSET(Cat1wall!$E$10,12*($A48-1),4*(PlotControl!$C$6-1),12,1)) -> 1129.106667 | AF48: =AVERAGE(OFFSET(Cat23wall!$C$10,12*($A48-1),4*(PlotControl!$C$6-1),12,1)) -> 1329.2625 | AG48: =AVERAGE(OFFSET(Cat23wall!$D$10,12*($A48-1),4*(PlotControl!$C$6-1),12,1)) -> 3050.791667 | AH48: =AVERAGE(OFFSET(Cat23wall!$E$10,12*($A48-1),4*(PlotControl!$C$6-1),12,1)) -> 7983.808333 | AI48: =AVERAGE(OFFSET(Cat4wall!$C$10,12*($A48-1),4*(PlotControl!$C$6-1),12,1)) -> 53.50616667 | AJ48: =AVERAGE(OFFSET(Cat4wall!$D$10,12*($A48-1),4*(PlotControl!$C$6-1),12,1)) -> 240.0691667 | AK48: =AVERAGE(OFFSET(Cat4wall!$E$10,12*($A48-1),4*(PlotControl!$C$6-1),12,1)) -> 1137.7475 | AL48: =AVERAGE(OFFSET(Orewall!$C$10,12*($A48-1),4*(PlotControl!$C$6-1),12,1)) -> 3337.483333 | AM48: =AVERAGE(OFFSET(Orewall!$D$10,12*($A48-1),4*(PlotControl!$C$6-1),12,1)) -> 8030.341667 | AN48: =AVERAGE(OFFSET(Orewall!$E$10,12*($A48-1),4*(PlotControl!$C$6-1),12,1)) -> 20451.91667 | AO48: =AVERAGE(OFFSET(TBPump!$C$10,12*($A48-1),4*(PlotControl!$C$6-1),12,1)) -> 2418.891667 | AP48: =AVERAGE(OFFSET(TBPump!$D$10,12*($A48-1),4*(PlotControl!$C$6-1),12,1)) -> 8272.633333 | AQ48: =AVERAGE(OFFSET(TBPump!$E$10,12*($A48-1),4*(PlotControl!$C$6-1),12,1)) -> 14704.25
A49: 45 | B49: =AVERAGE(OFFSET(Total!$C$10,12*($A49-1),4*(PlotControl!$C$6-1),12,1)) -> 27955.5 | C49: =AVERAGE(OFFSET(Total!$D$10,12*($A49-1),4*(PlotControl!$C$6-1),12,1)) -> 50347.08333 | D49: =AVERAGE(OFFSET(Total!$E$10,12*($A49-1),4*(PlotControl!$C$6-1),12,1)) -> 104408.5 | E49: =AVERAGE(OFFSET(RO!$C$10,12*($A49-1),4*(PlotControl!$C$6-1),12,1)) -> 843.245 | F49: =AVERAGE(OFFSET(RO!$D$10,12*($A49-1),4*(PlotControl!$C$6-1),12,1)) -> 2769.466667 | G49: =AVERAGE(OFFSET(RO!$E$10,12*($A49-1),4*(PlotControl!$C$6-1),12,1)) -> 8694.483333 | H49: =AVERAGE(OFFSET(GW!$C$10,12*($A49-1),4*(PlotControl!$C$6-1),12,1)) -> 592.1375 | I49: =AVERAGE(OFFSET(GW!$D$10,12*($A49-1),4*(PlotControl!$C$6-1),12,1)) -> 711.3766667 | J49: =AVERAGE(OFFSET(GW!$E$10,12*($A49-1),4*(PlotControl!$C$6-1),12,1)) -> 1020.958333 | K49: =AVERAGE(OFFSET(Wetland!$C$10,12*($A49-1),4*(PlotControl!$C$6-1),12,1)) -> 1247.838333 | L49: =AVERAGE(OFFSET(Wetland!$D$10,12*($A49-1),4*(PlotControl!$C$6-1),12,1)) -> 3526.254167 | M49: =AVERAGE(OFFSET(Wetland!$E$10,12*($A49-1),4*(PlotControl!$C$6-1),12,1)) -> 8075.758333 | N49: =AVERAGE(OFFSET(Pore!$C$10,12*($A49-1),4*(PlotControl!$C$6-1),12,1)) -> 38.36008333 | O49: =AVERAGE(OFFSET(Pore!$D$10,12*($A49-1),4*(PlotControl!$C$6-1),12,1)) -> 46.084 | P49: =AVERAGE(OFFSET(Pore!$E$10,12*($A49-1),4*(PlotControl!$C$6-1),12,1)) -> 66.65241667 | Q49: =AVERAGE(OFFSET(CPS!$C$10,12*($A49-1),4*(PlotControl!$C$6-1),12,1)) -> 0 | R49: =AVERAGE(OFFSET(CPS!$D$10,12*($A49-1),4*(PlotControl!$C$6-1),12,1)) -> 0 | S49: =AVERAGE(OFFSET(CPS!$E$10,12*($A49-1),4*(PlotControl!$C$6-1),12,1)) -> 0 | T49: =AVERAGE(OFFSET(Blast!$C$10,12*($A49-1),4*(PlotControl!$C$6-1),12,1)) -> 0 | U49: =AVERAGE(OFFSET(Blast!$D$10,12*($A49-1),4*(PlotControl!$C$6-1),12,1)) -> 0 | V49: =AVERAGE(OFFSET(Blast!$E$10,12*($A49-1),4*(PlotControl!$C$6-1),12,1)) -> 0 | W49: =AVERAGE(OFFSET(Cat1SP!$C$10,12*($A49-1),4*(PlotControl!$C$6-1),12,1)) -> 3308.388333 | X49: =AVERAGE(OFFSET(Cat1SP!$D$10,12*($A49-1),4*(PlotControl!$C$6-1),12,1)) -> 14145.00833 | Y49: =AVERAGE(OFFSET(Cat1SP!$E$10,12*($A49-1),4*(PlotControl!$C$6-1),12,1)) -> 47749.91667 | Z49: =AVERAGE(OFFSET(Cat1SP_WWTF!$C$10,12*($A49-1),4*(PlotControl!$C$6-1),12,1)) -> 0 | AA49: =AVERAGE(OFFSET(Cat1SP_WWTF!$D$10,12*($A49-1),4*(PlotControl!$C$6-1),12,1)) -> 0 | AB49: =AVERAGE(OFFSET(Cat1SP_WWTF!$E$10,12*($A49-1),4*(PlotControl!$C$6-1),12,1)) -> 0 | AC49: =AVERAGE(OFFSET(Cat1wall!$C$10,12*($A49-1),4*(PlotControl!$C$6-1),12,1)) -> 217.8908333 | AD49: =AVERAGE(OFFSET(Cat1wall!$D$10,12*($A49-1),4*(PlotControl!$C$6-1),12,1)) -> 500.7266667 | AE49: =AVERAGE(OFFSET(Cat1wall!$E$10,12*($A49-1),4*(PlotControl!$C$6-1),12,1)) -> 1021.438333 | AF49: =AVERAGE(OFFSET(Cat23wall!$C$10,12*($A49-1),4*(PlotControl!$C$6-1),12,1)) -> 1364.744167 | AG49: =AVERAGE(OFFSET(Cat23wall!$D$10,12*($A49-1),4*(PlotControl!$C$6-1),12,1)) -> 3204.133333 | AH49: =AVERAGE(OFFSET(Cat23wall!$E$10,12*($A49-1),4*(PlotControl!$C$6-1),12,1)) -> 7622.525 | AI49: =AVERAGE(OFFSET(Cat4wall!$C$10,12*($A49-1),4*(PlotControl!$C$6-1),12,1)) -> 55.34833333 | AJ49: =AVERAGE(OFFSET(Cat4wall!$D$10,12*($A49-1),4*(PlotControl!$C$6-1),12,1)) -> 238.3308333 | AK49: =AVERAGE(OFFSET(Cat4wall!$E$10,12*($A49-1),4*(PlotControl!$C$6-1),12,1)) -> 1020.928333 | AL49: =AVERAGE(OFFSET(Orewall!$C$10,12*($A49-1),4*(PlotControl!$C$6-1),12,1)) -> 3034.033333 | AM49: =AVERAGE(OFFSET(Orewall!$D$10,12*($A49-1),4*(PlotControl!$C$6-1),12,1)) -> 7548.1 | AN49: =AVERAGE(OFFSET(Orewall!$E$10,12*($A49-1),4*(PlotControl!$C$6-1),12,1)) -> 18247.91667 | AO49: =AVERAGE(OFFSET(TBPump!$C$10,12*($A49-1),4*(PlotControl!$C$6-1),12,1)) -> 2266.1 | AP49: =AVERAGE(OFFSET(TBPump!$D$10,12*($A49-1),4*(PlotControl!$C$6-1),12,1)) -> 8458.15 | AQ49: =AVERAGE(OFFSET(TBPump!$E$10,12*($A49-1),4*(PlotControl!$C$6-1),12,1)) -> 15531.66667
A50: 46 | B50: =AVERAGE(OFFSET(Total!$C$10,12*($A50-1),4*(PlotControl!$C$6-1),12,1)) -> 27140.25 | C50: =AVERAGE(OFFSET(Total!$D$10,12*($A50-1),4*(PlotControl!$C$6-1),12,1)) -> 49163.66667 | D50: =AVERAGE(OFFSET(Total!$E$10,12*($A50-1),4*(PlotControl!$C$6-1),12,1)) -> 98411.91667 | E50: =AVERAGE(OFFSET(RO!$C$10,12*($A50-1),4*(PlotControl!$C$6-1),12,1)) -> 850.265 | F50: =AVERAGE(OFFSET(RO!$D$10,12*($A50-1),4*(PlotControl!$C$6-1),12,1)) -> 2776.066667 | G50: =AVERAGE(OFFSET(RO!$E$10,12*($A50-1),4*(PlotControl!$C$6-1),12,1)) -> 8835.275 | H50: =AVERAGE(OFFSET(GW!$C$10,12*($A50-1),4*(PlotControl!$C$6-1),12,1)) -> 572.5591667 | I50: =AVERAGE(OFFSET(GW!$D$10,12*($A50-1),4*(PlotControl!$C$6-1),12,1)) -> 684.07 | J50: =AVERAGE(OFFSET(GW!$E$10,12*($A50-1),4*(PlotControl!$C$6-1),12,1)) -> 982.3683333 | K50: =AVERAGE(OFFSET(Wetland!$C$10,12*($A50-1),4*(PlotControl!$C$6-1),12,1)) -> 1169.995833 | L50: =AVERAGE(OFFSET(Wetland!$D$10,12*($A50-1),4*(PlotControl!$C$6-1),12,1)) -> 3520.438333 | M50: =AVERAGE(OFFSET(Wetland!$E$10,12*($A50-1),4*(PlotControl!$C$6-1),12,1)) -> 7443.291667 | N50: =AVERAGE(OFFSET(Pore!$C$10,12*($A50-1),4*(PlotControl!$C$6-1),12,1)) -> 38.43775 | O50: =AVERAGE(OFFSET(Pore!$D$10,12*($A50-1),4*(PlotControl!$C$6-1),12,1)) -> 46.17316667 | P50: =AVERAGE(OFFSET(Pore!$E$10,12*($A50-1),4*(PlotControl!$C$6-1),12,1)) -> 66.726 | Q50: =AVERAGE(OFFSET(CPS!$C$10,12*($A50-1),4*(PlotControl!$C$6-1),12,1)) -> 0 | R50: =AVERAGE(OFFSET(CPS!$D$10,12*($A50-1),4*(PlotControl!$C$6-1),12,1)) -> 0 | S50: =AVERAGE(OFFSET(CPS!$E$10,12*($A50-1),4*(PlotControl!$C$6-1),12,1)) -> 0 | T50: =AVERAGE(OFFSET(Blast!$C$10,12*($A50-1),4*(PlotControl!$C$6-1),12,1)) -> 0 | U50: =AVERAGE(OFFSET(Blast!$D$10,12*($A50-1),4*(PlotControl!$C$6-1),12,1)) -> 0 | V50: =AVERAGE(OFFSET(Blast!$E$10,12*($A50-1),4*(PlotControl!$C$6-1),12,1)) -> 0 | W50: =AVERAGE(OFFSET(Cat1SP!$C$10,12*($A50-1),4*(PlotControl!$C$6-1),12,1)) -> 3477.343333 | X50: =AVERAGE(OFFSET(Cat1SP!$D$10,12*($A50-1),4*(PlotControl!$C$6-1),12,1)) -> 14694.15 | Y50: =AVERAGE(OFFSET(Cat1SP!$E$10,12*($A50-1),4*(PlotControl!$C$6-1),12,1)) -> 46949.41667 | Z50: =AVERAGE(OFFSET(Cat1SP_WWTF!$C$10,12*($A50-1),4*(PlotControl!$C$6-1),12,1)) -> 0 | AA50: =AVERAGE(OFFSET(Cat1SP_WWTF!$D$10,12*($A50-1),4*(PlotControl!$C$6-1),12,1)) -> 0 | AB50: =AVERAGE(OFFSET(Cat1SP_WWTF!$E$10,12*($A50-1),4*(PlotControl!$C$6-1),12,1)) -> 0 | AC50: =AVERAGE(OFFSET(Cat1wall!$C$10,12*($A50-1),4*(PlotControl!$C$6-1),12,1)) -> 209.5566667 | AD50: =AVERAGE(OFFSET(Cat1wall!$D$10,12*($A50-1),4*(PlotControl!$C$6-1),12,1)) -> 475.7233333 | AE50: =AVERAGE(OFFSET(Cat1wall!$E$10,12*($A50-1),4*(PlotControl!$C$6-1),12,1)) -> 1028.900833 | AF50: =AVERAGE(OFFSET(Cat23wall!$C$10,12*($A50-1),4*(PlotControl!$C$6-1),12,1)) -> 1419.2325 | AG50: =AVERAGE(OFFSET(Cat23wall!$D$10,12*($A50-1),4*(PlotControl!$C$6-1),12,1)) -> 3385.4 | AH50: =AVERAGE(OFFSET(Cat23wall!$E$10,12*($A50-1),4*(PlotControl!$C$6-1),12,1)) -> 8140.8 | AI50: =AVERAGE(OFFSET(Cat4wall!$C$10,12*($A50-1),4*(PlotControl!$C$6-1),12,1)) -> 52.8395 | AJ50: =AVERAGE(OFFSET(Cat4wall!$D$10,12*($A50-1),4*(PlotControl!$C$6-1),12,1)) -> 219.1 | AK50: =AVERAGE(OFFSET(Cat4wall!$E$10,12*($A50-1),4*(PlotControl!$C$6-1),12,1)) -> 981.2958333 | AL50: =AVERAGE(OFFSET(Orewall!$C$10,12*($A50-1),4*(PlotControl!$C$6-1),12,1)) -> 2824.566667 | AM50: =AVERAGE(OFFSET(Orewall!$D$10,12*($A50-1),4*(PlotControl!$C$6-1),12,1)) -> 7185.391667 | AN50: =AVERAGE(OFFSET(Orewall!$E$10,12*($A50-1),4*(PlotControl!$C$6-1),12,1)) -> 17740.58333 | AO50: =AVERAGE(OFFSET(TBPump!$C$10,12*($A50-1),4*(PlotControl!$C$6-1),12,1)) -> 2624.875 | AP50: =AVERAGE(OFFSET(TBPump!$D$10,12*($A50-1),4*(PlotControl!$C$6-1),12,1)) -> 8451.308333 | AQ50: =AVERAGE(OFFSET(TBPump!$E$10,12*($A50-1),4*(PlotControl!$C$6-1),12,1)) -> 14362.91667
A51: 47 | B51: =AVERAGE(OFFSET(Total!$C$10,12*($A51-1),4*(PlotControl!$C$6-1),12,1)) -> 26731.66667 | C51: =AVERAGE(OFFSET(Total!$D$10,12*($A51-1),4*(PlotControl!$C$6-1),12,1)) -> 48509.83333 | D51: =AVERAGE(OFFSET(Total!$E$10,12*($A51-1),4*(PlotControl!$C$6-1),12,1)) -> 92881.91667 | E51: =AVERAGE(OFFSET(RO!$C$10,12*($A51-1),4*(PlotControl!$C$6-1),12,1)) -> 848.7241667 | F51: =AVERAGE(OFFSET(RO!$D$10,12*($A51-1),4*(PlotControl!$C$6-1),12,1)) -> 2783.95 | G51: =AVERAGE(OFFSET(RO!$E$10,12*($A51-1),4*(PlotControl!$C$6-1),12,1)) -> 8436.816667 | H51: =AVERAGE(OFFSET(GW!$C$10,12*($A51-1),4*(PlotControl!$C$6-1),12,1)) -> 554.1075 | I51: =AVERAGE(OFFSET(GW!$D$10,12*($A51-1),4*(PlotControl!$C$6-1),12,1)) -> 662.8075 | J51: =AVERAGE(OFFSET(GW!$E$10,12*($A51-1),4*(PlotControl!$C$6-1),12,1)) -> 952.1266667 | K51: =AVERAGE(OFFSET(Wetland!$C$10,12*($A51-1),4*(PlotControl!$C$6-1),12,1)) -> 1115.241667 | L51: =AVERAGE(OFFSET(Wetland!$D$10,12*($A51-1),4*(PlotControl!$C$6-1),12,1)) -> 3123.539833 | M51: =AVERAGE(OFFSET(Wetland!$E$10,12*($A51-1),4*(PlotControl!$C$6-1),12,1)) -> 7235.7 | N51: =AVERAGE(OFFSET(Pore!$C$10,12*($A51-1),4*(PlotControl!$C$6-1),12,1)) -> 38.51558333 | O51: =AVERAGE(OFFSET(Pore!$D$10,12*($A51-1),4*(PlotControl!$C$6-1),12,1)) -> 46.22333333 | P51: =AVERAGE(OFFSET(Pore!$E$10,12*($A51-1),4*(PlotControl!$C$6-1),12,1)) -> 67.05575 | Q51: =AVERAGE(OFFSET(CPS!$C$10,12*($A51-1),4*(PlotControl!$C$6-1),12,1)) -> 0 | R51: =AVERAGE(OFFSET(CPS!$D$10,12*($A51-1),4*(PlotControl!$C$6-1),12,1)) -> 0 | S51: =AVERAGE(OFFSET(CPS!$E$10,12*($A51-1),4*(PlotControl!$C$6-1),12,1)) -> 0 | T51: =AVERAGE(OFFSET(Blast!$C$10,12*($A51-1),4*(PlotControl!$C$6-1),12,1)) -> 0 | U51: =AVERAGE(OFFSET(Blast!$D$10,12*($A51-1),4*(PlotControl!$C$6-1),12,1)) -> 0 | V51: =AVERAGE(OFFSET(Blast!$E$10,12*($A51-1),4*(PlotControl!$C$6-1),12,1)) -> 0 | W51: =AVERAGE(OFFSET(Cat1SP!$C$10,12*($A51-1),4*(PlotControl!$C$6-1),12,1)) -> 3550.275 | X51: =AVERAGE(OFFSET(Cat1SP!$D$10,12*($A51-1),4*(PlotControl!$C$6-1),12,1)) -> 14572.75 | Y51: =AVERAGE(OFFSET(Cat1SP!$E$10,12*($A51-1),4*(PlotControl!$C$6-1),12,1)) -> 46584.75 | Z51: =AVERAGE(OFFSET(Cat1SP_WWTF!$C$10,12*($A51-1),4*(PlotControl!$C$6-1),12,1)) -> 0 | AA51: =AVERAGE(OFFSET(Cat1SP_WWTF!$D$10,12*($A51-1),4*(PlotControl!$C$6-1),12,1)) -> 0 | AB51: =AVERAGE(OFFSET(Cat1SP_WWTF!$E$10,12*($A51-1),4*(PlotControl!$C$6-1),12,1)) -> 0 | AC51: =AVERAGE(OFFSET(Cat1wall!$C$10,12*($A51-1),4*(PlotControl!$C$6-1),12,1)) -> 205.2316667 | AD51: =AVERAGE(OFFSET(Cat1wall!$D$10,12*($A51-1),4*(PlotControl!$C$6-1),12,1)) -> 460.9458333 | AE51: =AVERAGE(OFFSET(Cat1wall!$E$10,12*($A51-1),4*(PlotControl!$C$6-1),12,1)) -> 953.9758333 | AF51: =AVERAGE(OFFSET(Cat23wall!$C$10,12*($A51-1),4*(PlotControl!$C$6-1),12,1)) -> 1390.5575 | AG51: =AVERAGE(OFFSET(Cat23wall!$D$10,12*($A51-1),4*(PlotControl!$C$6-1),12,1)) -> 3522.216667 | AH51: =AVERAGE(OFFSET(Cat23wall!$E$10,12*($A51-1),4*(PlotControl!$C$6-1),12,1)) -> 8029.05 | AI51: =AVERAGE(OFFSET(Cat4wall!$C$10,12*($A51-1),4*(PlotControl!$C$6-1),12,1)) -> 48.932 | AJ51: =AVERAGE(OFFSET(Cat4wall!$D$10,12*($A51-1),4*(PlotControl!$C$6-1),12,1)) -> 182.22425 | AK51: =AVERAGE(OFFSET(Cat4wall!$E$10,12*($A51-1),4*(PlotControl!$C$6-1),12,1)) -> 761.8833333 | AL51: =AVERAGE(OFFSET(Orewall!$C$10,12*($A51-1),4*(PlotControl!$C$6-1),12,1)) -> 2681.491667 | AM51: =AVERAGE(OFFSET(Orewall!$D$10,12*($A51-1),4*(PlotControl!$C$6-1),12,1)) -> 6776.225 | AN51: =AVERAGE(OFFSET(Orewall!$E$10,12*($A51-1),4*(PlotControl!$C$6-1),12,1)) -> 15578.93333 | AO51: =AVERAGE(OFFSET(TBPump!$C$10,12*($A51-1),4*(PlotControl!$C$6-1),12,1)) -> 1824.158333 | AP51: =AVERAGE(OFFSET(TBPump!$D$10,12*($A51-1),4*(PlotControl!$C$6-1),12,1)) -> 8289.008333 | AQ51: =AVERAGE(OFFSET(TBPump!$E$10,12*($A51-1),4*(PlotControl!$C$6-1),12,1)) -> 15360
A52: 48 | B52: =AVERAGE(OFFSET(Total!$C$10,12*($A52-1),4*(PlotControl!$C$6-1),12,1)) -> 23887.91667 | C52: =AVERAGE(OFFSET(Total!$D$10,12*($A52-1),4*(PlotControl!$C$6-1),12,1)) -> 46843 | D52: =AVERAGE(OFFSET(Total!$E$10,12*($A52-1),4*(PlotControl!$C$6-1),12,1)) -> 84581.25 | E52: =AVERAGE(OFFSET(RO!$C$10,12*($A52-1),4*(PlotControl!$C$6-1),12,1)) -> 717.06 | F52: =AVERAGE(OFFSET(RO!$D$10,12*($A52-1),4*(PlotControl!$C$6-1),12,1)) -> 2652.866667 | G52: =AVERAGE(OFFSET(RO!$E$10,12*($A52-1),4*(PlotControl!$C$6-1),12,1)) -> 8387.291667 | H52: =AVERAGE(OFFSET(GW!$C$10,12*($A52-1),4*(PlotControl!$C$6-1),12,1)) -> 535.2891667 | I52: =AVERAGE(OFFSET(GW!$D$10,12*($A52-1),4*(PlotControl!$C$6-1),12,1)) -> 640.5016667 | J52: =AVERAGE(OFFSET(GW!$E$10,12*($A52-1),4*(PlotControl!$C$6-1),12,1)) -> 918.7008333 | K52: =AVERAGE(OFFSET(Wetland!$C$10,12*($A52-1),4*(PlotControl!$C$6-1),12,1)) -> 1138.8525 | L52: =AVERAGE(OFFSET(Wetland!$D$10,12*($A52-1),4*(PlotControl!$C$6-1),12,1)) -> 2980.6575 | M52: =AVERAGE(OFFSET(Wetland!$E$10,12*($A52-1),4*(PlotControl!$C$6-1),12,1)) -> 6358.008333 | N52: =AVERAGE(OFFSET(Pore!$C$10,12*($A52-1),4*(PlotControl!$C$6-1),12,1)) -> 38.10741667 | O52: =AVERAGE(OFFSET(Pore!$D$10,12*($A52-1),4*(PlotControl!$C$6-1),12,1)) -> 45.90383333 | P52: =AVERAGE(OFFSET(Pore!$E$10,12*($A52-1),4*(PlotControl!$C$6-1),12,1)) -> 66.75016667 | Q52: =AVERAGE(OFFSET(CPS!$C$10,12*($A52-1),4*(PlotControl!$C$6-1),12,1)) -> 0 | R52: =AVERAGE(OFFSET(CPS!$D$10,12*($A52-1),4*(PlotControl!$C$6-1),12,1)) -> 0 | S52: =AVERAGE(OFFSET(CPS!$E$10,12*($A52-1),4*(PlotControl!$C$6-1),12,1)) -> 0 | T52: =AVERAGE(OFFSET(Blast!$C$10,12*($A52-1),4*(PlotControl!$C$6-1),12,1)) -> 0 | U52: =AVERAGE(OFFSET(Blast!$D$10,12*($A52-1),4*(PlotControl!$C$6-1),12,1)) -> 0 | V52: =AVERAGE(OFFSET(Blast!$E$10,12*($A52-1),4*(PlotControl!$C$6-1),12,1)) -> 0 | W52: =AVERAGE(OFFSET(Cat1SP!$C$10,12*($A52-1),4*(PlotControl!$C$6-1),12,1)) -> 3010.636667 | X52: =AVERAGE(OFFSET(Cat1SP!$D$10,12*($A52-1),4*(PlotControl!$C$6-1),12,1)) -> 13728.875 | Y52: =AVERAGE(OFFSET(Cat1SP!$E$10,12*($A52-1),4*(PlotControl!$C$6-1),12,1)) -> 45313.33333 | Z52: =AVERAGE(OFFSET(Cat1SP_WWTF!$C$10,12*($A52-1),4*(PlotControl!$C$6-1),12,1)) -> 0 | AA52: =AVERAGE(OFFSET(Cat1SP_WWTF!$D$10,12*($A52-1),4*(PlotControl!$C$6-1),12,1)) -> 0 | AB52: =AVERAGE(OFFSET(Cat1SP_WWTF!$E$10,12*($A52-1),4*(PlotControl!$C$6-1),12,1)) -> 0 | AC52: =AVERAGE(OFFSET(Cat1wall!$C$10,12*($A52-1),4*(PlotControl!$C$6-1),12,1)) -> 184.5313333 | AD52: =AVERAGE(OFFSET(Cat1wall!$D$10,12*($A52-1),4*(PlotControl!$C$6-1),12,1)) -> 448.5416667 | AE52: =AVERAGE(OFFSET(Cat1wall!$E$10,12*($A52-1),4*(PlotControl!$C$6-1),12,1)) -> 965.2125 | AF52: =AVERAGE(OFFSET(Cat23wall!$C$10,12*($A52-1),4*(PlotControl!$C$6-1),12,1)) -> 1294.166667 | AG52: =AVERAGE(OFFSET(Cat23wall!$D$10,12*($A52-1),4*(PlotControl!$C$6-1),12,1)) -> 3519.516667 | AH52: =AVERAGE(OFFSET(Cat23wall!$E$10,12*($A52-1),4*(PlotControl!$C$6-1),12,1)) -> 8533.808333 | AI52: =AVERAGE(OFFSET(Cat4wall!$C$10,12*($A52-1),4*(PlotControl!$C$6-1),12,1)) -> 41.82283333 | AJ52: =AVERAGE(OFFSET(Cat4wall!$D$10,12*($A52-1),4*(PlotControl!$C$6-1),12,1)) -> 159.8385 | AK52: =AVERAGE(OFFSET(Cat4wall!$E$10,12*($A52-1),4*(PlotControl!$C$6-1),12,1)) -> 627.135 | AL52: =AVERAGE(OFFSET(Orewall!$C$10,12*($A52-1),4*(PlotControl!$C$6-1),12,1)) -> 2378.550833 | AM52: =AVERAGE(OFFSET(Orewall!$D$10,12*($A52-1),4*(PlotControl!$C$6-1),12,1)) -> 6539.066667 | AN52: =AVERAGE(OFFSET(Orewall!$E$10,12*($A52-1),4*(PlotControl!$C$6-1),12,1)) -> 15532.525 | AO52: =AVERAGE(OFFSET(TBPump!$C$10,12*($A52-1),4*(PlotControl!$C$6-1),12,1)) -> 1234.287167 | AP52: =AVERAGE(OFFSET(TBPump!$D$10,12*($A52-1),4*(PlotControl!$C$6-1),12,1)) -> 8894.583333 | AQ52: =AVERAGE(OFFSET(TBPump!$E$10,12*($A52-1),4*(PlotControl!$C$6-1),12,1)) -> 15379.16667
A53: 49 | B53: =AVERAGE(OFFSET(Total!$C$10,12*($A53-1),4*(PlotControl!$C$6-1),12,1)) -> 17905.01667 | C53: =AVERAGE(OFFSET(Total!$D$10,12*($A53-1),4*(PlotControl!$C$6-1),12,1)) -> 43449 | D53: =AVERAGE(OFFSET(Total!$E$10,12*($A53-1),4*(PlotControl!$C$6-1),12,1)) -> 84330.58333 | E53: =AVERAGE(OFFSET(RO!$C$10,12*($A53-1),4*(PlotControl!$C$6-1),12,1)) -> 270.4291667 | F53: =AVERAGE(OFFSET(RO!$D$10,12*($A53-1),4*(PlotControl!$C$6-1),12,1)) -> 2509.358333 | G53: =AVERAGE(OFFSET(RO!$E$10,12*($A53-1),4*(PlotControl!$C$6-1),12,1)) -> 8471.516667 | H53: =AVERAGE(OFFSET(GW!$C$10,12*($A53-1),4*(PlotControl!$C$6-1),12,1)) -> 515.7675 | I53: =AVERAGE(OFFSET(GW!$D$10,12*($A53-1),4*(PlotControl!$C$6-1),12,1)) -> 622.9183333 | J53: =AVERAGE(OFFSET(GW!$E$10,12*($A53-1),4*(PlotControl!$C$6-1),12,1)) -> 883.2758333 | K53: =AVERAGE(OFFSET(Wetland!$C$10,12*($A53-1),4*(PlotControl!$C$6-1),12,1)) -> 1171.2075 | L53: =AVERAGE(OFFSET(Wetland!$D$10,12*($A53-1),4*(PlotControl!$C$6-1),12,1)) -> 3070.0875 | M53: =AVERAGE(OFFSET(Wetland!$E$10,12*($A53-1),4*(PlotControl!$C$6-1),12,1)) -> 5919.7325 | N53: =AVERAGE(OFFSET(Pore!$C$10,12*($A53-1),4*(PlotControl!$C$6-1),12,1)) -> 18.59008333 | O53: =AVERAGE(OFFSET(Pore!$D$10,12*($A53-1),4*(PlotControl!$C$6-1),12,1)) -> 45.07625 | P53: =AVERAGE(OFFSET(Pore!$E$10,12*($A53-1),4*(PlotControl!$C$6-1),12,1)) -> 64.84875 | Q53: =AVERAGE(OFFSET(CPS!$C$10,12*($A53-1),4*(PlotControl!$C$6-1),12,1)) -> 0 | R53: =AVERAGE(OFFSET(CPS!$D$10,12*($A53-1),4*(PlotControl!$C$6-1),12,1)) -> 0 | S53: =AVERAGE(OFFSET(CPS!$E$10,12*($A53-1),4*(PlotControl!$C$6-1),12,1)) -> 0 | T53: =AVERAGE(OFFSET(Blast!$C$10,12*($A53-1),4*(PlotControl!$C$6-1),12,1)) -> 0 | U53: =AVERAGE(OFFSET(Blast!$D$10,12*($A53-1),4*(PlotControl!$C$6-1),12,1)) -> 0 | V53: =AVERAGE(OFFSET(Blast!$E$10,12*($A53-1),4*(PlotControl!$C$6-1),12,1)) -> 0 | W53: =AVERAGE(OFFSET(Cat1SP!$C$10,12*($A53-1),4*(PlotControl!$C$6-1),12,1)) -> 1907.055 | X53: =AVERAGE(OFFSET(Cat1SP!$D$10,12*($A53-1),4*(PlotControl!$C$6-1),12,1)) -> 13128.225 | Y53: =AVERAGE(OFFSET(Cat1SP!$E$10,12*($A53-1),4*(PlotControl!$C$6-1),12,1)) -> 46475.75 | Z53: =AVERAGE(OFFSET(Cat1SP_WWTF!$C$10,12*($A53-1),4*(PlotControl!$C$6-1),12,1)) -> 0 | AA53: =AVERAGE(OFFSET(Cat1SP_WWTF!$D$10,12*($A53-1),4*(PlotControl!$C$6-1),12,1)) -> 0 | AB53: =AVERAGE(OFFSET(Cat1SP_WWTF!$E$10,12*($A53-1),4*(PlotControl!$C$6-1),12,1)) -> 3293.408333 | AC53: =AVERAGE(OFFSET(Cat1wall!$C$10,12*($A53-1),4*(PlotControl!$C$6-1),12,1)) -> 136.8168333 | AD53: =AVERAGE(OFFSET(Cat1wall!$D$10,12*($A53-1),4*(PlotControl!$C$6-1),12,1)) -> 416.465 | AE53: =AVERAGE(OFFSET(Cat1wall!$E$10,12*($A53-1),4*(PlotControl!$C$6-1),12,1)) -> 892.0566667 | AF53: =AVERAGE(OFFSET(Cat23wall!$C$10,12*($A53-1),4*(PlotControl!$C$6-1),12,1)) -> 926.2108333 | AG53: =AVERAGE(OFFSET(Cat23wall!$D$10,12*($A53-1),4*(PlotControl!$C$6-1),12,1)) -> 3378.766667 | AH53: =AVERAGE(OFFSET(Cat23wall!$E$10,12*($A53-1),4*(PlotControl!$C$6-1),12,1)) -> 8253.466667 | AI53: =AVERAGE(OFFSET(Cat4wall!$C$10,12*($A53-1),4*(PlotControl!$C$6-1),12,1)) -> 36.49935 | AJ53: =AVERAGE(OFFSET(Cat4wall!$D$10,12*($A53-1),4*(PlotControl!$C$6-1),12,1)) -> 138.6415833 | AK53: =AVERAGE(OFFSET(Cat4wall!$E$10,12*($A53-1),4*(PlotControl!$C$6-1),12,1)) -> 486.4158333 | AL53: =AVERAGE(OFFSET(Orewall!$C$10,12*($A53-1),4*(PlotControl!$C$6-1),12,1)) -> 1660.699167 | AM53: =AVERAGE(OFFSET(Orewall!$D$10,12*($A53-1),4*(PlotControl!$C$6-1),12,1)) -> 5900.183333 | AN53: =AVERAGE(OFFSET(Orewall!$E$10,12*($A53-1),4*(PlotControl!$C$6-1),12,1)) -> 14818.925 | AO53: =AVERAGE(OFFSET(TBPump!$C$10,12*($A53-1),4*(PlotControl!$C$6-1),12,1)) -> 0 | AP53: =AVERAGE(OFFSET(TBPump!$D$10,12*($A53-1),4*(PlotControl!$C$6-1),12,1)) -> 7281.933333 | AQ53: =AVERAGE(OFFSET(TBPump!$E$10,12*($A53-1),4*(PlotControl!$C$6-1),12,1)) -> 13114
A54: 50 | B54: =AVERAGE(OFFSET(Total!$C$10,12*($A54-1),4*(PlotControl!$C$6-1),12,1)) -> 7956.85 | C54: =AVERAGE(OFFSET(Total!$D$10,12*($A54-1),4*(PlotControl!$C$6-1),12,1)) -> 40601.83333 | D54: =AVERAGE(OFFSET(Total!$E$10,12*($A54-1),4*(PlotControl!$C$6-1),12,1)) -> 82981.5 | E54: =AVERAGE(OFFSET(RO!$C$10,12*($A54-1),4*(PlotControl!$C$6-1),12,1)) -> 0 | F54: =AVERAGE(OFFSET(RO!$D$10,12*($A54-1),4*(PlotControl!$C$6-1),12,1)) -> 2107.5625 | G54: =AVERAGE(OFFSET(RO!$E$10,12*($A54-1),4*(PlotControl!$C$6-1),12,1)) -> 7833.3 | H54: =AVERAGE(OFFSET(GW!$C$10,12*($A54-1),4*(PlotControl!$C$6-1),12,1)) -> 501.8433333 | I54: =AVERAGE(OFFSET(GW!$D$10,12*($A54-1),4*(PlotControl!$C$6-1),12,1)) -> 606.09 | J54: =AVERAGE(OFFSET(GW!$E$10,12*($A54-1),4*(PlotControl!$C$6-1),12,1)) -> 856.7625 | K54: =AVERAGE(OFFSET(Wetland!$C$10,12*($A54-1),4*(PlotControl!$C$6-1),12,1)) -> 1154.625 | L54: =AVERAGE(OFFSET(Wetland!$D$10,12*($A54-1),4*(PlotControl!$C$6-1),12,1)) -> 2786.965333 | M54: =AVERAGE(OFFSET(Wetland!$E$10,12*($A54-1),4*(PlotControl!$C$6-1),12,1)) -> 5841.956667 | N54: =AVERAGE(OFFSET(Pore!$C$10,12*($A54-1),4*(PlotControl!$C$6-1),12,1)) -> 0 | O54: =AVERAGE(OFFSET(Pore!$D$10,12*($A54-1),4*(PlotControl!$C$6-1),12,1)) -> 43.64133333 | P54: =AVERAGE(OFFSET(Pore!$E$10,12*($A54-1),4*(PlotControl!$C$6-1),12,1)) -> 61.34025 | Q54: =AVERAGE(OFFSET(CPS!$C$10,12*($A54-1),4*(PlotControl!$C$6-1),12,1)) -> 0 | R54: =AVERAGE(OFFSET(CPS!$D$10,12*($A54-1),4*(PlotControl!$C$6-1),12,1)) -> 0 | S54: =AVERAGE(OFFSET(CPS!$E$10,12*($A54-1),4*(PlotControl!$C$6-1),12,1)) -> 0 | T54: =AVERAGE(OFFSET(Blast!$C$10,12*($A54-1),4*(PlotControl!$C$6-1),12,1)) -> 0 | U54: =AVERAGE(OFFSET(Blast!$D$10,12*($A54-1),4*(PlotControl!$C$6-1),12,1)) -> 0 | V54: =AVERAGE(OFFSET(Blast!$E$10,12*($A54-1),4*(PlotControl!$C$6-1),12,1)) -> 0 | W54: =AVERAGE(OFFSET(Cat1SP!$C$10,12*($A54-1),4*(PlotControl!$C$6-1),12,1)) -> 986.3741667 | X54: =AVERAGE(OFFSET(Cat1SP!$D$10,12*($A54-1),4*(PlotControl!$C$6-1),12,1)) -> 10882.9 | Y54: =AVERAGE(OFFSET(Cat1SP!$E$10,12*($A54-1),4*(PlotControl!$C$6-1),12,1)) -> 44610.08333 | Z54: =AVERAGE(OFFSET(Cat1SP_WWTF!$C$10,12*($A54-1),4*(PlotControl!$C$6-1),12,1)) -> 0 | AA54: =AVERAGE(OFFSET(Cat1SP_WWTF!$D$10,12*($A54-1),4*(PlotControl!$C$6-1),12,1)) -> 0 | AB54: =AVERAGE(OFFSET(Cat1SP_WWTF!$E$10,12*($A54-1),4*(PlotControl!$C$6-1),12,1)) -> 13851.64167 | AC54: =AVERAGE(OFFSET(Cat1wall!$C$10,12*($A54-1),4*(PlotControl!$C$6-1),12,1)) -> 82.71325 | AD54: =AVERAGE(OFFSET(Cat1wall!$D$10,12*($A54-1),4*(PlotControl!$C$6-1),12,1)) -> 386.775 | AE54: =AVERAGE(OFFSET(Cat1wall!$E$10,12*($A54-1),4*(PlotControl!$C$6-1),12,1)) -> 905.7575 | AF54: =AVERAGE(OFFSET(Cat23wall!$C$10,12*($A54-1),4*(PlotControl!$C$6-1),12,1)) -> 550.06925 | AG54: =AVERAGE(OFFSET(Cat23wall!$D$10,12*($A54-1),4*(PlotControl!$C$6-1),12,1)) -> 3191.541667 | AH54: =AVERAGE(OFFSET(Cat23wall!$E$10,12*($A54-1),4*(PlotControl!$C$6-1),12,1)) -> 8263.491667 | AI54: =AVERAGE(OFFSET(Cat4wall!$C$10,12*($A54-1),4*(PlotControl!$C$6-1),12,1)) -> 26.24055833 | AJ54: =AVERAGE(OFFSET(Cat4wall!$D$10,12*($A54-1),4*(PlotControl!$C$6-1),12,1)) -> 133.6823333 | AK54: =AVERAGE(OFFSET(Cat4wall!$E$10,12*($A54-1),4*(PlotControl!$C$6-1),12,1)) -> 414.4908333 | AL54: =AVERAGE(OFFSET(Orewall!$C$10,12*($A54-1),4*(PlotControl!$C$6-1),12,1)) -> 984.1033333 | AM54: =AVERAGE(OFFSET(Orewall!$D$10,12*($A54-1),4*(PlotControl!$C$6-1),12,1)) -> 5536.083333 | AN54: =AVERAGE(OFFSET(Orewall!$E$10,12*($A54-1),4*(PlotControl!$C$6-1),12,1)) -> 14353.975 | AO54: =AVERAGE(OFFSET(TBPump!$C$10,12*($A54-1),4*(PlotControl!$C$6-1),12,1)) -> 0 | AP54: =AVERAGE(OFFSET(TBPump!$D$10,12*($A54-1),4*(PlotControl!$C$6-1),12,1)) -> 6936.95 | AQ54: =AVERAGE(OFFSET(TBPump!$E$10,12*($A54-1),4*(PlotControl!$C$6-1),12,1)) -> 13494.91667
A55: 51 | B55: =AVERAGE(OFFSET(Total!$C$10,12*($A55-1),4*(PlotControl!$C$6-1),12,1)) -> 5554.141667 | C55: =AVERAGE(OFFSET(Total!$D$10,12*($A55-1),4*(PlotControl!$C$6-1),12,1)) -> 34311.91667 | D55: =AVERAGE(OFFSET(Total!$E$10,12*($A55-1),4*(PlotControl!$C$6-1),12,1)) -> 75934.83333 | E55: =AVERAGE(OFFSET(RO!$C$10,12*($A55-1),4*(PlotControl!$C$6-1),12,1)) -> 0 | F55: =AVERAGE(OFFSET(RO!$D$10,12*($A55-1),4*(PlotControl!$C$6-1),12,1)) -> 1503.77 | G55: =AVERAGE(OFFSET(RO!$E$10,12*($A55-1),4*(PlotControl!$C$6-1),12,1)) -> 7173.208333 | H55: =AVERAGE(OFFSET(GW!$C$10,12*($A55-1),4*(PlotControl!$C$6-1),12,1)) -> 488.2158333 | I55: =AVERAGE(OFFSET(GW!$D$10,12*($A55-1),4*(PlotControl!$C$6-1),12,1)) -> 590.595 | J55: =AVERAGE(OFFSET(GW!$E$10,12*($A55-1),4*(PlotControl!$C$6-1),12,1)) -> 835.8525 | K55: =AVERAGE(OFFSET(Wetland!$C$10,12*($A55-1),4*(PlotControl!$C$6-1),12,1)) -> 1118.605 | L55: =AVERAGE(OFFSET(Wetland!$D$10,12*($A55-1),4*(PlotControl!$C$6-1),12,1)) -> 2716.638333 | M55: =AVERAGE(OFFSET(Wetland!$E$10,12*($A55-1),4*(PlotControl!$C$6-1),12,1)) -> 5600.125833 | N55: =AVERAGE(OFFSET(Pore!$C$10,12*($A55-1),4*(PlotControl!$C$6-1),12,1)) -> 0 | O55: =AVERAGE(OFFSET(Pore!$D$10,12*($A55-1),4*(PlotControl!$C$6-1),12,1)) -> 41.30833333 | P55: =AVERAGE(OFFSET(Pore!$E$10,12*($A55-1),4*(PlotControl!$C$6-1),12,1)) -> 57.50233333 | Q55: =AVERAGE(OFFSET(CPS!$C$10,12*($A55-1),4*(PlotControl!$C$6-1),12,1)) -> 0 | R55: =AVERAGE(OFFSET(CPS!$D$10,12*($A55-1),4*(PlotControl!$C$6-1),12,1)) -> 0 | S55: =AVERAGE(OFFSET(CPS!$E$10,12*($A55-1),4*(PlotControl!$C$6-1),12,1)) -> 0 | T55: =AVERAGE(OFFSET(Blast!$C$10,12*($A55-1),4*(PlotControl!$C$6-1),12,1)) -> 0 | U55: =AVERAGE(OFFSET(Blast!$D$10,12*($A55-1),4*(PlotControl!$C$6-1),12,1)) -> 0 | V55: =AVERAGE(OFFSET(Blast!$E$10,12*($A55-1),4*(PlotControl!$C$6-1),12,1)) -> 0 | W55: =AVERAGE(OFFSET(Cat1SP!$C$10,12*($A55-1),4*(PlotControl!$C$6-1),12,1)) -> 514.8125 | X55: =AVERAGE(OFFSET(Cat1SP!$D$10,12*($A55-1),4*(PlotControl!$C$6-1),12,1)) -> 7653.558333 | Y55: =AVERAGE(OFFSET(Cat1SP!$E$10,12*($A55-1),4*(PlotControl!$C$6-1),12,1)) -> 38071.66667 | Z55: =AVERAGE(OFFSET(Cat1SP_WWTF!$C$10,12*($A55-1),4*(PlotControl!$C$6-1),12,1)) -> 0 | AA55: =AVERAGE(OFFSET(Cat1SP_WWTF!$D$10,12*($A55-1),4*(PlotControl!$C$6-1),12,1)) -> 0 | AB55: =AVERAGE(OFFSET(Cat1SP_WWTF!$E$10,12*($A55-1),4*(PlotControl!$C$6-1),12,1)) -> 25235.18333 | AC55: =AVERAGE(OFFSET(Cat1wall!$C$10,12*($A55-1),4*(PlotControl!$C$6-1),12,1)) -> 62.95758333 | AD55: =AVERAGE(OFFSET(Cat1wall!$D$10,12*($A55-1),4*(PlotControl!$C$6-1),12,1)) -> 314.1366667 | AE55: =AVERAGE(OFFSET(Cat1wall!$E$10,12*($A55-1),4*(PlotControl!$C$6-1),12,1)) -> 861.4958333 | AF55: =AVERAGE(OFFSET(Cat23wall!$C$10,12*($A55-1),4*(PlotControl!$C$6-1),12,1)) -> 409.33675 | AG55: =AVERAGE(OFFSET(Cat23wall!$D$10,12*($A55-1),4*(PlotControl!$C$6-1),12,1)) -> 2483.08 | AH55: =AVERAGE(OFFSET(Cat23wall!$E$10,12*($A55-1),4*(PlotControl!$C$6-1),12,1)) -> 7597.183333 | AI55: =AVERAGE(OFFSET(Cat4wall!$C$10,12*($A55-1),4*(PlotControl!$C$6-1),12,1)) -> 21.72185833 | AJ55: =AVERAGE(OFFSET(Cat4wall!$D$10,12*($A55-1),4*(PlotControl!$C$6-1),12,1)) -> 116.4365833 | AK55: =AVERAGE(OFFSET(Cat4wall!$E$10,12*($A55-1),4*(PlotControl!$C$6-1),12,1)) -> 389.1475 | AL55: =AVERAGE(OFFSET(Orewall!$C$10,12*($A55-1),4*(PlotControl!$C$6-1),12,1)) -> 732.4004167 | AM55: =AVERAGE(OFFSET(Orewall!$D$10,12*($A55-1),4*(PlotControl!$C$6-1),12,1)) -> 4423.041667 | AN55: =AVERAGE(OFFSET(Orewall!$E$10,12*($A55-1),4*(PlotControl!$C$6-1),12,1)) -> 13335.25833 | AO55: =AVERAGE(OFFSET(TBPump!$C$10,12*($A55-1),4*(PlotControl!$C$6-1),12,1)) -> 0 | AP55: =AVERAGE(OFFSET(TBPump!$D$10,12*($A55-1),4*(PlotControl!$C$6-1),12,1)) -> 5062.725 | AQ55: =AVERAGE(OFFSET(TBPump!$E$10,12*($A55-1),4*(PlotControl!$C$6-1),12,1)) -> 13156.58333
